{"text_format":"1","workbook":"xlsx","n_sheets":29,"sheets":["Project Info & Instructions","HMA Split Sample Comparison","SMA Split Sample Comparison","HMA Core Data","SMA Core Data","HMA AC % Data","SMA AC % Data","HMA Mix Acceptance","SMA Mix Acceptance","HMA Air Voids Pay Factor","SMA Air Voids Pay Factor","HMA Density Pay Factor","SMA Density Pay Factor","HMA Test Strip Summary","SMA Test Strip Summary","Gauge-Core Variability","QC-1 Density Worksheet","QC-2 Density Worksheet","QV-1 Density Worksheet","QV-2 Density Worksheet","QC-1 Correlation","QC-2 Correlation","QV-1 Correlation","QV-2 Correlation","INTERNAL_SYS_MSGS","INTERNAL_SYS_VAR","INTERNAL_SYS_RECORD","County-Region Database","Data Summary"],"not_rendered":{"charts":6,"images":2,"macros":1,"external_links":2,"defined_names":546,"comments":2,"pivot_tables":0},"unopened":[],"bounds":{"document_bytes":16777216,"sheet_cells":100000,"rows_first":2000,"rows_last":500,"rows_between":2000,"halvings":0,"cell_chars":16384,"cell_head_chars":4096},"cells_cut":0,"cells_raw":0,"read":"whole","date_system":"1900"}

{"sheet":"Project Info & Instructions","index":0,"n_rows":55,"n_cols":11,"rows_kept":55,"cut":false,"hidden":false,"merged":[[54,3,54,7],[44,1,44,8],[36,1,36,8],[38,3,38,7],[39,3,39,7],[40,3,40,7],[42,3,42,7],[46,3,46,7],[51,3,51,7],[52,3,52,7],[0,2,3,2],[2,3,2,8],[4,1,4,8],[48,3,48,7],[49,3,49,7],[23,1,23,8],[18,3,21,7],[32,1,32,8],[34,3,34,7]]}
[null,null,{"$error":"#VALUE!"}]
[null,null,null,"Wisconsin Department of Transportation "]
[null,null,null,{"$f":"_xlfn.CONCAT(\"HMA & SMA Test Strip Spreadsheet (Version: \",INTERNAL_SYS_VAR!$C$3,\")\")","v":"HMA & SMA Test Strip Spreadsheet (Version: 3.0)"}]
[]
[null,"Project Information",null,null,null,null,null,null,null,null,"Instructions"]
[]
[null,null,"Contract ID:",null,null,null,"Pavement Layer:"]
[null,null,"Project ID:",null,null,null,"Underlying Layer:"]
[null,null,"County:",null,null,null,"Paving Width (ft):"]
[null,null,"Route/Road:",null,null,null,"Lane Width (ft):"]
[null,null,"Contractor:",null,null,null,"Nominal Thickness (in):"]
[null,null,"Project Leader:",null,null,null,"Start Station:"]
[null,null,"Date Constructed:",null,null,null,"End Station:",{"$f":"IF(OR(H9=\"\",H11=\"\",H12=\"\",H14=\"\",H15=\"\",H16=\"\"),INTERNAL_SYS_MSGS!$B$4,$H$12+IF(INTERNAL_SYS_VAR!$Y$8,1,-1)*IF(INTERNAL_SYS_VAR!$Z$8,H16,H17))","v":"More Information Needed"},null,null,"Controls"]
[null,null,"Test Strip Number:",null,null,null,"Stations Increasing / Decreasing?:"]
[null,null,null,null,null,null,"Length / Tonnage Known?:"]
[null,null,null,null,null,null,{"$f":"_xlfn.SWITCH($H$15,INTERNAL_SYS_VAR!$X$8,\"Estimated Length (ft.):\",INTERNAL_SYS_VAR!$X$9,\"Estimated Tonnage:\",\"Estimated Length / Tonnage:\")","v":"Estimated Length / Tonnage:"}]
[null,null,null,null,null,null,{"$f":"_xlfn.SWITCH($H$15,INTERNAL_SYS_VAR!$X$8,\"Calculated Tonnage:\",INTERNAL_SYS_VAR!$X$9,\"Calculated Length (ft.):\",\"Calculated Length / Tonnage:\")","v":"Calculated Length / Tonnage:"},{"$f":"IF(OR(H9=\"\",H11=\"\",H15=\"\",H16=\"\"),INTERNAL_SYS_MSGS!$B$4,_xlfn.SWITCH($H$15,INTERNAL_SYS_VAR!$X$8,($H$16*$H$9)/9*112*$H$11/2000,INTERNAL_SYS_VAR!$X$9,$H$16*2000/$H$11*9/112/$H$9,INTERNAL_SYS_MSGS!$B$3))","v":"More Information Needed"}]
[]
[null,null,"Comments:"]
[]
[]
[]
[]
[null,"Mixture Information"]
[]
[null,null,"WisDOT Mix Design ID:",null,null,null,"JMF % AC:"]
[null,null,"Mix Type:",null,null,null,"JMF AC Specific Gravity:"]
[null,null,"Mix Gradation:",null,null,null,"JMF Gmm:"]
[null,null,"Mix PG:",null,null,null,"JMF Gse:"]
[null,null,"Binder Designation:",null,null,null,"JMF Gsb:"]
[null,null,"Mix Classification:",{"$f":"CONCATENATE(D28,\"-\",D27,\"-\",D29,D30)","v":"--"},null,null,"Contract Unit Price:"]
[]
[null,"Test Strip Acceptance"]
[]
[null,null,"Type:"]
[]
[null,"Volumetric Split Sample Testing Information",null,null,null,null,null,null,null,null,"Controls"]
[]
[null,null,"Random Split Sample #1 Tonnage:"]
[null,null,"Random Split Sample #2 Tonnage:"]
[null,null,"Random Split Sample #3 Tonnage:"]
[]
[null,null,"Final Tonnage:"]
[]
[null,"Density Testing Information",null,null,null,null,null,null,null,null,"Controls"]
[]
[null,null,"Density Lower Spec Limit (%):",{"$f":"IF(OR($H$7=\"\",$H$8=\"\",$H$11=\"\",$D$27=\"\",$D$28=\"\"),INTERNAL_SYS_MSGS!$B$4,INTERNAL_SYS_VAR!$N$8)","v":"More Information Needed"}]
[]
[null,null,"Density Zone #1 Center Station:"]
[null,null,"Density Zone #2 Center Station:"]
[]
[null,null,"Daily Average Gmm:"]
[null,null,"Production or Non-Random Gmm:"]
[]
[null,null,"Final Length:"]

{"sheet":"HMA Split Sample Comparison","index":1,"n_rows":31,"n_cols":28,"rows_kept":31,"cut":false,"hidden":true,"merged":[[0,1,3,2],[26,1,35,9],[13,26,15,27],[4,22,4,23],[4,24,4,25],[4,26,4,27],[12,26,12,27],[8,2,8,3],[12,6,12,9],[12,12,12,13],[7,18,9,18],[8,7,8,9],[15,5,18,9],[17,18,19,18],[9,11,9,13],[19,11,19,13],[12,15,12,16],[13,15,13,16],[19,14,19,16],[5,2,5,3],[6,2,6,3],[7,2,7,3],[5,6,5,7],[6,6,6,7],[7,6,7,7],[5,11,7,16],[4,20,4,21],[24,10,24,12],[34,15,34,17],[23,6,23,7],[23,8,23,9],[13,6,13,7],[13,8,13,9],[13,12,13,13],[23,12,23,13],[22,12,22,13],[22,15,22,16],[23,15,23,16],[22,6,22,9],[26,14,26,16],[25,10,25,12],[9,14,9,16]]}
[null,{"$error":"#VALUE!"}]
[null,null,null,"HMA Split Sample Comparison Testing"]
[null,null,null,"Wisconsin Department of Transportation"]
[]
[null,null,null,null,null,null,null,null,null,null,null,null,null,null,null,null,null,null,null,null,"Worksheet Variables",null,"Acceptance Criteria",null,"Referee Testing Criteria",null,"Split Sample Comparison Pass / Fail"]
[null,"Date:",{"$f":"IF('Project Info & Instructions'!$D$13=\"\",\"\",'Project Info & Instructions'!$D$13)","v":""},null,null,"Test Strip #:",{"$f":"IF('Project Info & Instructions'!$D$14=\"\",\"\",'Project Info & Instructions'!$D$14)","v":""},null,null,null,null,"If datasets compare and testing differences are within testing tolerance, QC data is carried into the Air Voids Pay Factor worksheet. If not, BTS will conduct referee testing and BTS data will be entered below and used for subsequent calculations.",null,null,null,null,null,null,null,null,"QC and QV Gmm Test Count:",{"$f":"COUNT(D12:E14)","v":0},"Gmm Xd Mean Within Tolerance?",{"$f":"IF($V$6<6,\"N/A\",IF(ROUND($H$11,3)<=$S$11,TRUE,FALSE))","v":"N/A"},"Split Sample Comparison Requires Referee Testing?",{"$f":"IF(OR($V$6<1,$V$7<1),\"N/A\",IF(X22=TRUE,TRUE,IF(X23=TRUE,FALSE,IF(AND(X6=TRUE,X8=TRUE,X7=TRUE,X9=TRUE),FALSE,TRUE))))","v":"N/A"},"Passing Split Sample Comparison?",{"$f":"IF($V$8<12,\"N/A\",IF($Z$6=TRUE,FALSE,TRUE))","v":"N/A"}]
[null,"Project ID:",{"$f":"IF('Project Info & Instructions'!$D$8=\"\",\"\",'Project Info & Instructions'!$D$8)","v":""},null,null,"Route/Road:",{"$f":"IF('Project Info & Instructions'!$D$10=\"\",\"\",'Project Info & Instructions'!$D$10)","v":""},null,null,null,null,null,null,null,null,null,null,null,null,null,"QC and QV Gmb Test Count:",{"$f":"COUNT(D22:E24)","v":0},"Gmb Xd Mean Within Tolerance?",{"$f":"IF($V$7<6,\"N/A\",IF(ROUND($H$21,3)<=$S$21,TRUE,FALSE))","v":"N/A"},"AC Requires Referee Testing?",{"$f":"'HMA AC % Data'!$Z$6","v":"N/A"},"One or more Gmm exceeds the Acceptance Limits?",{"$f":"IF(OR(X10=FALSE,X11=FALSE,X12=FALSE,X13=FALSE,X14=FALSE,X15=FALSE,Z18=FALSE,Z19=FALSE,Z20=FALSE),TRUE,FALSE)","v":false}]
[null,"Mix Type:",{"$f":"IF('Project Info & Instructions'!$D$31=\"\",\"\",'Project Info & Instructions'!$D$31)","v":"--"},null,null," Layer:",{"$f":"IF('Project Info & Instructions'!$H$7=\"\",\"\",'Project Info & Instructions'!$H$7)","v":""},null,null,null,null,null,null,null,null,null,null,null,"Gmm \nXd Mean Tolerance",null,"Total QC and QV Test Count:",{"$f":"COUNT(D12:E14,D22:E24)","v":0},"Gmm t-test Passed?",{"$f":"IF($V$6<6,\"N/A\",IFERROR(IF($H$12>$J$12,TRUE,FALSE),TRUE))","v":"N/A"},"VMA Requires Referee Testing?",{"$f":"'HMA Mix Acceptance'!$O$7","v":false},"Failed t-Test Only?",{"$f":"$X$23","v":"N/A"}]
[null,"JMF Gmm:",{"$f":"IF('Project Info & Instructions'!$H$28=\"\",INTERNAL_SYS_MSGS!$B$6,'Project Info & Instructions'!$H$28)","v":"Enter JMF Gmm."},null,null,null,null,null,null,null,null,null,null,null,null,null,null,null,null,null,"BTS Referee Gmm Test Count:",{"$f":"COUNT(K12:K14)","v":0},"Gmb t-test Passed?",{"$f":"IF($V$7<6,\"N/A\",IFERROR(IF($H$22>$J$22,TRUE,FALSE),TRUE))","v":"N/A"},"Referee Testing Required?",{"$f":"IF(OR(Z6=TRUE,Z7=TRUE,Z8=TRUE),TRUE,FALSE)","v":false},"One or more Gmm Xd Mean exceeds the Tolerance?",{"$f":"IF(OR($X$6=FALSE,$Z$10=FALSE,$Z$11=FALSE),TRUE,FALSE)","v":false}]
[null,"Gmm",null,null,null,null,null,null,null,null,null,"BTS Vs. QC Results",null,null,"BTS Vs. QV Results",null,null,null,null,null,"BTS Referee Gmb Test Count:",{"$f":"COUNT(K22:K24)","v":0},"QC Gmm Split #1 Within Tolerance?",{"$f":"IF(ISBLANK(D12),\"N/A\",IF(D17<=INTERNAL_SYS_VAR!$AC$8,TRUE,FALSE))","v":"N/A"},"BTS-QC Gmm Xd Mean Within Tolerance?",{"$f":"IF($V$9<3,\"N/A\",IF(ROUND($N$11,3)<=$S$11,TRUE,FALSE))","v":"N/A"},"One or more Gmb Xd Mean exceeds the Tolerance?",{"$f":"IF(OR($X$7=FALSE,$Z$12=FALSE,$Z$13=FALSE),TRUE,FALSE)","v":false}]
[null,"Split Sample Number","Tonnage","QC Gmm","QV Gmm","Difference (Xd)","Xd Mean:",{"$f":"IF($V$6<6,\"\",ABS(AVERAGE(F12:F14)))","v":""},"Degrees of Freedom:",{"$f":"IF(COUNT(E12:E14)<1,\"\",COUNT(E12:E14)-1)","v":""},"BTS Referee Gmm","Difference (Xd)","Xd Mean:",{"$f":"IF($V$9<3,\"\",ABS(AVERAGE(L12:L14)))","v":""},"Difference (Xd)","Xd Mean:",{"$f":"IF($V$9<3,\"\",ABS(AVERAGE(O12:O14)))","v":""},null,{"$f":"INTERNAL_SYS_VAR!$AA$8","v":1.2E-2},null,null,null,"QC Gmm Split #2 Within Tolerance?",{"$f":"IF(ISBLANK(D13),\"N/A\",IF(D18<=INTERNAL_SYS_VAR!$AC$8,TRUE,FALSE))","v":"N/A"},"BTS-QV Gmm Xd Mean Within Tolerance?",{"$f":"IF($V$9<3,\"N/A\",IF(ROUND($Q$11,3)<=$S$11,TRUE,FALSE))","v":"N/A"},"One or more Gmm t-test Fails?",{"$f":"IF(OR($X$8=FALSE,$Z$14=FALSE,$Z$15=FALSE),TRUE,FALSE)","v":false}]
[null,1,{"$f":"IF('Project Info & Instructions'!$D$39=\"\",\"\",'Project Info & Instructions'!$D$39)","v":""},null,null,{"$f":"IF(OR(ISBLANK(D12),ISBLANK(E12)),\"\",ABS(D12-E12))","v":""},"t-test p-value:",{"$f":"IF($V$6<6,\"\",TTEST($D$12:$D$14,$E$12:$E$14,2,1))","v":""},"Prob. α",0.01,null,{"$f":"IF(OR(ISBLANK(D12),ISBLANK(K12)),\"\",ABS(D12-K12))","v":""},"t-test p-value:",{"$f":"IF($V$9<3,\"\",TTEST($D$12:$D$14,$K$12:$K$14,2,1))","v":""},{"$f":"IF(OR(ISBLANK(E12),ISBLANK(K12)),\"\",ABS(E12-K12))","v":""},"t-test p-value:",{"$f":"IF($V$9<3,\"\",TTEST($E$12:$E$14,$K$12:$K$14,2,1))","v":""},null,null,null,null,null,"QC Gmm Split #3 Within Tolerance?",{"$f":"IF(ISBLANK(D14),\"N/A\",IF(D19<=INTERNAL_SYS_VAR!$AC$8,TRUE,FALSE))","v":"N/A"},"BTS-QC Gmb Xd Mean Within Tolerance?",{"$f":"IF($V$10<3,\"N/A\",IF(ROUND($N$21,3)<=$S$21,TRUE,FALSE))","v":"N/A"},"One or more Gmb t-test Fails?",{"$f":"IF(OR($X$9=FALSE,$Z$16=FALSE,$Z$17=FALSE),TRUE,FALSE)","v":false}]
[null,2,{"$f":"IF('Project Info & Instructions'!$D$40=\"\",\"\",'Project Info & Instructions'!$D$40)","v":""},null,null,{"$f":"IF(OR(ISBLANK(D13),ISBLANK(E13)),\"\",ABS(D13-E13))","v":""},{"$f":"IF($V$6<6,\"\",IF(H11<=S11,INTERNAL_SYS_MSGS!$B$7,INTERNAL_SYS_MSGS!$B$8))","v":""},null,null,null,null,{"$f":"IF(OR(ISBLANK(D13),ISBLANK(K13)),\"\",ABS(D13-K13))","v":""},{"$f":"IF($V$9<3,\"\",IF(N11<=S11,INTERNAL_SYS_MSGS!$B$7,INTERNAL_SYS_MSGS!$B$8))","v":""},null,{"$f":"IF(OR(ISBLANK(E13),ISBLANK(K13)),\"\",ABS(E13-K13))","v":""},{"$f":"IF($V$9<3,\"\",IF(Q11<=$S$11,INTERNAL_SYS_MSGS!$B$7,INTERNAL_SYS_MSGS!$B$8))","v":""},null,null,null,null,null,null,"QV Gmm Split #1 Within Tolerance?",{"$f":"IF(ISBLANK(E12),\"N/A\",IF(E17<=INTERNAL_SYS_VAR!$AC$8,TRUE,FALSE))","v":"N/A"},"BTS-QV Gmb Xd Mean Within Tolerance?",{"$f":"IF($V$10<3,\"N/A\",IF(ROUND($Q$21,3)<=$S$21,TRUE,FALSE))","v":"N/A"},"Conclusion"]
[null,3,{"$f":"IF('Project Info & Instructions'!$D$41=\"\",\"\",'Project Info & Instructions'!$D$41)","v":""},null,null,"","Split Sample Results: ",null,{"$f":"IF($V$6<6,\"\",IF(OR(H12<=$J$12,H11>$S$11),INTERNAL_SYS_MSGS!$B$9,INTERNAL_SYS_MSGS!$B$10))","v":""},null,null,{"$f":"IF(OR(ISBLANK(D14),ISBLANK(K14)),\"\",ABS(D14-K14))","v":""},{"$f":"IF($V$9<3,\"\",IF(OR(N12<=$J$12,N11>$S$11),INTERNAL_SYS_MSGS!$B$9,INTERNAL_SYS_MSGS!$B$10))","v":""},null,{"$f":"IF(OR(ISBLANK(E14),ISBLANK(K14)),\"\",ABS(E14-K14))","v":""},{"$f":"IF($V$9<3,\"\",IF(OR(Q12<=$J$12,Q11>$S$11),INTERNAL_SYS_MSGS!$B$9,INTERNAL_SYS_MSGS!$B$10))","v":""},null,null,null,null,null,null,"QV Gmm Split #2 Within Tolerance?",{"$f":"IF(ISBLANK(E13),\"N/A\",IF(E18<=INTERNAL_SYS_VAR!$AC$8,TRUE,FALSE))","v":"N/A"},"BTS-QC Gmm t-test Passed?",{"$f":"IF($V$9<3,\"N/A\",IFERROR(IF($N$12>$J$12,TRUE,FALSE),TRUE))","v":"N/A"},{"$f":"IF($V$8<12,\"\",IF($AB$8=TRUE,_xlfn.CONCAT(INTERNAL_SYS_MSGS!$B$14,$K$26),IF($AB$6=TRUE,INTERNAL_SYS_MSGS!$B$13,INTERNAL_SYS_MSGS!$B$15)))","v":""}]
[null,"Gmm Tolerance to JMF",null,null,null,null,null,null,null,null,null,null,null,null,null,null,null,null,null,null,null,null,"QV Gmm Split #3 Within Tolerance?",{"$f":"IF(ISBLANK(E14),\"N/A\",IF(E19<=INTERNAL_SYS_VAR!$AC$8,TRUE,FALSE))","v":"N/A"},"BTS-QV Gmm t-test Passed?",{"$f":"IF($V$9<3,\"N/A\",IFERROR(IF($Q$12>$J$12,TRUE,FALSE),TRUE))","v":"N/A"}]
[null,"Split Sample Number","Tonnage","QC Gmm-JMF Difference","QV Gmm-JMF Difference",{"$f":"IF($V$6<1,\"\",IF(ISBLANK('Project Info & Instructions'!$H$28),INTERNAL_SYS_MSGS!$B$6,IF($AB$7,INTERNAL_SYS_MSGS!$B$11,INTERNAL_SYS_MSGS!$B$12)))","v":""},null,null,null,null,"BTS Gmm-JMF Difference",null,null,null,null,null,null,null,null,null,null,null,"Rounded QC Air Voids Test 1:",{"$f":"IF(O29=\"\",\"\",ROUND(O29,1))","v":""},"BTS-QC Gmb t-test Passed?",{"$f":"IF($V$10<3,\"N/A\",IFERROR(IF($N$22>$J$22,TRUE,FALSE),TRUE))","v":"N/A"}]
[null,1,{"$f":"IF('Project Info & Instructions'!$D$39=\"\",\"\",'Project Info & Instructions'!$D$39)","v":""},{"$f":"IF(OR($C$9=\"Enter JMF Gmm\",D12=\"\"),\"\",ABS($C$9-D12))","v":""},{"$f":"IF(OR($C$9=\"Enter JMF Gmm\",E12=\"\"),\"\",ABS($C$9-E12))","v":""},null,null,null,null,null,{"$f":"IF(OR($C$9=INTERNAL_SYS_MSGS!$B$6,ISBLANK(K12)),\"\",ABS($C$9-K12))","v":""},null,null,null,null,null,null,null,null,null,null,null,"Rounded QC Air Voids Test 2:",{"$f":"IF(O30=\"\",\"\",ROUND(O30,1))","v":""},"BTS-QV Gmb t-test Passed?",{"$f":"IF($V$10<3,\"N/A\",IFERROR(IF($Q$22>$J$22,TRUE,FALSE),TRUE))","v":"N/A"}]
[null,2,{"$f":"IF('Project Info & Instructions'!$D$40=\"\",\"\",'Project Info & Instructions'!$D$40)","v":""},{"$f":"IF(OR($C$9=\"Enter JMF Gmm\",D13=\"\"),\"\",ABS($C$9-D13))","v":""},"",null,null,null,null,null,{"$f":"IF(OR($C$9=INTERNAL_SYS_MSGS!$B$6,ISBLANK(K13)),\"\",ABS($C$9-K13))","v":""},null,null,null,null,null,null,null,"Gmb \nXd Mean Tolerance",null,null,null,"Rounded QC Air Voids Test 3:",{"$f":"IF(O31=\"\",\"\",ROUND(O31,1))","v":""},"BTS Gmm Split #1 Within Tolerance?",{"$f":"IF(ISBLANK(K12),\"N/A\",IF(K17<=INTERNAL_SYS_VAR!$AC$8,TRUE,FALSE))","v":"N/A"}]
[null,3,{"$f":"IF('Project Info & Instructions'!$D$41=\"\",\"\",'Project Info & Instructions'!$D$41)","v":""},"","",null,null,null,null,null,{"$f":"IF(OR($C$9=INTERNAL_SYS_MSGS!$B$6,ISBLANK(K14)),\"\",ABS($C$9-K14))","v":""},null,null,null,null,null,null,null,null,null,null,null,"Rounded QV Air Voids Test 1:",{"$f":"IF(P29=\"\",\"\",ROUND(P29,1))","v":""},"BTS Gmm Split #2 Within Tolerance?",{"$f":"IF(ISBLANK(K13),\"N/A\",IF(K18<=INTERNAL_SYS_VAR!$AC$8,TRUE,FALSE))","v":"N/A"}]
[null,"Gmb",null,null,null,null,null,null,null,null,null,"BTS Vs. QC Results",null,null,"BTS Vs. QV Results",null,null,null,null,null,null,null,"Rounded QV Air Voids Test 2:",{"$f":"IF(P30=\"\",\"\",ROUND(P30,1))","v":""},"BTS Gmm Split #3 Within Tolerance?",{"$f":"IF(ISBLANK(K14),\"N/A\",IF(K19<=INTERNAL_SYS_VAR!$AC$8,TRUE,FALSE))","v":"N/A"}]
[null,"Split Sample Number","Tonnage","QC Gmb","QV Gmb","Difference (Xd)","Xd Mean:",{"$f":"IF($V$7<6,\"\",ABS(AVERAGE(F22:F24)))","v":""},"Degrees of Freedom:",{"$f":"IF(COUNT(E22:E24)<1,\"\",COUNT(E22:E24)-1)","v":""},"BTS Referee Gmb","Difference (Xd)","Xd Mean:",{"$f":"IF($V$10<3,\"\",ABS(AVERAGE(L22:L24)))","v":""},"Difference (Xd)","Xd Mean:",{"$f":"IF($V$10<3,\"\",ABS(AVERAGE(O22:O24)))","v":""},null,{"$f":"INTERNAL_SYS_VAR!$AB$8","v":1.2E-2},null,null,null,"Rounded QV Air Voids Test 3:",{"$f":"IF(P31=\"\",\"\",ROUND(P31,1))","v":""},"Rounded BTS Air Voids Test 1:",{"$f":"IF(Q29=\"\",\"\",ROUND(Q29,1))","v":""}]
[null,1,{"$f":"IF('Project Info & Instructions'!$D$39=\"\",\"\",'Project Info & Instructions'!$D$39)","v":""},null,null,{"$f":"IF(OR(ISBLANK(D22),ISBLANK(E22)),\"\",ABS(D22-E22))","v":""},"t-test p-value:",{"$f":"IF($V$7<6,\"\",TTEST($D$22:$D$24,$E$22:$E$24,2,1))","v":""},"Prob. α",0.01,null,{"$f":"IF(OR(ISBLANK(D22),ISBLANK(K22)),\"\",ABS(D22-K22))","v":""},"t-test p-value:",{"$f":"IF($V$10<3,\"\",TTEST($D$22:$D$24,$K$22:$K$24,2,1))","v":""},{"$f":"IF(OR(ISBLANK(E22),ISBLANK(K22)),\"\",ABS(E22-K22))","v":""},"t-test p-value:",{"$f":"IF($V$10<3,\"\",TTEST($E$22:$E$24,$K$22:$K$24,2,1))","v":""},null,null,null,null,null,"Unacceptable QC or QV Air Voids?",{"$f":"IF(OR($V$6<1,$V$7<1),\"N/A\",IF(SUM(COUNTIF($X$16:$X$21,\"<\"&INTERNAL_SYS_VAR!$AD$8),COUNTIF($X$16:$X$21,\">\"&INTERNAL_SYS_VAR!$AF$8))>0,TRUE,FALSE))","v":"N/A"},"Rounded BTS Air Voids Test 2:",{"$f":"IF(Q30=\"\",\"\",ROUND(Q30,1))","v":""}]
[null,2,{"$f":"IF('Project Info & Instructions'!$D$40=\"\",\"\",'Project Info & Instructions'!$D$40)","v":""},null,null,{"$f":"IF(OR(ISBLANK(D23),ISBLANK(E23)),\"\",ABS(D23-E23))","v":""},{"$f":"IF($V$7<6,\"\",IF(H21<=S21,INTERNAL_SYS_MSGS!$B$7,INTERNAL_SYS_MSGS!$B$8))","v":""},null,null,null,null,"",{"$f":"IF($V$10<3,\"\",IF(N21<=S21,INTERNAL_SYS_MSGS!$B$7,INTERNAL_SYS_MSGS!$B$8))","v":""},null,{"$f":"IF(OR(ISBLANK(E23),ISBLANK(K23)),\"\",ABS(E23-K23))","v":""},{"$f":"IF($V$10<3,\"\",IF(Q21<=$S$21,INTERNAL_SYS_MSGS!$B$7,INTERNAL_SYS_MSGS!$B$8))","v":""},null,null,null,null,null,null,"Failed t-test but Xd Mean and Gmm All Within Tolerance?",{"$f":"IF(OR($V$6<6,$V$7<6),\"N/A\",IF(AND($X$6=TRUE,$X$7=TRUE,OR($X$8=FALSE,$X$9=FALSE),$X$10=TRUE,$X$11=TRUE,$X$12=TRUE,$X$13=TRUE,$X$14=TRUE,$X$15=TRUE,X22=FALSE),TRUE,FALSE))","v":"N/A"},"Rounded BTS Air Voids Test 3:",{"$f":"IF(Q31=\"\",\"\",ROUND(Q31,1))","v":""}]
[null,3,{"$f":"IF('Project Info & Instructions'!$D$41=\"\",\"\",'Project Info & Instructions'!$D$41)","v":""},null,null,"","Split Sample Results: ",null,{"$f":"IF($V$7<6,\"\",IF(OR(H22<=$J$22,H21>$S$21),INTERNAL_SYS_MSGS!$B$9,INTERNAL_SYS_MSGS!$B$10))","v":""},null,null,"",{"$f":"IF($V$10<3,\"\",IF(OR(N22<=$J$22,N21>$S$21),INTERNAL_SYS_MSGS!$B$9,INTERNAL_SYS_MSGS!$B$10))","v":""},null,{"$f":"IF(OR(ISBLANK(E24),ISBLANK(K24)),\"\",ABS(E24-K24))","v":""},{"$f":"IF($V$10<3,\"\",IF(OR(Q22<=$J$22,Q21>$S$21),INTERNAL_SYS_MSGS!$B$9,INTERNAL_SYS_MSGS!$B$10))","v":""},null,null,null,null,null,null,null,null,"Unacceptable BTS Air Voids?",{"$f":"IF(OR($V$9<1,$V$10<1),\"N/A\",IF(SUM(COUNTIF(Z21:Z23,\"<\"&INTERNAL_SYS_VAR!$AD$8),COUNTIF(Z21:Z23,\">\"&INTERNAL_SYS_VAR!$AF$8))>0,TRUE,FALSE))","v":"N/A"}]
[null,null,null,null,null,null,null,null,null,null," Regional PWL Rep. Approving Split Sample Data"]
[null,"Note:\n",null,null,null,null,null,null,null,null,"Enter Regional PWL Rep Name"]
[null,"This review is a check for reasonable test result differences between labs.  Due to the small sample size, <20, it is possible to have two sets of data that fail the t-test (p-value), but the \"Xd Means are within tolerance\".  For such differences, if allowed by the engineer, asphalt mix production may resume as the test result differences are based on small sample sizes and consistent testing differences. In such cases, if all Gmm are within tolerance to the JMF and both Xd Means are within tolerance, QC Gmm and Gmb data will be used for analysis if the name of the Regional PWL Rep is entered in the box that reveals itself above.\n\nIt is also possible to have two-sets of test results that are so variable that the results pass the t-test (p-value), but the \"Xd Mean exceeds tolerance\".  The cause of this type testing variation needs to be resolved before production of mix resumes.",null,null,null,null,null,null,null,null,null,null,null,null,"Air Voids %"]
[null,null,null,null,null,null,null,null,null,null,null,null,null,null,"Contractor","Department","BTS"]
[null,null,null,null,null,null,null,null,null,null,null,null,null,null,{"$f":"IF(OR(ISBLANK(D12),ISBLANK(D22)),\"\",(D12-D22)/D12*100)","v":""},{"$f":"IF(OR(ISBLANK(E12),ISBLANK(E22)),\"\",(E12-E22)/E12*100)","v":""},{"$f":"IF(OR(ISBLANK(K12),ISBLANK(K22)),\"\",(K12-K22)/K12*100)","v":""}]
[null,null,null,null,null,null,null,null,null,null,null,null,null,null,{"$f":"IF(OR(ISBLANK(D13),ISBLANK(D23)),\"\",(D13-D23)/D13*100)","v":""},{"$f":"IF(OR(ISBLANK(E13),ISBLANK(E23)),\"\",(E13-E23)/E13*100)","v":""},{"$f":"IF(OR(ISBLANK(K13),ISBLANK(K23)),\"\",(K13-K23)/K13*100)","v":""}]
[null,null,null,null,null,null,null,null,null,null,null,null,null,null,"","",""]

{"sheet":"SMA Split Sample Comparison","index":2,"n_rows":25,"n_cols":20,"rows_kept":25,"cut":false,"hidden":true,"merged":[[22,1,25,5],[0,1,3,2],[4,16,4,17],[7,2,7,3],[7,6,7,7],[21,7,21,9],[7,10,9,10],[8,2,8,3],[13,1,15,8],[14,10,16,10],[8,18,8,19],[9,18,11,19],[4,18,4,19],[5,2,5,3],[5,6,5,7],[6,2,6,3],[6,6,6,7],[4,12,4,13],[4,14,4,15]]}
[null,{"$error":"#VALUE!"}]
[null,null,null,"SMA Split Sample Comparison Testing"]
[null,null,null,"Wisconsin Department of Transportation"]
[]
[null,null,null,null,null,null,null,null,null,null,null,null,"Worksheet Variables",null,"Acceptance Criteria",null,"Referee Testing Criteria",null,"Split Sample Comparison Pass / Fail"]
[null,"Date:",{"$f":"IF('Project Info & Instructions'!$D$13=\"\",\"\",'Project Info & Instructions'!$D$13)","v":""},null,null,"Test Strip #:",{"$f":"IF('Project Info & Instructions'!$D$14=\"\",\"\",'Project Info & Instructions'!$D$14)","v":""},null,null,null,null,null,"QV Gmm Test Count:",{"$f":"COUNT(E12:E13)","v":0},"Gmm Xd Mean Within Tolerance?",{"$f":"IF($N$8<4,\"N/A\",IF(AND(ROUND($F$12,3)<=$K$11,ROUND($F$13,3)<=$K$11),TRUE,FALSE))","v":"N/A"},"Split Sample Comparison Requires Referee Testing?",{"$f":"IF(OR($N$8<1,$N$9<1),\"N/A\",IF(OR(P6=FALSE,P7=FALSE,P12=TRUE),TRUE,FALSE))","v":"N/A"},"Passing Split Sample Comparison?",{"$f":"IF($N$8<4,\"N/A\",IF($R$6=TRUE,FALSE,TRUE))","v":"N/A"}]
[null,"Project ID:",{"$f":"IF('Project Info & Instructions'!$D$8=\"\",\"\",'Project Info & Instructions'!$D$8)","v":""},null,null,"Route/Road:",{"$f":"IF('Project Info & Instructions'!$D$10=\"\",\"\",'Project Info & Instructions'!$D$10)","v":""},null,null,null,null,null,"QV Gmb Test Count:",{"$f":"COUNT(E19:E20)","v":0},"Gmb Xd Mean Within Tolerance?",{"$f":"IF($N$9<4,\"N/A\",IF(AND(ROUND($F$19,3)<=$K$18,ROUND($F$20,3)<=$K$18),TRUE,FALSE))","v":"N/A"},"AC Requires Referee Testing?",{"$f":"'SMA AC % Data'!$Z$6","v":"N/A"},"One or more Gmm Xd exceeds the Tolerance?",{"$f":"IF(OR($P$6=FALSE,$R$10=FALSE,$R$11=FALSE),TRUE,FALSE)","v":false}]
[null,"Mix Type:",{"$f":"IF('Project Info & Instructions'!$D$31=\"\",\"\",'Project Info & Instructions'!$D$31)","v":"--"},null,null," Layer:",{"$f":"IF('Project Info & Instructions'!$H$7=\"\",\"\",'Project Info & Instructions'!$H$7)","v":""},null,null,null,"Gmm \nXd Tolerance",null,"QC and QV Gmm Test Count:",{"$f":"COUNT(D12:E13)","v":0},"Rounded QC Air Voids Test 1:",{"$f":"IF(H24=\"\",\"\",ROUND(H24,1))","v":""},"VMA Requires Referee Testing?",{"$f":"'SMA Mix Acceptance'!$M$7","v":false},"One or more Gmb Xd exceeds the Tolerance?",{"$f":"IF(OR($P$7=FALSE,$R$12=FALSE,$R$13=FALSE),TRUE,FALSE)","v":false}]
[null,"JMF Gmm:",{"$f":"IF('Project Info & Instructions'!$H$28=\"\",INTERNAL_SYS_MSGS!$B$6,'Project Info & Instructions'!$H$28)","v":"Enter JMF Gmm."},null,null,null,null,null,null,null,null,null,"QC and QV Gmb Test Count:",{"$f":"COUNT(D19:E20)","v":0},"Rounded QC Air Voids Test 2:",{"$f":"IF(H25=\"\",\"\",ROUND(H25,1))","v":""},"Referee Testing Required?",{"$f":"IF(OR(R6=TRUE,R7=TRUE,R8=TRUE),TRUE,FALSE)","v":false},"Conclusion"]
[null,"Gmm",null,null,null,null,null,"BTS Vs. QC ","BTS Vs. QV",null,null,null,"Total QC and QV Test Count:",{"$f":"COUNT(D12:E13,D19:E20)","v":0},"Rounded QV Air Voids Test 1:",{"$f":"IF(I24=\"\",\"\",ROUND(I24,1))","v":""},"BTS-QC Gmm Xd Within Tolerance?",{"$f":"IF($N$11<2,\"N/A\",IF(AND(ROUND($H$12,3)<=$K$11,ROUND($H$13,3)<=$K$11),TRUE,FALSE))","v":"N/A"},{"$f":"IF(N10<8,\"\",IF($T$6=TRUE,INTERNAL_SYS_MSGS!$B$13,INTERNAL_SYS_MSGS!$B$15))","v":""}]
[null,"Split Sample Number","Tonnage","QC Gmm","QV Gmm","Difference (Xd)","BTS Referee Gmm","Difference (Xd)","Difference (Xd)",null,{"$f":"INTERNAL_SYS_VAR!$AG$8","v":1.4999999999999999E-2},null,"BTS Referee Gmm Test Count:",{"$f":"COUNT(G12:G13)","v":0},"Rounded QV Air Voids Test 2:",{"$f":"IF(I25=\"\",\"\",ROUND(I25,1))","v":""},"BTS-QV Gmm Xd Within Tolerance?",{"$f":"IF($N$11<2,\"N/A\",IF(AND(ROUND($I$12,3)<=$K$11,ROUND($I$13,3)<=$K$11),TRUE,FALSE))","v":"N/A"}]
[null,1,{"$f":"IF('Project Info & Instructions'!$D$39=\"\",\"\",'Project Info & Instructions'!$D$39)","v":""},null,null,{"$f":"IF(OR(ISBLANK(D12),ISBLANK(E12)),\"\",ABS(D12-E12))","v":""},null,{"$f":"IF(ISBLANK(G12),\"\",ABS(D12-G12))","v":""},{"$f":"IF(ISBLANK(G12),\"\",ABS(E12-G12))","v":""},null,null,null,"BTS Referee Gmb Test Count:",{"$f":"COUNT(G19:G20)","v":0},"Nonconforming QV Air Voids (minor)?",{"$f":"IF(OR($N$6<2,$N$7<2),\"N/A\",IF(SUM(COUNTIF($P$10:$P$11,\"<\"&INTERNAL_SYS_VAR!$AK$8),COUNTIF($P$10:$P$11,\">\"&INTERNAL_SYS_VAR!$AM$8))>0,TRUE,FALSE))","v":"N/A"},"BTS-QC Gmb Xd Within Tolerance?",{"$f":"IF($N$12<2,\"N/A\",IF(AND(ROUND($I$19,3)<=$K$18,ROUND($I$20,3)<=$K$18),TRUE,FALSE))","v":"N/A"}]
[null,2,{"$f":"IF('Project Info & Instructions'!$D$40=\"\",\"\",'Project Info & Instructions'!$D$40)","v":""},null,null,{"$f":"IF(OR(ISBLANK(D13),ISBLANK(E13)),\"\",ABS(D13-E13))","v":""},null,{"$f":"IF(ISBLANK(G13),\"\",ABS(D13-G13))","v":""},{"$f":"IF(ISBLANK(G13),\"\",ABS(E13-G13))","v":""},null,null,null,null,null,"Nonconforming QV Air Voids (major)?",{"$f":"IF(OR($N$6<2, $N$7<2), \"N/A\",\n  IF(SUM(\n    COUNTIFS($P$10:$P$11, \">=\" & $AI$8, $P$10:$P$11, \"<\" & $AJ$8),\n    COUNTIFS($P$10:$P$11, \"<=\" & $AO$8, $P$10:$P$11, \">\" & $AN$8)\n  ) > 0, TRUE, FALSE)\n)","v":"N/A"},"BTS-QV Gmb Xd Within Tolerance?",{"$f":"IF($N$12<2,\"N/A\",IF(AND(ROUND($I$19,3)<=$K$18,ROUND($I$20,3)<=$K$18),TRUE,FALSE))","v":"N/A"}]
[null,{"$f":"IF($R$9=TRUE,INTERNAL_SYS_MSGS!$B$16, \"\")","v":""},null,null,null,null,null,null,null,null,null,null,null,null,"Unacceptable QC or QV Air Voids?",{"$f":"IF(OR($N$8<1,$N$9<1),\"N/A\",IF(SUM(COUNTIF(P8:P11,\"<\"&INTERNAL_SYS_VAR!$AI$8),COUNTIF(P8:P11,\">\"&INTERNAL_SYS_VAR!$AO$8))>0,TRUE,FALSE))","v":"N/A"},"Rounded BTS Air Voids Test 1:",{"$f":"IF(J24=\"\",\"\",ROUND(J24,1))","v":""}]
[null,null,null,null,null,null,null,null,null,null,"Gmb \nXd Tolerance",null,null,null,null,null,"Rounded BTS Air Voids Test 2:",{"$f":"IF(J25=\"\",\"\",ROUND(J25,1))","v":""}]
[null,null,null,null,null,null,null,null,null,null,null,null,null,null,null,null,"Nonconforming BTS Air Voids (minor)?",{"$f":"IF(OR($N$11<2,$N$12<2),\"N/A\",IF(SUM(COUNTIF($R$14:$R$15,\"<\"&INTERNAL_SYS_VAR!$AK$8),COUNTIF($P$10:$P$11,\">\"&INTERNAL_SYS_VAR!$AM$8))>0,TRUE,FALSE))","v":"N/A"}]
[null,"Gmb",null,null,null,null,null,"BTS Vs. QC ","BTS Vs. QV",null,null,null,null,null,null,null,"Nonconforming BTS Air Voids (major)?",{"$f":"IF(OR($N$11<2, $N$12<2), \"N/A\",\n  IF(SUM(\n    COUNTIFS($R$14:$R$15, \">=\" & INTERNAL_SYS_VAR!$AI$8, $R$14:$R$15, \"<\" & INTERNAL_SYS_VAR!$AJ$8),\n    COUNTIFS($R$14:$R$15, \"<=\" & INTERNAL_SYS_VAR!$AO$8, $R$14:$R$15, \">\" & INTERNAL_SYS_VAR!$AN$8)\n  ) > 0, TRUE, FALSE)\n)","v":"N/A"}]
[null,"Split Sample Number","Tonnage","QC Gmb","QV Gmb","Difference (Xd)","BTS Referee Gmb","Difference (Xd)","Difference (Xd)",null,{"$f":"INTERNAL_SYS_VAR!$AH$8","v":1.4999999999999999E-2},null,null,null,null,null,"Unacceptable BTS Air Voids?",{"$f":"IF(OR($N$11<1,$N$12<1),\"N/A\",IF(SUM(COUNTIF(R14:R15,\"<\"&INTERNAL_SYS_VAR!$AI$8),COUNTIF(R14:R15,\">\"&INTERNAL_SYS_VAR!$AO$8))>0,TRUE,FALSE))","v":"N/A"}]
[null,1,{"$f":"IF('Project Info & Instructions'!$D$39=\"\",\"\",'Project Info & Instructions'!$D$39)","v":""},null,null,{"$f":"IF(OR(ISBLANK(D19),ISBLANK(E19)),\"\",ABS(D19-E19))","v":""},null,{"$f":"IF(ISBLANK(G19),\"\",ABS(D19-G19))","v":""},{"$f":"IF(ISBLANK(G19),\"\",ABS(E19-G19))","v":""}]
[null,2,{"$f":"IF('Project Info & Instructions'!$D$40=\"\",\"\",'Project Info & Instructions'!$D$40)","v":""},null,null,{"$f":"IF(OR(ISBLANK(D20),ISBLANK(E20)),\"\",ABS(D20-E20))","v":""},null,{"$f":"IF(ISBLANK(G20),\"\",ABS(D20-G20))","v":""},{"$f":"IF(ISBLANK(G20),\"\",ABS(E20-G20))","v":""}]
[]
[null,"Note:    ",null,null,null,null,null,"Air Voids %"]
[null,"If QV Air Voids are within action limits QC data is carried into the Air Voids Pay Factor worksheet. If not, BTS will conduct referee Gmm & Gmb tests and BTS data will be used for subsequent calculations.",null,null,null,null,null,"Contractor","Department","BTS"]
[null,null,null,null,null,null,null,{"$f":"IF(OR(ISBLANK(D12),ISBLANK(D19)),\"\",($D$12-$D$19)/$D$12*100)","v":""},{"$f":"IF(OR(ISBLANK(E12),ISBLANK(E19)),\"\",($E$12-$E$19)/$E$12*100)","v":""},{"$f":"IF(OR(ISBLANK(G12),ISBLANK(G19)),\"\",($G$12-$G$19)/$G$12*100)","v":""}]
[null,null,null,null,null,null,null,{"$f":"IF(OR(ISBLANK(D13),ISBLANK(D20)),\"\",($D$13-$D$20)/$D$13*100)","v":""},{"$f":"IF(OR(ISBLANK(E13),ISBLANK(E20)),\"\",($E$13-$E$20)/$E$13*100)","v":""},{"$f":"IF(OR(ISBLANK(G13),ISBLANK(G20)),\"\",($G$13-$G$20)/$G$13*100)","v":""}]

{"sheet":"HMA Core Data","index":3,"n_rows":35,"n_cols":35,"rows_kept":35,"cut":false,"hidden":true,"merged":[[9,6,9,7],[27,1,32,8],[7,6,7,7],[5,2,5,4],[6,2,6,4],[7,2,7,4],[3,31,3,32],[4,31,6,32],[3,29,3,30],[5,16,6,17],[34,2,37,9],[8,6,8,7],[11,23,11,27],[8,2,8,4],[9,2,9,4],[11,12,11,16],[11,2,11,8],[11,17,11,21],[27,12,28,21],[5,6,5,7],[6,6,6,7],[0,1,3,2]]}
[null,{"$error":"#VALUE!"}]
[null,null,null,"HMA Core Testing"]
[null,null,null,"Wisconsin Department of Transportation"]
[null,null,null,null,null,null,null,null,null,null,null,null,null,null,null,null,null,null,null,null,null,null,null,null,null,null,null,null,null,"Worksheet Variables",null,"Conclusion"]
[null,null,null,null,null,null,null,null,null,null,null,null,null,null,null,null,null,null,null,null,null,null,null,null,null,null,null,null,null,"QC or QV Core Data Used For Analysis:",1,{"$f":"IF($AE$16=\"N/A\",\"\",IF($AE$16,INTERNAL_SYS_MSGS!$B$27,INTERNAL_SYS_MSGS!$B$26))","v":""}]
[null,"Date:",{"$f":"IF('Project Info & Instructions'!$D$13=\"\",\"\",'Project Info & Instructions'!$D$13)","v":""},null,null,"Test Strip #:",{"$f":"IF('Project Info & Instructions'!$D$14=\"\",\"\",'Project Info & Instructions'!$D$14)","v":""},null,null,null,null,null,null,null,null,null,"QC or QV Core Data  \nUsed For Analysis?  ",null,null,null,null,null,null,null,null,null,null,null,null,"Remove Core 1 from Analysis:",{"$f":"K14","v":false}]
[null,"Project ID:",{"$f":"IF('Project Info & Instructions'!$D$8=\"\",\"\",'Project Info & Instructions'!$D$8)","v":""},null,null,"Route/Road:",{"$f":"IF('Project Info & Instructions'!$D$10=\"\",\"\",'Project Info & Instructions'!$D$10)","v":""},null,null,null,null,null,null,null,null,null,null,null,null,null,null,null,null,null,null,null,null,null,null,"Remove Core 2 from Analysis:",{"$f":"K15","v":false},null,null,null,"QC=1, QV=2"]
[null,"Mix Type:",{"$f":"IF('Project Info & Instructions'!$D$31=\"\",\"\",'Project Info & Instructions'!$D$31)","v":"--"},null,null," Layer:",{"$f":"IF('Project Info & Instructions'!$H$7=\"\",\"\",'Project Info & Instructions'!$H$7)","v":""},null,null,null,null,null,null,null,null,null,null,null,null,null,null,null,null,null,null,null,null,null,null,"Remove Core 3 from Analysis:",false]
[null,"Gmm For Analysis:",{"$f":"IF(AND('Project Info & Instructions'!$D$35=INTERNAL_SYS_VAR!$B$8,ISBLANK('Project Info & Instructions'!$D$52)),INTERNAL_SYS_MSGS!$B$22,IF('Project Info & Instructions'!$D$35=INTERNAL_SYS_VAR!$B$8,'Project Info & Instructions'!D52,IF('HMA Air Voids Pay Factor'!$E$16=\"\",\"\",'HMA Air Voids Pay Factor'!$E$16)))","v":""},null,null,"LSL:",{"$f":"INTERNAL_SYS_VAR!$N$8","v":93},null,null,null,null,null,null,null,null,null,null,null,null,null,null,null,null,null,null,null,null,null,null,"Remove Core 4 from Analysis:",false]
[null,"Gmm Source:",{"$f":"IF('Project Info & Instructions'!$D$35=INTERNAL_SYS_VAR!$B$8, \"Daily Average\",_xlfn.SWITCH('HMA Split Sample Comparison'!$Z$9,\"N/A\",\"\",FALSE,\"QC\",\"BTS Referee\"))","v":"QC"},null,null,"JMF Gmm:",{"$f":"IF('Project Info & Instructions'!$H$28=\"\",INTERNAL_SYS_MSGS!$B$23,'Project Info & Instructions'!$H$28)","v":"Enter JMF Gmm."},null,null,null,null,null,null,null,null,null,null,null,null,null,null,null,null,null,null,null,null,null,null,"Remove Core 5 from Analysis:",{"$f":"K18","v":false}]
[null,null,null,null,null,null,null,null,null,null,null,null,null,null,null,null,null,null,null,null,null,null,null,null,null,null,null,null,null,"Remove Core 6 from Analysis:",{"$f":"K21","v":false}]
[null,null,"Contractor Core Density Calculations",null,null,null,null,null,null,null,null,null,"Department Core Density Calculations",null,null,null,null,"Department Minus Contractor Density Data ",null,null,null,null,null,"Data Used for Analysis",null,null,null,null,null,"Remove Core 7 from Analysis:",{"$f":"K22","v":false}]
[null,"Label","Random Station","Offset from CL","Dry\nWeight\n(g)","SSD\nWeight\n(g)","Submerged\nWeight\n(g)","QC Core Bulk Density","QC Density % of Gmm","Location Comparison Result","Remove Core Data From Analysis?",null,"Dry\nWeight\n(g)","SSD\nWeight\n(g)","Submerged\nWeight\n(g)","QV Core Bulk Density","QV Density % of Gmm","Dry","SSD","Submerged","Core Bulk Density","Density %",null,"Dry\nWeight\n(g)","SSD\nWeight\n(g)","Submerged\nWeight\n(g)","Core Bulk Density Used for Analysis","Core Density %",null,"Remove Core 8 from Analysis:",false]
[null,{"$f":"IF($G$8=\"Upper\",\"UL-1\",IF($G$8=\"Middle\",\"ML-1\",IF($G$8=\"Lower\",\"LL-1\",\"\")))","v":""},{"$f":"'QC-1 Density Worksheet'!$D$17","v":-100},{"$f":"'QC-1 Density Worksheet'!$E$17","v":""},null,null,null,{"$f":"IFERROR(E14/(F14-G14),\"\")","v":""},{"$f":"IF(AND('Project Info & Instructions'!$D$35=INTERNAL_SYS_VAR!$B$8,'Project Info & Instructions'!$D$52=\"\"),INTERNAL_SYS_MSGS!$B$24,IF(AND('Project Info & Instructions'!$D$35=INTERNAL_SYS_VAR!$B$8,H14=\"\"),\"\",IF('Project Info & Instructions'!$D$35=INTERNAL_SYS_VAR!$B$8,100*(H14/'Project Info & Instructions'!$D$52),IF(OR('HMA Air Voids Pay Factor'!$E$16=\"\",H14=\"\"),\"\",100*(H14/'HMA Air Voids Pay Factor'!$E$16)))))","v":""},{"$f":"IF('Gauge-Core Variability'!J16=\"Suspect Core\",_xlfn.CONCAT('Gauge-Core Variability'!J16,\" (\",TEXT('Gauge-Core Variability'!H16, \"0.0\"),\"%)\"),\"\")","v":""},false,null,null,null,null,{"$f":"IFERROR(M14/(N14-O14),\"\")","v":""},{"$f":"IF(AND('Project Info & Instructions'!$D$35=INTERNAL_SYS_VAR!$B$8,'Project Info & Instructions'!$D$52=\"\"),INTERNAL_SYS_MSGS!$B$24,IF(AND('Project Info & Instructions'!$D$35=INTERNAL_SYS_VAR!$B$8,P14=\"\"),\"\",IF('Project Info & Instructions'!$D$35=INTERNAL_SYS_VAR!$B$8,100*(P14/'Project Info & Instructions'!$D$52),IF(OR('HMA Air Voids Pay Factor'!$E$16=\"\",P14=\"\"),\"\",100*(P14/'HMA Air Voids Pay Factor'!$E$16)))))","v":""},{"$f":"IF(M14=\"\",\"\",M14-E14)","v":""},{"$f":"IF(N14=\"\",\"\",N14-F14)","v":""},{"$f":"IF(O14=\"\",\"\",O14-G14)","v":""},{"$f":"IF(P14=\"\",\"\",P14-H14)","v":""},{"$f":"IF(OR(Q14=\"\",Q14=INTERNAL_SYS_MSGS!$B$24),\"\",Q14-I14)","v":""},null,{"$f":"IF($AE6=TRUE,\"\",IF(AND($AE$5=1,E14=\"\"),\"\",IF(AND($AE$5=2,M14=\"\"),\"\",IF($AE$5=1,E14,IF($AE$5=2,M14,\"\")))))","v":""},{"$f":"IF($AE6=TRUE,\"\",IF(AND($AE$5=1,F14=\"\"),\"\",IF(AND($AE$5=2,N14=\"\"),\"\",IF($AE$5=1,F14,IF($AE$5=2,N14,\"\")))))","v":""},"",{"$f":"IF($AE6=TRUE,\"\",IF(AND($AE$5=1,H14=\"\"),\"\",IF(AND($AE$5=2,P14=\"\"),\"\",IF($AE$5=1,H14,IF($AE$5=2,P14,\"\")))))","v":""},{"$f":"IF($AE6=TRUE,\"\",IF(AND($AE$5=1,I14=\"\"),\"\",IF(AND($AE$5=2,Q14=\"\"),\"\",IF($AE$5=1,I14,IF($AE$5=2,Q14,\"\")))))","v":""},null,"Remove Core 9 from Analysis:",false]
[null,{"$f":"IF($G$8=\"Upper\",\"UL-2\",IF($G$8=\"Middle\",\"ML-2\",IF($G$8=\"Lower\",\"LL-2\",\"\")))","v":""},{"$f":"'QC-1 Density Worksheet'!$D$18","v":-50},{"$f":"'QC-1 Density Worksheet'!$E$18","v":""},null,null,null,{"$f":"IFERROR(E15/(F15-G15),\"\")","v":""},{"$f":"IF(AND('Project Info & Instructions'!$D$35=INTERNAL_SYS_VAR!$B$8,'Project Info & Instructions'!$D$52=\"\"),INTERNAL_SYS_MSGS!$B$24,IF(AND('Project Info & Instructions'!$D$35=INTERNAL_SYS_VAR!$B$8,H15=\"\"),\"\",IF('Project Info & Instructions'!$D$35=INTERNAL_SYS_VAR!$B$8,100*(H15/'Project Info & Instructions'!$D$52),IF(OR('HMA Air Voids Pay Factor'!$E$16=\"\",H15=\"\"),\"\",100*(H15/'HMA Air Voids Pay Factor'!$E$16)))))","v":""},{"$f":"IF('Gauge-Core Variability'!J17=\"Suspect Core\",_xlfn.CONCAT('Gauge-Core Variability'!J17,\" (\",TEXT('Gauge-Core Variability'!H17, \"0.0\"),\"%)\"),\"\")","v":""},false,null,null,null,null,{"$f":"IFERROR(M15/(N15-O15),\"\")","v":""},{"$f":"IF(AND('Project Info & Instructions'!$D$35=INTERNAL_SYS_VAR!$B$8,'Project Info & Instructions'!$D$52=\"\"),INTERNAL_SYS_MSGS!$B$24,IF(AND('Project Info & Instructions'!$D$35=INTERNAL_SYS_VAR!$B$8,P15=\"\"),\"\",IF('Project Info & Instructions'!$D$35=INTERNAL_SYS_VAR!$B$8,100*(P15/'Project Info & Instructions'!$D$52),IF(OR('HMA Air Voids Pay Factor'!$E$16=\"\",P15=\"\"),\"\",100*(P15/'HMA Air Voids Pay Factor'!$E$16)))))","v":""},{"$f":"IF(M15=\"\",\"\",M15-E15)","v":""},{"$f":"IF(N15=\"\",\"\",N15-F15)","v":""},{"$f":"IF(O15=\"\",\"\",O15-G15)","v":""},{"$f":"IF(P15=\"\",\"\",P15-H15)","v":""},{"$f":"IF(OR(Q15=\"\",Q15=INTERNAL_SYS_MSGS!$B$24),\"\",Q15-I15)","v":""},null,"","","","","",null,"Remove Core 10 from Analysis:",false]
[null,{"$f":"IF($G$8=\"Upper\",\"UL-3\",IF($G$8=\"Middle\",\"ML-3\",IF($G$8=\"Lower\",\"LL-3\",\"\")))","v":""},{"$f":"'QC-1 Density Worksheet'!$D$19","v":0},{"$f":"'QC-1 Density Worksheet'!$E$19","v":""},null,null,null,"",{"$f":"IF(AND('Project Info & Instructions'!$D$35=INTERNAL_SYS_VAR!$B$8,'Project Info & Instructions'!$D$52=\"\"),INTERNAL_SYS_MSGS!$B$24,IF(AND('Project Info & Instructions'!$D$35=INTERNAL_SYS_VAR!$B$8,H16=\"\"),\"\",IF('Project Info & Instructions'!$D$35=INTERNAL_SYS_VAR!$B$8,100*(H16/'Project Info & Instructions'!$D$52),IF(OR('HMA Air Voids Pay Factor'!$E$16=\"\",H16=\"\"),\"\",100*(H16/'HMA Air Voids Pay Factor'!$E$16)))))","v":""},{"$f":"IF('Gauge-Core Variability'!J18=\"Suspect Core\",_xlfn.CONCAT('Gauge-Core Variability'!J18,\" (\",TEXT('Gauge-Core Variability'!H18, \"0.0\"),\"%)\"),\"\")","v":""},false,null,null,null,null,"",{"$f":"IF(AND('Project Info & Instructions'!$D$35=INTERNAL_SYS_VAR!$B$8,'Project Info & Instructions'!$D$52=\"\"),INTERNAL_SYS_MSGS!$B$24,IF(AND('Project Info & Instructions'!$D$35=INTERNAL_SYS_VAR!$B$8,P16=\"\"),\"\",IF('Project Info & Instructions'!$D$35=INTERNAL_SYS_VAR!$B$8,100*(P16/'Project Info & Instructions'!$D$52),IF(OR('HMA Air Voids Pay Factor'!$E$16=\"\",P16=\"\"),\"\",100*(P16/'HMA Air Voids Pay Factor'!$E$16)))))","v":""},"","","","",{"$f":"IF(OR(Q16=\"\",Q16=INTERNAL_SYS_MSGS!$B$24),\"\",Q16-I16)","v":""},null,"","","","","",null,"Production or Non-Random Gmm collected during Density-Only Test Strip within Tolerance?:",{"$f":"IF('Project Info & Instructions'!$D$35<>INTERNAL_SYS_VAR!$B$8,\"N/A\",IF(ISBLANK('Project Info & Instructions'!$D$53),INTERNAL_SYS_MSGS!$B$25,IF(ABS('Project Info & Instructions'!$D$53-$G$10)<=INTERNAL_SYS_VAR!$AC$8,TRUE,FALSE)))","v":"N/A"}]
[null,{"$f":"IF($G$8=\"Upper\",\"UL-4\",IF($G$8=\"Middle\",\"ML-4\",IF($G$8=\"Lower\",\"LL-4\",\"\")))","v":""},{"$f":"'QC-1 Density Worksheet'!$D$20","v":50},{"$f":"'QC-1 Density Worksheet'!$E$20","v":""},null,null,null,"",{"$f":"IF(AND('Project Info & Instructions'!$D$35=INTERNAL_SYS_VAR!$B$8,'Project Info & Instructions'!$D$52=\"\"),INTERNAL_SYS_MSGS!$B$24,IF(AND('Project Info & Instructions'!$D$35=INTERNAL_SYS_VAR!$B$8,H17=\"\"),\"\",IF('Project Info & Instructions'!$D$35=INTERNAL_SYS_VAR!$B$8,100*(H17/'Project Info & Instructions'!$D$52),IF(OR('HMA Air Voids Pay Factor'!$E$16=\"\",H17=\"\"),\"\",100*(H17/'HMA Air Voids Pay Factor'!$E$16)))))","v":""},{"$f":"IF('Gauge-Core Variability'!J19=\"Suspect Core\",_xlfn.CONCAT('Gauge-Core Variability'!J19,\" (\",TEXT('Gauge-Core Variability'!H19, \"0.0\"),\"%)\"),\"\")","v":""},false,null,null,null,null,"",{"$f":"IF(AND('Project Info & Instructions'!$D$35=INTERNAL_SYS_VAR!$B$8,'Project Info & Instructions'!$D$52=\"\"),INTERNAL_SYS_MSGS!$B$24,IF(AND('Project Info & Instructions'!$D$35=INTERNAL_SYS_VAR!$B$8,P17=\"\"),\"\",IF('Project Info & Instructions'!$D$35=INTERNAL_SYS_VAR!$B$8,100*(P17/'Project Info & Instructions'!$D$52),IF(OR('HMA Air Voids Pay Factor'!$E$16=\"\",P17=\"\"),\"\",100*(P17/'HMA Air Voids Pay Factor'!$E$16)))))","v":""},"","","","",{"$f":"IF(OR(Q17=\"\",Q17=INTERNAL_SYS_MSGS!$B$24),\"\",Q17-I17)","v":""},null,"","","","",""]
[null,{"$f":"IF($G$8=\"Upper\",\"UL-5\",IF($G$8=\"Middle\",\"ML-5\",IF($G$8=\"Lower\",\"LL-5\",\"\")))","v":""},{"$f":"'QC-1 Density Worksheet'!$D$21","v":100},{"$f":"'QC-1 Density Worksheet'!$E$21","v":""},null,null,null,"",{"$f":"IF(AND('Project Info & Instructions'!$D$35=INTERNAL_SYS_VAR!$B$8,'Project Info & Instructions'!$D$52=\"\"),INTERNAL_SYS_MSGS!$B$24,IF(AND('Project Info & Instructions'!$D$35=INTERNAL_SYS_VAR!$B$8,H18=\"\"),\"\",IF('Project Info & Instructions'!$D$35=INTERNAL_SYS_VAR!$B$8,100*(H18/'Project Info & Instructions'!$D$52),IF(OR('HMA Air Voids Pay Factor'!$E$16=\"\",H18=\"\"),\"\",100*(H18/'HMA Air Voids Pay Factor'!$E$16)))))","v":""},{"$f":"IF('Gauge-Core Variability'!J20=\"Suspect Core\",_xlfn.CONCAT('Gauge-Core Variability'!J20,\" (\",TEXT('Gauge-Core Variability'!H20, \"0.0\"),\"%)\"),\"\")","v":""},false,null,null,null,null,"",{"$f":"IF(AND('Project Info & Instructions'!$D$35=INTERNAL_SYS_VAR!$B$8,'Project Info & Instructions'!$D$52=\"\"),INTERNAL_SYS_MSGS!$B$24,IF(AND('Project Info & Instructions'!$D$35=INTERNAL_SYS_VAR!$B$8,P18=\"\"),\"\",IF('Project Info & Instructions'!$D$35=INTERNAL_SYS_VAR!$B$8,100*(P18/'Project Info & Instructions'!$D$52),IF(OR('HMA Air Voids Pay Factor'!$E$16=\"\",P18=\"\"),\"\",100*(P18/'HMA Air Voids Pay Factor'!$E$16)))))","v":""},"","","","",{"$f":"IF(OR(Q18=\"\",Q18=INTERNAL_SYS_MSGS!$B$24),\"\",Q18-I18)","v":""},null,"","","","",""]
[]
[null,null,"Random Station","Offset from CL","Dry\nWeight\n(g)","SSD\nWeight\n(g)","Submerged\nWeight\n(g)","QC Core Bulk Density","QC Density % of Gmm","Location Comparison Result","Remove Core Data From Analysis?",null,"Dry\nWeight\n(g)","SSD\nWeight\n(g)","Submerged\nWeight\n(g)","QV Core Bulk Density","QV Density % of Gmm","Dry","SSD","Submerged","Core Bulk Density","Density %",null,"Dry\nWeight\n(g)","SSD\nWeight\n(g)","Submerged\nWeight\n(g)","Core Bulk Density Used for Analysis","Core Density %"]
[null,{"$f":"IF($G$8=\"Upper\",\"UL-6\",IF($G$8=\"Middle\",\"ML-6\",IF($G$8=\"Lower\",\"LL-6\",\"\")))","v":""},{"$f":"'QC-1 Density Worksheet'!$D$22","v":-100},{"$f":"'QC-1 Density Worksheet'!$E$22","v":""},null,null,null,{"$f":"IFERROR(E21/(F21-G21),\"\")","v":""},{"$f":"IF(AND('Project Info & Instructions'!$D$35=INTERNAL_SYS_VAR!$B$8,'Project Info & Instructions'!$D$52=\"\"),INTERNAL_SYS_MSGS!$B$24,IF(AND('Project Info & Instructions'!$D$35=INTERNAL_SYS_VAR!$B$8,H21=\"\"),\"\",IF('Project Info & Instructions'!$D$35=INTERNAL_SYS_VAR!$B$8,100*(H21/'Project Info & Instructions'!$D$52),IF(OR('HMA Air Voids Pay Factor'!$E$16=\"\",H21=\"\"),\"\",100*(H21/'HMA Air Voids Pay Factor'!$E$16)))))","v":""},{"$f":"IF('Gauge-Core Variability'!J21=\"Suspect Core\",_xlfn.CONCAT('Gauge-Core Variability'!J21,\" (\",TEXT('Gauge-Core Variability'!H21, \"0.0\"),\"%)\"),\"\")","v":""},false,null,null,null,null,{"$f":"IFERROR(M21/(N21-O21),\"\")","v":""},{"$f":"IF(AND('Project Info & Instructions'!$D$35=INTERNAL_SYS_VAR!$B$8,'Project Info & Instructions'!$D$52=\"\"),INTERNAL_SYS_MSGS!$B$24,IF(AND('Project Info & Instructions'!$D$35=INTERNAL_SYS_VAR!$B$8,P21=\"\"),\"\",IF('Project Info & Instructions'!$D$35=INTERNAL_SYS_VAR!$B$8,100*(P21/'Project Info & Instructions'!$D$52),IF(OR('HMA Air Voids Pay Factor'!$E$16=\"\",P21=\"\"),\"\",100*(P21/'HMA Air Voids Pay Factor'!$E$16)))))","v":""},{"$f":"IF(M21=\"\",\"\",M21-E21)","v":""},{"$f":"IF(N21=\"\",\"\",N21-F21)","v":""},{"$f":"IF(O21=\"\",\"\",O21-G21)","v":""},{"$f":"IF(P21=\"\",\"\",P21-H21)","v":""},{"$f":"IF(OR(Q21=\"\",Q21=INTERNAL_SYS_MSGS!$B$24),\"\",Q21-I21)","v":""},null,{"$f":"IF($AE11=TRUE,\"\",IF(AND($AE$5=1,E21=\"\"),\"\",IF(AND($AE$5=2,M21=\"\"),\"\",IF($AE$5=1,E21,IF($AE$5=2,M21,\"\")))))","v":""},"","","",""]
[null,{"$f":"IF($G$8=\"Upper\",\"UL-7\",IF($G$8=\"Middle\",\"ML-7\",IF($G$8=\"Lower\",\"LL-7\",\"\")))","v":""},{"$f":"'QC-1 Density Worksheet'!$D$23","v":-50},{"$f":"'QC-1 Density Worksheet'!$E$23","v":""},null,null,null,"",{"$f":"IF(AND('Project Info & Instructions'!$D$35=INTERNAL_SYS_VAR!$B$8,'Project Info & Instructions'!$D$52=\"\"),INTERNAL_SYS_MSGS!$B$24,IF(AND('Project Info & Instructions'!$D$35=INTERNAL_SYS_VAR!$B$8,H22=\"\"),\"\",IF('Project Info & Instructions'!$D$35=INTERNAL_SYS_VAR!$B$8,100*(H22/'Project Info & Instructions'!$D$52),IF(OR('HMA Air Voids Pay Factor'!$E$16=\"\",H22=\"\"),\"\",100*(H22/'HMA Air Voids Pay Factor'!$E$16)))))","v":""},{"$f":"IF('Gauge-Core Variability'!J22=\"Suspect Core\",_xlfn.CONCAT('Gauge-Core Variability'!J22,\" (\",TEXT('Gauge-Core Variability'!H22, \"0.0\"),\"%)\"),\"\")","v":""},false,null,null,null,null,"",{"$f":"IF(AND('Project Info & Instructions'!$D$35=INTERNAL_SYS_VAR!$B$8,'Project Info & Instructions'!$D$52=\"\"),INTERNAL_SYS_MSGS!$B$24,IF(AND('Project Info & Instructions'!$D$35=INTERNAL_SYS_VAR!$B$8,P22=\"\"),\"\",IF('Project Info & Instructions'!$D$35=INTERNAL_SYS_VAR!$B$8,100*(P22/'Project Info & Instructions'!$D$52),IF(OR('HMA Air Voids Pay Factor'!$E$16=\"\",P22=\"\"),\"\",100*(P22/'HMA Air Voids Pay Factor'!$E$16)))))","v":""},{"$f":"IF(M22=\"\",\"\",M22-E22)","v":""},"","","",{"$f":"IF(OR(Q22=\"\",Q22=INTERNAL_SYS_MSGS!$B$24),\"\",Q22-I22)","v":""},null,"","","","",""]
[null,{"$f":"IF($G$8=\"Upper\",\"UL-8\",IF($G$8=\"Middle\",\"ML-8\",IF($G$8=\"Lower\",\"LL-8\",\"\")))","v":""},{"$f":"'QC-1 Density Worksheet'!$D$24","v":0},{"$f":"'QC-1 Density Worksheet'!$E$24","v":""},null,null,null,"",{"$f":"IF(AND('Project Info & Instructions'!$D$35=INTERNAL_SYS_VAR!$B$8,'Project Info & Instructions'!$D$52=\"\"),INTERNAL_SYS_MSGS!$B$24,IF(AND('Project Info & Instructions'!$D$35=INTERNAL_SYS_VAR!$B$8,H23=\"\"),\"\",IF('Project Info & Instructions'!$D$35=INTERNAL_SYS_VAR!$B$8,100*(H23/'Project Info & Instructions'!$D$52),IF(OR('HMA Air Voids Pay Factor'!$E$16=\"\",H23=\"\"),\"\",100*(H23/'HMA Air Voids Pay Factor'!$E$16)))))","v":""},{"$f":"IF('Gauge-Core Variability'!J23=\"Suspect Core\",_xlfn.CONCAT('Gauge-Core Variability'!J23,\" (\",TEXT('Gauge-Core Variability'!H23, \"0.0\"),\"%)\"),\"\")","v":""},false,null,null,null,null,"",{"$f":"IF(AND('Project Info & Instructions'!$D$35=INTERNAL_SYS_VAR!$B$8,'Project Info & Instructions'!$D$52=\"\"),INTERNAL_SYS_MSGS!$B$24,IF(AND('Project Info & Instructions'!$D$35=INTERNAL_SYS_VAR!$B$8,P23=\"\"),\"\",IF('Project Info & Instructions'!$D$35=INTERNAL_SYS_VAR!$B$8,100*(P23/'Project Info & Instructions'!$D$52),IF(OR('HMA Air Voids Pay Factor'!$E$16=\"\",P23=\"\"),\"\",100*(P23/'HMA Air Voids Pay Factor'!$E$16)))))","v":""},{"$f":"IF(M23=\"\",\"\",M23-E23)","v":""},"","","",{"$f":"IF(OR(Q23=\"\",Q23=INTERNAL_SYS_MSGS!$B$24),\"\",Q23-I23)","v":""},null,"","","","",""]
[null,{"$f":"IF($G$8=\"Upper\",\"UL-9\",IF($G$8=\"Middle\",\"ML-9\",IF($G$8=\"Lower\",\"LL-9\",\"\")))","v":""},{"$f":"'QC-1 Density Worksheet'!$D$25","v":50},{"$f":"'QC-1 Density Worksheet'!$E$25","v":""},null,null,null,{"$f":"IFERROR(E24/(F24-G24),\"\")","v":""},{"$f":"IF(AND('Project Info & Instructions'!$D$35=INTERNAL_SYS_VAR!$B$8,'Project Info & Instructions'!$D$52=\"\"),INTERNAL_SYS_MSGS!$B$24,IF(AND('Project Info & Instructions'!$D$35=INTERNAL_SYS_VAR!$B$8,H24=\"\"),\"\",IF('Project Info & Instructions'!$D$35=INTERNAL_SYS_VAR!$B$8,100*(H24/'Project Info & Instructions'!$D$52),IF(OR('HMA Air Voids Pay Factor'!$E$16=\"\",H24=\"\"),\"\",100*(H24/'HMA Air Voids Pay Factor'!$E$16)))))","v":""},{"$f":"IF('Gauge-Core Variability'!J24=\"Suspect Core\",_xlfn.CONCAT('Gauge-Core Variability'!J24,\" (\",TEXT('Gauge-Core Variability'!H24, \"0.0\"),\"%)\"),\"\")","v":""},false,null,null,null,null,"",{"$f":"IF(AND('Project Info & Instructions'!$D$35=INTERNAL_SYS_VAR!$B$8,'Project Info & Instructions'!$D$52=\"\"),INTERNAL_SYS_MSGS!$B$24,IF(AND('Project Info & Instructions'!$D$35=INTERNAL_SYS_VAR!$B$8,P24=\"\"),\"\",IF('Project Info & Instructions'!$D$35=INTERNAL_SYS_VAR!$B$8,100*(P24/'Project Info & Instructions'!$D$52),IF(OR('HMA Air Voids Pay Factor'!$E$16=\"\",P24=\"\"),\"\",100*(P24/'HMA Air Voids Pay Factor'!$E$16)))))","v":""},{"$f":"IF(M24=\"\",\"\",M24-E24)","v":""},"","","",{"$f":"IF(OR(Q24=\"\",Q24=INTERNAL_SYS_MSGS!$B$24),\"\",Q24-I24)","v":""},null,"","","","",""]
[null,{"$f":"IF($G$8=\"Upper\",\"UL-10\",IF($G$8=\"Middle\",\"ML-10\",IF($G$8=\"Lower\",\"LL-10\",\"\")))","v":""},{"$f":"'QC-1 Density Worksheet'!$D$26","v":100},{"$f":"'QC-1 Density Worksheet'!$E$26","v":""},null,null,null,"",{"$f":"IF(AND('Project Info & Instructions'!$D$35=INTERNAL_SYS_VAR!$B$8,'Project Info & Instructions'!$D$52=\"\"),INTERNAL_SYS_MSGS!$B$24,IF(AND('Project Info & Instructions'!$D$35=INTERNAL_SYS_VAR!$B$8,H25=\"\"),\"\",IF('Project Info & Instructions'!$D$35=INTERNAL_SYS_VAR!$B$8,100*(H25/'Project Info & Instructions'!$D$52),IF(OR('HMA Air Voids Pay Factor'!$E$16=\"\",H25=\"\"),\"\",100*(H25/'HMA Air Voids Pay Factor'!$E$16)))))","v":""},{"$f":"IF('Gauge-Core Variability'!J25=\"Suspect Core\",_xlfn.CONCAT('Gauge-Core Variability'!J25,\" (\",TEXT('Gauge-Core Variability'!H25, \"0.0\"),\"%)\"),\"\")","v":""},false,null,null,null,null,"",{"$f":"IF(AND('Project Info & Instructions'!$D$35=INTERNAL_SYS_VAR!$B$8,'Project Info & Instructions'!$D$52=\"\"),INTERNAL_SYS_MSGS!$B$24,IF(AND('Project Info & Instructions'!$D$35=INTERNAL_SYS_VAR!$B$8,P25=\"\"),\"\",IF('Project Info & Instructions'!$D$35=INTERNAL_SYS_VAR!$B$8,100*(P25/'Project Info & Instructions'!$D$52),IF(OR('HMA Air Voids Pay Factor'!$E$16=\"\",P25=\"\"),\"\",100*(P25/'HMA Air Voids Pay Factor'!$E$16)))))","v":""},{"$f":"IF(M25=\"\",\"\",M25-E25)","v":""},"","","",{"$f":"IF(OR(Q25=\"\",Q25=INTERNAL_SYS_MSGS!$B$24),\"\",Q25-I25)","v":""},null,"","","","",""]
[null,null,null,null,null,null,"Average:",{"$f":"IFERROR(_xlfn.LET(\n_xlpm.combinedDataRange,_xlfn.VSTACK(H14:H18,H21:H25),\n_xlpm.combinedRemovedRange,_xlfn.VSTACK(K14:K18,K21:K25),\nAVERAGE(_xlfn._xlws.FILTER(_xlpm.combinedDataRange,_xlpm.combinedRemovedRange = FALSE))\n),\"\")","v":""},{"$f":"IFERROR(_xlfn.LET(\n_xlpm.combinedDataRange,_xlfn.VSTACK(I14:I18,I21:I25),\n_xlpm.combinedRemovedRange,_xlfn.VSTACK(K14:K18,K21:K25),\nAVERAGE(_xlfn._xlws.FILTER(_xlpm.combinedDataRange,_xlpm.combinedRemovedRange = FALSE))\n),\"\")","v":""},null,null,null,null,null,"Average:",{"$f":"IFERROR(_xlfn.LET(\n_xlpm.combinedDataRange,_xlfn.VSTACK(P14:P18,P21:P25),\n_xlpm.combinedRemovedRange,_xlfn.VSTACK(K14:K18,K21:K25),\nAVERAGE(_xlfn._xlws.FILTER(_xlpm.combinedDataRange,_xlpm.combinedRemovedRange = FALSE))\n),\"\")","v":""},{"$f":"IFERROR(_xlfn.LET(\n_xlpm.combinedDataRange,_xlfn.VSTACK(Q14:Q18,Q21:Q25),\n_xlpm.combinedRemovedRange,_xlfn.VSTACK(K14:K18,K21:K25),\nAVERAGE(_xlfn._xlws.FILTER(_xlpm.combinedDataRange,_xlpm.combinedRemovedRange = FALSE))\n),\"\")","v":""},null,null,null,"Difference in Average % Density:",{"$f":"IFERROR(_xlfn.LET(\n_xlpm.combinedDataRange,_xlfn.VSTACK(V14:V18,V21:V25),\n_xlpm.combinedRemovedRange,_xlfn.VSTACK(K14:K18,K21:K25),\nAVERAGE(_xlfn._xlws.FILTER(_xlpm.combinedDataRange,_xlpm.combinedRemovedRange = FALSE))\n),\"\")","v":""}]
[null,"Note:    "]
[null,"The Location Comparison Result references values on the Gauge-Core Variability worksheet comparing the core density data with each adjusted nuclear density gauge reading at each test location. \"Suspect Core\" is displayed under Location Comparison Result if the Location Comparison average is ≥ 1.0 or ≤ -1.0 this indicates a core that may be damaged. Contact the Regional PWL Representative when a \"Suspect Core\" is identified here or when core density values are considered questionable. ONLY THE REGIONAL PWL REPRESENTATIVE CAN REMOVE A CORE FROM ANALYSIS.",null,null,null,null,null,null,null,null,null,null,"If the difference between the QC and QV average densities is greater than 0.5%, consider using QV core densities in place of QC core densities."]
[]
[]
[]
[]
[]
[]
[null,"Comments:"]

{"sheet":"SMA Core Data","index":4,"n_rows":33,"n_cols":46,"rows_kept":33,"cut":false,"hidden":true,"merged":[[9,2,9,4],[7,6,7,7],[8,6,8,7],[9,6,9,7],[3,45,3,46],[4,45,6,46],[4,33,4,38],[4,39,4,44],[3,33,3,44],[32,2,35,10],[11,2,11,7],[11,13,11,18],[11,19,11,23],[3,31,3,32],[26,13,27,23],[5,6,5,7],[5,15,6,16],[6,6,6,7],[27,1,31,9],[5,2,5,4],[6,2,6,4],[7,2,7,4],[0,1,3,2],[11,25,11,29],[8,2,8,4]]}
[null,{"$error":"#VALUE!"}]
[null,null,null,"SMA Core Testing"]
[null,null,null,"Wisconsin Department of Transportation"]
[null,null,null,null,null,null,null,null,null,null,null,null,null,null,null,null,null,null,null,null,null,null,null,null,null,null,null,null,null,null,null,"Worksheet Variables",null,"Bag Apparent Gravity Calculator (InstroTek)",null,null,null,null,null,null,null,null,null,null,null,"Conclusion"]
[null,null,null,null,null,null,null,null,null,null,null,null,null,null,null,null,null,null,null,null,null,null,null,null,null,null,null,null,null,null,null,"QC or QV Core Data Used For Analysis:",1,"Contractor",null,null,null,null,null,"Department",null,null,null,null,null,{"$f":"IF($AG$16=\"N/A\",\"\",IF($AG$16,INTERNAL_SYS_MSGS!$B$27,INTERNAL_SYS_MSGS!$B$26))","v":"Gmm During Test Strip Exceeds Acceptance Limits."}]
[null,"Date:",{"$f":"IF('Project Info & Instructions'!$D$13=\"\",\"\",'Project Info & Instructions'!$D$13)","v":""},null,null,"Test Strip #:",{"$f":"IF('Project Info & Instructions'!$D$14=\"\",\"\",'Project Info & Instructions'!$D$14)","v":""},null,null,null,null,null,null,null,null,"QC or QV Core Data  \nUsed For Analysis?  ",null,null,null,null,null,null,null,null,null,null,null,null,null,null,null,"Remove Core 1 from Analysis:",{"$f":"L14","v":false},"Sample","Mass of Dry Core (g)","Mass of Bag (g)","R","Determined Bag Size","Apparent Gravity","Sample","Mass of Dry Core (g)","Mass of Bag (g)","R","Determined Bag Size","Apparent Gravity"]
[null,"Project ID:",{"$f":"IF('Project Info & Instructions'!$D$8=\"\",\"\",'Project Info & Instructions'!$D$8)","v":""},null,null,"Route/Road:",{"$f":"IF('Project Info & Instructions'!$D$10=\"\",\"\",'Project Info & Instructions'!$D$10)","v":""},null,null,null,null,null,null,null,null,null,null,null,null,null,null,null,null,null,null,null,null,null,null,null,"QC=1, QV=2","Remove Core 2 from Analysis:",{"$f":"L15","v":false},{"$f":"B14","v":""},{"$f":"IF(ISBLANK(F14),\"N/A\",F14)","v":"N/A"},{"$f":"IF(ISBLANK(E14),\"N/A\",E14)","v":"N/A"},{"$f":"IFERROR(AI7/AJ7,\"N/A\")","v":"N/A"},{"$f":"IF(AJ7=\"N/A\",\"N/A\",IF(AJ7>75,\"Double Bag\",IF(AND(AJ7<=75,AJ7>=35),\"Large Bag\",\"Small Bag\")))","v":"N/A"},{"$f":"_xlfn.SWITCH(AL7,\"N/A\",\"N/A\",\"Small Bag\",-0.000566*AK7+0.8121,\"Large Bag\",-0.00166*AK7+0.8596,\"Double Bag\",-0.0022448*AK7+0.81518)","v":"N/A"},{"$f":"B14","v":""},{"$f":"IF(ISBLANK(O14),\"N/A\",O14)","v":"N/A"},{"$f":"IF(ISBLANK(N14),\"N/A\",N14)","v":"N/A"},{"$f":"IFERROR(AO7/AP7,\"N/A\")","v":"N/A"},{"$f":"IF(AP7=\"N/A\",\"N/A\",IF(AP7>75,\"Double Bag\",IF(AND(AP7<=75,AP7>=35),\"Large Bag\",\"Small Bag\")))","v":"N/A"},{"$f":"_xlfn.SWITCH(AR7,\"N/A\",\"N/A\",\"Small Bag\",-0.000566*AQ7+0.8121,\"Large Bag\",-0.00166*AQ7+0.8596,\"Double Bag\",-0.0022448*AQ7+0.81518)","v":"N/A"}]
[null,"Mix Type:",{"$f":"IF('Project Info & Instructions'!$D$31=\"\",\"\",'Project Info & Instructions'!$D$31)","v":"--"},null,null," Layer:",{"$f":"IF('Project Info & Instructions'!$H$7=\"\",\"\",'Project Info & Instructions'!$H$7)","v":""},null,null,null,null,null,null,null,null,null,null,null,null,null,null,null,null,null,null,null,null,null,null,null,null,"Remove Core 3 from Analysis:",false,{"$f":"B15","v":""},{"$f":"IF(ISBLANK(F15),\"N/A\",F15)","v":"N/A"},{"$f":"IF(ISBLANK(E15),\"N/A\",E15)","v":"N/A"},{"$f":"IFERROR(AI8/AJ8,\"N/A\")","v":"N/A"},{"$f":"IF(AJ8=\"N/A\",\"N/A\",IF(AJ8>75,\"Double Bag\",IF(AND(AJ8<=75,AJ8>=35),\"Large Bag\",\"Small Bag\")))","v":"N/A"},{"$f":"_xlfn.SWITCH(AL8,\"N/A\",\"N/A\",\"Small Bag\",-0.000566*AK8+0.8121,\"Large Bag\",-0.00166*AK8+0.8596,\"Double Bag\",-0.0022448*AK8+0.81518)","v":"N/A"},{"$f":"B15","v":""},{"$f":"IF(ISBLANK(O15),\"N/A\",O15)","v":"N/A"},{"$f":"IF(ISBLANK(N15),\"N/A\",N15)","v":"N/A"},{"$f":"IFERROR(AO8/AP8,\"N/A\")","v":"N/A"},{"$f":"IF(AP8=\"N/A\",\"N/A\",IF(AP8>75,\"Double Bag\",IF(AND(AP8<=75,AP8>=35),\"Large Bag\",\"Small Bag\")))","v":"N/A"},{"$f":"_xlfn.SWITCH(AR8,\"N/A\",\"N/A\",\"Small Bag\",-0.000566*AQ8+0.8121,\"Large Bag\",-0.00166*AQ8+0.8596,\"Double Bag\",-0.0022448*AQ8+0.81518)","v":"N/A"}]
[null,"Gmm For Analysis:",{"$f":"IF(AND('Project Info & Instructions'!$D$35=INTERNAL_SYS_VAR!$B$8,ISBLANK('Project Info & Instructions'!$D$52)),INTERNAL_SYS_MSGS!$B$22,IF('Project Info & Instructions'!$D$35=INTERNAL_SYS_VAR!$B$8,'Project Info & Instructions'!$D$52,IF('SMA Air Voids Pay Factor'!$E$17=\"\",\"\",'SMA Air Voids Pay Factor'!$E$17)))","v":""},null,null,"LSL:",{"$f":"INTERNAL_SYS_VAR!$N$8","v":93},null,null,null,null,null,null,null,null,null,null,null,null,null,null,null,null,null,null,null,null,null,null,null,null,"Remove Core 4 from Analysis:",false,{"$f":"B16","v":""},{"$f":"IF(ISBLANK(F16),\"N/A\",F16)","v":"N/A"},{"$f":"IF(ISBLANK(E16),\"N/A\",E16)","v":"N/A"},"N/A","N/A",{"$f":"_xlfn.SWITCH(AL9,\"N/A\",\"N/A\",\"Small Bag\",-0.000566*AK9+0.8121,\"Large Bag\",-0.00166*AK9+0.8596,\"Double Bag\",-0.0022448*AK9+0.81518)","v":"N/A"},{"$f":"B16","v":""},{"$f":"IF(ISBLANK(O16),\"N/A\",O16)","v":"N/A"},{"$f":"IF(ISBLANK(N16),\"N/A\",N16)","v":"N/A"},"N/A","N/A",{"$f":"_xlfn.SWITCH(AR9,\"N/A\",\"N/A\",\"Small Bag\",-0.000566*AQ9+0.8121,\"Large Bag\",-0.00166*AQ9+0.8596,\"Double Bag\",-0.0022448*AQ9+0.81518)","v":"N/A"}]
[null,"Gmm Source:",{"$f":"IF('Project Info & Instructions'!$D$35=INTERNAL_SYS_VAR!$B$8, \"Daily Average\",_xlfn.SWITCH('SMA Split Sample Comparison'!$R$9,\"N/A\",\"\",FALSE,\"QC\",\"BTS Referee\"))","v":"QC"},null,null,"JMF Gmm:",{"$f":"IF('Project Info & Instructions'!$H$28=\"\",INTERNAL_SYS_MSGS!$B$23,'Project Info & Instructions'!$H$28)","v":"Enter JMF Gmm."},null,null,null,null,null,null,null,null,null,null,null,null,null,null,null,null,null,null,null,null,null,null,null,null,"Remove Core 5 from Analysis:",false,{"$f":"B17","v":""},{"$f":"IF(ISBLANK(F17),\"N/A\",F17)","v":"N/A"},{"$f":"IF(ISBLANK(E17),\"N/A\",E17)","v":"N/A"},"N/A","N/A",{"$f":"_xlfn.SWITCH(AL10,\"N/A\",\"N/A\",\"Small Bag\",-0.000566*AK10+0.8121,\"Large Bag\",-0.00166*AK10+0.8596,\"Double Bag\",-0.0022448*AK10+0.81518)","v":"N/A"},{"$f":"B17","v":""},{"$f":"IF(ISBLANK(O17),\"N/A\",O17)","v":"N/A"},{"$f":"IF(ISBLANK(N17),\"N/A\",N17)","v":"N/A"},"N/A","N/A",{"$f":"_xlfn.SWITCH(AR10,\"N/A\",\"N/A\",\"Small Bag\",-0.000566*AQ10+0.8121,\"Large Bag\",-0.00166*AQ10+0.8596,\"Double Bag\",-0.0022448*AQ10+0.81518)","v":"N/A"}]
[null,null,null,null,null,null,null,null,null,null,null,null,null,null,null,null,null,null,null,null,null,null,null,null,null,null,null,null,null,null,null,"Remove Core 6 from Analysis:",{"$f":"L21","v":false},{"$f":"B18","v":""},{"$f":"IF(ISBLANK(F18),\"N/A\",F18)","v":"N/A"},{"$f":"IF(ISBLANK(E18),\"N/A\",E18)","v":"N/A"},{"$f":"IFERROR(AI11/AJ11,\"N/A\")","v":"N/A"},"N/A",{"$f":"_xlfn.SWITCH(AL11,\"N/A\",\"N/A\",\"Small Bag\",-0.000566*AK11+0.8121,\"Large Bag\",-0.00166*AK11+0.8596,\"Double Bag\",-0.0022448*AK11+0.81518)","v":"N/A"},{"$f":"B18","v":""},{"$f":"IF(ISBLANK(O18),\"N/A\",O18)","v":"N/A"},{"$f":"IF(ISBLANK(N18),\"N/A\",N18)","v":"N/A"},"N/A","N/A",{"$f":"_xlfn.SWITCH(AR11,\"N/A\",\"N/A\",\"Small Bag\",-0.000566*AQ11+0.8121,\"Large Bag\",-0.00166*AQ11+0.8596,\"Double Bag\",-0.0022448*AQ11+0.81518)","v":"N/A"}]
[null,null,"Contractor Core Density Calculations",null,null,null,null,null,null,null,null,null,null,"Department Core Density Calculations",null,null,null,null,null,"Department Minus Contractor Density Data ",null,null,null,null,null,"Data Used for Analysis",null,null,null,null,null,"Remove Core 7 from Analysis:",{"$f":"L22","v":false},{"$f":"B21","v":""},{"$f":"IF(ISBLANK(F21),\"N/A\",F21)","v":"N/A"},{"$f":"IF(ISBLANK(E21),\"N/A\",E21)","v":"N/A"},{"$f":"IFERROR(AI12/AJ12,\"N/A\")","v":"N/A"},"N/A",{"$f":"_xlfn.SWITCH(AL12,\"N/A\",\"N/A\",\"Small Bag\",-0.000566*AK12+0.8121,\"Large Bag\",-0.00166*AK12+0.8596,\"Double Bag\",-0.0022448*AK12+0.81518)","v":"N/A"},{"$f":"B21","v":""},{"$f":"IF(ISBLANK(O21),\"N/A\",O21)","v":"N/A"},{"$f":"IF(ISBLANK(N21),\"N/A\",N21)","v":"N/A"},"N/A","N/A",{"$f":"_xlfn.SWITCH(AR12,\"N/A\",\"N/A\",\"Small Bag\",-0.000566*AQ12+0.8121,\"Large Bag\",-0.00166*AQ12+0.8596,\"Double Bag\",-0.0022448*AQ12+0.81518)","v":"N/A"}]
[null,"Label","Random Station","Offset from CL","Bag Weight\n(g)","Dry Specimen W/O Bag\n(g) ","Sealed Sample Submerged\n(g)","Specimen after removal from bag\n(g)","QC Core Bulk Density","QC Density % of Gmm","Location Comparison Result","Remove Core Data From Analysis?",null,"Bag Weight\n(g)","Dry Specimen W/O Bag\n(g) ","Sealed Sample Submerged\n(g)","Specimen after removal from bag\n(g)","QV Core Bulk Density","QV Density % of Gmm","Dry Specimen W/O Bag (g) ","Sealed Sample Submerged (g)","Specimen after removal from bag (g)","Core Bulk Density","Density %",null,"Dry Specimen W/O Bag\n(g) ","Sealed Sample Submerged\n(g)","Specimen after removal from bag\n(g)","Core Density Used for Analysis","Core Density %",null,"Remove Core 8 from Analysis:",false,{"$f":"B22","v":""},{"$f":"IF(ISBLANK(F22),\"N/A\",F22)","v":"N/A"},{"$f":"IF(ISBLANK(E22),\"N/A\",E22)","v":"N/A"},"N/A",{"$f":"IF(AJ13=\"N/A\",\"N/A\",IF(AJ13>75,\"Double Bag\",IF(AND(AJ13<=75,AJ13>=35),\"Large Bag\",\"Small Bag\")))","v":"N/A"},{"$f":"_xlfn.SWITCH(AL13,\"N/A\",\"N/A\",\"Small Bag\",-0.000566*AK13+0.8121,\"Large Bag\",-0.00166*AK13+0.8596,\"Double Bag\",-0.0022448*AK13+0.81518)","v":"N/A"},{"$f":"B22","v":""},{"$f":"IF(ISBLANK(O22),\"N/A\",O22)","v":"N/A"},{"$f":"IF(ISBLANK(N22),\"N/A\",N22)","v":"N/A"},"N/A","N/A",{"$f":"_xlfn.SWITCH(AR13,\"N/A\",\"N/A\",\"Small Bag\",-0.000566*AQ13+0.8121,\"Large Bag\",-0.00166*AQ13+0.8596,\"Double Bag\",-0.0022448*AQ13+0.81518)","v":"N/A"}]
[null,{"$f":"IF($G$8=\"Upper\",\"UL-1\",IF($G$8=\"Middle\",\"ML-1\",IF($G$8=\"Lower\",\"LL-1\",\"\")))","v":""},{"$f":"'QC-1 Density Worksheet'!$D$17","v":-100},{"$f":"'QC-1 Density Worksheet'!$E$17","v":""},null,null,null,null,{"$f":"IF(H14=\"\",\"\",IFERROR(F14/(H14+E14-G14-(E14/AM7)),\"\"))","v":""},{"$f":"IF(AND('Project Info & Instructions'!$D$35=INTERNAL_SYS_VAR!$B$8,'Project Info & Instructions'!$D$52=\"\"),INTERNAL_SYS_MSGS!$B$24,IF(AND('Project Info & Instructions'!$D$35=INTERNAL_SYS_VAR!$B$8,I14=\"\"),\"\",IF('Project Info & Instructions'!$D$35=INTERNAL_SYS_VAR!$B$8,100*(I14/'Project Info & Instructions'!$D$52),IF(OR('SMA Air Voids Pay Factor'!$E$17=\"\",I14=\"\"),\"\",100*(I14/'SMA Air Voids Pay Factor'!$E$17)))))","v":""},{"$f":"IF('Gauge-Core Variability'!J16=\"Suspect Core\",_xlfn.CONCAT('Gauge-Core Variability'!J16,\" (\",TEXT('Gauge-Core Variability'!H16, \"0.0\"),\"%)\"),\"\")","v":""},false,null,null,null,null,null,{"$f":"IF(Q14=\"\",\"\",IFERROR(ROUND(O14/(Q14+N14-P14-(N14/AS7)),3),\"\"))","v":""},{"$f":"IF(AND('Project Info & Instructions'!$D$35=INTERNAL_SYS_VAR!$B$8,'Project Info & Instructions'!$D$52=\"\"),INTERNAL_SYS_MSGS!$B$24,IF(AND('Project Info & Instructions'!$D$35=INTERNAL_SYS_VAR!$B$8,R14=\"\"),\"\",IF('Project Info & Instructions'!$D$35=INTERNAL_SYS_VAR!$B$8,100*(R14/'Project Info & Instructions'!$D$52),IF(OR('SMA Air Voids Pay Factor'!$E$17=\"\",R14=\"\"),\"\",100*(R14/'SMA Air Voids Pay Factor'!$E$17)))))","v":""},{"$f":"IF(OR(ISBLANK(F14),ISBLANK(O14)),\"\",O14-F14)","v":""},{"$f":"IF(OR(ISBLANK(G14),ISBLANK(P14)),\"\",P14-G14)","v":""},{"$f":"IF(OR(ISBLANK(H14),ISBLANK(Q14)),\"\",Q14-H14)","v":""},{"$f":"IF(OR(I14=\"\",R14=\"\"),\"\",R14-I14)","v":""},{"$f":"IF(OR(J14=INTERNAL_SYS_MSGS!$B$24,J14=\"\",S14=INTERNAL_SYS_MSGS!$B$24,S14=\"\"),\"\",S14-J14)","v":""},null,{"$f":"IF($AG6=TRUE,\"\",IF(AND($AG$5=1,F14=\"\"),\"\",IF(AND($AG$5=2,O14=\"\"),\"\",IF($AG$5=1,F14,IF($AG$5=2,O14,\"\")))))","v":""},"","","","",null,"Remove Core 9 from Analysis:",false,{"$f":"B23","v":""},{"$f":"IF(ISBLANK(F23),\"N/A\",F23)","v":"N/A"},{"$f":"IF(ISBLANK(E23),\"N/A\",E23)","v":"N/A"},"N/A",{"$f":"IF(AJ14=\"N/A\",\"N/A\",IF(AJ14>75,\"Double Bag\",IF(AND(AJ14<=75,AJ14>=35),\"Large Bag\",\"Small Bag\")))","v":"N/A"},{"$f":"_xlfn.SWITCH(AL14,\"N/A\",\"N/A\",\"Small Bag\",-0.000566*AK14+0.8121,\"Large Bag\",-0.00166*AK14+0.8596,\"Double Bag\",-0.0022448*AK14+0.81518)","v":"N/A"},{"$f":"B23","v":""},{"$f":"IF(ISBLANK(O23),\"N/A\",O23)","v":"N/A"},{"$f":"IF(ISBLANK(N23),\"N/A\",N23)","v":"N/A"},"N/A","N/A",{"$f":"_xlfn.SWITCH(AR14,\"N/A\",\"N/A\",\"Small Bag\",-0.000566*AQ14+0.8121,\"Large Bag\",-0.00166*AQ14+0.8596,\"Double Bag\",-0.0022448*AQ14+0.81518)","v":"N/A"}]
[null,{"$f":"IF($G$8=\"Upper\",\"UL-2\",IF($G$8=\"Middle\",\"ML-2\",IF($G$8=\"Lower\",\"LL-2\",\"\")))","v":""},{"$f":"'QC-1 Density Worksheet'!$D$18","v":-50},{"$f":"'QC-1 Density Worksheet'!$E$18","v":""},null,null,null,null,{"$f":"IF(H15=\"\",\"\",IFERROR(F15/(H15+E15-G15-(E15/AM8)),\"\"))","v":""},{"$f":"IF(AND('Project Info & Instructions'!$D$35=INTERNAL_SYS_VAR!$B$8,'Project Info & Instructions'!$D$52=\"\"),INTERNAL_SYS_MSGS!$B$24,IF(AND('Project Info & Instructions'!$D$35=INTERNAL_SYS_VAR!$B$8,I15=\"\"),\"\",IF('Project Info & Instructions'!$D$35=INTERNAL_SYS_VAR!$B$8,100*(I15/'Project Info & Instructions'!$D$52),IF(OR('SMA Air Voids Pay Factor'!$E$17=\"\",I15=\"\"),\"\",100*(I15/'SMA Air Voids Pay Factor'!$E$17)))))","v":""},{"$f":"IF('Gauge-Core Variability'!J17=\"Suspect Core\",_xlfn.CONCAT('Gauge-Core Variability'!J17,\" (\",TEXT('Gauge-Core Variability'!H17, \"0.0\"),\"%)\"),\"\")","v":""},false,null,null,null,null,null,{"$f":"IF(Q15=\"\",\"\",IFERROR(ROUND(O15/(Q15+N15-P15-(N15/AS8)),3),\"\"))","v":""},{"$f":"IF(AND('Project Info & Instructions'!$D$35=INTERNAL_SYS_VAR!$B$8,'Project Info & Instructions'!$D$52=\"\"),INTERNAL_SYS_MSGS!$B$24,IF(AND('Project Info & Instructions'!$D$35=INTERNAL_SYS_VAR!$B$8,R15=\"\"),\"\",IF('Project Info & Instructions'!$D$35=INTERNAL_SYS_VAR!$B$8,100*(R15/'Project Info & Instructions'!$D$52),IF(OR('SMA Air Voids Pay Factor'!$E$17=\"\",R15=\"\"),\"\",100*(R15/'SMA Air Voids Pay Factor'!$E$17)))))","v":""},{"$f":"IF(OR(ISBLANK(F15),ISBLANK(O15)),\"\",O15-F15)","v":""},{"$f":"IF(OR(ISBLANK(G15),ISBLANK(P15)),\"\",P15-G15)","v":""},{"$f":"IF(OR(ISBLANK(H15),ISBLANK(Q15)),\"\",Q15-H15)","v":""},{"$f":"IF(OR(I15=\"\",R15=\"\"),\"\",R15-I15)","v":""},{"$f":"IF(OR(J15=INTERNAL_SYS_MSGS!$B$24,J15=\"\",S15=INTERNAL_SYS_MSGS!$B$24,S15=\"\"),\"\",S15-J15)","v":""},null,"","","","","",null,"Remove Core 10 from Analysis:",false,{"$f":"B24","v":""},{"$f":"IF(ISBLANK(F24),\"N/A\",F24)","v":"N/A"},{"$f":"IF(ISBLANK(E24),\"N/A\",E24)","v":"N/A"},"N/A","N/A",{"$f":"_xlfn.SWITCH(AL15,\"N/A\",\"N/A\",\"Small Bag\",-0.000566*AK15+0.8121,\"Large Bag\",-0.00166*AK15+0.8596,\"Double Bag\",-0.0022448*AK15+0.81518)","v":"N/A"},{"$f":"B24","v":""},{"$f":"IF(ISBLANK(O24),\"N/A\",O24)","v":"N/A"},{"$f":"IF(ISBLANK(N24),\"N/A\",N24)","v":"N/A"},"N/A","N/A",{"$f":"_xlfn.SWITCH(AR15,\"N/A\",\"N/A\",\"Small Bag\",-0.000566*AQ15+0.8121,\"Large Bag\",-0.00166*AQ15+0.8596,\"Double Bag\",-0.0022448*AQ15+0.81518)","v":"N/A"}]
[null,{"$f":"IF($G$8=\"Upper\",\"UL-3\",IF($G$8=\"Middle\",\"ML-3\",IF($G$8=\"Lower\",\"LL-3\",\"\")))","v":""},{"$f":"'QC-1 Density Worksheet'!$D$19","v":0},{"$f":"'QC-1 Density Worksheet'!$E$19","v":""},null,null,null,null,"",{"$f":"IF(AND('Project Info & Instructions'!$D$35=INTERNAL_SYS_VAR!$B$8,'Project Info & Instructions'!$D$52=\"\"),INTERNAL_SYS_MSGS!$B$24,IF(AND('Project Info & Instructions'!$D$35=INTERNAL_SYS_VAR!$B$8,I16=\"\"),\"\",IF('Project Info & Instructions'!$D$35=INTERNAL_SYS_VAR!$B$8,100*(I16/'Project Info & Instructions'!$D$52),IF(OR('SMA Air Voids Pay Factor'!$E$17=\"\",I16=\"\"),\"\",100*(I16/'SMA Air Voids Pay Factor'!$E$17)))))","v":""},{"$f":"IF('Gauge-Core Variability'!J18=\"Suspect Core\",_xlfn.CONCAT('Gauge-Core Variability'!J18,\" (\",TEXT('Gauge-Core Variability'!H18, \"0.0\"),\"%)\"),\"\")","v":""},false,null,null,null,null,null,{"$f":"IF(Q16=\"\",\"\",IFERROR(ROUND(O16/(Q16+N16-P16-(N16/AS9)),3),\"\"))","v":""},{"$f":"IF(AND('Project Info & Instructions'!$D$35=INTERNAL_SYS_VAR!$B$8,'Project Info & Instructions'!$D$52=\"\"),INTERNAL_SYS_MSGS!$B$24,IF(AND('Project Info & Instructions'!$D$35=INTERNAL_SYS_VAR!$B$8,R16=\"\"),\"\",IF('Project Info & Instructions'!$D$35=INTERNAL_SYS_VAR!$B$8,100*(R16/'Project Info & Instructions'!$D$52),IF(OR('SMA Air Voids Pay Factor'!$E$17=\"\",R16=\"\"),\"\",100*(R16/'SMA Air Voids Pay Factor'!$E$17)))))","v":""},"",{"$f":"IF(OR(ISBLANK(G16),ISBLANK(P16)),\"\",P16-G16)","v":""},"","",{"$f":"IF(OR(J16=INTERNAL_SYS_MSGS!$B$24,J16=\"\",S16=INTERNAL_SYS_MSGS!$B$24,S16=\"\"),\"\",S16-J16)","v":""},null,"","","","","",null,null,null,{"$f":"B25","v":""},{"$f":"IF(ISBLANK(F25),\"N/A\",F25)","v":"N/A"},{"$f":"IF(ISBLANK(E25),\"N/A\",E25)","v":"N/A"},"N/A","N/A",{"$f":"_xlfn.SWITCH(AL16,\"N/A\",\"N/A\",\"Small Bag\",-0.000566*AK16+0.8121,\"Large Bag\",-0.00166*AK16+0.8596,\"Double Bag\",-0.0022448*AK16+0.81518)","v":"N/A"},{"$f":"B25","v":""},{"$f":"IF(ISBLANK(O25),\"N/A\",O25)","v":"N/A"},{"$f":"IF(ISBLANK(N25),\"N/A\",N25)","v":"N/A"},{"$f":"IFERROR(AO16/AP16,\"N/A\")","v":"N/A"},"N/A",{"$f":"_xlfn.SWITCH(AR16,\"N/A\",\"N/A\",\"Small Bag\",-0.000566*AQ16+0.8121,\"Large Bag\",-0.00166*AQ16+0.8596,\"Double Bag\",-0.0022448*AQ16+0.81518)","v":"N/A"}]
[null,{"$f":"IF($G$8=\"Upper\",\"UL-4\",IF($G$8=\"Middle\",\"ML-4\",IF($G$8=\"Lower\",\"LL-4\",\"\")))","v":""},{"$f":"'QC-1 Density Worksheet'!$D$20","v":50},{"$f":"'QC-1 Density Worksheet'!$E$20","v":""},null,null,null,null,"",{"$f":"IF(AND('Project Info & Instructions'!$D$35=INTERNAL_SYS_VAR!$B$8,'Project Info & Instructions'!$D$52=\"\"),INTERNAL_SYS_MSGS!$B$24,IF(AND('Project Info & Instructions'!$D$35=INTERNAL_SYS_VAR!$B$8,I17=\"\"),\"\",IF('Project Info & Instructions'!$D$35=INTERNAL_SYS_VAR!$B$8,100*(I17/'Project Info & Instructions'!$D$52),IF(OR('SMA Air Voids Pay Factor'!$E$17=\"\",I17=\"\"),\"\",100*(I17/'SMA Air Voids Pay Factor'!$E$17)))))","v":""},{"$f":"IF('Gauge-Core Variability'!J19=\"Suspect Core\",_xlfn.CONCAT('Gauge-Core Variability'!J19,\" (\",TEXT('Gauge-Core Variability'!H19, \"0.0\"),\"%)\"),\"\")","v":""},false,null,null,null,null,null,{"$f":"IF(Q17=\"\",\"\",IFERROR(ROUND(O17/(Q17+N17-P17-(N17/AS10)),3),\"\"))","v":""},{"$f":"IF(AND('Project Info & Instructions'!$D$35=INTERNAL_SYS_VAR!$B$8,'Project Info & Instructions'!$D$52=\"\"),INTERNAL_SYS_MSGS!$B$24,IF(AND('Project Info & Instructions'!$D$35=INTERNAL_SYS_VAR!$B$8,R17=\"\"),\"\",IF('Project Info & Instructions'!$D$35=INTERNAL_SYS_VAR!$B$8,100*(R17/'Project Info & Instructions'!$D$52),IF(OR('SMA Air Voids Pay Factor'!$E$17=\"\",R17=\"\"),\"\",100*(R17/'SMA Air Voids Pay Factor'!$E$17)))))","v":""},"","","","",{"$f":"IF(OR(J17=INTERNAL_SYS_MSGS!$B$24,J17=\"\",S17=INTERNAL_SYS_MSGS!$B$24,S17=\"\"),\"\",S17-J17)","v":""},null,"","","","",""]
[null,{"$f":"IF($G$8=\"Upper\",\"UL-5\",IF($G$8=\"Middle\",\"ML-5\",IF($G$8=\"Lower\",\"LL-5\",\"\")))","v":""},{"$f":"'QC-1 Density Worksheet'!$D$21","v":100},{"$f":"'QC-1 Density Worksheet'!$E$21","v":""},null,null,null,null,"",{"$f":"IF(AND('Project Info & Instructions'!$D$35=INTERNAL_SYS_VAR!$B$8,'Project Info & Instructions'!$D$52=\"\"),INTERNAL_SYS_MSGS!$B$24,IF(AND('Project Info & Instructions'!$D$35=INTERNAL_SYS_VAR!$B$8,I18=\"\"),\"\",IF('Project Info & Instructions'!$D$35=INTERNAL_SYS_VAR!$B$8,100*(I18/'Project Info & Instructions'!$D$52),IF(OR('SMA Air Voids Pay Factor'!$E$17=\"\",I18=\"\"),\"\",100*(I18/'SMA Air Voids Pay Factor'!$E$17)))))","v":""},{"$f":"IF('Gauge-Core Variability'!J20=\"Suspect Core\",_xlfn.CONCAT('Gauge-Core Variability'!J20,\" (\",TEXT('Gauge-Core Variability'!H20, \"0.0\"),\"%)\"),\"\")","v":""},false,null,null,null,null,null,{"$f":"IF(Q18=\"\",\"\",IFERROR(ROUND(O18/(Q18+N18-P18-(N18/AS11)),3),\"\"))","v":""},{"$f":"IF(AND('Project Info & Instructions'!$D$35=INTERNAL_SYS_VAR!$B$8,'Project Info & Instructions'!$D$52=\"\"),INTERNAL_SYS_MSGS!$B$24,IF(AND('Project Info & Instructions'!$D$35=INTERNAL_SYS_VAR!$B$8,R18=\"\"),\"\",IF('Project Info & Instructions'!$D$35=INTERNAL_SYS_VAR!$B$8,100*(R18/'Project Info & Instructions'!$D$52),IF(OR('SMA Air Voids Pay Factor'!$E$17=\"\",R18=\"\"),\"\",100*(R18/'SMA Air Voids Pay Factor'!$E$17)))))","v":""},"","","","",{"$f":"IF(OR(J18=INTERNAL_SYS_MSGS!$B$24,J18=\"\",S18=INTERNAL_SYS_MSGS!$B$24,S18=\"\"),\"\",S18-J18)","v":""},null,"","","","",""]
[]
[null,null,"Random Station","Offset from CL","Bag Weight\n(g)","Dry Specimen W/O Bag\n(g) ","Sealed Sample Submerged\n(g)","Specimen after removal from bag\n(g)","QC Core Bulk Density","QC Density % of Gmm","Location Comparison Result","Remove Core Data From Analysis?",null,"Bag Weight\n(g)","Dry Specimen W/O Bag\n(g) ","Sealed Sample Submerged\n(g)","Specimen after removal from bag\n(g)","QV Core Bulk Density","QV Density % of Gmm","Dry Specimen W/O Bag (g) ","Sealed Sample Submerged (g)","Specimen after removal from bag (g)","Core Bulk Density","Density %",null,"Dry Specimen W/O Bag\n(g) ","Sealed Sample Submerged\n(g)","Specimen after removal from bag\n(g)","Core Density Used for Analysis","Core Density %"]
[null,{"$f":"IF($G$8=\"Upper\",\"UL-6\",IF($G$8=\"Middle\",\"ML-6\",IF($G$8=\"Lower\",\"LL-6\",\"\")))","v":""},{"$f":"'QC-1 Density Worksheet'!$D$22","v":-100},{"$f":"'QC-1 Density Worksheet'!$E$22","v":""},null,null,null,null,{"$f":"IF(H21=\"\",\"\",IFERROR(F21/(H21+E21-G21-(E21/AM12)),\"\"))","v":""},{"$f":"IF(AND('Project Info & Instructions'!$D$35=INTERNAL_SYS_VAR!$B$8,'Project Info & Instructions'!$D$52=\"\"),INTERNAL_SYS_MSGS!$B$24,IF(AND('Project Info & Instructions'!$D$35=INTERNAL_SYS_VAR!$B$8,I21=\"\"),\"\",IF('Project Info & Instructions'!$D$35=INTERNAL_SYS_VAR!$B$8,100*(I21/'Project Info & Instructions'!$D$52),IF(OR('SMA Air Voids Pay Factor'!$E$17=\"\",I21=\"\"),\"\",100*(I21/'SMA Air Voids Pay Factor'!$E$17)))))","v":""},{"$f":"IF('Gauge-Core Variability'!J21=\"Suspect Core\",_xlfn.CONCAT('Gauge-Core Variability'!J21,\" (\",TEXT('Gauge-Core Variability'!H21, \"0.0\"),\"%)\"),\"\")","v":""},false,null,null,null,null,null,{"$f":"IF(Q21=\"\",\"\",IFERROR(ROUND(O21/(Q21+N21-P21-(N21/AS12)),3),\"\"))","v":""},{"$f":"IF(AND('Project Info & Instructions'!$D$35=INTERNAL_SYS_VAR!$B$8,'Project Info & Instructions'!$D$52=\"\"),INTERNAL_SYS_MSGS!$B$24,IF(AND('Project Info & Instructions'!$D$35=INTERNAL_SYS_VAR!$B$8,R21=\"\"),\"\",IF('Project Info & Instructions'!$D$35=INTERNAL_SYS_VAR!$B$8,100*(R21/'Project Info & Instructions'!$D$52),IF(OR('SMA Air Voids Pay Factor'!$E$17=\"\",R21=\"\"),\"\",100*(R21/'SMA Air Voids Pay Factor'!$E$17)))))","v":""},{"$f":"IF(OR(ISBLANK(F21),ISBLANK(O21)),\"\",O21-F21)","v":""},{"$f":"IF(OR(ISBLANK(G21),ISBLANK(P21)),\"\",P21-G21)","v":""},{"$f":"IF(OR(ISBLANK(H21),ISBLANK(Q21)),\"\",Q21-H21)","v":""},{"$f":"IF(OR(I21=\"\",R21=\"\"),\"\",R21-I21)","v":""},{"$f":"IF(OR(J21=INTERNAL_SYS_MSGS!$B$24,J21=\"\",S21=INTERNAL_SYS_MSGS!$B$24,S21=\"\"),\"\",S21-J21)","v":""},null,{"$f":"IF($AG11=TRUE,\"\",IF(AND($AG$5=1,F21=\"\"),\"\",IF(AND($AG$5=2,O21=\"\"),\"\",IF($AG$5=1,F21,IF($AG$5=2,O21,\"\")))))","v":""},"","","",""]
[null,{"$f":"IF($G$8=\"Upper\",\"UL-7\",IF($G$8=\"Middle\",\"ML-7\",IF($G$8=\"Lower\",\"LL-7\",\"\")))","v":""},{"$f":"'QC-1 Density Worksheet'!$D$23","v":-50},{"$f":"'QC-1 Density Worksheet'!$E$23","v":""},null,null,null,null,{"$f":"IF(H22=\"\",\"\",IFERROR(F22/(H22+E22-G22-(E22/AM13)),\"\"))","v":""},{"$f":"IF(AND('Project Info & Instructions'!$D$35=INTERNAL_SYS_VAR!$B$8,'Project Info & Instructions'!$D$52=\"\"),INTERNAL_SYS_MSGS!$B$24,IF(AND('Project Info & Instructions'!$D$35=INTERNAL_SYS_VAR!$B$8,I22=\"\"),\"\",IF('Project Info & Instructions'!$D$35=INTERNAL_SYS_VAR!$B$8,100*(I22/'Project Info & Instructions'!$D$52),IF(OR('SMA Air Voids Pay Factor'!$E$17=\"\",I22=\"\"),\"\",100*(I22/'SMA Air Voids Pay Factor'!$E$17)))))","v":""},{"$f":"IF('Gauge-Core Variability'!J22=\"Suspect Core\",_xlfn.CONCAT('Gauge-Core Variability'!J22,\" (\",TEXT('Gauge-Core Variability'!H22, \"0.0\"),\"%)\"),\"\")","v":""},false,null,null,null,null,null,{"$f":"IF(Q22=\"\",\"\",IFERROR(ROUND(O22/(Q22+N22-P22-(N22/AS13)),3),\"\"))","v":""},{"$f":"IF(AND('Project Info & Instructions'!$D$35=INTERNAL_SYS_VAR!$B$8,'Project Info & Instructions'!$D$52=\"\"),INTERNAL_SYS_MSGS!$B$24,IF(AND('Project Info & Instructions'!$D$35=INTERNAL_SYS_VAR!$B$8,R22=\"\"),\"\",IF('Project Info & Instructions'!$D$35=INTERNAL_SYS_VAR!$B$8,100*(R22/'Project Info & Instructions'!$D$52),IF(OR('SMA Air Voids Pay Factor'!$E$17=\"\",R22=\"\"),\"\",100*(R22/'SMA Air Voids Pay Factor'!$E$17)))))","v":""},"","","","",{"$f":"IF(OR(J22=INTERNAL_SYS_MSGS!$B$24,J22=\"\",S22=INTERNAL_SYS_MSGS!$B$24,S22=\"\"),\"\",S22-J22)","v":""},null,"","","","",""]
[null,{"$f":"IF($G$8=\"Upper\",\"UL-8\",IF($G$8=\"Middle\",\"ML-8\",IF($G$8=\"Lower\",\"LL-8\",\"\")))","v":""},{"$f":"'QC-1 Density Worksheet'!$D$24","v":0},{"$f":"'QC-1 Density Worksheet'!$E$24","v":""},null,null,null,null,"",{"$f":"IF(AND('Project Info & Instructions'!$D$35=INTERNAL_SYS_VAR!$B$8,'Project Info & Instructions'!$D$52=\"\"),INTERNAL_SYS_MSGS!$B$24,IF(AND('Project Info & Instructions'!$D$35=INTERNAL_SYS_VAR!$B$8,I23=\"\"),\"\",IF('Project Info & Instructions'!$D$35=INTERNAL_SYS_VAR!$B$8,100*(I23/'Project Info & Instructions'!$D$52),IF(OR('SMA Air Voids Pay Factor'!$E$17=\"\",I23=\"\"),\"\",100*(I23/'SMA Air Voids Pay Factor'!$E$17)))))","v":""},{"$f":"IF('Gauge-Core Variability'!J23=\"Suspect Core\",_xlfn.CONCAT('Gauge-Core Variability'!J23,\" (\",TEXT('Gauge-Core Variability'!H23, \"0.0\"),\"%)\"),\"\")","v":""},false,null,null,null,null,null,{"$f":"IF(Q23=\"\",\"\",IFERROR(ROUND(O23/(Q23+N23-P23-(N23/AS14)),3),\"\"))","v":""},{"$f":"IF(AND('Project Info & Instructions'!$D$35=INTERNAL_SYS_VAR!$B$8,'Project Info & Instructions'!$D$52=\"\"),INTERNAL_SYS_MSGS!$B$24,IF(AND('Project Info & Instructions'!$D$35=INTERNAL_SYS_VAR!$B$8,R23=\"\"),\"\",IF('Project Info & Instructions'!$D$35=INTERNAL_SYS_VAR!$B$8,100*(R23/'Project Info & Instructions'!$D$52),IF(OR('SMA Air Voids Pay Factor'!$E$17=\"\",R23=\"\"),\"\",100*(R23/'SMA Air Voids Pay Factor'!$E$17)))))","v":""},"","","","",{"$f":"IF(OR(J23=INTERNAL_SYS_MSGS!$B$24,J23=\"\",S23=INTERNAL_SYS_MSGS!$B$24,S23=\"\"),\"\",S23-J23)","v":""},null,"","","","",""]
[null,{"$f":"IF($G$8=\"Upper\",\"UL-9\",IF($G$8=\"Middle\",\"ML-9\",IF($G$8=\"Lower\",\"LL-9\",\"\")))","v":""},{"$f":"'QC-1 Density Worksheet'!$D$25","v":50},{"$f":"'QC-1 Density Worksheet'!$E$25","v":""},null,null,null,null,"",{"$f":"IF(AND('Project Info & Instructions'!$D$35=INTERNAL_SYS_VAR!$B$8,'Project Info & Instructions'!$D$52=\"\"),INTERNAL_SYS_MSGS!$B$24,IF(AND('Project Info & Instructions'!$D$35=INTERNAL_SYS_VAR!$B$8,I24=\"\"),\"\",IF('Project Info & Instructions'!$D$35=INTERNAL_SYS_VAR!$B$8,100*(I24/'Project Info & Instructions'!$D$52),IF(OR('SMA Air Voids Pay Factor'!$E$17=\"\",I24=\"\"),\"\",100*(I24/'SMA Air Voids Pay Factor'!$E$17)))))","v":""},{"$f":"IF('Gauge-Core Variability'!J24=\"Suspect Core\",_xlfn.CONCAT('Gauge-Core Variability'!J24,\" (\",TEXT('Gauge-Core Variability'!H24, \"0.0\"),\"%)\"),\"\")","v":""},false,null,null,null,null,null,{"$f":"IF(Q24=\"\",\"\",IFERROR(ROUND(O24/(Q24+N24-P24-(N24/AS15)),3),\"\"))","v":""},{"$f":"IF(AND('Project Info & Instructions'!$D$35=INTERNAL_SYS_VAR!$B$8,'Project Info & Instructions'!$D$52=\"\"),INTERNAL_SYS_MSGS!$B$24,IF(AND('Project Info & Instructions'!$D$35=INTERNAL_SYS_VAR!$B$8,R24=\"\"),\"\",IF('Project Info & Instructions'!$D$35=INTERNAL_SYS_VAR!$B$8,100*(R24/'Project Info & Instructions'!$D$52),IF(OR('SMA Air Voids Pay Factor'!$E$17=\"\",R24=\"\"),\"\",100*(R24/'SMA Air Voids Pay Factor'!$E$17)))))","v":""},"","","","",{"$f":"IF(OR(J24=INTERNAL_SYS_MSGS!$B$24,J24=\"\",S24=INTERNAL_SYS_MSGS!$B$24,S24=\"\"),\"\",S24-J24)","v":""},null,"","","","",""]
[null,{"$f":"IF($G$8=\"Upper\",\"UL-10\",IF($G$8=\"Middle\",\"ML-10\",IF($G$8=\"Lower\",\"LL-10\",\"\")))","v":""},{"$f":"'QC-1 Density Worksheet'!$D$26","v":100},{"$f":"'QC-1 Density Worksheet'!$E$26","v":""},null,null,null,null,"",{"$f":"IF(AND('Project Info & Instructions'!$D$35=INTERNAL_SYS_VAR!$B$8,'Project Info & Instructions'!$D$52=\"\"),INTERNAL_SYS_MSGS!$B$24,IF(AND('Project Info & Instructions'!$D$35=INTERNAL_SYS_VAR!$B$8,I25=\"\"),\"\",IF('Project Info & Instructions'!$D$35=INTERNAL_SYS_VAR!$B$8,100*(I25/'Project Info & Instructions'!$D$52),IF(OR('SMA Air Voids Pay Factor'!$E$17=\"\",I25=\"\"),\"\",100*(I25/'SMA Air Voids Pay Factor'!$E$17)))))","v":""},{"$f":"IF('Gauge-Core Variability'!J25=\"Suspect Core\",_xlfn.CONCAT('Gauge-Core Variability'!J25,\" (\",TEXT('Gauge-Core Variability'!H25, \"0.0\"),\"%)\"),\"\")","v":""},false,null,null,null,null,null,{"$f":"IF(Q25=\"\",\"\",IFERROR(ROUND(O25/(Q25+N25-P25-(N25/AS16)),3),\"\"))","v":""},{"$f":"IF(AND('Project Info & Instructions'!$D$35=INTERNAL_SYS_VAR!$B$8,'Project Info & Instructions'!$D$52=\"\"),INTERNAL_SYS_MSGS!$B$24,IF(AND('Project Info & Instructions'!$D$35=INTERNAL_SYS_VAR!$B$8,R25=\"\"),\"\",IF('Project Info & Instructions'!$D$35=INTERNAL_SYS_VAR!$B$8,100*(R25/'Project Info & Instructions'!$D$52),IF(OR('SMA Air Voids Pay Factor'!$E$17=\"\",R25=\"\"),\"\",100*(R25/'SMA Air Voids Pay Factor'!$E$17)))))","v":""},"","","","",{"$f":"IF(OR(J25=INTERNAL_SYS_MSGS!$B$24,J25=\"\",S25=INTERNAL_SYS_MSGS!$B$24,S25=\"\"),\"\",S25-J25)","v":""},null,"","","","",""]
[null,null,null,null,null,null,null,"Average:",{"$f":"IFERROR(_xlfn.LET(\n_xlpm.combinedDataRange,_xlfn.VSTACK(I14:I18,I21:I25),\n_xlpm.combinedRemovedRange,_xlfn.VSTACK(L14:L18,L21:L25),\nAVERAGE(_xlfn._xlws.FILTER(_xlpm.combinedDataRange,_xlpm.combinedRemovedRange = FALSE))\n),\"\")","v":""},{"$f":"IFERROR(_xlfn.LET(\n_xlpm.combinedDataRange,_xlfn.VSTACK(J14:J18,J21:J25),\n_xlpm.combinedRemovedRange,_xlfn.VSTACK(L14:L18,L21:L25),\nAVERAGE(_xlfn._xlws.FILTER(_xlpm.combinedDataRange,_xlpm.combinedRemovedRange = FALSE))\n),\"\")","v":""},null,null,null,null,null,null,"Average:",{"$f":"IFERROR(_xlfn.LET(\n_xlpm.combinedDataRange,_xlfn.VSTACK(R14:R18,R21:R25),\n_xlpm.combinedRemovedRange,_xlfn.VSTACK(L14:L18,L21:L25),\nAVERAGE(_xlfn._xlws.FILTER(_xlpm.combinedDataRange,_xlpm.combinedRemovedRange = FALSE))\n),\"\")","v":""},{"$f":"IFERROR(_xlfn.LET(\n_xlpm.combinedDataRange,_xlfn.VSTACK(S14:S18,S21:S25),\n_xlpm.combinedRemovedRange,_xlfn.VSTACK(L14:L18,L21:L25),\nAVERAGE(_xlfn._xlws.FILTER(_xlpm.combinedDataRange,_xlpm.combinedRemovedRange = FALSE))\n),\"\")","v":""},null,null,null,"Difference in Average % Density:",{"$f":"IFERROR(_xlfn.LET(\n_xlpm.combinedDataRange,_xlfn.VSTACK(X14:X18,X21:X25),\n_xlpm.combinedRemovedRange,_xlfn.VSTACK(L14:L18,L21:L25),\nAVERAGE(_xlfn._xlws.FILTER(_xlpm.combinedDataRange,_xlpm.combinedRemovedRange = FALSE))\n),\"\")","v":""}]
[null,"Note:    ",null,null,null,null,null,null,null,null,null,null,null,"If the difference between the QC and QV average densities is greater than 0.5%, consider using QV core densities in place of QC core densities."]
[null,"The Location Comparison Result references values on the Gauge-Core Variability Tab comparing the core density data with each adjusted nuclear density gauge reading at each test location. \"Suspect Core\" is displayed under Location Comparison Result if the Location Comparison average is ≥ 1.0 or ≤ -1.0 this indicates a core that may be damaged. Contact the Regional TSS Representative when a \"Suspect Core\" is identified here or when core density values are considered questionable. ONLY THE REGIONAL TSS REPRESENTATIVE CAN REMOVE A CORE FROM ANALYSIS."]
[]
[]
[]
[]
[null,"Comments:"]

{"sheet":"HMA AC % Data","index":5,"n_rows":25,"n_cols":28,"rows_kept":25,"cut":false,"hidden":true,"merged":[[6,26,6,27],[7,26,9,27],[4,20,4,21],[4,22,4,23],[4,24,4,25],[4,26,4,27],[7,6,7,7],[24,1,27,6],[5,2,5,3],[5,6,5,7],[0,1,3,2],[8,6,8,7],[20,1,22,6],[14,1,14,6],[6,2,6,3],[6,6,6,7],[7,2,7,3]]}
[null,{"$error":"#VALUE!"}]
[null,null,null,"HMA Asphalt Content Testing"]
[null,null,null,"Wisconsin Department of Transportation"]
[]
[null,null,null,null,null,null,null,null,null,null,null,null,null,null,null,null,null,null,null,null,"Worksheet Variables",null,"Acceptance Criteria",null,"Referee Testing Criteria",null,"AC % Pass / Fail"]
[null,"Date:",{"$f":"IF('Project Info & Instructions'!$D$13=\"\",\"\",'Project Info & Instructions'!$D$13)","v":""},null,null,"Test Strip #:",{"$f":"IF('Project Info & Instructions'!$D$14=\"\",\"\",'Project Info & Instructions'!$D$14)","v":""},null,null,"Test strip type",null,null,null,null,null,null,null,null,null,null,"QC Test Count:",{"$f":"COUNT(D12:D14)","v":0},"QC Split Sample 1 Unacceptable?",{"$f":"IF(OR(ISBLANK(D12),ISBLANK('Project Info & Instructions'!$H$26)),\"N/A\",IF(D12<INTERNAL_SYS_VAR!$AP$8,TRUE,FALSE))","v":"N/A"},"AC Requires Referee Testing?",{"$f":"IF(OR($V$6<1,$V$7<1),\"N/A\",IF(OR(X6=TRUE,X7=TRUE,X8=TRUE,X9=TRUE,X10=TRUE,X11=TRUE),TRUE,FALSE))","v":"N/A"},"Passing AC %?",{"$f":"IF($V$9<6,\"N/A\",IF($Z$9=FALSE,TRUE,IF(OR(Z10=TRUE,Z11=TRUE,Z12=TRUE),FALSE,TRUE)))","v":"N/A"}]
[null,"Project ID:",{"$f":"IF('Project Info & Instructions'!$D$8=\"\",\"\",'Project Info & Instructions'!$D$8)","v":""},null,null,"Route/Road:",{"$f":"IF('Project Info & Instructions'!$D$10=\"\",\"\",'Project Info & Instructions'!$D$10)","v":""},null,null,null,null,null,null,null,null,null,null,null,null,null,"QV Test Count:",{"$f":"COUNT(E12:E14)","v":0},"QC Split Sample 2 Unacceptable?",{"$f":"IF(OR(ISBLANK(D13),ISBLANK('Project Info & Instructions'!$H$26)),\"N/A\",IF(D13<INTERNAL_SYS_VAR!$AP$8,TRUE,FALSE))","v":"N/A"},"Split Sample Comparison Requires Dispute Testing?",{"$f":"'HMA Split Sample Comparison'!$Z$6","v":"N/A"},"Conclusion"]
[null,"Mix Type:",{"$f":"IF('Project Info & Instructions'!$D$31=\"\",\"\",'Project Info & Instructions'!$D$31)","v":"--"},null,null," Layer:",{"$f":"IF('Project Info & Instructions'!$H$7=\"\",\"\",'Project Info & Instructions'!$H$7)","v":""},null,null,null,null,null,null,null,null,null,null,null,null,null,"BTS Test Count:",{"$f":"COUNT(G12:G14)","v":0},"QC Split Sample 3 Unacceptable?",{"$f":"IF(OR(ISBLANK(D14),ISBLANK('Project Info & Instructions'!$H$26)),\"N/A\",IF(D14<INTERNAL_SYS_VAR!$AP$8,TRUE,FALSE))","v":"N/A"},"VMA Requires Dispute Testing?",{"$f":"'HMA Mix Acceptance'!$O$7","v":false},{"$f":"IF($V$9<6,\"\",IF(AND($Z$9=TRUE,$V$8<3),INTERNAL_SYS_MSGS!$B$35,IF(AND($AB$6=TRUE,$X$12=FALSE),INTERNAL_SYS_MSGS!$B$32,IF(AND($AB$6=TRUE,$X$12=TRUE),INTERNAL_SYS_MSGS!$B$34,INTERNAL_SYS_MSGS!$B$33))))","v":""}]
[null,null,null,null,null,"JMF AC%:",{"$f":"IF('Project Info & Instructions'!$H$26=\"\",INTERNAL_SYS_MSGS!$B$30,'Project Info & Instructions'!$H$26)","v":"Enter JMF Binder AC%."},null,null,null,null,null,null,null,null,null,null,null,null,null,"Total QC and QV Test Count:",{"$f":"COUNT(D12:E14)","v":0},"QV Split Sample 1 Unacceptable?",{"$f":"IF(OR(ISBLANK(E12),ISBLANK('Project Info & Instructions'!$H$26)),\"N/A\",IF(E12<INTERNAL_SYS_VAR!$AP$8,TRUE,FALSE))","v":"N/A"},"Referee Testing Required?",{"$f":"IF(OR(Z6=TRUE,Z7=TRUE,Z8=TRUE),TRUE,FALSE)","v":false}]
[null,"Measured Asphalt Content (%)",null,null,null,null,null,null,null,null,null,null,null,null,null,null,null,null,null,null,null,null,"QV Split Sample 2 Unacceptable?",{"$f":"IF(OR(ISBLANK(E13),ISBLANK('Project Info & Instructions'!$H$26)),\"N/A\",IF(E13<INTERNAL_SYS_VAR!$AP$8,TRUE,FALSE))","v":"N/A"},"BTS Split Sample 1 Unacceptable?",{"$f":"IF(OR(ISBLANK(G12),ISBLANK('Project Info & Instructions'!$H$26)),\"N/A\",IF(G12<INTERNAL_SYS_VAR!$AP$8,TRUE,FALSE))","v":"N/A"}]
[null,"Split Sample Number","Tonnage","QC AC%","QV AC%","Difference QC & QV","BTS Referee AC%",null,null,null,null,null,null,null,null,null,null,null,null,null,null,null,"QV Split Sample 3 Unacceptable?",{"$f":"IF(OR(ISBLANK(E14),ISBLANK('Project Info & Instructions'!$H$26)),\"N/A\",IF(E14<INTERNAL_SYS_VAR!$AP$8,TRUE,FALSE))","v":"N/A"},"BTS Split Sample 2 Unacceptable?",{"$f":"IF(OR(ISBLANK(G13),ISBLANK('Project Info & Instructions'!$H$26)),\"N/A\",IF(G13<INTERNAL_SYS_VAR!$AP$8,TRUE,FALSE))","v":"N/A"}]
[null,1,{"$f":"IF('Project Info & Instructions'!$D$39=\"\",\"\",'Project Info & Instructions'!$D$39)","v":""},null,null,{"$f":"IF(OR(ISBLANK(D12),ISBLANK(E12)),\"\",ABS(D12-E12))","v":""},null,null,null,null,null,null,null,null,null,null,null,null,null,null,null,null,"Any Asphalt Contents Differences greater than 0.2?",{"$f":"IF(OR($V$6<1,$V$7<1),\"N/A\",IF(OR($F$12>0.2,$F$13>0.2,$F$14>0.2),TRUE,FALSE))","v":"N/A"},"BTS Split Sample 3 Unacceptable?",{"$f":"IF(OR(ISBLANK(G14),ISBLANK('Project Info & Instructions'!$H$26)),\"N/A\",IF(G14<INTERNAL_SYS_VAR!$AP$8,TRUE,FALSE))","v":"N/A"}]
[null,2,{"$f":"IF('Project Info & Instructions'!$D$40=\"\",\"\",'Project Info & Instructions'!$D$40)","v":""},null,null,{"$f":"IF(OR(ISBLANK(D13),ISBLANK(E13)),\"\",ABS(D13-E13))","v":""}]
[null,3,{"$f":"IF('Project Info & Instructions'!$D$41=\"\",\"\",'Project Info & Instructions'!$D$41)","v":""},null,null,""]
[null,"Note: The AC% values below are calculated using the JMF Gse, JMF AC Specific Gravity, and each Split Sample's Gmm."]
[null,"Calculated Asphalt Content (%)"]
[null,"Split Sample Number","Tonnage","QC AC%","QV AC%","Difference QC & QV","BTS Referee AC%"]
[null,1,{"$f":"IF('Project Info & Instructions'!$D$39=\"\",\"\",'Project Info & Instructions'!$D$39)","v":""},{"$f":"IF(OR('Project Info & Instructions'!$D$35=INTERNAL_SYS_VAR!$B$8,ISBLANK('HMA Split Sample Comparison'!D12),ISBLANK('Project Info & Instructions'!$H$29),ISBLANK('Project Info & Instructions'!$H$27)),\"\",ROUND(100*('Project Info & Instructions'!$H$27/'HMA Split Sample Comparison'!D12)*(('Project Info & Instructions'!$H$29-'HMA Split Sample Comparison'!D12)/('Project Info & Instructions'!$H$29-'Project Info & Instructions'!$H$27)),1))","v":""},{"$f":"IF(OR('Project Info & Instructions'!$D$35=INTERNAL_SYS_VAR!$B$8,ISBLANK('HMA Split Sample Comparison'!E12),ISBLANK('Project Info & Instructions'!$H$29),ISBLANK('Project Info & Instructions'!$H$27)),\"\",ROUND(100*('Project Info & Instructions'!$H$27/'HMA Split Sample Comparison'!E12)*(('Project Info & Instructions'!$H$29-'HMA Split Sample Comparison'!E12)/('Project Info & Instructions'!$H$29-'Project Info & Instructions'!$H$27)),1))","v":""},{"$f":"IF(OR(D18=\"\",E18=\"\"),\"\",ABS(D18-E18))","v":""},{"$f":"IF(OR(ISBLANK('HMA Split Sample Comparison'!K12),ISBLANK('Project Info & Instructions'!$H$29),ISBLANK('Project Info & Instructions'!$H$27)),\"\",ROUND(100*('Project Info & Instructions'!$H$27/'HMA Split Sample Comparison'!K12)*(('Project Info & Instructions'!$H$29-'HMA Split Sample Comparison'!K12)/('Project Info & Instructions'!$H$29-'Project Info & Instructions'!$H$27)),1))","v":""}]
[null,2,{"$f":"IF('Project Info & Instructions'!$D$40=\"\",\"\",'Project Info & Instructions'!$D$40)","v":""},{"$f":"IF(OR('Project Info & Instructions'!$D$35=INTERNAL_SYS_VAR!$B$8,ISBLANK('HMA Split Sample Comparison'!D13),ISBLANK('Project Info & Instructions'!$H$29),ISBLANK('Project Info & Instructions'!$H$27)),\"\",ROUND(100*('Project Info & Instructions'!$H$27/'HMA Split Sample Comparison'!D13)*(('Project Info & Instructions'!$H$29-'HMA Split Sample Comparison'!D13)/('Project Info & Instructions'!$H$29-'Project Info & Instructions'!$H$27)),1))","v":""},{"$f":"IF(OR('Project Info & Instructions'!$D$35=INTERNAL_SYS_VAR!$B$8,ISBLANK('HMA Split Sample Comparison'!E13),ISBLANK('Project Info & Instructions'!$H$29),ISBLANK('Project Info & Instructions'!$H$27)),\"\",ROUND(100*('Project Info & Instructions'!$H$27/'HMA Split Sample Comparison'!E13)*(('Project Info & Instructions'!$H$29-'HMA Split Sample Comparison'!E13)/('Project Info & Instructions'!$H$29-'Project Info & Instructions'!$H$27)),1))","v":""},{"$f":"IF(OR(D19=\"\",E19=\"\"),\"\",ABS(D19-E19))","v":""},{"$f":"IF(OR(ISBLANK('HMA Split Sample Comparison'!K13),ISBLANK('Project Info & Instructions'!$H$29),ISBLANK('Project Info & Instructions'!$H$27)),\"\",ROUND(100*('Project Info & Instructions'!$H$27/'HMA Split Sample Comparison'!K13)*(('Project Info & Instructions'!$H$29-'HMA Split Sample Comparison'!K13)/('Project Info & Instructions'!$H$29-'Project Info & Instructions'!$H$27)),1))","v":""}]
[null,3,{"$f":"IF('Project Info & Instructions'!$D$41=\"\",\"\",'Project Info & Instructions'!$D$41)","v":""},{"$f":"IF(OR('Project Info & Instructions'!$D$35=INTERNAL_SYS_VAR!$B$8,ISBLANK('HMA Split Sample Comparison'!D14),ISBLANK('Project Info & Instructions'!$H$29),ISBLANK('Project Info & Instructions'!$H$27)),\"\",ROUND(100*('Project Info & Instructions'!$H$27/'HMA Split Sample Comparison'!D14)*(('Project Info & Instructions'!$H$29-'HMA Split Sample Comparison'!D14)/('Project Info & Instructions'!$H$29-'Project Info & Instructions'!$H$27)),1))","v":""},{"$f":"IF(OR('Project Info & Instructions'!$D$35=INTERNAL_SYS_VAR!$B$8,ISBLANK('HMA Split Sample Comparison'!E14),ISBLANK('Project Info & Instructions'!$H$29),ISBLANK('Project Info & Instructions'!$H$27)),\"\",ROUND(100*('Project Info & Instructions'!$H$27/'HMA Split Sample Comparison'!E14)*(('Project Info & Instructions'!$H$29-'HMA Split Sample Comparison'!E14)/('Project Info & Instructions'!$H$29-'Project Info & Instructions'!$H$27)),1))","v":""},{"$f":"IF(OR(D20=\"\",E20=\"\"),\"\",ABS(D20-E20))","v":""},{"$f":"IF(OR(ISBLANK('HMA Split Sample Comparison'!K14),ISBLANK('Project Info & Instructions'!$H$29),ISBLANK('Project Info & Instructions'!$H$27)),\"\",ROUND(100*('Project Info & Instructions'!$H$27/'HMA Split Sample Comparison'!K14)*(('Project Info & Instructions'!$H$29-'HMA Split Sample Comparison'!K14)/('Project Info & Instructions'!$H$29-'Project Info & Instructions'!$H$27)),1))","v":""}]
[null,{"$f":"IF('Project Info & Instructions'!$D$35=INTERNAL_SYS_VAR!$B$8,\"\",IF(OR(ISBLANK('Project Info & Instructions'!$H$29),ISBLANK('Project Info & Instructions'!$H$27)),INTERNAL_SYS_MSGS!$B$29,IF($X$12=TRUE,INTERNAL_SYS_MSGS!$B$31,\"\")))","v":"Enter the JMF Gse and AC Sp. Gr. on Project Info & Instructions Tab."}]
[]
[]
[null,"Note:    "]
[null,"Enter JMF AC %, JMF Gse, and JMF AC Specific Gravity on the Project Info & Instructions tab. No pay adjustment will be assessed based on AC % test results. However, results of AC % testing will be referenced when determining test strip approval."]

{"sheet":"SMA AC % Data","index":6,"n_rows":23,"n_cols":28,"rows_kept":23,"cut":false,"hidden":true,"merged":[[22,1,25,6],[0,1,3,2],[8,6,8,7],[13,1,13,6],[18,1,20,6],[5,2,5,3],[5,6,5,7],[6,2,6,3],[6,6,6,7],[7,2,7,3],[7,6,7,7],[7,26,9,27],[4,20,4,21],[4,22,4,23],[4,24,4,25],[4,26,4,27],[6,26,6,27]]}
[null,{"$error":"#VALUE!"}]
[null,null,null,"SMA Asphalt Content Testing"]
[null,null,null,"Wisconsin Department of Transportation"]
[]
[null,null,null,null,null,null,null,null,null,null,null,null,null,null,null,null,null,null,null,null,"Worksheet Variables",null,"Acceptance Criteria",null,"Referee Testing Criteria",null,"AC % Pass / Fail"]
[null,"Date:",{"$f":"IF('Project Info & Instructions'!$D$13=\"\",\"\",'Project Info & Instructions'!$D$13)","v":""},null,null,"Test Strip #:",{"$f":"IF('Project Info & Instructions'!$D$14=\"\",\"\",'Project Info & Instructions'!$D$14)","v":""},null,null,null,null,null,null,null,null,null,null,null,null,null,"QC Test Count:",{"$f":"COUNT(D12:D13)","v":0},"QC Split Sample 1 Unacceptable?",{"$f":"IF(OR(ISBLANK(D12),ISBLANK('Project Info & Instructions'!$H$26)),\"N/A\",IF(D12<INTERNAL_SYS_VAR!$AP$8,TRUE,FALSE))","v":"N/A"},"AC Requires Referee Testing?",{"$f":"IF(OR($V$6<1,$V$7<1),\"N/A\",IF(OR(X6=TRUE,X7=TRUE,X8=TRUE,X9=TRUE),TRUE,FALSE))","v":"N/A"},"Passing AC %?",{"$f":"IF($V$9<4,\"N/A\",IF($Z$9=FALSE,TRUE,IF(OR(Z10=TRUE,Z11=TRUE),FALSE,TRUE)))","v":"N/A"}]
[null,"Project ID:",{"$f":"IF('Project Info & Instructions'!$D$8=\"\",\"\",'Project Info & Instructions'!$D$8)","v":""},null,null,"Route/Road:",{"$f":"IF('Project Info & Instructions'!$D$10=\"\",\"\",'Project Info & Instructions'!$D$10)","v":""},null,null,null,null,null,null,null,null,null,null,null,null,null,"QV Test Count:",{"$f":"COUNT(E12:E13)","v":0},"QC Split Sample 2 Unacceptable?",{"$f":"IF(OR(ISBLANK(D13),ISBLANK('Project Info & Instructions'!$H$26)),\"N/A\",IF(D13<INTERNAL_SYS_VAR!$AP$8,TRUE,FALSE))","v":"N/A"},"Split Sample Comparison Requires Dispute Testing?",{"$f":"'SMA Split Sample Comparison'!$R$6","v":"N/A"},"Conclusion"]
[null,"Mix Type:",{"$f":"IF('Project Info & Instructions'!$D$31=\"\",\"\",'Project Info & Instructions'!$D$31)","v":"--"},null,null," Layer:",{"$f":"IF('Project Info & Instructions'!$H$7=\"\",\"\",'Project Info & Instructions'!$H$7)","v":""},null,null,null,null,null,null,null,null,null,null,null,null,null,"BTS Test Count:",{"$f":"COUNT(G12:G13)","v":0},"QV Split Sample 1 Unacceptable?",{"$f":"IF(OR(ISBLANK(E12),ISBLANK('Project Info & Instructions'!$H$26)),\"N/A\",IF(E12<INTERNAL_SYS_VAR!$AP$8,TRUE,FALSE))","v":"N/A"},"VMA Requires Dispute Testing?",{"$f":"'SMA Mix Acceptance'!$M$7","v":false},{"$f":"IF($V$9<4,\"\",IF(AND($Z$9=TRUE,$V$8<2),INTERNAL_SYS_MSGS!$B$35,IF(AND($AB$6=TRUE,$X$10=FALSE),INTERNAL_SYS_MSGS!$B$32,IF(AND($AB$6=TRUE,$X$10=TRUE),INTERNAL_SYS_MSGS!$B$34,INTERNAL_SYS_MSGS!$B$33))))","v":""}]
[null,null,null,null,null,"JMF AC%:",{"$f":"IF('Project Info & Instructions'!$H$26=\"\",INTERNAL_SYS_MSGS!$B$30,'Project Info & Instructions'!$H$26)","v":"Enter JMF Binder AC%."},null,null,null,null,null,null,null,null,null,null,null,null,null,"Total QC and QV Test Count:",{"$f":"COUNT(D12:E13)","v":0},"QV Split Sample 2 Unacceptable?",{"$f":"IF(OR(ISBLANK(E13),ISBLANK('Project Info & Instructions'!$H$26)),\"N/A\",IF(E13<INTERNAL_SYS_VAR!$AP$8,TRUE,FALSE))","v":"N/A"},"Referee Testing Required?",{"$f":"IF(OR(Z6=TRUE,Z7=TRUE,Z8=TRUE),TRUE,FALSE)","v":false}]
[null,"Measured Asphalt Content (%)",null,null,null,null,null,null,null,null,null,null,null,null,null,null,null,null,null,null,null,null,"Any Asphalt Contents Differences greater than 0.2?",{"$f":"IF(OR($V$6<1,$V$7<1),\"N/A\",IF(OR($F$12>0.2,$F$13>0.2),TRUE,FALSE))","v":"N/A"},"BTS Split Sample 1 Unacceptable?",{"$f":"IF(OR(ISBLANK(G12),ISBLANK('Project Info & Instructions'!$H$26)),\"N/A\",IF(G12<INTERNAL_SYS_VAR!$AP$8,TRUE,FALSE))","v":"N/A"}]
[null,"Split Sample Number","Tonnage","QC AC%","QV AC%","Difference QC & QV","BTS Referee AC%",null,null,null,null,null,null,null,null,null,null,null,null,null,null,null,null,null,"BTS Split Sample 2 Unacceptable?",{"$f":"IF(OR(ISBLANK(G13),ISBLANK('Project Info & Instructions'!$H$26)),\"N/A\",IF(G13<INTERNAL_SYS_VAR!$AP$8,TRUE,FALSE))","v":"N/A"}]
[null,1,{"$f":"IF('Project Info & Instructions'!$D$39=\"\",\"\",'Project Info & Instructions'!$D$39)","v":""},null,null,{"$f":"IF(OR(D12=\"\",E12=\"\"),\"\",ABS(D12-E12))","v":""}]
[null,2,{"$f":"IF('Project Info & Instructions'!$D$40=\"\",\"\",'Project Info & Instructions'!$D$40)","v":""},null,null,{"$f":"IF(OR(D13=\"\",E13=\"\"),\"\",ABS(D13-E13))","v":""}]
[null,"Note: The AC% values below are calculated using the JMF Gse, JMF AC Specific Gravity, and each Split Sample's Gmm."]
[null,"Calculated Asphalt Content (%)"]
[null,"Split Sample Number","Tonnage","QC Calc AC%","QV Calc AC%","Difference QC & QV","BTS Calc AC%"]
[null,1,{"$f":"IF('Project Info & Instructions'!$D$39=\"\",\"\",'Project Info & Instructions'!$D$39)","v":""},{"$f":"IF(OR('Project Info & Instructions'!$D$35=INTERNAL_SYS_VAR!$B$8,ISBLANK('SMA Split Sample Comparison'!D12),ISBLANK('Project Info & Instructions'!$H$29),ISBLANK('Project Info & Instructions'!$H$27)),\"\",ROUND(100*('Project Info & Instructions'!$H$27/'SMA Split Sample Comparison'!D12)*(('Project Info & Instructions'!$H$29-'SMA Split Sample Comparison'!D12)/('Project Info & Instructions'!$H$29-'Project Info & Instructions'!$H$27)),1))","v":""},{"$f":"IF(OR('Project Info & Instructions'!$D$35=INTERNAL_SYS_VAR!$B$8,ISBLANK('SMA Split Sample Comparison'!E12),ISBLANK('Project Info & Instructions'!$H$29),ISBLANK('Project Info & Instructions'!$H$27)),\"\",ROUND(100*('Project Info & Instructions'!$H$27/'SMA Split Sample Comparison'!E12)*(('Project Info & Instructions'!$H$29-'SMA Split Sample Comparison'!E12)/('Project Info & Instructions'!$H$29-'Project Info & Instructions'!$H$27)),1))","v":""},{"$f":"IF(OR(D17=\"\",E17=\"\"),\"\",ABS(D17-E17))","v":""},{"$f":"IF(OR(ISBLANK('SMA Split Sample Comparison'!G12),ISBLANK('Project Info & Instructions'!$H$29),ISBLANK('Project Info & Instructions'!$H$27)),\"\",ROUND(100*('Project Info & Instructions'!$H$27/'SMA Split Sample Comparison'!G12)*(('Project Info & Instructions'!$H$29-'SMA Split Sample Comparison'!G12)/('Project Info & Instructions'!$H$29-'Project Info & Instructions'!$H$27)),1))","v":""}]
[null,2,{"$f":"IF('Project Info & Instructions'!$D$40=\"\",\"\",'Project Info & Instructions'!$D$40)","v":""},{"$f":"IF(OR('Project Info & Instructions'!$D$35=INTERNAL_SYS_VAR!$B$8,ISBLANK('SMA Split Sample Comparison'!D13),ISBLANK('Project Info & Instructions'!$H$29),ISBLANK('Project Info & Instructions'!$H$27)),\"\",ROUND(100*('Project Info & Instructions'!$H$27/'SMA Split Sample Comparison'!D13)*(('Project Info & Instructions'!$H$29-'SMA Split Sample Comparison'!D13)/('Project Info & Instructions'!$H$29-'Project Info & Instructions'!$H$27)),1))","v":""},{"$f":"IF(OR('Project Info & Instructions'!$D$35=INTERNAL_SYS_VAR!$B$8,ISBLANK('SMA Split Sample Comparison'!E13),ISBLANK('Project Info & Instructions'!$H$29),ISBLANK('Project Info & Instructions'!$H$27)),\"\",ROUND(100*('Project Info & Instructions'!$H$27/'SMA Split Sample Comparison'!E13)*(('Project Info & Instructions'!$H$29-'SMA Split Sample Comparison'!E13)/('Project Info & Instructions'!$H$29-'Project Info & Instructions'!$H$27)),1))","v":""},{"$f":"IF(OR(D18=\"\",E18=\"\"),\"\",ABS(D18-E18))","v":""},{"$f":"IF(OR(ISBLANK('SMA Split Sample Comparison'!G13),ISBLANK('Project Info & Instructions'!$H$29),ISBLANK('Project Info & Instructions'!$H$27)),\"\",ROUND(100*('Project Info & Instructions'!$H$27/'SMA Split Sample Comparison'!G13)*(('Project Info & Instructions'!$H$29-'SMA Split Sample Comparison'!G13)/('Project Info & Instructions'!$H$29-'Project Info & Instructions'!$H$27)),1))","v":""}]
[null,{"$f":"IF('Project Info & Instructions'!$D$35=INTERNAL_SYS_VAR!$B$8,\"\",IF(OR(ISBLANK('Project Info & Instructions'!$H$29),ISBLANK('Project Info & Instructions'!$H$27)),INTERNAL_SYS_MSGS!$B$29,IF($X$10=TRUE,INTERNAL_SYS_MSGS!$B$31,\"\")))","v":"Enter the JMF Gse and AC Sp. Gr. on Project Info & Instructions Tab."}]
[]
[]
[null,"Note:    "]
[null,"Enter JMF AC  %, JMF Gse, and JMF AC Specific Gravity on the Project Info & Instructions tab. No pay adjustment will be assessed based on AC % test results. However, results of AC % testing will be referenced when determining test strip approval."]

{"sheet":"HMA Mix Acceptance","index":7,"n_rows":27,"n_cols":15,"rows_kept":27,"cut":false,"hidden":true,"merged":[[25,2,29,3],[0,1,3,1],[31,5,31,7],[18,14,21,15],[5,9,5,12],[10,2,11,2],[10,3,11,3],[8,5,8,7],[5,1,7,7],[24,9,24,10],[24,11,24,12],[25,9,28,10],[25,11,28,12],[21,2,23,2],[21,3,23,3],[5,13,5,14]]}
[null,{"$error":"#VALUE!"}]
[null,null,"HMA Mix Acceptance Results"]
[null,null,"Wisconsin Department of Transportation"]
[]
[]
[null,"Test Strip HMA mixture shall conform to the following acceptance limits based on individual QC and QV test results (tolerances based on most recent JMF). Gradation acceptance limits only apply to applicable mixture design control sieves defined in Standard Spec 460 Table 460-1. Confirm that the mixture conforms to acceptance limits by checking the boxes below.",null,null,null,null,null,null,null,"Worksheet Variables",null,null,null,"Referee Testing Criteria"]
[null,null,null,null,null,null,null,null,null,"Parameter","Split Sample 1 Checkboxes","Split Sample 2 Checkboxes","Split Sample 3 Checkboxes","VMA Requires Referee Testing?",{"$f":"IF(COUNTIF(K21:M22,FALSE)>1,TRUE,FALSE)","v":false}]
[null,null,null,null,null,null,null,null,null,"37.5-mm (1 1/2-inch)",{"$f":"F13","v":false},{"$f":"G13","v":false},false]
[null,null,null,null,null,"Split Sample ",null,null,null,"25.0-mm (1-inch)",{"$f":"F14","v":false},false,false]
[null,null,null,null,null,1,2,3,null,"19.0-mm (3/4-inch)",false,false,false]
[null,null,"Item","Acceptance Limits",null,null,null,null,null,"12.5-mm (1/2-inch)",false,false,false]
[null,null,null,null,null,null,null,null,null,"9.5-mm (3/8-inch)",{"$f":"F17","v":false},false,false]
[null,null,"37.5-mm (1 1/2-inch)","+/- 8.0",null,false,false,false,null,"4.75-mm (No. 4)",false,false,false]
[null,null,"25.0-mm (1-inch)","+/- 8.0",null,false,false,false,null,"2.36-mm (No. 8)",false,{"$f":"G19","v":false},false]
[null,null,"19.0-mm (3/4-inch)","+/- 7.5",null,false,false,false,null,"1.18-mm (No. 16)",false,false,false]
[null,null,"12.5-mm (1/2-inch)","+/- 7.5",null,false,false,false,null,"75-µm (No. 200)",false,false,false]
[null,null,"9.5-mm (3/8-inch)","+/- 7.5",null,false,false,false,null,"Gradation Sums:",{"$f":"COUNTIF(K8:K16,TRUE)","v":0},{"$f":"COUNTIF(L8:L16,TRUE)","v":0},0]
[null,null,"4.75-mm (No. 4)","+/- 7.0",null,false,false,false,null,"VMA - Rounded QC:",{"$f":"IF(F22=\"\",\"N/A\",ROUND(F22,1))","v":"N/A"},"N/A","N/A"]
[null,null,"2.36-mm (No. 8)","+/- 7.0",null,false,false,false,null,"VMA - Rounded QV:","N/A","N/A","N/A"]
[null,null,"1.18-mm (No. 16)","+/- 4.0",null,false,false,false,null,"VMA - Rounded BTS:","N/A","N/A","N/A"]
[null,null,"75-µm (No. 200)","+/- 3.0",null,false,false,false,null,"VMA - QC Passing?",{"$f":"IF(K18=\"N/A\",\"N/A\",IF(K18<INTERNAL_SYS_VAR!$AS$8-1,FALSE,TRUE))","v":"N/A"},{"$f":"IF(L18=\"N/A\",\"N/A\",IF(L18<INTERNAL_SYS_VAR!$AS$8-1,FALSE,TRUE))","v":"N/A"},{"$f":"IF(M18=\"N/A\",\"N/A\",IF(M18<INTERNAL_SYS_VAR!$AS$8-1,FALSE,TRUE))","v":"N/A"}]
[null,null,"VMA in Percent[1]","-1.0","QC:",{"$f":"IF(OR(ISBLANK('Project Info & Instructions'!$H$30),ISBLANK('HMA Split Sample Comparison'!D22),ISBLANK('HMA AC % Data'!D12)),\"\",100-(('HMA Split Sample Comparison'!D22*(100-'HMA AC % Data'!D12))/('Project Info & Instructions'!$H$30)))","v":""},{"$f":"IF(OR(ISBLANK('Project Info & Instructions'!$H$30),ISBLANK('HMA Split Sample Comparison'!D23),ISBLANK('HMA AC % Data'!D13)),\"\",100-(('HMA Split Sample Comparison'!D23*(100-'HMA AC % Data'!D13))/('Project Info & Instructions'!$H$30)))","v":""},{"$f":"IF(OR(ISBLANK('Project Info & Instructions'!$H$30),ISBLANK('HMA Split Sample Comparison'!D24),ISBLANK('HMA AC % Data'!D14)),\"\",100-(('HMA Split Sample Comparison'!D24*(100-'HMA AC % Data'!D14))/('Project Info & Instructions'!$H$30)))","v":""},null,"VMA - QV Passing?",{"$f":"IF(K19=\"N/A\",\"N/A\",IF(K19<INTERNAL_SYS_VAR!$AS$8-1,FALSE,TRUE))","v":"N/A"},{"$f":"IF(L19=\"N/A\",\"N/A\",IF(L19<INTERNAL_SYS_VAR!$AS$8-1,FALSE,TRUE))","v":"N/A"},{"$f":"IF(M19=\"N/A\",\"N/A\",IF(M19<INTERNAL_SYS_VAR!$AS$8-1,FALSE,TRUE))","v":"N/A"}]
[null,null,null,null,"QV:",{"$f":"IF(OR(ISBLANK('Project Info & Instructions'!$H$30),ISBLANK('HMA Split Sample Comparison'!E22),ISBLANK('HMA AC % Data'!E12)),\"\",100-(('HMA Split Sample Comparison'!E22*(100-'HMA AC % Data'!E12))/('Project Info & Instructions'!$H$30)))","v":""},{"$f":"IF(OR(ISBLANK('Project Info & Instructions'!$H$30),ISBLANK('HMA Split Sample Comparison'!E23),ISBLANK('HMA AC % Data'!E13)),\"\",100-(('HMA Split Sample Comparison'!E23*(100-'HMA AC % Data'!E13))/('Project Info & Instructions'!$H$30)))","v":""},{"$f":"IF(OR(ISBLANK('Project Info & Instructions'!$H$30),ISBLANK('HMA Split Sample Comparison'!E24),ISBLANK('HMA AC % Data'!E14)),\"\",100-(('HMA Split Sample Comparison'!E24*(100-'HMA AC % Data'!E14))/('Project Info & Instructions'!$H$30)))","v":""},null,"VMA - BTS Passing?",{"$f":"IF(K20=\"N/A\",\"N/A\",IF(K20<INTERNAL_SYS_VAR!$AS$8-1,FALSE,TRUE))","v":"N/A"},{"$f":"IF(L20=\"N/A\",\"N/A\",IF(L20<INTERNAL_SYS_VAR!$AS$8-1,FALSE,TRUE))","v":"N/A"},{"$f":"IF(M20=\"N/A\",\"N/A\",IF(M20<INTERNAL_SYS_VAR!$AS$8-1,FALSE,TRUE))","v":"N/A"}]
[null,null,null,null,"BTS:",{"$f":"IF(OR(ISBLANK('Project Info & Instructions'!$H$30),ISBLANK('HMA Split Sample Comparison'!K22),ISBLANK('HMA AC % Data'!G12)),\"\",100-(('HMA Split Sample Comparison'!K22*(100-'HMA AC % Data'!G12))/('Project Info & Instructions'!$H$30)))","v":""},{"$f":"IF(OR(ISBLANK('Project Info & Instructions'!$H$30),ISBLANK('HMA Split Sample Comparison'!K23),ISBLANK('HMA AC % Data'!G13)),\"\",100-(('HMA Split Sample Comparison'!K23*(100-'HMA AC % Data'!G13))/('Project Info & Instructions'!$H$30)))","v":""},{"$f":"IF(OR(ISBLANK('Project Info & Instructions'!$H$30),ISBLANK('HMA Split Sample Comparison'!K24),ISBLANK('HMA AC % Data'!G14)),\"\",100-(('HMA Split Sample Comparison'!K24*(100-'HMA AC % Data'!G14))/('Project Info & Instructions'!$H$30)))","v":""},null,"VMA Sums:",{"$f":"COUNTIF(K21:K23,TRUE)","v":0},{"$f":"COUNTIF(L21:L23,TRUE)","v":0},0]
[null,null,null,null,null,null,null,null,null,"Gradation Conclusion",null,"VMA Conclusion"]
[null,null,"[1] VMA limits based on minimum requirement for mix design nominal maximum aggregate size in table 460‑1.",null,"Gradation Result:",{"$f":"IF(K17=0,\"\",IF(COUNTIF(K8:K16,FALSE)>0,\"FAIL\",\"PASS\"))","v":""},{"$f":"IF(L17=0,\"\",IF(COUNTIF(L8:L16,FALSE)>0,\"FAIL\",\"PASS\"))","v":""},{"$f":"IF(M17=0,\"\",IF(COUNTIF(M8:M16,FALSE)>0,\"FAIL\",\"PASS\"))","v":""},null,{"$f":"IF(SUM(K17:M17)<1,\"\",IF(COUNTIF(K8:M16,FALSE)>0,INTERNAL_SYS_MSGS!$B$37,INTERNAL_SYS_MSGS!$B$40))","v":""},null,{"$f":"IF(SUM(K24:M24)<1,\"\",IF(AND(COUNTIF(K23:M23,FALSE)>0,COUNTIF(K21:M22,FALSE)>0),INTERNAL_SYS_MSGS!$B$39,IF(AND(COUNTIF(K21:M22,FALSE)>1,COUNTIF(K23:M23,\"N/A\")=3),INTERNAL_SYS_MSGS!$B$38,INTERNAL_SYS_MSGS!$B$40)))","v":""}]
[null,null,null,null,"VMA Result:",{"$f":"IF(K24=0,\"\",IF(K23=FALSE,\"FAIL\",IF(AND(COUNTIF(K21:K22,FALSE)>0,K23=\"N/A\"),\"BTS\",\"PASS\")))","v":""},{"$f":"IF(L24=0,\"\",IF(L23=FALSE,\"FAIL\",IF(AND(COUNTIF(L21:L22,FALSE)>0,L23=\"N/A\"),\"BTS\",\"PASS\")))","v":""},{"$f":"IF(M24=0,\"\",IF(M23=FALSE,\"FAIL\",IF(AND(COUNTIF(M21:M22,FALSE)>0,M23=\"N/A\"),\"BTS\",\"PASS\")))","v":""}]

{"sheet":"SMA Mix Acceptance","index":8,"n_rows":26,"n_cols":13,"rows_kept":26,"cut":false,"hidden":true,"merged":[[0,1,3,1],[18,12,21,13],[30,5,30,6],[9,5,9,6],[11,2,12,2],[11,3,12,3],[5,8,5,10],[22,8,22,9],[23,8,26,9],[24,2,28,3],[5,1,8,6],[23,10,26,10],[20,2,22,2],[20,3,22,3],[5,11,5,12]]}
[null,{"$error":"#VALUE!"}]
[null,null,"SMA Mix Acceptance Results"]
[null,null,"Wisconsin Department of Transportation"]
[]
[]
[null,"Test Strip SMA mixture shall conform to the following acceptance limits based on individual QC and QV test results (tolerances based on most recent JMF). Gradation acceptance limits only apply to applicable mixture design control sieves defined in Standard Spec 460 Table 460-1. Confirm that the mixture conforms to acceptance limits by checking the boxes below.",null,null,null,null,null,null,"Worksheet Variables",null,null,"Referee Testing Criteria"]
[null,null,null,null,null,null,null,null,"Parameter","Split Sample 1 Checkboxes","Split Sample 2 Checkboxes","VMA Requires Referee Testing?",{"$f":"IF(COUNTIF(J19:K20,FALSE)>1,TRUE,FALSE)","v":false}]
[null,null,null,null,null,null,null,null,"19.0-mm (3/4-inch)",{"$f":"F14","v":false},{"$f":"G14","v":false}]
[null,null,null,null,null,null,null,null,"12.5-mm (1/2-inch)",{"$f":"F15","v":false},false]
[null,null,null,null,null,"Split Sample ",null,null,"9.5-mm (3/8-inch)",false,false]
[null,null,null,null,null,1,2,null,"4.75-mm (No. 4)",false,false]
[null,null,"Item","Acceptance Limits",null,null,null,null,"2.36-mm (No. 8)",false,false]
[null,null,null,null,null,null,null,null,"1.18-mm (No. 16)",false,false]
[null,null,"19.0-mm (3/4-inch)","+/- 7.5",null,false,false,null,"75-µm (No. 200)",false,false]
[null,null,"12.5-mm (1/2-inch)","+/- 7.5",null,false,false,null,"Gradation Sums:",{"$f":"COUNTIF(J8:J14,TRUE)","v":0},{"$f":"COUNTIF(K8:K14,TRUE)","v":0}]
[null,null,"9.5-mm (3/8-inch)","+/- 7.5",null,false,false,null,"VMA - Rounded QC:",{"$f":"IF(F21=\"\",\"N/A\",ROUND(F21,1))","v":"N/A"},"N/A"]
[null,null,"4.75-mm (No. 4)","+/- 7.0",null,false,false,null,"VMA - Rounded QV:","N/A","N/A"]
[null,null,"2.36-mm (No. 8)","+/- 7.0",null,false,false,null,"VMA - Rounded BTS:","N/A","N/A"]
[null,null,"0.60-mm (No. 30)","+/- 4.0",null,false,false,null,"VMA - QC Passing?",{"$f":"IF(J16=\"N/A\",\"N/A\",IF(J16<INTERNAL_SYS_VAR!$AS$8-1,FALSE,TRUE))","v":"N/A"},{"$f":"IF(K16=\"N/A\",\"N/A\",IF(K16<INTERNAL_SYS_VAR!$AS$8-1,FALSE,TRUE))","v":"N/A"}]
[null,null,"75-µm (No. 200)","+/- 3.0",null,false,false,null,"VMA - QV Passing?",{"$f":"IF(J17=\"N/A\",\"N/A\",IF(J17<INTERNAL_SYS_VAR!$AS$8-1,FALSE,TRUE))","v":"N/A"},{"$f":"IF(K17=\"N/A\",\"N/A\",IF(K17<INTERNAL_SYS_VAR!$AS$8-1,FALSE,TRUE))","v":"N/A"}]
[null,null,"VMA in Percent[1]","-1.0","QC:",{"$f":"IF(OR(ISBLANK('Project Info & Instructions'!$H$30),ISBLANK('SMA Split Sample Comparison'!D19),ISBLANK('SMA AC % Data'!D12)),\"\",100-(('SMA Split Sample Comparison'!D19*(100-'SMA AC % Data'!D12))/('Project Info & Instructions'!$H$30)))","v":""},{"$f":"IF(OR(ISBLANK('Project Info & Instructions'!$H$30),ISBLANK('SMA Split Sample Comparison'!D20),ISBLANK('SMA AC % Data'!D13)),\"\",100-(('SMA Split Sample Comparison'!D20*(100-'SMA AC % Data'!D13))/('Project Info & Instructions'!$H$30)))","v":""},null,"VMA - BTS Passing?",{"$f":"IF(J18=\"N/A\",\"N/A\",IF(J18<INTERNAL_SYS_VAR!$AS$8-1,FALSE,TRUE))","v":"N/A"},{"$f":"IF(K18=\"N/A\",\"N/A\",IF(K18<INTERNAL_SYS_VAR!$AS$8-1,FALSE,TRUE))","v":"N/A"}]
[null,null,null,null,"QV:",{"$f":"IF(OR(ISBLANK('Project Info & Instructions'!$H$30),ISBLANK('SMA Split Sample Comparison'!E19),ISBLANK('SMA AC % Data'!E12)),\"\",100-(('SMA Split Sample Comparison'!E19*(100-'SMA AC % Data'!E12))/('Project Info & Instructions'!$H$30)))","v":""},{"$f":"IF(OR(ISBLANK('Project Info & Instructions'!$H$30),ISBLANK('SMA Split Sample Comparison'!E20),ISBLANK('SMA AC % Data'!E13)),\"\",100-(('SMA Split Sample Comparison'!E20*(100-'SMA AC % Data'!E13))/('Project Info & Instructions'!$H$30)))","v":""},null,"VMA Sums:",{"$f":"COUNTIF(J19:J21,TRUE)","v":0},{"$f":"COUNTIF(K19:K21,TRUE)","v":0}]
[null,null,null,null,"BTS:",{"$f":"IF(OR(ISBLANK('Project Info & Instructions'!$H$30),ISBLANK('SMA Split Sample Comparison'!G19),ISBLANK('SMA AC % Data'!G12)),\"\",100-(('SMA Split Sample Comparison'!G19*(100-'SMA AC % Data'!G12))/('Project Info & Instructions'!$H$30)))","v":""},{"$f":"IF(OR(ISBLANK('Project Info & Instructions'!$H$30),ISBLANK('SMA Split Sample Comparison'!G20),ISBLANK('SMA AC % Data'!G13)),\"\",100-(('SMA Split Sample Comparison'!G20*(100-'SMA AC % Data'!G13))/('Project Info & Instructions'!$H$30)))","v":""},null,"Gradation Conclusion",null,"VMA Conclusion"]
[null,null,null,null,null,null,null,null,{"$f":"IF(SUM(J15:K15)<1,\"\",IF(COUNTIF(J8:K14,FALSE)>0,INTERNAL_SYS_MSGS!$B$37,INTERNAL_SYS_MSGS!$B$40))","v":""},null,{"$f":"IF(SUM(J22:K22)<1,\"\",IF(AND(COUNTIF(J21:K21,FALSE)>0,COUNTIF(J19:K20,FALSE)>0),INTERNAL_SYS_MSGS!$B$39,IF(AND(COUNTIF(J19:K20,FALSE)>1,COUNTIF(J21:K21,\"N/A\")=2),INTERNAL_SYS_MSGS!$B$38,INTERNAL_SYS_MSGS!$B$40)))","v":""}]
[null,null,"[1] VMA limits based on minimum requirement for mix design nominal maximum aggregate size in table 460‑1.",null,"Gradation Result:",{"$f":"IF(J15=0,\"\",IF(COUNTIF(J8:J14,FALSE)>0,\"FAIL\",\"PASS\"))","v":""},{"$f":"IF(K15=0,\"\",IF(COUNTIF(K8:K14,FALSE)>0,\"FAIL\",\"PASS\"))","v":""}]
[null,null,null,null,"VMA Result:",{"$f":"IF(J22=0,\"\",IF(J21=FALSE,\"FAIL\",IF(AND(COUNTIF(J19:J20,FALSE)>0,J21=\"N/A\"),\"BTS\",\"PASS\")))","v":""},{"$f":"IF(K22=0,\"\",IF(K21=FALSE,\"FAIL\",IF(AND(COUNTIF(K19:K20,FALSE)>0,K21=\"N/A\"),\"BTS\",\"PASS\")))","v":""}]

{"sheet":"HMA Air Voids Pay Factor","index":9,"n_rows":17,"n_cols":26,"rows_kept":17,"cut":false,"hidden":true,"merged":[[0,23,0,24],[0,25,0,26],[1,25,3,26],[0,1,3,2],[15,4,15,6],[5,3,5,4],[5,6,5,7],[6,6,6,7],[6,3,6,4],[11,7,13,7],[11,8,13,8],[11,9,13,9],[11,18,13,18],[11,19,13,19],[11,20,13,20],[11,21,13,21],[16,4,16,6],[11,3,13,3],[11,1,13,1],[7,3,7,4],[9,1,9,21],[7,6,7,7],[11,10,13,10],[11,11,13,11],[11,12,13,12],[11,13,13,13],[11,14,13,14],[11,15,13,15],[11,16,13,16],[11,17,13,17]]}
[null,{"$error":"#VALUE!"},null,null,null,null,null,null,null,null,null,null,null,null,null,null,null,null,null,null,null,null,null,"Worksheet Variables",null,"Conclusion"]
[null,null,null,"HMA Air Voids Pay Factor",null,null,null,null,null,null,null,null,null,null,null,null,null,null,null,null,null,null,null,"Unacceptable QC or QV Air Voids?",{"$f":"'HMA Split Sample Comparison'!$X$22","v":"N/A"},{"$f":"IF(COUNTIF(Y2:Y4, \"N/A\")=3, \"\",\n  _xlfn.IFS(\n    OR(Y4 < 50, AND(Y2, Y3)), INTERNAL_SYS_MSGS!$B$44,\n    Y4 < 75, INTERNAL_SYS_MSGS!$B$45,\n    TRUE, INTERNAL_SYS_MSGS!$B$46\n  )\n)","v":""}]
[null,null,null,"Wisconsin Department of Transportation",null,null,null,null,null,null,null,null,null,null,null,null,null,null,null,null,null,null,null,"Unacceptable BTS Air Voids?",{"$f":"'HMA Split Sample Comparison'!$Z$24","v":"N/A"}]
[null,null,null,null,null,null,null,null,null,null,null,null,null,null,null,null,null,null,null,null,null,null,null,"Rounded PWL Value:",{"$f":"IF(S12=\"\",\"N/A\",ROUND(S12,0))","v":"N/A"}]
[]
[null,null,"Date:",{"$f":"IF('Project Info & Instructions'!$D$13=\"\",\"\",'Project Info & Instructions'!$D$13)","v":""},null,"Test Strip #:",{"$f":"IF('Project Info & Instructions'!$D$14=\"\",\"\",'Project Info & Instructions'!$D$14)","v":""},null,"LSLVa:",{"$f":"INTERNAL_SYS_VAR!$AU$8","v":2},null,null,null,null,null,null,null,null,null,"PWL Default Unit Price:",{"$f":"INTERNAL_SYS_VAR!F2","v":65}]
[null,null,"Project ID:",{"$f":"IF('Project Info & Instructions'!$D$8=\"\",\"\",'Project Info & Instructions'!$D$8)","v":""},null,"Route/Road:",{"$f":"IF('Project Info & Instructions'!$D$10=\"\",\"\",'Project Info & Instructions'!$D$10)","v":""},null,"TargetVa:",{"$f":"INTERNAL_SYS_VAR!AE8","v":3},null,null,null,null,null,null,null,null,null,"Contract Unit Price:",{"$f":"IF('Project Info & Instructions'!H31=\"\",\"\",'Project Info & Instructions'!H31)","v":""}]
[null,null,"Mix Type:",{"$f":"IF('Project Info & Instructions'!$D$31=\"\",\"\",'Project Info & Instructions'!$D$31)","v":"--"},null," Layer:",{"$f":"IF('Project Info & Instructions'!$H$7=\"\",\"\",'Project Info & Instructions'!$H$7)","v":""},null,"USLVa:",{"$f":"INTERNAL_SYS_VAR!AV8","v":4.3}]
[]
[null,"Air Voids"]
[null,"Lot","Split Sample","Date","Gmm","Gmb","Air Voids","Standard Deviation","Mean","Number of Tests in Lot","Quality IndexUL","d2","x","PWLUL","Quality IndexLL","d2","x","PWLLL","PWLVa","PFVa","Lot Size\n(Tons)","Air Voids Pay Adjustment"]
[null,{"$f":"_xlfn.CONCAT(\"TS-\",$G$6)","v":"TS-"},1,{"$f":"IF('Project Info & Instructions'!D13=\"\",\"\",'Project Info & Instructions'!D13)","v":""},{"$f":"IF(ISBLANK('HMA Split Sample Comparison'!D12),\"\",IF('HMA Split Sample Comparison'!$Z$9=FALSE,'HMA Split Sample Comparison'!D12,IF(ISBLANK('HMA Split Sample Comparison'!K12),INTERNAL_SYS_MSGS!$B$42,'HMA Split Sample Comparison'!K12)))","v":""},{"$f":"IF(ISBLANK('HMA Split Sample Comparison'!D22),\"\",IF('HMA Split Sample Comparison'!$Z$9=FALSE,'HMA Split Sample Comparison'!D22,IF(ISBLANK('HMA Split Sample Comparison'!K22),INTERNAL_SYS_MSGS!$B$42,'HMA Split Sample Comparison'!K22)))","v":""},{"$f":"IF(OR(E12=INTERNAL_SYS_MSGS!$B$42,F12=INTERNAL_SYS_MSGS!$B$42),INTERNAL_SYS_MSGS!$B$42,IF('HMA Split Sample Comparison'!$V$8<12,\"\",100*(E12-F12)/E12))","v":""},{"$f":"IFERROR(IF(COUNT(G12:G14)<3,\"\",_xlfn.STDEV.S(G12:G14)),\"\")","v":""},{"$f":"IFERROR(IF(COUNT(G12:G14)<3,\"\",AVERAGE(G12:G14)),\"\")","v":""},3,{"$f":"(INTERNAL_SYS_VAR!$AV$8-I12)/H12","v":{"$error":"#VALUE!"}},{"$f":"SQRT($J12)","v":1.7320508075688772},{"$f":"IF(MAX(0,0.5-(K12*$L12/(2*($J12-1))))>1,1,MAX(0,0.5-(K12*$L12/(2*($J12-1)))))","v":{"$error":"#VALUE!"}},{"$f":"IFERROR(IF(COUNT(G12:G14)<3,\"\",100-(BETADIST(M12,($J12/2)-1,($J12/2)-1)*100)),\"\")","v":""},{"$f":"(I12-INTERNAL_SYS_VAR!$AU$8)/H12","v":{"$error":"#VALUE!"}},{"$f":"SQRT($J12)","v":1.7320508075688772},{"$f":"IF(MAX(0,0.5-(O12*$L12/(2*($J12-1))))>1,1,MAX(0,0.5-(O12*$L12/(2*($J12-1)))))","v":{"$error":"#VALUE!"}},{"$f":"IFERROR(IF(COUNT(G12:G14)<3,\"\",100-(BETADIST(Q12,($J12/2)-1,($J12/2)-1)*100)),\"\")","v":""},{"$f":"IFERROR(IF(COUNT(G12:G14)<3,\"\",(N12+R12)-100),\"\")","v":""},{"$f":"IFERROR(IF(COUNT(G12:G14<3),\"\",IF(S12<50,50,IF(S12<90,S12*0.5+55,(S12-90)*0.4+100))),\"\")","v":""},{"$f":"IFERROR(IF(COUNT(G12:G14)<3,\"\",IF(ISBLANK('Project Info & Instructions'!$D$43),INTERNAL_SYS_MSGS!$B$43,'Project Info & Instructions'!$D$43)),\"\")","v":""},{"$f":"IF(OR(COUNT(G12:G14)<3,U12=\"\",'Project Info & Instructions'!D43=\"\"),\"\",IF(T12=50,((T12-100)*(U7*$U12)/(100)),((T12-100)*U$6*$U12)/(2*100)))","v":""}]
[null,null,2,null,{"$f":"IF(ISBLANK('HMA Split Sample Comparison'!D13),\"\",IF('HMA Split Sample Comparison'!$Z$9=FALSE,'HMA Split Sample Comparison'!D13,IF(ISBLANK('HMA Split Sample Comparison'!K13),INTERNAL_SYS_MSGS!$B$42,'HMA Split Sample Comparison'!K13)))","v":""},{"$f":"IF(ISBLANK('HMA Split Sample Comparison'!D23),\"\",IF('HMA Split Sample Comparison'!$Z$9=FALSE,'HMA Split Sample Comparison'!D23,IF(ISBLANK('HMA Split Sample Comparison'!K23),INTERNAL_SYS_MSGS!$B$42,'HMA Split Sample Comparison'!K23)))","v":""},{"$f":"IF(OR(E13=INTERNAL_SYS_MSGS!$B$42,F13=INTERNAL_SYS_MSGS!$B$42),INTERNAL_SYS_MSGS!$B$42,IF('HMA Split Sample Comparison'!$V$8<12,\"\",100*(E13-F13)/E13))","v":""}]
[null,null,3,null,{"$f":"IF(ISBLANK('HMA Split Sample Comparison'!D14),\"\",IF('HMA Split Sample Comparison'!$Z$9=FALSE,'HMA Split Sample Comparison'!D14,IF(ISBLANK('HMA Split Sample Comparison'!K14),INTERNAL_SYS_MSGS!$B$42,'HMA Split Sample Comparison'!K14)))","v":""},{"$f":"IF(ISBLANK('HMA Split Sample Comparison'!D24),\"\",IF('HMA Split Sample Comparison'!$Z$9=FALSE,'HMA Split Sample Comparison'!D24,IF(ISBLANK('HMA Split Sample Comparison'!K24),INTERNAL_SYS_MSGS!$B$42,'HMA Split Sample Comparison'!K24)))","v":""},{"$f":"IF(OR(E14=INTERNAL_SYS_MSGS!$B$42,F14=INTERNAL_SYS_MSGS!$B$42),INTERNAL_SYS_MSGS!$B$42,IF('HMA Split Sample Comparison'!$V$8<12,\"\",100*(E14-F14)/E14))","v":""}]
[]
[null,null,null,"Average Gmm:",{"$f":"IF(COUNT(E12:E14)<3,\"\",AVERAGE(E12:E14))","v":""}]
[null,null,null,"Gmm Source:",{"$f":"_xlfn.SWITCH('HMA Split Sample Comparison'!$Z$9,\"N/A\",\"\",FALSE,\"QC\",\"BTS Referee\")","v":"QC"}]

{"sheet":"SMA Air Voids Pay Factor","index":10,"n_rows":18,"n_cols":21,"rows_kept":18,"cut":false,"hidden":true,"merged":[[11,1,14,1],[11,3,14,3],[0,1,3,2],[22,8,22,9],[16,4,16,6],[17,4,17,6],[7,3,7,4],[7,6,7,7],[9,1,9,6],[9,7,9,9],[5,3,5,4],[5,6,5,7],[6,3,6,4],[6,6,6,7],[9,18,9,19],[9,20,9,21],[10,20,11,21],[9,10,9,13],[9,15,9,17],[11,13,12,13],[11,12,12,12]]}
[null,{"$error":"#VALUE!"}]
[null,null,null,"SMA Air Voids Pay Factor"]
[null,null,null,"Wisconsin Department of Transportation"]
[]
[]
[null,null,"Date:",{"$f":"IF('Project Info & Instructions'!$D$13=\"\",\"\",'Project Info & Instructions'!$D$13)","v":""},null,"Test Strip #:",{"$f":"IF('Project Info & Instructions'!$D$14=\"\",\"\",'Project Info & Instructions'!$D$14)","v":""},null,"LSLVa:",3.2,"Contract Unit Price:",{"$f":"IF('Project Info & Instructions'!H31=\"\",\"\",'Project Info & Instructions'!H31)","v":""}]
[null,null,"Project ID:",{"$f":"IF('Project Info & Instructions'!$D$8=\"\",\"\",'Project Info & Instructions'!$D$8)","v":""},null,"Route/Road:",{"$f":"IF('Project Info & Instructions'!$D$10=\"\",\"\",'Project Info & Instructions'!$D$10)","v":""},null,"TargetVa:",4.5]
[null,null,"Mix Type:",{"$f":"IF('Project Info & Instructions'!$D$31=\"\",\"\",'Project Info & Instructions'!$D$31)","v":"--"},null," Layer:",{"$f":"IF('Project Info & Instructions'!$H$7=\"\",\"\",'Project Info & Instructions'!$H$7)","v":""},null,"USLVa:",5.8]
[]
[null," Air Voids",null,null,null,null,null,"BTS Air Voids",null,null,"Pay Adjustment",null,null,null,null,"Referee Testing Nonconforming Material Calculator",null,null,"Worksheet Variables",null,"Conclusion"]
[null,"Lot","Split Sample","Date","Gmm","Gmb","Air Voids","Gmm","Gmb","Air Voids","Nonconforming / Unacceptable Tonnage\n(Tons)","Nonconforming / Unacceptable Pay Factors","Tonnage Elligible For Full 100% Pay\n(Tons)","Air Voids Pay Adjustment",null,"Sample","Sample Tonnage","Nonconforming / Unacceptable Tonnage","Nonconforming QV Air Voids (minor)?",{"$f":"'SMA Split Sample Comparison'!P12","v":"N/A"},{"$f":"IF(COUNTIF(T15:T16, \"N/A\")=2, \"\",\n  _xlfn.IFS(\n    T16=TRUE, INTERNAL_SYS_MSGS!$B$44,\n    OR(T13=TRUE,T14=TRUE), INTERNAL_SYS_MSGS!$B$45,\n    TRUE, INTERNAL_SYS_MSGS!$B$46\n  )\n)","v":""}]
[null,{"$f":"_xlfn.CONCAT(\"TS-\",$G$6)","v":"TS-"},"QC-1",{"$f":"'Project Info & Instructions'!$D$13","v":"00:00:00"},{"$f":"IF(ISBLANK('SMA Split Sample Comparison'!D12),\"\",'SMA Split Sample Comparison'!D12)","v":""},{"$f":"IF(ISBLANK('SMA Split Sample Comparison'!D19),\"\",'SMA Split Sample Comparison'!D19)","v":""},{"$f":"IF('SMA Split Sample Comparison'!H24=\"\",\"\",'SMA Split Sample Comparison'!H24)","v":""},{"$f":"IF(ISBLANK('SMA Split Sample Comparison'!G12),\"\",'SMA Split Sample Comparison'!G12)","v":""},{"$f":"IF(ISBLANK('SMA Split Sample Comparison'!G19),\"\",'SMA Split Sample Comparison'!G19)","v":""},{"$f":"IF('SMA Split Sample Comparison'!J24=\"\",\"\",'SMA Split Sample Comparison'!J24)","v":""},{"$f":"R12","v":0},{"$f":"IF(K12=0,\"N/A\",IF(OR(J12<INTERNAL_SYS_VAR!$AI$8,J12>INTERNAL_SYS_VAR!$AO$8),50,IF(AND(J12<=INTERNAL_SYS_VAR!$AO$8,J12>INTERNAL_SYS_VAR!$AM$8),100-(J12-5.8)*71.4,IF(AND(J12<INTERNAL_SYS_VAR!$AK$8,J12>=INTERNAL_SYS_VAR!$AI$8),100-(3.2-J12)*71.4,\"\"))))","v":"N/A"},{"$f":"'Project Info & Instructions'!$D$43-SUM(K12:K13)","v":0},{"$f":"IF(L6=\"\",\"\",IF($L$12=\"N/A\",0,-($K$12*(1-$L$12/100)*$L$6))+IF($L$13=\"N/A\",0,-($K$13*(1-$L$13/100)*$L$6)))","v":""},null,1,{"$f":"IF('Project Info & Instructions'!$D$39=\"\",\"\",ROUND('Project Info & Instructions'!$D$39,0))","v":""},{"$f":"IF(J12=\"\",0,IF(OR(J12<INTERNAL_SYS_VAR!$AK$8,J12>INTERNAL_SYS_VAR!$AM$8),(0.5*Q12)+(0.5*(Q13-Q12)),0))","v":0},"Nonconforming QV Air Voids (major)?",{"$f":"'SMA Split Sample Comparison'!P13","v":"N/A"}]
[null,null,"QC-2",null,{"$f":"IF(ISBLANK('SMA Split Sample Comparison'!D13),\"\",'SMA Split Sample Comparison'!D13)","v":""},{"$f":"IF(ISBLANK('SMA Split Sample Comparison'!D20),\"\",'SMA Split Sample Comparison'!D20)","v":""},{"$f":"IF('SMA Split Sample Comparison'!H25=\"\",\"\",'SMA Split Sample Comparison'!H25)","v":""},{"$f":"IF(ISBLANK('SMA Split Sample Comparison'!G13),\"\",'SMA Split Sample Comparison'!G13)","v":""},{"$f":"IF(ISBLANK('SMA Split Sample Comparison'!G20),\"\",'SMA Split Sample Comparison'!G20)","v":""},{"$f":"IF('SMA Split Sample Comparison'!J25=\"\",\"\",'SMA Split Sample Comparison'!J25)","v":""},{"$f":"R13","v":0},{"$f":"IF(K13=0,\"N/A\",IF(OR(J13<INTERNAL_SYS_VAR!$AI$8,J13>INTERNAL_SYS_VAR!$AO$8),50,IF(AND(J13<=INTERNAL_SYS_VAR!$AO$8,J13>INTERNAL_SYS_VAR!$AM$8),100-(J13-5.8)*71.4,IF(AND(J13<INTERNAL_SYS_VAR!$AK$8,J13>=INTERNAL_SYS_VAR!$AI$8),100-(3.2-J13)*71.4,\"\"))))","v":"N/A"},null,null,null,2,{"$f":"IF('Project Info & Instructions'!$D$40=\"\",\"\",ROUND('Project Info & Instructions'!$D$40,0))","v":""},{"$f":"IF(J13=\"\",0,IF(OR(J13<INTERNAL_SYS_VAR!$AK$8,J13>INTERNAL_SYS_VAR!$AM$8),(0.5*(Q13-Q12))+(0.5*('Project Info & Instructions'!$D$43-Q13)),0))","v":0},"Nonconforming BTS Air Voids (minor)?",{"$f":"'SMA Split Sample Comparison'!R16","v":"N/A"}]
[null,null,"QV-1",null,{"$f":"IF(ISBLANK('SMA Split Sample Comparison'!E12),\"\",'SMA Split Sample Comparison'!E12)","v":""},{"$f":"IF(ISBLANK('SMA Split Sample Comparison'!E19),\"\",'SMA Split Sample Comparison'!E19)","v":""},{"$f":"IF('SMA Split Sample Comparison'!I24=\"\",\"\",'SMA Split Sample Comparison'!I24)","v":""},null,null,null,null,null,null,null,null,null,null,null,"Nonconforming BTS Air Voids (major)?",{"$f":"'SMA Split Sample Comparison'!R17","v":"N/A"}]
[null,null,"QV-2",null,{"$f":"IF(ISBLANK('SMA Split Sample Comparison'!E13),\"\",'SMA Split Sample Comparison'!E13)","v":""},{"$f":"IF(ISBLANK('SMA Split Sample Comparison'!E20),\"\",'SMA Split Sample Comparison'!E20)","v":""},{"$f":"IF('SMA Split Sample Comparison'!I25=\"\",\"\",'SMA Split Sample Comparison'!I25)","v":""},null,null,null,null,null,null,null,null,null,null,null,"Unacceptable QC or QV Air Voids?",{"$f":"'SMA Split Sample Comparison'!$P$14","v":"N/A"}]
[null,null,null,null,null,null,null,null,null,null,null,null,null,null,null,null,null,null,"Unacceptable BTS Air Voids?",{"$f":"'SMA Split Sample Comparison'!$R$18","v":"N/A"}]
[null,null,null,"Average Gmm:",{"$f":"IF(COUNT(E12:E15)<4,\"\",IF('SMA Split Sample Comparison'!$R$9=FALSE,AVERAGE(E12:E13),AVERAGE(H12:H13)))","v":""}]
[null,null,null,"Gmm Source:",{"$f":"_xlfn.SWITCH('SMA Split Sample Comparison'!$R$9,\"N/A\",\"\",FALSE,\"QC\",\"BTS Referee\")","v":"QC"}]

{"sheet":"HMA Density Pay Factor","index":11,"n_rows":25,"n_cols":19,"rows_kept":25,"cut":false,"hidden":true,"merged":[[0,16,0,17],[0,18,0,19],[0,1,3,2],[22,4,22,6],[1,18,5,19],[11,5,20,5],[11,6,20,6],[11,7,20,7],[11,8,20,8],[11,9,20,9],[11,10,20,10],[11,11,20,11],[11,12,20,12],[11,13,20,13],[11,14,20,14],[23,4,23,6],[24,4,24,6],[22,1,22,3],[11,3,20,3],[5,3,5,4],[6,3,6,4],[7,3,7,4],[9,1,9,14],[5,6,5,7],[6,6,6,7],[7,6,7,7],[11,1,15,1],[16,1,20,1]]}
[null,{"$error":"#VALUE!"},null,null,null,null,null,null,null,null,null,null,null,null,null,null,"Worksheet Variables",null,"Conclusion"]
[null,null,null,"HMA Density Pay Factor",null,null,null,null,null,null,null,null,null,null,null,null,"Unacceptable Core 1 Density?",{"$f":"IF(E12=\"\",\"N/A\",IF(ROUND(E12,1)<($M$6-3),TRUE,FALSE))","v":"N/A"},{"$f":"IF(SUM(E12:E21)=0, \"\",\n  _xlfn.LET(\n    _xlpm.fail_msg, IF(R12<50, INTERNAL_SYS_MSGS!$B$54 & INTERNAL_SYS_MSGS!$B$61,\"\"),\n    _xlpm.warn_msg, IF(AND(R12<75, R12>=50),INTERNAL_SYS_MSGS!$B$55 & INTERNAL_SYS_MSGS!B60,\"\"),\n    _xlpm.core_msg, IF(R13, INTERNAL_SYS_MSGS!$B$58, \"\"),\n    _xlpm.unacceptableInd, IF(OR(R2:R11),INTERNAL_SYS_MSGS!$B$59, \"\"),\n    _xlpm.UnacceptableGmm, IF(AND(_xlpm.core_msg=\"\",R14=FALSE),INTERNAL_SYS_MSGS!$B$57,\"\"),\n    _xlpm.combined, _xlpm.fail_msg & _xlpm.warn_msg & _xlpm.core_msg & _xlpm.unacceptableInd & _xlpm.UnacceptableGmm,\n    IF(_xlpm.combined=\"\", INTERNAL_SYS_MSGS!$B$56, _xlpm.combined)\n  )\n)","v":""}]
[null,null,null,"Wisconsin Department of Transportation",null,null,null,null,null,null,null,null,null,null,null,null,"Unacceptable Core 2 Density?",{"$f":"IF(E13=\"\",\"N/A\",IF(ROUND(E13,1)<($M$6-3),TRUE,FALSE))","v":"N/A"}]
[null,null,null,null,null,null,null,null,null,null,null,null,null,null,null,null,"Unacceptable Core 3 Density?","N/A"]
[null,null,null,null,null,null,null,null,null,null,null,null,null,null,null,null,"Unacceptable Core 4 Density?","N/A"]
[null,null,"Date:",{"$f":"IF('Project Info & Instructions'!$D$13=\"\",\"\",'Project Info & Instructions'!$D$13)","v":""},null,"Test Strip #:",{"$f":"IF('Project Info & Instructions'!$D$14=\"\",\"\",'Project Info & Instructions'!$D$14)","v":""},null,null,null,null,"LSL(%):",{"$f":"INTERNAL_SYS_VAR!$N$8","v":93},"PWL Default Unit Price:",65,null,"Unacceptable Core 5 Density?","N/A"]
[null,null,"Project ID:",{"$f":"IF('Project Info & Instructions'!$D$8=\"\",\"\",'Project Info & Instructions'!$D$8)","v":""},null,"Route/Road:",{"$f":"IF('Project Info & Instructions'!$D$10=\"\",\"\",'Project Info & Instructions'!$D$10)","v":""},null,null,null,null,null,null,"Contract Unit Price:",{"$f":"IF('Project Info & Instructions'!H31=\"\",\"\",'Project Info & Instructions'!H31)","v":""},null,"Unacceptable Core 6 Density?","N/A"]
[null,null,"Mix Type:",{"$f":"IF('Project Info & Instructions'!$D$31=\"\",\"\",'Project Info & Instructions'!$D$31)","v":"--"},null," Layer:",{"$f":"IF('Project Info & Instructions'!$H$7=\"\",\"\",'Project Info & Instructions'!$H$7)","v":""},null,null,null,null,null,null,null,null,null,"Unacceptable Core 7 Density?","N/A"]
[null,null,null,null,null,null,null,null,null,null,null,null,null,null,null,null,"Unacceptable Core 8 Density?","N/A"]
[null,"Density",null,null,null,null,null,null,null,null,null,null,null,null,null,null,"Unacceptable Core 9 Density?","N/A"]
[null,"Zone","Core No.","Date","Core Density\n(% Gmm)","Standard Deviation","Mean","Number of Tests in Lot","Quality Index","d2","x","PWLD","PFD","Lot Size (Ton)","Density Pay Adjustment",null,"Unacceptable Core 10 Density?",{"$f":"IF(E21=\"\",\"N/A\",IF(ROUND(E21,1)<($M$6-3),TRUE,FALSE))","v":"N/A"}]
[null,1,{"$f":"'HMA Core Data'!B14","v":""},{"$f":"IF('Project Info & Instructions'!$D$13=\"\",\"\",'Project Info & Instructions'!$D$13)","v":""},{"$f":"'HMA Core Data'!AB14","v":""},{"$f":"IF(SUM(E12:E21)=0,\"\",_xlfn.STDEV.S(E12:E21))","v":""},{"$f":"IF(SUM(E12:E21)=0,\"\",AVERAGE(E12:E21))","v":""},{"$f":"COUNT(E12:E21)","v":0},{"$f":"(G12-M6)/F12","v":{"$error":"#VALUE!"}},{"$f":"SQRT($H12)","v":0},{"$f":"IF(MAX(0,0.5-(I12*$J12/(2*($H12-1))))>1,1,MAX(0,0.5-(I12*$J12/(2*($H12-1)))))","v":{"$error":"#VALUE!"}},{"$f":"IF(SUM(E12:E21)=0,\"\",100-(BETADIST(K12,($H12/2)-1,($H12/2)-1)*100))","v":""},{"$f":"IF(SUM(E12:E21)=0,\"\",IF(L12<50,50,IF(L12<90,L12*0.5+55,(L12-90)*0.4+100)))","v":""},{"$f":"IF(SUM(E12:E21)=0,\"\",IF(ISBLANK('Project Info & Instructions'!$D$55),INTERNAL_SYS_MSGS!$B$52,(('Project Info & Instructions'!$D$55*'Project Info & Instructions'!$H$10)/9*112*'Project Info & Instructions'!$H$11/2000)))","v":""},{"$f":"IF(OR(SUM(E12:E21)=0,'Project Info & Instructions'!D55=\"\"),\"\",IF(M12=50,((M12-100)*(O7*$N12)/(100)),IF('Project Info & Instructions'!$D$55=\"\",\"\",((M12-100)*O$6*$N12)/(2*100))))","v":""},null,"Rounded PWL Value:",{"$f":"IF(L12=\"\",\"N/A\",ROUND(L12,0))","v":"N/A"}]
[null,null,{"$f":"'HMA Core Data'!B15","v":""},null,{"$f":"'HMA Core Data'!AB15","v":""},null,null,null,null,null,null,null,null,null,null,null,"Too Many Suspect Cores? (Acceptable Gauge Correlation)",{"$f":"IF(COUNTIF('HMA Core Data'!AE6:AE15,TRUE)>=2,TRUE,FALSE)","v":false}]
[null,null,{"$f":"'HMA Core Data'!B16","v":""},null,{"$f":"'HMA Core Data'!AB16","v":""},null,null,null,null,null,null,null,null,null,null,null,"Production or Non-Random Gmm collected during Density-Only Test Strip within Tolerance?:",{"$f":"'HMA Core Data'!$AE$16","v":"N/A"}]
[null,null,{"$f":"'HMA Core Data'!B17","v":""},null,{"$f":"'HMA Core Data'!AB17","v":""}]
[null,null,{"$f":"'HMA Core Data'!B18","v":""},null,{"$f":"'HMA Core Data'!AB18","v":""}]
[null,2,{"$f":"'HMA Core Data'!B21","v":""},null,{"$f":"'HMA Core Data'!AB21","v":""}]
[null,null,{"$f":"'HMA Core Data'!B22","v":""},null,{"$f":"'HMA Core Data'!AB22","v":""}]
[null,null,{"$f":"'HMA Core Data'!B23","v":""},null,{"$f":"'HMA Core Data'!AB23","v":""}]
[null,null,{"$f":"'HMA Core Data'!B24","v":""},null,{"$f":"'HMA Core Data'!AB24","v":""}]
[null,null,{"$f":"'HMA Core Data'!B25","v":""},null,{"$f":"'HMA Core Data'!AB25","v":""}]
[]
[null,"Average Gmm:",null,null,{"$f":"IF(AND('Project Info & Instructions'!$D$35=INTERNAL_SYS_VAR!$B$8,'Project Info & Instructions'!$D$52=\"\"),INTERNAL_SYS_MSGS!$B$53,IF('Project Info & Instructions'!$D$35=INTERNAL_SYS_VAR!$B$8,'Project Info & Instructions'!$D$52,IF('HMA Air Voids Pay Factor'!$E$16=\"\",\"\",'HMA Air Voids Pay Factor'!$E$16)))","v":""}]
[null,null,null,"Gmm Source:",{"$f":"IF('Project Info & Instructions'!$D$35=INTERNAL_SYS_VAR!$B$8, \"Daily Average\",_xlfn.SWITCH('HMA Split Sample Comparison'!$Z$9,\"N/A\",\"\",FALSE,\"QC\",\"BTS Referee\"))","v":"QC"}]
[null,null,null,"Core Density Source:",{"$f":"IF('HMA Core Data'!$AE$5=1,\"QC\",\"QV\")","v":"QC"}]

{"sheet":"SMA Density Pay Factor","index":12,"n_rows":25,"n_cols":14,"rows_kept":25,"cut":false,"hidden":true,"merged":[[24,4,24,6],[0,1,3,2],[11,3,20,3],[11,5,20,5],[22,4,22,6],[23,4,23,6],[22,1,22,3],[16,1,20,1],[11,1,15,1],[5,3,5,4],[6,3,6,4],[7,3,7,4],[11,6,20,6],[0,13,0,14],[1,13,3,14],[11,7,20,7],[11,8,20,8],[9,1,9,9],[11,9,20,9],[0,11,0,12]]}
[null,{"$error":"#VALUE!"},null,null,null,null,null,null,null,null,null,"Worksheet Variables",null,"Conclusion"]
[null,null,null,"SMA Density Pay Factor",null,null,null,null,null,null,null,"Unacceptable Core 1 Density?",{"$f":"IF(E12=\"\",\"N/A\",IF(ROUND(E12,1)<($I$6-3),TRUE,FALSE))","v":"N/A"},{"$f":"IF(SUM(E12:E21)=0, \"\",\n  _xlfn.IFS(\n    $F$12 < 90, INTERNAL_SYS_MSGS!$B$54,\n    $F$12 < 91, INTERNAL_SYS_MSGS!$B$55,\n    $F$12 < 93, INTERNAL_SYS_MSGS!$B$55,\n    $F$12 >= 93, INTERNAL_SYS_MSGS!$B$56,\n    TRUE, \"N/A\"\n  )\n)","v":""}]
[null,null,null,"Wisconsin Department of Transportation",null,null,null,null,null,null,null,"Unacceptable Core 2 Density?",{"$f":"IF(E13=\"\",\"N/A\",IF(ROUND(E13,1)<($I$6-3),TRUE,FALSE))","v":"N/A"}]
[null,null,null,null,null,null,null,null,null,null,null,"Unacceptable Core 3 Density?","N/A"]
[null,null,null,null,null,null,null,null,null,null,null,"Unacceptable Core 4 Density?","N/A"]
[null,null,"Date:",{"$f":"IF('Project Info & Instructions'!$D$13=\"\",\"\",'Project Info & Instructions'!$D$13)","v":""},null,"Test Strip #:",{"$f":"IF('Project Info & Instructions'!$D$14=\"\",\"\",'Project Info & Instructions'!$D$14)","v":""},"LSL(%):",{"$f":"INTERNAL_SYS_VAR!$N$8","v":93},null,null,"Unacceptable Core 5 Density?","N/A"]
[null,null,"Project ID:",{"$f":"IF('Project Info & Instructions'!$D$8=\"\",\"\",'Project Info & Instructions'!$D$8)","v":""},null,"Route/Road:",{"$f":"IF('Project Info & Instructions'!$D$10=\"\",\"\",'Project Info & Instructions'!$D$10)","v":""},"Contract Unit Price:",{"$f":"'Project Info & Instructions'!$H$31","v":0},null,null,"Unacceptable Core 6 Density?","N/A"]
[null,null,"Mix Type:",{"$f":"IF('Project Info & Instructions'!$D$31=\"\",\"\",'Project Info & Instructions'!$D$31)","v":"--"},null," Layer:",{"$f":"IF('Project Info & Instructions'!$H$7=\"\",\"\",'Project Info & Instructions'!$H$7)","v":""},null,null,null,null,"Unacceptable Core 7 Density?","N/A"]
[null,null,null,null,null,null,null,null,null,null,null,"Unacceptable Core 8 Density?","N/A"]
[null,"Density",null,null,null,null,null,null,null,null,null,"Unacceptable Core 9 Density?","N/A"]
[null,"Zone","Core No.","Date","Core Density\n(% Gmm)","Average Core Density","Pay Factor","Pay Adjustment / Ton","Lot Size (Ton)","Density Pay Adjustment",null,"Unacceptable Core 10 Density?","N/A"]
[null,1,{"$f":"'SMA Core Data'!B14","v":""},{"$f":"IF('Project Info & Instructions'!$D$13=\"\",\"\",'Project Info & Instructions'!$D$13)","v":""},{"$f":"'SMA Core Data'!AD14","v":""},{"$f":"IF(SUM($E$12:$E$21)=0,\"\",ROUND(AVERAGE($E$12:$E$21),1))","v":""},{"$f":"IF($M$12=\"N/A\",\"\",IF($M$12<INTERNAL_SYS_VAR!$BB$9,\n    _xlfn.IFS(ABS($M$12)>INTERNAL_SYS_VAR!$AY$14,INTERNAL_SYS_VAR!$BA$14,\n    ABS($M$12)>=INTERNAL_SYS_VAR!$AY$13,INTERNAL_SYS_VAR!$BA$13,\n    ABS($M$12)>=INTERNAL_SYS_VAR!$AY$12,INTERNAL_SYS_VAR!$BA$12,\n    ABS($M$12)>=INTERNAL_SYS_VAR!$AY$11,INTERNAL_SYS_VAR!$BA$11,\n    ABS($M$12)>=INTERNAL_SYS_VAR!$AY$10,INTERNAL_SYS_VAR!$BA$10,\n    ABS($M$12)>=INTERNAL_SYS_VAR!$AY$9,INTERNAL_SYS_VAR!$BA$9),\n    \"N/A\"))","v":""},{"$f":"IF($M$12=\"N/A\",\"\",IF($M$12>=INTERNAL_SYS_VAR!$BB$9,\n    _xlfn.IFS($M$12>INTERNAL_SYS_VAR!$BB$11,INTERNAL_SYS_VAR!$BD$11,\n    $M$12>=INTERNAL_SYS_VAR!$BB$10,INTERNAL_SYS_VAR!$BD$10,\n    $M$12>=INTERNAL_SYS_VAR!$BB$9,INTERNAL_SYS_VAR!$BD$9),\n    \"N/A\"))","v":""},{"$f":"IF(SUM(E12:E21)=0,\"\",IF(ISBLANK('Project Info & Instructions'!$D$55),INTERNAL_SYS_MSGS!$B$52,(('Project Info & Instructions'!$D$55*'Project Info & Instructions'!$H$10)/9*112*'Project Info & Instructions'!$H$11/2000)))","v":""},{"$f":"IF($M$12=\"N/A\",\"\",IF($M$12<-0.4,-$I$7*(1-$G$12/100)*$I$12,IF($M$14,INTERNAL_SYS_MSGS!$B$65,$H$12*$I$12)))","v":""},null,"Average Density Above/Below Minimum:",{"$f":"IF(OR($F$12=\"\",I6=\"\"),\"N/A\",ROUND($F$12-$I$6,1))","v":"N/A"}]
[null,null,{"$f":"'SMA Core Data'!B15","v":""},null,{"$f":"'SMA Core Data'!AD15","v":""},null,null,null,null,null,null,"Too Many Suspect Cores? (Acceptable Gauge Correlation)",{"$f":"IF(COUNTIF('SMA Core Data'!AG6:AG15,TRUE)>=2,TRUE,FALSE)","v":false}]
[null,null,{"$f":"'SMA Core Data'!B16","v":""},null,{"$f":"'SMA Core Data'!AD16","v":""},null,null,null,null,null,null,"Any individual Core Density Greater than 97.0%?",{"$f":"IF(SUM(E12:E21)=0, \"N/A\", COUNTIFS(E12:E21, \">97\") > 0)","v":"N/A"}]
[null,null,{"$f":"'SMA Core Data'!B17","v":""},null,{"$f":"'SMA Core Data'!AD17","v":""}]
[null,null,{"$f":"'SMA Core Data'!B18","v":""},null,{"$f":"'SMA Core Data'!AD18","v":""}]
[null,2,{"$f":"'SMA Core Data'!B21","v":""},null,{"$f":"'SMA Core Data'!AD21","v":""}]
[null,null,{"$f":"'SMA Core Data'!B22","v":""},null,{"$f":"'SMA Core Data'!AD22","v":""}]
[null,null,{"$f":"'SMA Core Data'!B23","v":""},null,{"$f":"'SMA Core Data'!AD23","v":""}]
[null,null,{"$f":"'SMA Core Data'!B24","v":""},null,{"$f":"'SMA Core Data'!AD24","v":""}]
[null,null,{"$f":"'SMA Core Data'!B25","v":""},null,{"$f":"'SMA Core Data'!AD25","v":""}]
[]
[null,"Gmm Used for Core Density:",null,null,{"$f":"IF(AND('Project Info & Instructions'!$D$35=INTERNAL_SYS_VAR!$B$8,'Project Info & Instructions'!$D$52=\"\"),INTERNAL_SYS_MSGS!$B$64,IF('Project Info & Instructions'!$D$35=INTERNAL_SYS_VAR!$B$8,'Project Info & Instructions'!$D$52,IF('SMA Air Voids Pay Factor'!$E$17=\"\",\"\",'SMA Air Voids Pay Factor'!$E$17)))","v":""}]
[null,null,null,"Gmm Data Used:",{"$f":"IF('Project Info & Instructions'!$D$35=INTERNAL_SYS_VAR!$B$8, \"Daily Average\",_xlfn.SWITCH('SMA Split Sample Comparison'!$R$9,\"N/A\",\"\",FALSE,\"QC\",\"BTS Referee\"))","v":"QC"}]
[null,null,null,"Core Data Used:",{"$f":"IF('SMA Core Data'!$AG$5=1,\"QC\",\"QV\")","v":"QC"}]

{"sheet":"HMA Test Strip Summary","index":13,"n_rows":48,"n_cols":19,"rows_kept":48,"cut":false,"hidden":true,"merged":[[6,8,6,9],[7,8,7,9],[8,8,8,9],[5,2,5,3],[6,2,6,3],[7,2,7,3],[8,2,8,3],[6,5,6,6],[5,5,5,6],[7,5,7,6],[8,5,8,6],[3,15,3,16],[3,17,3,18],[12,1,12,3],[13,1,13,3],[27,1,27,3],[16,1,16,3],[17,1,17,3],[21,1,21,3],[19,1,19,3],[20,1,20,3],[18,1,18,3],[23,1,23,3],[24,1,24,3],[9,5,9,6],[0,1,3,1],[5,8,5,9],[12,4,12,9],[13,4,13,9],[11,1,11,9],[14,1,14,9],[26,1,26,3],[25,1,25,3],[25,4,25,9],[26,4,26,9],[15,1,15,9],[16,4,16,9],[17,4,17,9],[18,4,18,9],[19,4,19,9],[20,4,20,9],[21,4,21,9],[22,1,22,9],[34,4,34,9],[35,4,35,9],[34,1,34,3],[27,4,27,9],[28,1,28,9],[29,4,29,9],[30,1,30,9],[31,4,31,9],[31,1,31,3],[32,4,32,9],[32,1,32,3],[29,1,29,3],[3,13,3,14],[38,4,38,9],[39,4,39,9],[40,1,40,9],[47,2,52,9],[42,4,45,4],[38,1,38,3],[39,1,39,3],[36,4,36,9],[37,4,37,9],[37,1,37,3],[36,1,36,3],[35,1,35,3],[23,4,23,9],[24,4,24,9],[33,1,33,9]]}
[null,{"$error":"#VALUE!"}]
[null,null,"HMA Test Strip Summary",null,null,null,null,null,null,null,null,"Controls"]
[null,null,"Wisconsin Department of Transportation"]
[null,null,null,null,null,null,null,null,null,null,null,null,null,"Approved - Flags that Require PWL Rep. & BTS Review",null,"Not Approved - Nonconforming Flags that Require PWL Rep. & BTS Review",null,"Not Approved - Unacceptable Flags"]
[null,null,null,null,null,null,null,null,null,null,null,null,null,"Any Asphalt Contents Differences greater than 0.2?",{"$f":"'HMA AC % Data'!X12","v":"N/A"},"One or more Gmm exceeds the Acceptance Limit?",{"$f":"IF($Y$8<12,\"N/A\",IF('HMA Split Sample Comparison'!$AB$7,TRUE,FALSE))","v":"N/A"},"Volumetric PWL Value < 50?",{"$f":"IF('HMA Air Voids Pay Factor'!$Y$4=\"N/A\",\"N/A\",IF('HMA Air Voids Pay Factor'!$Y$4<50,TRUE,FALSE))","v":"N/A"}]
[null,"Contract ID:",{"$f":"IF(ISBLANK('Project Info & Instructions'!$D$7),\"\",'Project Info & Instructions'!$D$7)","v":""},null,"Test Strip #:",{"$f":"IF(ISBLANK('Project Info & Instructions'!$D$14),\"\",'Project Info & Instructions'!$D$14)","v":""},null,"Paving Width (ft):",{"$f":"IF(ISBLANK('Project Info & Instructions'!$H$9),\"\",'Project Info & Instructions'!$H$9)","v":""},null,null,null,null,null,null,"Split Sample Comparison Failing?",{"$f":"_xlfn.SWITCH('HMA Split Sample Comparison'!$AB$6,\"N/A\",FALSE,TRUE,FALSE,FALSE,TRUE)","v":false},"Density PWL Value < 50?",{"$f":"IF('HMA Density Pay Factor'!$R$12=\"N/A\",\"N/A\",IF('HMA Density Pay Factor'!$R$12<50,TRUE,FALSE))","v":"N/A"}]
[null,"Project ID:",{"$f":"IF(ISBLANK('Project Info & Instructions'!$D$8),\"\",'Project Info & Instructions'!$D$8)","v":""},null,"Route/Road:",{"$f":"IF(ISBLANK('Project Info & Instructions'!$D$10),\"\",'Project Info & Instructions'!$D$10)","v":""},null,"Lane Width (ft):",{"$f":"IF(ISBLANK('Project Info & Instructions'!$H$10),\"\",'Project Info & Instructions'!$H$10)","v":""},null,null,null,null,null,null,"Volumetric 50 ≤ PWL < 75?",{"$f":"IF('HMA Air Voids Pay Factor'!$Y$4=\"N/A\",\"N/A\",IF(AND('HMA Air Voids Pay Factor'!$Y$4<75,'HMA Air Voids Pay Factor'!$Y$4>=50),TRUE,FALSE))","v":"N/A"},"Unacceptable Asphalt Content?",{"$f":"IF('HMA AC % Data'!$AB$6=\"N/A\",\"N/A\",IF('HMA AC % Data'!$AB$6=TRUE,FALSE,TRUE))","v":"N/A"}]
[null,"WisDOT Mix Design ID:",{"$f":"IF(ISBLANK('Project Info & Instructions'!$D$26),\"\",'Project Info & Instructions'!$D$26)","v":""},null,"Pavement Layer:",{"$f":"IF(ISBLANK('Project Info & Instructions'!$H$7),\"\",'Project Info & Instructions'!$H$7)","v":""},null,"Nominal Thickness (in):",{"$f":"IF(ISBLANK('Project Info & Instructions'!$H$11),\"\",'Project Info & Instructions'!$H$11)","v":""},null,null,null,null,null,null,"Density 50 ≤ PWL < 75?",{"$f":"IF('HMA Density Pay Factor'!$R$12=\"N/A\",\"N/A\",IF(AND('HMA Density Pay Factor'!$R$12<75,'HMA Density Pay Factor'!$R$12>=50),TRUE,FALSE))","v":"N/A"},"Unacceptable VMA?",{"$f":"IF(SUM('HMA Mix Acceptance'!K24:M24)<1,\"N/A\",IF(COUNTIF('HMA Mix Acceptance'!K23:M23,FALSE)>0,TRUE,FALSE))","v":"N/A"}]
[null,"Mix Type:",{"$f":"IF('Project Info & Instructions'!$D$31=\"\",\"\",'Project Info & Instructions'!$D$31)","v":"--"},null,"Underlying Layer:",{"$f":"IF(ISBLANK('Project Info & Instructions'!$H$8),\"\",'Project Info & Instructions'!$H$8)","v":""},null,"Contract Unit Price:",{"$f":"IF(ISBLANK('Project Info & Instructions'!$H$31),\"\",'Project Info & Instructions'!$H$31)","v":""},null,null,null,null,null,null,"Gradation Outside Acceptance Limits?",{"$f":"IF(SUM('HMA Mix Acceptance'!K24:M24)<1,\"N/A\",IF(COUNTIF('HMA Mix Acceptance'!K8:M16,FALSE)>0,TRUE,FALSE))","v":"N/A"}]
[null,null,null,null,"Test Strip Type:",{"$f":"IF(ISBLANK('Project Info & Instructions'!$D$35),\"\",'Project Info & Instructions'!$D$35)","v":""},null,null,null,null,null,null,null,null,null,"Too Many Suspect Cores? (Acceptable Gauge Correlation)",{"$f":"'HMA Density Pay Factor'!R13","v":false}]
[null,null,null,null,null,null,null,null,null,null,null,null,null,null,null,"Production or Non-Random Gmm collected during Density-Only Test Strip within Tolerance?:",{"$f":"IF('HMA Density Pay Factor'!R14=FALSE,TRUE,FALSE)","v":false}]
[null,"Overall Test Strip Approval and Material Acceptance"]
[null,"Test Strip:",null,null,{"$f":"IFERROR(_xlfn.IFS(\n  'Project Info & Instructions'!$D$35=INTERNAL_SYS_VAR!$B$7, IF(OR(S5:S8), INTERNAL_SYS_MSGS!$B$70, IF(OR(Q5:Q10), INTERNAL_SYS_MSGS!$B$69, IF(O5, INTERNAL_SYS_MSGS!$B$68, INTERNAL_SYS_MSGS!$B$67))),\n  'Project Info & Instructions'!$D$35=INTERNAL_SYS_VAR!$B$8, IF(S6, INTERNAL_SYS_MSGS!$B$70, IF(OR(Q8,Q10,Q11), INTERNAL_SYS_MSGS!$B$69, INTERNAL_SYS_MSGS!$B$67)),\n  'Project Info & Instructions'!$D$35=INTERNAL_SYS_VAR!$B$9, IF(OR(S5, S7:S8), INTERNAL_SYS_MSGS!$B$70, IF(OR(Q5:Q7, Q9), INTERNAL_SYS_MSGS!$B$69, IF(O5, INTERNAL_SYS_MSGS!$B$68, INTERNAL_SYS_MSGS!$B$67))),\n  TRUE, \"\"\n),\"\")","v":""}]
[null,"Material:",null,null,{"$f":"IFERROR(_xlfn.IFS(\n  'Project Info & Instructions'!$D$35=INTERNAL_SYS_VAR!$B$7, IF(OR(S5:S8), INTERNAL_SYS_MSGS!$B$73, IF(OR(Q5,Q7:Q9,Q11), INTERNAL_SYS_MSGS!$B$72,INTERNAL_SYS_MSGS!$B$71)),\n  'Project Info & Instructions'!$D$35=INTERNAL_SYS_VAR!$B$8, IF(S6, INTERNAL_SYS_MSGS!$B$73, IF(OR(Q8,Q11),INTERNAL_SYS_MSGS!$B$72, INTERNAL_SYS_MSGS!$B$71)),\n  'Project Info & Instructions'!$D$35=INTERNAL_SYS_VAR!$B$9, IF(OR(S5, S7:S8), INTERNAL_SYS_MSGS!$B$73, IF(OR(Q5,Q7,Q9),INTERNAL_SYS_MSGS!$B$72, INTERNAL_SYS_MSGS!$B$71)),\n  TRUE, \"\"\n),\"\")","v":""}]
[null,"Volumetrics"]
[null,"Split Sample Comparison"]
[null,"Gmm Split Sample t-test Results:",null,null,{"$f":"IF('HMA Split Sample Comparison'!$V$6<6,\"\",IF('HMA Split Sample Comparison'!$AB$11,INTERNAL_SYS_MSGS!$B$9,INTERNAL_SYS_MSGS!$B$10))","v":""}]
[null,"Gmm Average Differences (Xd Mean) Within Tolerance?",null,null,{"$f":"IF('HMA Split Sample Comparison'!$V$6<6,\"\",IF('HMA Split Sample Comparison'!$AB$9,INTERNAL_SYS_MSGS!$B$8,INTERNAL_SYS_MSGS!$B$7))","v":""}]
[null,"All Gmms within JMF Acceptance Limit?",null,null,{"$f":"IF('HMA Split Sample Comparison'!$V$6<6,\"\",IF('HMA Split Sample Comparison'!$AB$7,INTERNAL_SYS_MSGS!$B$11,INTERNAL_SYS_MSGS!$B$12))","v":""}]
[null,"Gmb Split Sample t-test Results:",null,null,{"$f":"IF('HMA Split Sample Comparison'!$V$7<6,\"\",IF('HMA Split Sample Comparison'!$AB$12,INTERNAL_SYS_MSGS!$B$9,INTERNAL_SYS_MSGS!$B$10))","v":""}]
[null,"Gmb Average Differences (Xd Mean) Within Tolerance?",null,null,{"$f":"IF('HMA Split Sample Comparison'!$V$7<6,\"\",IF('HMA Split Sample Comparison'!$AB$10,INTERNAL_SYS_MSGS!$B$8,INTERNAL_SYS_MSGS!$B$7))","v":""}]
[null,"Split Sample Comparison Conclusion:",null,null,{"$f":"'HMA Split Sample Comparison'!$AA$14","v":""}]
[null,"Air Voids"]
[null,"Air Voids Test Strip Tonnage:",null,null,{"$f":"IF(ISBLANK('Project Info & Instructions'!$D$43),\"\",'HMA Air Voids Pay Factor'!$U$12)","v":""}]
[null,"PWL:",null,null,{"$f":"IF('HMA Air Voids Pay Factor'!$S$12=\"\",\"\",'HMA Air Voids Pay Factor'!$S$12)","v":""}]
[null,"Pay Factor:",null,null,{"$f":"IF('HMA Air Voids Pay Factor'!$T$12=\"\",\"\",'HMA Air Voids Pay Factor'!$T$12)","v":""}]
[null,{"$f":"_xlfn.IFS(E27=\"\", \"Air Voids Net Pay Adjustment:\", E27>=0, \"460.2010 Incentive Air Voids Net Pay Adjustment:\", TRUE, \"804.2015 Disincentive Air Voids Net Pay Adjustment:\")","v":"Air Voids Net Pay Adjustment:"},null,null,{"$f":"IF('HMA Air Voids Pay Factor'!$V$12=\"\",\"\",'HMA Air Voids Pay Factor'!$V$12)","v":""}]
[null,"Air Voids Conclusion:",null,null,{"$f":"'HMA Air Voids Pay Factor'!$Z$2","v":""}]
[null,"Asphalt Content"]
[null,"Asphalt Content Conclusion:",null,null,{"$f":"'HMA AC % Data'!$AA$8","v":""}]
[null,"Gradation and VMA"]
[null,"Gradation Conclusion:",null,null,{"$f":"'HMA Mix Acceptance'!$J$26","v":""}]
[null,"VMA Conclusion:",null,null,{"$f":"'HMA Mix Acceptance'!$L$26","v":""}]
[null,"Density"]
[null,"Density Test Strip Tonnage:",null,null,{"$f":"'HMA Density Pay Factor'!$N$12","v":""}]
[null,"PWL:",null,null,{"$f":"'HMA Density Pay Factor'!$L$12","v":""}]
[null,"Pay Factor:",null,null,{"$f":"'HMA Density Pay Factor'!$M$12","v":""}]
[null,{"$f":"_xlfn.IFS(E27=\"\", \"Density Net Pay Adjustment:\", E27>=0, \"460.2005 Incentive Density Net Pay Adjustment:\", TRUE, \"804.2010 Disincentive Density Net Pay Adjustment:\")","v":"Density Net Pay Adjustment:"},null,null,{"$f":"'HMA Density Pay Factor'!$O$12","v":""}]
[null,"Production or Non-Random Gmm within JMF Acceptance Limit?",null,null,{"$f":"'HMA Core Data'!$AF$5","v":""}]
[null,"Density Conclusion:",null,null,{"$f":"'HMA Density Pay Factor'!$S$2","v":""}]
[null,"Nuclear Density Gauge Correlation"]
[null,"Gauge ID","Technician","Gauge Serial #","Core Spread (%)","Gauge Spread (%)","Gauge Comp. Avg.","Correlation R2","Gauge Recommendation","Gauge Offset"]
[null,"QC-1",{"$f":"IF('QC-1 Density Worksheet'!K8=\"\",\"Enter Tech Info\",'QC-1 Density Worksheet'!K8)","v":"Enter Tech Info"},{"$f":"IF('QC-1 Density Worksheet'!O7=\"\",\"Enter Serial #\",'QC-1 Density Worksheet'!O7)","v":"Enter Serial #"},{"$f":"'QC-1 Correlation'!$Q$24","v":0},{"$f":"'QC-1 Correlation'!O24","v":0},{"$f":"IF('Gauge-Core Variability'!C40=\"\",\"\",'Gauge-Core Variability'!C40)","v":""},{"$f":"'QC-1 Correlation'!U14","v":""},{"$f":"IF(G43=\"\",\"\",IF(G43>=1,\"SUSPECT GAUGE\",IF(G43>G44,\"Secondary QC\",IF(G43<G44,\"Primary QC\",IF(G43=G44,IF(H43>H44,\"Primary QC\",\"Secondary QC\"))))))","v":""},{"$f":"'QC-1 Correlation'!F26","v":""}]
[null,"QC-2",{"$f":"IF('QC-2 Density Worksheet'!K8=\"\",\"Enter Tech Info\",'QC-2 Density Worksheet'!K8)","v":"Enter Tech Info"},{"$f":"IF('QC-2 Density Worksheet'!O7=\"\",\"Enter Serial #\",'QC-2 Density Worksheet'!O7)","v":"Enter Serial #"},null,{"$f":"'QC-2 Correlation'!O24","v":0},{"$f":"IF('Gauge-Core Variability'!D40=\"\",\"\",'Gauge-Core Variability'!D40)","v":""},{"$f":"'QC-2 Correlation'!U14","v":""},{"$f":"IF(G44=\"\",\"\",IF(G44>=1,\"SUSPECT GAUGE\",IF(G44>G43,\"Secondary QC\",IF(G44<G43,\"Primary QC\",IF(G44=G43,IF(H44>H43,\"Primary QC\",\"Secondary QC\"))))))","v":""},{"$f":"'QC-2 Correlation'!F26","v":""}]
[null,"QV-1",{"$f":"IF('QV-1 Density Worksheet'!K9=\"\",\"Enter Tech Info\",'QV-1 Density Worksheet'!K9)","v":"Enter Tech Info"},{"$f":"IF('QV-1 Density Worksheet'!O7=\"\",\"Enter Serial #\",'QV-1 Density Worksheet'!O7)","v":"Enter Serial #"},null,{"$f":"'QV-1 Correlation'!O24","v":0},{"$f":"IF('Gauge-Core Variability'!E40=\"\",\"\",'Gauge-Core Variability'!E40)","v":""},{"$f":"'QV-1 Correlation'!U14","v":""},{"$f":"IF(G45=\"\",\"\",IF(G45>=1,\"SUSPECT GAUGE\",IF(G45>G46,\"Secondary QV\",IF(G45<G46,\"Primary QV\",IF(G45=G46,IF(H45>H46,\"Primary QV\",\"Secondary QV\"))))))","v":""},{"$f":"'QV-1 Correlation'!F26","v":""}]
[null,"QV-2",{"$f":"IF('QV-2 Density Worksheet'!K9=\"\",\"Enter Tech Info\",'QV-2 Density Worksheet'!K9)","v":"Enter Tech Info"},{"$f":"IF('QV-2 Density Worksheet'!O7=\"\",\"Enter Serial #\",'QV-2 Density Worksheet'!O7)","v":"Enter Serial #"},null,{"$f":"'QV-2 Correlation'!O24","v":0},{"$f":"IF('Gauge-Core Variability'!F40=\"\",\"\",'Gauge-Core Variability'!F40)","v":""},{"$f":"'QV-2 Correlation'!U14","v":""},{"$f":"IF(G46=\"\",\"\",IF(G46>=1,\"SUSPECT GAUGE\",IF(G46>G45,\"Secondary QV\",IF(G46<G45,\"Primary QV\",IF(G46=G45,IF(H46>H45,\"Primary QV\",\"Secondary QV\"))))))","v":""},{"$f":"'QV-2 Correlation'!F26","v":""}]
[]
[null,"Resolutions:"]

{"sheet":"SMA Test Strip Summary","index":14,"n_rows":42,"n_cols":19,"rows_kept":42,"cut":false,"hidden":true,"merged":[[32,1,32,3],[32,4,32,9],[0,1,3,1],[3,15,3,16],[3,17,3,18],[5,2,5,3],[5,5,5,6],[5,8,5,9],[3,13,3,14],[12,1,12,3],[12,4,12,9],[6,2,6,3],[6,5,6,6],[6,8,6,9],[7,2,7,3],[7,5,7,6],[7,8,7,9],[8,2,8,3],[8,5,8,6],[8,8,8,9],[9,5,9,6],[11,1,11,9],[20,1,20,3],[20,4,20,9],[16,1,16,3],[16,4,16,9],[13,1,13,3],[13,4,13,9],[14,1,14,9],[15,1,15,9],[17,1,17,3],[17,4,17,9],[18,1,18,3],[18,4,18,9],[19,1,19,9],[26,1,26,9],[21,1,21,3],[21,4,21,9],[22,1,22,3],[22,4,22,9],[23,1,23,3],[23,4,23,9],[24,1,24,9],[25,1,25,3],[25,4,25,9],[31,1,31,3],[31,4,31,9],[27,1,27,3],[27,4,27,9],[28,1,28,3],[28,4,28,9],[29,1,29,9],[30,1,30,3],[30,4,30,9],[41,2,46,9],[33,1,33,3],[33,4,33,9],[34,1,34,9],[36,4,39,4]]}
[null,{"$error":"#VALUE!"}]
[null,null,"SMA Test Strip Summary",null,null,null,null,null,null,null,null,"Controls"]
[null,null,"Wisconsin Department of Transportation"]
[null,null,null,null,null,null,null,null,null,null,null,null,null,"Approved - Flags that Require TSS Rep. & BTS Review",null,"Not Approved - Nonconforming Flags that Require TSS Rep. & BTS Review",null,"Not Approved - Unacceptable Flags"]
[null,null,null,null,null,null,null,null,null,null,null,null,null,"Any Asphalt Contents Differences greater than 0.2?",{"$f":"'SMA AC % Data'!X10","v":"N/A"},"Split Sample Comparison Failing?",{"$f":"_xlfn.SWITCH('SMA Split Sample Comparison'!$T$6,\"N/A\",FALSE,TRUE,FALSE,FALSE,TRUE)","v":false},"Unacceptable Air Voids?",{"$f":"IF('SMA Air Voids Pay Factor'!$T$16=\"N/A\",\"N/A\",'SMA Air Voids Pay Factor'!$T$16)","v":"N/A"}]
[null,"Contract ID:",{"$f":"IF(ISBLANK('Project Info & Instructions'!$D$7),\"\",'Project Info & Instructions'!$D$7)","v":""},null,"Test Strip #:",{"$f":"IF(ISBLANK('Project Info & Instructions'!$D$14),\"\",'Project Info & Instructions'!$D$14)","v":""},null,"Paving Width (ft):",{"$f":"IF(ISBLANK('Project Info & Instructions'!$H$9),\"\",'Project Info & Instructions'!$H$9)","v":""},null,null,null,null,"Nonconforming BTS Air Voids (minor)?",{"$f":"'SMA Split Sample Comparison'!R16","v":"N/A"},"Nonconforming BTS Air Voids (major)?",{"$f":"'SMA Split Sample Comparison'!$R$17","v":"N/A"},"Unacceptable Density?",{"$f":"IF('SMA Density Pay Factor'!$F$12=\"\",\"N/A\",IF('SMA Density Pay Factor'!$F$12<90,TRUE,FALSE))","v":"N/A"}]
[null,"Project ID:",{"$f":"IF(ISBLANK('Project Info & Instructions'!$D$8),\"\",'Project Info & Instructions'!$D$8)","v":""},null,"Route/Road:",{"$f":"IF(ISBLANK('Project Info & Instructions'!$D$10),\"\",'Project Info & Instructions'!$D$10)","v":""},null,"Lane Width (ft):",{"$f":"IF(ISBLANK('Project Info & Instructions'!$H$10),\"\",'Project Info & Instructions'!$H$10)","v":""},null,null,null,null,null,null,"Gradation Outside Acceptance Limits?",{"$f":"IF(SUM('SMA Mix Acceptance'!J22:K22)<1,\"N/A\",IF(COUNTIF('SMA Mix Acceptance'!J8:K14,FALSE)>0,TRUE,FALSE))","v":"N/A"},"Unacceptable Asphalt Content?",{"$f":"IF('SMA AC % Data'!$AB$6=\"N/A\",\"N/A\",IF('SMA AC % Data'!$AB$6=TRUE,FALSE,TRUE))","v":"N/A"}]
[null,"WisDOT Mix Design ID:",{"$f":"IF(ISBLANK('Project Info & Instructions'!$D$26),\"\",'Project Info & Instructions'!$D$26)","v":""},null,"Pavement Layer:",{"$f":"IF(ISBLANK('Project Info & Instructions'!$H$7),\"\",'Project Info & Instructions'!$H$7)","v":""},null,"Nominal Thickness (in):",{"$f":"IF(ISBLANK('Project Info & Instructions'!$H$11),\"\",'Project Info & Instructions'!$H$11)","v":""},null,null,null,null,null,null,"Nonconforming Density?",{"$f":"IF('SMA Density Pay Factor'!$F$12=\"\",\"N/A\",IF('SMA Density Pay Factor'!$F$12<91,TRUE,FALSE))","v":"N/A"},"Unacceptable VMA?",{"$f":"IF(SUM('SMA Mix Acceptance'!J22:K22)<1,\"N/A\",IF(COUNTIF('SMA Mix Acceptance'!J21:K21,FALSE)>0,TRUE,FALSE))","v":"N/A"}]
[null,"Mix Type:",{"$f":"IF('Project Info & Instructions'!$D$31=\"\",\"\",'Project Info & Instructions'!$D$31)","v":"--"},null,"Underlying Layer:",{"$f":"IF(ISBLANK('Project Info & Instructions'!$H$8),\"\",'Project Info & Instructions'!$H$8)","v":""},null,"Contract Unit Price:",{"$f":"IF(ISBLANK('Project Info & Instructions'!$H$31),\"\",'Project Info & Instructions'!$H$31)","v":""},null,null,null,null,null,null,"Too Many Suspect Cores? (Acceptable Gauge Correlation)",{"$f":"'SMA Density Pay Factor'!$M$13","v":false}]
[null,null,null,null,"Test Strip Type:",{"$f":"IF(ISBLANK('Project Info & Instructions'!$D$35),\"\",'Project Info & Instructions'!$D$35)","v":""}]
[]
[null,"Overall Test Strip Approval and Material Acceptance"]
[null,"Test Strip:",null,null,{"$f":"IFERROR(_xlfn.IFS(\n  'Project Info & Instructions'!$D$35=INTERNAL_SYS_VAR!$B$7, IF(OR(S5:S8), INTERNAL_SYS_MSGS!$B$70, IF(OR(Q5:Q9), INTERNAL_SYS_MSGS!$B$69, IF(OR(O5:O6),INTERNAL_SYS_MSGS!$B$68, INTERNAL_SYS_MSGS!$B$67))),\n  'Project Info & Instructions'!$D$35=INTERNAL_SYS_VAR!$B$8, IF(S6, INTERNAL_SYS_MSGS!$B$70, IF(Q9, INTERNAL_SYS_MSGS!$B$69, INTERNAL_SYS_MSGS!$B$67)),\n  'Project Info & Instructions'!$D$35=INTERNAL_SYS_VAR!$B$9, IF(OR(S5, S7:S8), INTERNAL_SYS_MSGS!$B$70, IF(OR(Q5:Q7), INTERNAL_SYS_MSGS!$B$69,IF(OR(O5:O6),INTERNAL_SYS_MSGS!$B$68, INTERNAL_SYS_MSGS!$B$67))),\n  TRUE, \"\"\n),\"\")","v":""}]
[null,"Material:",null,null,{"$f":"IFERROR(_xlfn.IFS(\n  'Project Info & Instructions'!$D$35=INTERNAL_SYS_VAR!$B$7, IF(OR(S5:S8), INTERNAL_SYS_MSGS!$B$73, IF(OR(Q6:Q8, O6), INTERNAL_SYS_MSGS!$B$72, INTERNAL_SYS_MSGS!$B$71)),\n  'Project Info & Instructions'!$D$35=INTERNAL_SYS_VAR!$B$8, IF(S6, INTERNAL_SYS_MSGS!$B$73, IF(Q8, INTERNAL_SYS_MSGS!$B$72, INTERNAL_SYS_MSGS!$B$71)),\n  'Project Info & Instructions'!$D$35=INTERNAL_SYS_VAR!$B$9, IF(OR(S5, S7:S8), INTERNAL_SYS_MSGS!$B$73, IF(OR(Q6:Q7, O6), INTERNAL_SYS_MSGS!$B$72 INTERNAL_SYS_MSGS!$B$71)),\n  TRUE, \"\"\n),\"\")","v":""}]
[null,"Volumetrics"]
[null,"Split Sample Comparison"]
[null,"Gmm Differences Within Tolerance?",null,null,{"$f":"IF('SMA Split Sample Comparison'!$N$6<2,\"\",IF('SMA Split Sample Comparison'!$T$7,INTERNAL_SYS_MSGS!$B$18,INTERNAL_SYS_MSGS!$B$17))","v":""}]
[null,"Gmb Differences Within Tolerance?",null,null,{"$f":"IF('SMA Split Sample Comparison'!$N$7<2,\"\",IF('SMA Split Sample Comparison'!$T$8,INTERNAL_SYS_MSGS!$B$20,INTERNAL_SYS_MSGS!$B$19))","v":""}]
[null,"Split Sample Comparison Conclusion:",null,null,{"$f":"'SMA Split Sample Comparison'!$S$10","v":""}]
[null,"Air Voids"]
[null,"Air Voids Test Strip Tonnage:",null,null,{"$f":"IF(COUNT('SMA Air Voids Pay Factor'!$G$12:$G$15)<4,\"\",IF(ISBLANK('Project Info & Instructions'!$D$43),INTERNAL_SYS_MSGS!$B$43,'Project Info & Instructions'!$D$43))","v":""}]
[null,"Nonconforming / Unacceptable Tonnage:",null,null,{"$f":"IF(COUNT('SMA Air Voids Pay Factor'!$G$12:$G$15)<4,\"\",SUM('SMA Air Voids Pay Factor'!$K$12:$K$13))","v":""}]
[null,"Air Voids Net Pay Adjustment:",null,null,{"$f":"IF('SMA Air Voids Pay Factor'!$N$12=\"\",\"\",'SMA Air Voids Pay Factor'!$N$12)","v":""}]
[null,"Air Voids Conclusion:",null,null,{"$f":"'SMA Air Voids Pay Factor'!$U$11","v":""}]
[null,"Asphalt Content"]
[null,"Asphalt Content Conclusion:",null,null,{"$f":"'SMA AC % Data'!$AA$8","v":""}]
[null,"Gradation and VMA"]
[null,"Gradation Conclusion:",null,null,{"$f":"'SMA Mix Acceptance'!$I$24","v":""}]
[null,"VMA Conclusion:",null,null,{"$f":"'SMA Mix Acceptance'!$K$24","v":""}]
[null,"Density"]
[null,"Density Test Strip Tonnage:",null,null,{"$f":"'SMA Density Pay Factor'!$I$12","v":""}]
[null,"Density Net Pay Adjustment:",null,null,{"$f":"'SMA Density Pay Factor'!$J$12","v":""}]
[null,"Average Core Density (%):",null,null,{"$f":"IF('SMA Density Pay Factor'!$F$12=\"\",\"\",'SMA Density Pay Factor'!$F$12)","v":""}]
[null,"Density Conclusion:",null,null,{"$f":"'SMA Density Pay Factor'!$N$2","v":""}]
[null,"Nuclear Density Gauge Correlation"]
[null,"Gauge ID","Technician","Gauge Serial #","Core Spread (%)","Gauge Spread (%)","Gauge Comp. Avg.","Correlation R2","Gauge Recommendation","Gauge Offset"]
[null,"QC-1",{"$f":"IF('QC-1 Density Worksheet'!K8=\"\",\"Enter Tech Info\",'QC-1 Density Worksheet'!K8)","v":"Enter Tech Info"},{"$f":"IF('QC-1 Density Worksheet'!O7=\"\",\"Enter Serial #\",'QC-1 Density Worksheet'!O7)","v":"Enter Serial #"},{"$f":"'QC-1 Correlation'!$Q$24","v":0},{"$f":"'QC-1 Correlation'!O24","v":0},{"$f":"IF('Gauge-Core Variability'!C40=\"\",\"\",'Gauge-Core Variability'!C40)","v":""},{"$f":"'QC-1 Correlation'!U14","v":""},{"$f":"IF(G37=\"\",\"\",IF(G37>=1,\"SUSPECT GAUGE\",IF(G37>G38,\"Secondary QC\",IF(G37<G38,\"Primary QC\",IF(G37=G38,IF(H37>H38,\"Primary QC\",\"Secondary QC\"))))))","v":""},{"$f":"'QC-1 Correlation'!F26","v":""}]
[null,"QC-2",{"$f":"IF('QC-2 Density Worksheet'!K8=\"\",\"Enter Tech Info\",'QC-2 Density Worksheet'!K8)","v":"Enter Tech Info"},{"$f":"IF('QC-2 Density Worksheet'!O7=\"\",\"Enter Serial #\",'QC-2 Density Worksheet'!O7)","v":"Enter Serial #"},null,{"$f":"'QC-2 Correlation'!O24","v":0},{"$f":"IF('Gauge-Core Variability'!D40=\"\",\"\",'Gauge-Core Variability'!D40)","v":""},{"$f":"'QC-2 Correlation'!U14","v":""},{"$f":"IF(G38=\"\",\"\",IF(G38>=1,\"SUSPECT GAUGE\",IF(G38>G37,\"Secondary QC\",IF(G38<G37,\"Primary QC\",IF(G38=G37,IF(H38>H37,\"Primary QC\",\"Secondary QC\"))))))","v":""},{"$f":"'QC-2 Correlation'!F26","v":""}]
[null,"QV-1",{"$f":"IF('QV-1 Density Worksheet'!K9=\"\",\"Enter Tech Info\",'QV-1 Density Worksheet'!K9)","v":"Enter Tech Info"},{"$f":"IF('QV-1 Density Worksheet'!O7=\"\",\"Enter Serial #\",'QV-1 Density Worksheet'!O7)","v":"Enter Serial #"},null,{"$f":"'QV-1 Correlation'!O24","v":0},{"$f":"IF('Gauge-Core Variability'!E40=\"\",\"\",'Gauge-Core Variability'!E40)","v":""},{"$f":"'QV-1 Correlation'!U14","v":""},{"$f":"IF(G39=\"\",\"\",IF(G39>=1,\"SUSPECT GAUGE\",IF(G39>G40,\"Secondary QV\",IF(G39<G40,\"Primary QV\",IF(G39=G40,IF(H39>H40,\"Primary QV\",\"Secondary QV\"))))))","v":""},{"$f":"'QV-1 Correlation'!F26","v":""}]
[null,"QV-2",{"$f":"IF('QV-2 Density Worksheet'!K9=\"\",\"Enter Tech Info\",'QV-2 Density Worksheet'!K9)","v":"Enter Tech Info"},{"$f":"IF('QV-2 Density Worksheet'!O7=\"\",\"Enter Serial #\",'QV-2 Density Worksheet'!O7)","v":"Enter Serial #"},null,{"$f":"'QV-2 Correlation'!O24","v":0},{"$f":"IF('Gauge-Core Variability'!F40=\"\",\"\",'Gauge-Core Variability'!F40)","v":""},{"$f":"'QV-2 Correlation'!U14","v":""},{"$f":"IF(G40=\"\",\"\",IF(G40>=1,\"SUSPECT GAUGE\",IF(G40>G39,\"Secondary QV\",IF(G40<G39,\"Primary QV\",IF(G40=G39,IF(H40>H39,\"Primary QV\",\"Secondary QV\"))))))","v":""},{"$f":"'QV-2 Correlation'!F26","v":""}]
[]
[null,"Resolutions:"]

{"sheet":"Gauge-Core Variability","index":15,"n_rows":42,"n_cols":24,"rows_kept":42,"cut":false,"hidden":true,"merged":[[5,9,5,11],[6,9,6,11],[7,9,7,11],[8,9,8,11],[5,14,5,17],[6,14,6,17],[7,14,7,17],[8,14,8,17],[0,1,3,1],[5,3,5,5],[6,3,6,5],[43,5,43,7],[12,2,12,5],[26,2,26,5],[9,3,9,5],[7,3,7,5],[8,3,8,5],[13,22,13,23],[11,15,11,24],[26,17,26,20],[12,17,12,20],[38,2,38,5],[13,7,13,9],[38,17,38,20],[27,7,41,12],[13,11,24,13]]}
[null,{"$error":"#VALUE!"}]
[null,null,"Gauge-Core Variability"]
[null,null,"Wisconsin Department of Transportation"]
[]
[]
[null,null,"Contract:",{"$f":"IF('Project Info & Instructions'!D7=\"\",\"\",'Project Info & Instructions'!D7)","v":""},null,null,null,null,"Test Strip #:",{"$f":"IF('Project Info & Instructions'!D14=\"\",\"\",'Project Info & Instructions'!D14)","v":""},null,null,null,"Paving Width (ft):",{"$f":"IF('Project Info & Instructions'!H9=\"\",\"\",'Project Info & Instructions'!H9)","v":""}]
[null,null,"Job No./Project ID:",{"$f":"IF('Project Info & Instructions'!D8=\"\",\"\",'Project Info & Instructions'!D8)","v":""},null,null,null,null,"Route/Road:",{"$f":"IF('Project Info & Instructions'!D10=\"\",\"\",'Project Info & Instructions'!D10)","v":""},null,null,null,"Lane Width (ft):",{"$f":"IF('Project Info & Instructions'!H10=\"\",\"\",'Project Info & Instructions'!H10)","v":""}]
[null,null,"WisDOT Mix No.:",{"$f":"IF('Project Info & Instructions'!D26=\"\",\"\",'Project Info & Instructions'!D26)","v":""},null,null,null,null,"Test Strip Layer:",{"$f":"IF('Project Info & Instructions'!H7=\"\",\"\",'Project Info & Instructions'!H7)","v":""},null,null,null,"Nominal Thickness (in):",{"$f":"IF('Project Info & Instructions'!H11=\"\",\"\",'Project Info & Instructions'!H11)","v":""}]
[null,null,"Mix Type:",{"$f":"IF('Project Info & Instructions'!D31=\"\",\"\",'Project Info & Instructions'!D31)","v":"--"},null,null,null,null,"Underlying Layer:",{"$f":"IF('Project Info & Instructions'!H8=\"\",\"\",'Project Info & Instructions'!H8)","v":""},null,null,null,"Contract Unit Price:",{"$f":"IF('Project Info & Instructions'!H31=\"\",\"\",'Project Info & Instructions'!H31)","v":""}]
[null,null,"Core Data Used:",{"$f":"IF('HMA Core Data'!$AE$5=1,\"QC\",\"QV\")","v":"QC"}]
[]
[null,null,null,null,null,null,null,null,null,null,null,null,null,null,null,"Original Data Including Removed Cores"]
[null,null,"Nuclear Density Gauge Adjusted Difference",null,null,null,null,null,null,null,null,null,null,null,null,null,null,"Nuclear Density Gauge Adjusted Difference"]
[null,null,"QC-1","QC-2","QV-1","QV-2",null,"Location Comparison",null,null,null,{"$f":"INTERNAL_SYS_MSGS!$B$77","v":"Location Comparison Averages (shown in cells G12 - G21) ≥ 1.0 or ≤ -1.0 indicate a core that may be damaged.  In such cases the individual core can be removed from the analysis by checking the \"Remove Core X\" box on the Core Data tab of this spreadsheet."},null,null,null,null,null,"QC-1","QC-2","QV-1","QV-2",null,"Location Comparison"]
[null,"Core",{"$f":"'HMA Test Strip Summary'!D43","v":"Enter Serial #"},{"$f":"'HMA Test Strip Summary'!D44","v":"Enter Serial #"},{"$f":"'HMA Test Strip Summary'!D45","v":"Enter Serial #"},{"$f":"'HMA Test Strip Summary'!D46","v":"Enter Serial #"},null,"Average","Std. Dev.","Suspect Core?",null,null,null,null,null,null,"Core",{"$f":"'HMA Test Strip Summary'!D43","v":"Enter Serial #"},{"$f":"'HMA Test Strip Summary'!D44","v":"Enter Serial #"},{"$f":"'HMA Test Strip Summary'!D45","v":"Enter Serial #"},{"$f":"'HMA Test Strip Summary'!D46","v":"Enter Serial #"},null,"Average","Std. Dev."]
[null,{"$f":"'QC-1 Correlation'!I14","v":""},{"$f":"'QC-1 Correlation'!T14","v":""},{"$f":"'QC-2 Correlation'!T14","v":""},{"$f":"'QV-1 Correlation'!T14","v":""},{"$f":"'QV-2 Correlation'!T14","v":""},null,{"$f":"IF(COUNT(C16:F16)=0,\"\",ROUND(AVERAGE(C16:F16),1))","v":""},{"$f":"IF(COUNT(C16:F16)=0,\"\",STDEV(C16:F16))","v":""},{"$f":"IF(H16=\"\",\"\",IF(OR(H16>=1,H16<=-1),\"Suspect Core\",\"\"))","v":""},null,null,null,null,null,null,{"$f":"B16","v":""},{"$f":"'QC-1 Correlation'!AH4","v":""},{"$f":"'QC-2 Correlation'!AH4","v":""},{"$f":"'QV-1 Correlation'!AH4","v":""},{"$f":"'QV-2 Correlation'!AH4","v":""},null,{"$f":"IF(COUNT(R16:U16)=0,\"\",ROUND(AVERAGE(R16:U16),1))","v":""},{"$f":"IF(COUNT(R16:U16)=0,\"\",STDEV(R16:U16))","v":""}]
[null,{"$f":"'QC-1 Correlation'!I15","v":""},{"$f":"'QC-1 Correlation'!T15","v":""},{"$f":"'QC-2 Correlation'!T15","v":""},{"$f":"'QV-1 Correlation'!T15","v":""},{"$f":"'QV-2 Correlation'!T15","v":""},null,"",{"$f":"IF(COUNT(C17:F17)=0,\"\",STDEV(C17:F17))","v":""},"",null,null,null,null,null,null,{"$f":"B17","v":""},{"$f":"'QC-1 Correlation'!AH5","v":""},{"$f":"'QC-2 Correlation'!AH5","v":""},{"$f":"'QV-1 Correlation'!AH5","v":""},{"$f":"'QV-2 Correlation'!AH5","v":""},null,"",{"$f":"IF(COUNT(R17:U17)=0,\"\",STDEV(R17:U17))","v":""}]
[null,{"$f":"'QC-1 Correlation'!I16","v":""},{"$f":"'QC-1 Correlation'!T16","v":""},{"$f":"'QC-2 Correlation'!T16","v":""},{"$f":"'QV-1 Correlation'!T16","v":""},{"$f":"'QV-2 Correlation'!T16","v":""},null,"","","",null,null,null,null,null,null,"",{"$f":"'QC-1 Correlation'!AH6","v":""},{"$f":"'QC-2 Correlation'!AH6","v":""},{"$f":"'QV-1 Correlation'!AH6","v":""},{"$f":"'QV-2 Correlation'!AH6","v":""},null,"",""]
[null,{"$f":"'QC-1 Correlation'!I17","v":""},{"$f":"'QC-1 Correlation'!T17","v":""},{"$f":"'QC-2 Correlation'!T17","v":""},{"$f":"'QV-1 Correlation'!T17","v":""},{"$f":"'QV-2 Correlation'!T17","v":""},null,"","","",null,null,null,null,null,null,"",{"$f":"'QC-1 Correlation'!AH7","v":""},{"$f":"'QC-2 Correlation'!AH7","v":""},{"$f":"'QV-1 Correlation'!AH7","v":""},{"$f":"'QV-2 Correlation'!AH7","v":""},null,"",""]
[null,{"$f":"'QC-1 Correlation'!I18","v":""},{"$f":"'QC-1 Correlation'!T18","v":""},{"$f":"'QC-2 Correlation'!T18","v":""},{"$f":"'QV-1 Correlation'!T18","v":""},{"$f":"'QV-2 Correlation'!T18","v":""},null,"","","",null,null,null,null,null,null,"",{"$f":"'QC-1 Correlation'!AH8","v":""},{"$f":"'QC-2 Correlation'!AH8","v":""},{"$f":"'QV-1 Correlation'!AH8","v":""},{"$f":"'QV-2 Correlation'!AH8","v":""},null,"",""]
[null,{"$f":"'QC-1 Correlation'!I19","v":""},{"$f":"'QC-1 Correlation'!T19","v":""},{"$f":"'QC-2 Correlation'!T19","v":""},{"$f":"'QV-1 Correlation'!T19","v":""},{"$f":"'QV-2 Correlation'!T19","v":""},null,"","","",null,null,null,null,null,null,"",{"$f":"'QC-1 Correlation'!AH9","v":""},{"$f":"'QC-2 Correlation'!AH9","v":""},{"$f":"'QV-1 Correlation'!AH9","v":""},{"$f":"'QV-2 Correlation'!AH9","v":""},null,"",""]
[null,{"$f":"'QC-1 Correlation'!I20","v":""},{"$f":"'QC-1 Correlation'!T20","v":""},{"$f":"'QC-2 Correlation'!T20","v":""},{"$f":"'QV-1 Correlation'!T20","v":""},{"$f":"'QV-2 Correlation'!T20","v":""},null,"","","",null,null,null,null,null,null,"",{"$f":"'QC-1 Correlation'!AH10","v":""},{"$f":"'QC-2 Correlation'!AH10","v":""},{"$f":"'QV-1 Correlation'!AH10","v":""},{"$f":"'QV-2 Correlation'!AH10","v":""},null,"",""]
[null,{"$f":"'QC-1 Correlation'!I21","v":""},{"$f":"'QC-1 Correlation'!T21","v":""},{"$f":"'QC-2 Correlation'!T21","v":""},{"$f":"'QV-1 Correlation'!T21","v":""},{"$f":"'QV-2 Correlation'!T21","v":""},null,"","","",null,null,null,null,null,null,"",{"$f":"'QC-1 Correlation'!AH11","v":""},{"$f":"'QC-2 Correlation'!AH11","v":""},{"$f":"'QV-1 Correlation'!AH11","v":""},{"$f":"'QV-2 Correlation'!AH11","v":""},null,"",""]
[null,{"$f":"'QC-1 Correlation'!I22","v":""},{"$f":"'QC-1 Correlation'!T22","v":""},{"$f":"'QC-2 Correlation'!T22","v":""},{"$f":"'QV-1 Correlation'!T22","v":""},{"$f":"'QV-2 Correlation'!T22","v":""},null,"","","",null,null,null,null,null,null,"",{"$f":"'QC-1 Correlation'!AH12","v":""},{"$f":"'QC-2 Correlation'!AH12","v":""},{"$f":"'QV-1 Correlation'!AH12","v":""},{"$f":"'QV-2 Correlation'!AH12","v":""},null,"",""]
[null,{"$f":"'QC-1 Correlation'!I23","v":""},{"$f":"'QC-1 Correlation'!T23","v":""},{"$f":"'QC-2 Correlation'!T23","v":""},{"$f":"'QV-1 Correlation'!T23","v":""},{"$f":"'QV-2 Correlation'!T23","v":""},null,"","","",null,null,null,null,null,null,"",{"$f":"'QC-1 Correlation'!AH13","v":""},{"$f":"'QC-2 Correlation'!AH13","v":""},{"$f":"'QV-1 Correlation'!AH13","v":""},{"$f":"'QV-2 Correlation'!AH13","v":""},null,"",""]
[]
[null,"Core","Absolute Value",null,null,null,null,null,null,null,null,null,null,null,null,null,"Core","Absolute Value"]
[null,{"$f":"B16","v":""},{"$f":"IF(C16=\"\",\"\",ABS(C16))","v":""},{"$f":"IF(D16=\"\",\"\",ABS(D16))","v":""},"","",null,{"$f":"INTERNAL_SYS_MSGS!$B$78&\" \n\"&INTERNAL_SYS_MSGS!$B$79","v":"A Gauge Comparison Average (shown in cells B36, C36, D36, and E36) ≥ 1.0 indicates a gauge that has erratic readings.  In such cases the gauge in question should be removed from the project and further diagnostics should be performed in coordination with the WisDOT Radiation Safety Officer (RSO). \n WisDOT RSO Contact: \nBrian Jandrin\nBrian.Jandrin@dot.wi.gov\n(608) 516-6359, Primary"},null,null,null,null,null,null,null,null,{"$f":"Q16","v":""},{"$f":"IF(R16=\"\",\"\",ABS(R16))","v":""},{"$f":"IF(S16=\"\",\"\",ABS(S16))","v":""},"",""]
[null,{"$f":"B17","v":""},{"$f":"IF(C17=\"\",\"\",ABS(C17))","v":""},"","","",null,null,null,null,null,null,null,null,null,null,{"$f":"Q17","v":""},{"$f":"IF(R17=\"\",\"\",ABS(R17))","v":""},"","",""]
[null,"",{"$f":"IF(C18=\"\",\"\",ABS(C18))","v":""},"","","",null,null,null,null,null,null,null,null,null,null,"",{"$f":"IF(R18=\"\",\"\",ABS(R18))","v":""},"","",""]
[null,"",{"$f":"IF(C19=\"\",\"\",ABS(C19))","v":""},"","","",null,null,null,null,null,null,null,null,null,null,"",{"$f":"IF(R19=\"\",\"\",ABS(R19))","v":""},"","",""]
[null,"",{"$f":"IF(C20=\"\",\"\",ABS(C20))","v":""},"","","",null,null,null,null,null,null,null,null,null,null,"",{"$f":"IF(R20=\"\",\"\",ABS(R20))","v":""},"","",""]
[null,"",{"$f":"IF(C21=\"\",\"\",ABS(C21))","v":""},"","","",null,null,null,null,null,null,null,null,null,null,"",{"$f":"IF(R21=\"\",\"\",ABS(R21))","v":""},"","",""]
[null,"",{"$f":"IF(C22=\"\",\"\",ABS(C22))","v":""},"","","",null,null,null,null,null,null,null,null,null,null,"",{"$f":"IF(R22=\"\",\"\",ABS(R22))","v":""},"","",""]
[null,"",{"$f":"IF(C23=\"\",\"\",ABS(C23))","v":""},"","","",null,null,null,null,null,null,null,null,null,null,"",{"$f":"IF(R23=\"\",\"\",ABS(R23))","v":""},"","",""]
[null,"",{"$f":"IF(C24=\"\",\"\",ABS(C24))","v":""},"","","",null,null,null,null,null,null,null,null,null,null,"",{"$f":"IF(R24=\"\",\"\",ABS(R24))","v":""},"","",""]
[null,"",{"$f":"IF(C25=\"\",\"\",ABS(C25))","v":""},"","","",null,null,null,null,null,null,null,null,null,null,"",{"$f":"IF(R25=\"\",\"\",ABS(R25))","v":""},"","",""]
[]
[null,null,"Gauge Comparison",null,null,null,null,null,null,null,null,null,null,null,null,null,null,"Gauge Comparison"]
[null,"Average:",{"$f":"IF(SUM(C28:C37)<0.0001,\"\",ROUND(AVERAGE(C28:C37),1))","v":""},{"$f":"IF(SUM(D28:D37)<0.0001,\"\",ROUND(AVERAGE(D28:D37),1))","v":""},{"$f":"IF(SUM(E28:E37)<0.0001,\"\",ROUND(AVERAGE(E28:E37),1))","v":""},{"$f":"IF(SUM(F28:F37)<0.0001,\"\",ROUND(AVERAGE(F28:F37),1))","v":""},null,null,null,null,null,null,null,null,null,null,"Average:",{"$f":"IF(SUM(R28:R37)<0.0001,\"\",ROUND(AVERAGE(R28:R37),1))","v":""},{"$f":"IF(SUM(S28:S37)<0.0001,\"\",ROUND(AVERAGE(S28:S37),1))","v":""},{"$f":"IF(SUM(T28:T37)<0.0001,\"\",ROUND(AVERAGE(T28:T37),1))","v":""},{"$f":"IF(SUM(U28:U37)<0.0001,\"\",ROUND(AVERAGE(U28:U37),1))","v":""}]
[null,"Std. Dev.:",{"$f":"IF(SUM(C28:C37)<0.0001,\"\",STDEV(C28:C37))","v":""},{"$f":"IF(SUM(D28:D37)<0.0001,\"\",STDEV(D28:D37))","v":""},"","",null,null,null,null,null,null,null,null,null,null,"Std. Dev.:",{"$f":"IF(SUM(R28:R37)<0.0001,\"\",STDEV(R28:R37))","v":""},{"$f":"IF(SUM(S28:S37)<0.0001,\"\",STDEV(S28:S37))","v":""},"",""]
[null,"Suspect Gauge?",{"$f":"IF(C40=\"\",\"\",IF(C40>=1,\"Suspect Gauge\",\"\"))","v":""},{"$f":"IF(D40=\"\",\"\",IF(D40>=1,\"Suspect Gauge\",\"\"))","v":""},{"$f":"IF(E40=\"\",\"\",IF(E40>=1,\"Suspect Gauge\",\"\"))","v":""},{"$f":"IF(F40=\"\",\"\",IF(F40>=1,\"Suspect Gauge\",\"\"))","v":""}]

{"sheet":"QC-1 Density Worksheet","index":16,"n_rows":27,"n_cols":30,"rows_kept":27,"cut":false,"hidden":true,"merged":[[27,1,34,16],[8,3,8,5],[8,7,8,8],[21,15,21,16],[20,15,20,16],[19,15,19,16],[18,15,18,16],[10,10,10,12],[14,11,14,13],[8,10,8,12],[14,5,14,7],[14,8,14,10],[11,10,11,12],[12,10,12,12],[16,1,20,1],[21,1,25,1],[17,15,17,16],[16,15,16,16],[26,1,26,16],[25,15,25,16],[24,15,24,16],[23,15,23,16],[22,15,22,16],[14,29,15,29],[14,19,14,21],[14,22,14,25],[4,14,4,16],[15,15,15,16],[14,14,14,16],[13,14,13,16],[12,14,12,16],[11,14,11,16],[10,14,10,16],[9,14,9,16],[8,14,8,16],[5,14,5,16],[7,14,7,16],[6,14,6,16],[0,2,4,3],[14,26,14,28],[14,18,15,18],[13,10,13,12],[6,3,6,5],[7,3,7,5],[7,10,7,12],[6,7,6,8],[7,7,7,8],[9,1,13,8],[8,1,8,2],[7,1,7,2],[6,1,6,2],[14,1,14,4],[15,1,15,2],[6,10,6,12]]}
[null,null,{"$error":"#VALUE!"}]
[]
[null,null,null,null,"DENSITY TEST STRIP WORKSHEET QC-1"]
[null,null,null,null,"Wisconsin Department of Transportation"]
[null,null,null,null,null,null,null,null,null,null,null,null,null,"Density Standard:"]
[null,null,null,null,null,null,null,null,null,null,null,null,null,"Moisture Standard:"]
[null,"Project ID:",null,{"$f":"IF('Project Info & Instructions'!D8=\"\",\"\",'Project Info & Instructions'!D8)","v":""},null,null,"Road Name:",{"$f":"IF('Project Info & Instructions'!D10=\"\",\"\",'Project Info & Instructions'!D10)","v":""},null,"Contractor:",{"$f":"IF('Project Info & Instructions'!D11=\"\",\"\",'Project Info & Instructions'!D11)","v":""},null,null,"Gauge Serial #:"]
[null,"Project Leader:",null,{"$f":"IF('Project Info & Instructions'!D12=\"\",\"\",'Project Info & Instructions'!D12)","v":""},null,null,"County:",{"$f":"IF('Project Info & Instructions'!D9=\"\",\"\",'Project Info & Instructions'!D9)","v":""},null,"QC Technician:",null,null,null,"WisDOT Mix #:",{"$f":"IF('Project Info & Instructions'!D26=\"\",\"\",'Project Info & Instructions'!D26)","v":""}]
[null,"Test Strip:",null,{"$f":"IF(ISBLANK('Project Info & Instructions'!$D$14),\"\",'Project Info & Instructions'!$D$14)","v":""},null,null,"Layer:",{"$f":"IF('Project Info & Instructions'!$H$7=\"\",\"\",'Project Info & Instructions'!$H$7)","v":""},null,"QV Technician:","N/A",null,null,"Mix Type:",{"$f":"IF('Project Info & Instructions'!D31=\"\",\"\",'Project Info & Instructions'!D31)","v":"--"}]
[null,"• Offsets are predetermined according to the test strip layout in WisDOT's Manual of Test Procedures WTP H-002.\n• Gauge offset is set to ZERO since offsets will be determined from the test strip.\n• The Target Max Gmm is the average from the 3 split samples, except for a density only test strip, then it is the daily average Gmm from production.\n• Calculated per WisDOT's Manual of Test Procedures WTM T355.",null,null,null,null,null,null,null,"Start:",{"$f":"IF('Project Info & Instructions'!H12=\"\",\"\",'Project Info & Instructions'!H12)","v":""},"End:",{"$f":"IF('Project Info & Instructions'!$H$13=INTERNAL_SYS_MSGS!$B$4,\"\",'Project Info & Instructions'!$H$13)","v":""},"Target Gmm:",{"$f":"IF('Project Info & Instructions'!$D$35=INTERNAL_SYS_VAR!$B$8,'Project Info & Instructions'!$D$52,IF('Project Info & Instructions'!$D$27<>INTERNAL_SYS_VAR!$C$10,'HMA Air Voids Pay Factor'!$E$16,'SMA Air Voids Pay Factor'!$E$17))","v":""}]
[null,null,null,null,null,null,null,null,null,"Length (ft):",{"$f":"_xlfn.SWITCH('Project Info & Instructions'!$H$15,INTERNAL_SYS_VAR!$X$8,'Project Info & Instructions'!$H$16,INTERNAL_SYS_VAR!$X$9,'Project Info & Instructions'!$H$17,\"\")","v":""},null,null,"Target Max Density (PCF):",{"$f":"IF(O10=\"\",\"\",ROUND(O10*62.24,1))","v":""}]
[null,null,null,null,null,null,null,null,null,"Lane Width (ft):",{"$f":"IF('Project Info & Instructions'!H10=\"\",\"\",'Project Info & Instructions'!H10)","v":""},null,null,"Required Density %:",{"$f":"IF('Project Info & Instructions'!D47=\"\",\"\",'Project Info & Instructions'!D47)","v":"More Information Needed"}]
[null,null,null,null,null,null,null,null,null,"Thickness (in):",{"$f":"IF('Project Info & Instructions'!H11=\"\",\"\",'Project Info & Instructions'!H11)","v":""},null,null,"Date Placed:",{"$f":"IF('Project Info & Instructions'!D13=\"\",\"\",'Project Info & Instructions'!D13)","v":""}]
[null,null,null,null,null,null,null,null,null,"Gauge Offset:",0,null,null,"Date Tested:",{"$f":"IF('Project Info & Instructions'!D13=\"\",\"\",'Project Info & Instructions'!D13)","v":""}]
[null,"Testing Locations",null,null,null,"Reading 1",null,null,"Reading  2 (rotate 180)",null,null,"Reading  3 (if needed, original orientation)",null,null,"Final Density",null,null,null,"Lot/Sublot ID","Rounded Readings (0.1 pcf)",null,null,"Variation from Avg",null,null,null,"Filter Outlier",null,null,"Nuc Avg Excluding Outlier (pcf)"]
[null,"Lot / Sublot ID",null,"Station","Offset from CL","M Count / \nD Count","Wet Density 1             ","% Max Density 1","M Count / \nD Count","Wet Density 2            ","% Max Density 2","M Count / \nD Count","Wet Density 3             ","% Max Density 3","Average PCF","% Max Density",null,null,null,"Reading 1","Reading 2","Reading 3","Rounded Average of Readings (pcf)","Reading 1","Reading 2","Reading 3","Read 1","Read 2","Read 3"]
[null,"Zone 1",{"$f":"'HMA Core Data'!B14","v":""},{"$f":"IF($D$19=\"\",\"\",IF(INTERNAL_SYS_VAR!$Y$8=TRUE,$D$19-2*INTERNAL_SYS_VAR!$C$20,$D$19+2*INTERNAL_SYS_VAR!$C$20))","v":-100},{"$f":"IF('Project Info & Instructions'!H10=\"\",\"\",1.5)","v":""},null,null,{"$f":"IF(OR(G17=\"\",$O$11=\"\"),\"\",ROUND((T17/$O$11),3))","v":""},null,null,{"$f":"IF(OR(J17=\"\",$O$11=\"\"),\"\",ROUND((U17/$O$11),3))","v":""},null,null,{"$f":"IF(OR(M17=\"\",$O$11=\"\"),\"\",ROUND((V17/$O$11),3))","v":""},{"$f":"IF(H17=\"\",\"\",AD17)","v":""},{"$f":"IF(H17=\"\",\"\",ROUND((O17/$O$11),3))","v":""},null,null,{"$f":"C17","v":""},{"$f":"IF(G17=\"\",\"\",ROUND(G17,1))","v":""},{"$f":"IF(J17=\"\",\"\",ROUND(J17,1))","v":""},{"$f":"IF(M17=\"\",\"\",ROUND(M17,1))","v":""},{"$f":"IFERROR(IF(ROUND(ABS(T17-U17),1)>1,ROUND(AVERAGE(T17:V17),1),ROUND(AVERAGE(T17:U17),1)),\"\")","v":""},{"$f":"IFERROR(ABS(ROUND(W17-T17,1)),NA())","v":{"$error":"#N/A"}},{"$f":"IFERROR(ABS(ROUND(W17-U17,1)),NA())","v":{"$error":"#N/A"}},{"$f":"IFERROR(ABS(ROUND(W17-V17,1)),NA())","v":{"$error":"#N/A"}},{"$f":"IF(X17=_xlfn.AGGREGATE(4,6,X17:Z17),0,T17)","v":{"$error":"#N/A"}},{"$f":"IF(Y17=_xlfn.AGGREGATE(4,6,X17:Z17),0,U17)","v":{"$error":"#N/A"}},{"$f":"IF(Z17=_xlfn.AGGREGATE(4,6,X17:Z17),0,V17)","v":{"$error":"#N/A"}},{"$f":"IFERROR(IF(OR(COUNT(T17:V17)<3,ROUND(ABS(T17-U17),1)<=1),ROUND(W17,1),IF(AND(COUNT(T17:V17)=3,OR(T17=W17,U17=W17,V17=W17)),ROUND(W17,1),IF(COUNTIF(AA17:AC17,\"=0\")=2,ROUND(W17,1),ROUND(AVERAGEIF(AA17:AC17,\">0\"),1)))),\"\")","v":""}]
[null,null,{"$f":"'HMA Core Data'!B15","v":""},{"$f":"IF($D19=\"\",\"\",IF(INTERNAL_SYS_VAR!$Y$8=TRUE,$D$19-INTERNAL_SYS_VAR!$C$20,$D$19+INTERNAL_SYS_VAR!$C$20))","v":-50},{"$f":"IF('Project Info & Instructions'!H10=\"\",\"\",3.5)","v":""},null,null,"",null,null,"",null,null,"","",{"$f":"IF(H18=\"\",\"\",ROUND((O18/$O$11),3))","v":""},null,null,"","","","",{"$f":"IFERROR(IF(ROUND(ABS(T18-U18),1)>1,ROUND(AVERAGE(T18:V18),1),ROUND(AVERAGE(T18:U18),1)),\"\")","v":""},{"$f":"IFERROR(ABS(ROUND(W18-T18,1)),NA())","v":{"$error":"#N/A"}},{"$f":"IFERROR(ABS(ROUND(W18-U18,1)),NA())","v":{"$error":"#N/A"}},{"$f":"IFERROR(ABS(ROUND(W18-V18,1)),NA())","v":{"$error":"#N/A"}},{"$f":"IF(X18=_xlfn.AGGREGATE(4,6,X18:Z18),0,T18)","v":{"$error":"#N/A"}},{"$f":"IF(Y18=_xlfn.AGGREGATE(4,6,X18:Z18),0,U18)","v":{"$error":"#N/A"}},{"$f":"IF(Z18=_xlfn.AGGREGATE(4,6,X18:Z18),0,V18)","v":{"$error":"#N/A"}},{"$f":"IFERROR(IF(OR(COUNT(T18:V18)<3,ROUND(ABS(T18-U18),1)<=1),ROUND(W18,1),IF(AND(COUNT(T18:V18)=3,OR(T18=W18,U18=W18,V18=W18)),ROUND(W18,1),IF(COUNTIF(AA18:AC18,\"=0\")=2,ROUND(W18,1),ROUND(AVERAGEIF(AA18:AC18,\">0\"),1)))),\"\")","v":""}]
[null,null,{"$f":"'HMA Core Data'!B16","v":""},{"$f":"'Project Info & Instructions'!$D$49","v":0},{"$f":"IF('Project Info & Instructions'!H10=\"\",\"\",'Project Info & Instructions'!H10/2)","v":""},null,null,"",null,null,"",null,null,"","","",null,null,"","","","","",{"$error":"#N/A"},{"$error":"#N/A"},{"$error":"#N/A"},{"$error":"#N/A"},{"$error":"#N/A"},{"$error":"#N/A"},""]
[null,null,{"$f":"'HMA Core Data'!B17","v":""},{"$f":"IF($D$19=\"\",\"\",IF(INTERNAL_SYS_VAR!$Y$8=TRUE,$D$19+INTERNAL_SYS_VAR!$C$20,$D$19-INTERNAL_SYS_VAR!$C$20))","v":50},{"$f":"IF('Project Info & Instructions'!H10=\"\",\"\",'Project Info & Instructions'!H10-3.5)","v":""},null,null,"",null,null,"",null,null,"","","",null,null,"","","","","",{"$error":"#N/A"},{"$error":"#N/A"},{"$error":"#N/A"},{"$error":"#N/A"},{"$error":"#N/A"},{"$error":"#N/A"},""]
[null,null,{"$f":"'HMA Core Data'!B18","v":""},{"$f":"IF($D$19=\"\",\"\",IF(INTERNAL_SYS_VAR!$Y$8=TRUE,$D$19+2*INTERNAL_SYS_VAR!$C$20,$D$19-2*INTERNAL_SYS_VAR!$C$20))","v":100},{"$f":"IF('Project Info & Instructions'!H10=\"\",\"\",'Project Info & Instructions'!H10-1.5)","v":""},null,null,"",null,null,"",null,null,"","","",null,null,"","","","","",{"$error":"#N/A"},{"$error":"#N/A"},{"$error":"#N/A"},{"$error":"#N/A"},{"$error":"#N/A"},{"$error":"#N/A"},""]
[null,"Zone 2",{"$f":"'HMA Core Data'!B21","v":""},{"$f":"IF($D$24=\"\",\"\",IF(INTERNAL_SYS_VAR!$Y$8=TRUE,$D$24-2*INTERNAL_SYS_VAR!$C$20,$D$24+2*INTERNAL_SYS_VAR!$C$20))","v":-100},{"$f":"E17","v":""},null,null,"",null,null,"",null,null,"","","",null,null,"","","","","",{"$error":"#N/A"},{"$error":"#N/A"},{"$error":"#N/A"},{"$error":"#N/A"},{"$error":"#N/A"},{"$error":"#N/A"},""]
[null,null,{"$f":"'HMA Core Data'!B22","v":""},{"$f":"IF($D$24=\"\",\"\",IF(INTERNAL_SYS_VAR!$Y$8=TRUE,$D$24-INTERNAL_SYS_VAR!$C$20,$D$24+INTERNAL_SYS_VAR!$C$20))","v":-50},{"$f":"E18","v":""},null,null,"",null,null,"",null,null,"","","",null,null,"","","","","",{"$error":"#N/A"},{"$error":"#N/A"},{"$error":"#N/A"},{"$error":"#N/A"},{"$error":"#N/A"},{"$error":"#N/A"},""]
[null,null,{"$f":"'HMA Core Data'!B23","v":""},{"$f":"'Project Info & Instructions'!$D$50","v":0},{"$f":"E19","v":""},null,null,"",null,null,"",null,null,"","","",null,null,"","","","","",{"$error":"#N/A"},{"$error":"#N/A"},{"$error":"#N/A"},{"$error":"#N/A"},{"$error":"#N/A"},{"$error":"#N/A"},""]
[null,null,{"$f":"'HMA Core Data'!B24","v":""},{"$f":"IF($D$24=\"\",\"\",IF(INTERNAL_SYS_VAR!$Y$8=TRUE,$D$24+INTERNAL_SYS_VAR!$C$20,$D$24-INTERNAL_SYS_VAR!$C$20))","v":50},{"$f":"E20","v":""},null,null,"",null,null,"",null,null,"","","",null,null,"","","","","",{"$error":"#N/A"},{"$error":"#N/A"},{"$error":"#N/A"},{"$error":"#N/A"},{"$error":"#N/A"},{"$error":"#N/A"},""]
[null,null,{"$f":"'HMA Core Data'!B25","v":""},{"$f":"IF($D$24=\"\",\"\",IF(INTERNAL_SYS_VAR!$Y$8=TRUE,$D$24+2*INTERNAL_SYS_VAR!$C$20,$D$24-2*INTERNAL_SYS_VAR!$C$20))","v":100},{"$f":"E21","v":""},null,null,"",null,null,"",null,null,"","","",null,null,"","","","","",{"$error":"#N/A"},{"$error":"#N/A"},{"$error":"#N/A"},{"$error":"#N/A"},{"$error":"#N/A"},{"$error":"#N/A"},""]
[null,"   Target Max Density = Gmm x 62.24                                                                                                                                                                                          Test Remarks"]

{"sheet":"QC-2 Density Worksheet","index":17,"n_rows":27,"n_cols":30,"rows_kept":27,"cut":false,"hidden":true,"merged":[[0,2,4,3],[4,14,4,16],[5,14,5,16],[6,1,6,2],[6,3,6,5],[6,7,6,8],[6,10,6,12],[6,14,6,16],[8,1,8,2],[8,3,8,5],[8,7,8,8],[8,10,8,12],[8,14,8,16],[7,1,7,2],[7,3,7,5],[7,7,7,8],[7,10,7,12],[7,14,7,16],[9,1,13,8],[9,14,9,16],[10,10,10,12],[10,14,10,16],[11,10,11,12],[11,14,11,16],[12,10,12,12],[12,14,12,16],[13,10,13,12],[13,14,13,16],[14,19,14,21],[14,22,14,25],[14,26,14,28],[14,29,15,29],[15,1,15,2],[15,15,15,16],[14,1,14,4],[14,5,14,7],[14,8,14,10],[14,11,14,13],[14,14,14,16],[14,18,15,18],[16,1,20,1],[16,15,16,16],[17,15,17,16],[18,15,18,16],[19,15,19,16],[20,15,20,16],[26,1,26,16],[27,1,34,16],[21,1,25,1],[21,15,21,16],[22,15,22,16],[23,15,23,16],[24,15,24,16],[25,15,25,16]]}
[null,null,{"$error":"#VALUE!"}]
[]
[null,null,null,null,"DENSITY TEST STRIP WORKSHEET QC-2"]
[null,null,null,null,"Wisconsin Department of Transportation"]
[null,null,null,null,null,null,null,null,null,null,null,null,null,"Density Standard:"]
[null,null,null,null,null,null,null,null,null,null,null,null,null,"Moisture Standard:"]
[null,"Project ID:",null,{"$f":"IF('Project Info & Instructions'!D8=\"\",\"\",'Project Info & Instructions'!D8)","v":""},null,null,"Road Name:",{"$f":"IF('Project Info & Instructions'!D10=\"\",\"\",'Project Info & Instructions'!D10)","v":""},null,"Contractor:",{"$f":"IF('Project Info & Instructions'!D11=\"\",\"\",'Project Info & Instructions'!D11)","v":""},null,null,"Gauge Serial #:"]
[null,"Project Leader:",null,{"$f":"IF('Project Info & Instructions'!D12=\"\",\"\",'Project Info & Instructions'!D12)","v":""},null,null,"County:",{"$f":"IF('Project Info & Instructions'!D9=\"\",\"\",'Project Info & Instructions'!D9)","v":""},null,"QC Technician:",null,null,null,"WisDOT Mix #:",{"$f":"IF('Project Info & Instructions'!D26=\"\",\"\",'Project Info & Instructions'!D26)","v":""}]
[null,"Test Strip:",null,{"$f":"IF(ISBLANK('Project Info & Instructions'!$D$14),\"\",'Project Info & Instructions'!$D$14)","v":""},null,null,"Layer:",{"$f":"IF('Project Info & Instructions'!$H$7=\"\",\"\",'Project Info & Instructions'!$H$7)","v":""},null,"QV Technician:","N/A",null,null,"Mix Type:",{"$f":"IF('Project Info & Instructions'!D31=\"\",\"\",'Project Info & Instructions'!D31)","v":"--"}]
[null,"• Offsets are predetermined according to the test strip layout in WisDOT's Manual of Test Procedures WTP H-002.\n• Gauge offset is set to ZERO since offsets will be determined from the test strip.\n• The Target Max Gmm is the average from the 3 split samples, except for a density only test strip, then it is the daily average Gmm from production.\n• Calculated per WisDOT's Manual of Test Procedures WTM T355.",null,null,null,null,null,null,null,"Start:",{"$f":"IF('Project Info & Instructions'!H12=\"\",\"\",'Project Info & Instructions'!H12)","v":""},"End:",{"$f":"IF('Project Info & Instructions'!$H$13=INTERNAL_SYS_MSGS!$B$4,\"\",'Project Info & Instructions'!$H$13)","v":""},"Target Gmm:",{"$f":"IF('Project Info & Instructions'!$D$35=INTERNAL_SYS_VAR!$B$8,'Project Info & Instructions'!$D$52,IF('Project Info & Instructions'!$D$27<>INTERNAL_SYS_VAR!$C$10,'HMA Air Voids Pay Factor'!$E$16,'SMA Air Voids Pay Factor'!$E$17))","v":""}]
[null,null,null,null,null,null,null,null,null,"Length (ft):",{"$f":"_xlfn.SWITCH('Project Info & Instructions'!$H$15,INTERNAL_SYS_VAR!$X$8,'Project Info & Instructions'!$H$16,INTERNAL_SYS_VAR!$X$9,'Project Info & Instructions'!$H$17,\"\")","v":""},null,null,"Target Max Density (PCF):",{"$f":"IF(O10=\"\",\"\",ROUND(O10*62.24,1))","v":""}]
[null,null,null,null,null,null,null,null,null,"Lane Width (ft):",{"$f":"IF('Project Info & Instructions'!H10=\"\",\"\",'Project Info & Instructions'!H10)","v":""},null,null,"Required Density %:",{"$f":"IF('Project Info & Instructions'!D47=\"\",\"\",'Project Info & Instructions'!D47)","v":"More Information Needed"}]
[null,null,null,null,null,null,null,null,null,"Thickness (in):",{"$f":"IF('Project Info & Instructions'!H11=\"\",\"\",'Project Info & Instructions'!H11)","v":""},null,null,"Date Placed:",{"$f":"IF('Project Info & Instructions'!D13=\"\",\"\",'Project Info & Instructions'!D13)","v":""}]
[null,null,null,null,null,null,null,null,null,"Gauge Offset:",0,null,null,"Date Tested:",{"$f":"IF('Project Info & Instructions'!D13=\"\",\"\",'Project Info & Instructions'!D13)","v":""}]
[null,"Testing Locations",null,null,null,"Reading 1",null,null,"Reading  2 (rotate 180)",null,null,"Reading  3 (if needed, original orientation)",null,null,"Final Density",null,null,null,"Lot/Sublot ID","Rounded Readings (0.1 pcf)",null,null,"Variation from Avg",null,null,null,"Filter Outlier",null,null,"Nuc Avg Excluding Outlier (pcf)"]
[null,"Lot / Sublot ID",null,"Station","Offset from CL","M Count / \nD Count","Wet Density 1             ","% Max Density 1","M Count / \nD Count","Wet Density 2            ","% Max Density 2","M Count / \nD Count","Wet Density 3             ","% Max Density 3","Average PCF","% Max Density",null,null,null,"Reading 1","Reading 2","Reading 3","Rounded Average of Readings (pcf)","Reading 1","Reading 2","Reading 3","Read 1","Read 2","Read 3"]
[null,"Zone 1",{"$f":"'HMA Core Data'!B14","v":""},{"$f":"IF($D$19=\"\",\"\",IF(INTERNAL_SYS_VAR!$Y$8=TRUE,$D$19-2*INTERNAL_SYS_VAR!$C$20,$D$19+2*INTERNAL_SYS_VAR!$C$20))","v":-100},{"$f":"IF('Project Info & Instructions'!H10=\"\",\"\",1.5)","v":""},null,null,{"$f":"IF(OR(G17=\"\",$O$11=\"\"),\"\",ROUND((T17/$O$11),3))","v":""},null,null,{"$f":"IF(OR(J17=\"\",$O$11=\"\"),\"\",ROUND((U17/$O$11),3))","v":""},null,null,{"$f":"IF(OR(M17=\"\",$O$11=\"\"),\"\",ROUND((V17/$O$11),3))","v":""},{"$f":"IF(H17=\"\",\"\",AD17)","v":""},{"$f":"IF(H17=\"\",\"\",ROUND((O17/$O$11),3))","v":""},null,null,{"$f":"C17","v":""},{"$f":"IF(G17=\"\",\"\",ROUND(G17,1))","v":""},{"$f":"IF(J17=\"\",\"\",ROUND(J17,1))","v":""},{"$f":"IF(M17=\"\",\"\",ROUND(M17,1))","v":""},{"$f":"IFERROR(IF(ROUND(ABS(T17-U17),1)>1,ROUND(AVERAGE(T17:V17),1),ROUND(AVERAGE(T17:U17),1)),\"\")","v":""},{"$f":"IFERROR(ABS(ROUND(W17-T17,1)),NA())","v":{"$error":"#N/A"}},{"$f":"IFERROR(ABS(ROUND(W17-U17,1)),NA())","v":{"$error":"#N/A"}},{"$f":"IFERROR(ABS(ROUND(W17-V17,1)),NA())","v":{"$error":"#N/A"}},{"$f":"IF(X17=_xlfn.AGGREGATE(4,6,X17:Z17),0,T17)","v":{"$error":"#N/A"}},{"$f":"IF(Y17=_xlfn.AGGREGATE(4,6,X17:Z17),0,U17)","v":{"$error":"#N/A"}},{"$f":"IF(Z17=_xlfn.AGGREGATE(4,6,X17:Z17),0,V17)","v":{"$error":"#N/A"}},{"$f":"IFERROR(IF(OR(COUNT(T17:V17)<3,ROUND(ABS(T17-U17),1)<=1),ROUND(W17,1),IF(AND(COUNT(T17:V17)=3,OR(T17=W17,U17=W17,V17=W17)),ROUND(W17,1),IF(COUNTIF(AA17:AC17,\"=0\")=2,ROUND(W17,1),ROUND(AVERAGEIF(AA17:AC17,\">0\"),1)))),\"\")","v":""}]
[null,null,{"$f":"'HMA Core Data'!B15","v":""},{"$f":"IF($D19=\"\",\"\",IF(INTERNAL_SYS_VAR!$Y$8=TRUE,$D$19-INTERNAL_SYS_VAR!$C$20,$D$19+INTERNAL_SYS_VAR!$C$20))","v":-50},{"$f":"IF('Project Info & Instructions'!H10=\"\",\"\",3.5)","v":""},null,null,"",null,null,"",null,null,"","",{"$f":"IF(H18=\"\",\"\",ROUND((O18/$O$11),3))","v":""},null,null,"","","","",{"$f":"IFERROR(IF(ROUND(ABS(T18-U18),1)>1,ROUND(AVERAGE(T18:V18),1),ROUND(AVERAGE(T18:U18),1)),\"\")","v":""},{"$f":"IFERROR(ABS(ROUND(W18-T18,1)),NA())","v":{"$error":"#N/A"}},{"$f":"IFERROR(ABS(ROUND(W18-U18,1)),NA())","v":{"$error":"#N/A"}},{"$f":"IFERROR(ABS(ROUND(W18-V18,1)),NA())","v":{"$error":"#N/A"}},{"$f":"IF(X18=_xlfn.AGGREGATE(4,6,X18:Z18),0,T18)","v":{"$error":"#N/A"}},{"$f":"IF(Y18=_xlfn.AGGREGATE(4,6,X18:Z18),0,U18)","v":{"$error":"#N/A"}},{"$f":"IF(Z18=_xlfn.AGGREGATE(4,6,X18:Z18),0,V18)","v":{"$error":"#N/A"}},{"$f":"IFERROR(IF(OR(COUNT(T18:V18)<3,ROUND(ABS(T18-U18),1)<=1),ROUND(W18,1),IF(AND(COUNT(T18:V18)=3,OR(T18=W18,U18=W18,V18=W18)),ROUND(W18,1),IF(COUNTIF(AA18:AC18,\"=0\")=2,ROUND(W18,1),ROUND(AVERAGEIF(AA18:AC18,\">0\"),1)))),\"\")","v":""}]
[null,null,{"$f":"'HMA Core Data'!B16","v":""},{"$f":"'Project Info & Instructions'!$D$49","v":0},{"$f":"IF('Project Info & Instructions'!H10=\"\",\"\",'Project Info & Instructions'!H10/2)","v":""},null,null,"",null,null,"",null,null,"","","",null,null,"","","","","",{"$error":"#N/A"},{"$error":"#N/A"},{"$error":"#N/A"},{"$error":"#N/A"},{"$error":"#N/A"},{"$error":"#N/A"},""]
[null,null,{"$f":"'HMA Core Data'!B17","v":""},{"$f":"IF($D$19=\"\",\"\",IF(INTERNAL_SYS_VAR!$Y$8=TRUE,$D$19+INTERNAL_SYS_VAR!$C$20,$D$19-INTERNAL_SYS_VAR!$C$20))","v":50},{"$f":"IF('Project Info & Instructions'!H10=\"\",\"\",'Project Info & Instructions'!H10-3.5)","v":""},null,null,"",null,null,"",null,null,"","","",null,null,"","","","","",{"$error":"#N/A"},{"$error":"#N/A"},{"$error":"#N/A"},{"$error":"#N/A"},{"$error":"#N/A"},{"$error":"#N/A"},""]
[null,null,{"$f":"'HMA Core Data'!B18","v":""},{"$f":"IF($D$19=\"\",\"\",IF(INTERNAL_SYS_VAR!$Y$8=TRUE,$D$19+2*INTERNAL_SYS_VAR!$C$20,$D$19-2*INTERNAL_SYS_VAR!$C$20))","v":100},{"$f":"IF('Project Info & Instructions'!H10=\"\",\"\",'Project Info & Instructions'!H10-1.5)","v":""},null,null,"",null,null,"",null,null,"","","",null,null,"","","","","",{"$error":"#N/A"},{"$error":"#N/A"},{"$error":"#N/A"},{"$error":"#N/A"},{"$error":"#N/A"},{"$error":"#N/A"},""]
[null,"Zone 2",{"$f":"'HMA Core Data'!B21","v":""},{"$f":"IF($D$24=\"\",\"\",IF(INTERNAL_SYS_VAR!$Y$8=TRUE,$D$24-2*INTERNAL_SYS_VAR!$C$20,$D$24+2*INTERNAL_SYS_VAR!$C$20))","v":-100},{"$f":"E17","v":""},null,null,"",null,null,"",null,null,"","","",null,null,"","","","","",{"$error":"#N/A"},{"$error":"#N/A"},{"$error":"#N/A"},{"$error":"#N/A"},{"$error":"#N/A"},{"$error":"#N/A"},""]
[null,null,{"$f":"'HMA Core Data'!B22","v":""},{"$f":"IF($D$24=\"\",\"\",IF(INTERNAL_SYS_VAR!$Y$8=TRUE,$D$24-INTERNAL_SYS_VAR!$C$20,$D$24+INTERNAL_SYS_VAR!$C$20))","v":-50},{"$f":"E18","v":""},null,null,"",null,null,"",null,null,"","","",null,null,"","","","","",{"$error":"#N/A"},{"$error":"#N/A"},{"$error":"#N/A"},{"$error":"#N/A"},{"$error":"#N/A"},{"$error":"#N/A"},""]
[null,null,{"$f":"'HMA Core Data'!B23","v":""},{"$f":"'Project Info & Instructions'!$D$50","v":0},{"$f":"E19","v":""},null,null,"",null,null,"",null,null,"","","",null,null,"","","","","",{"$error":"#N/A"},{"$error":"#N/A"},{"$error":"#N/A"},{"$error":"#N/A"},{"$error":"#N/A"},{"$error":"#N/A"},""]
[null,null,{"$f":"'HMA Core Data'!B24","v":""},{"$f":"IF($D$24=\"\",\"\",IF(INTERNAL_SYS_VAR!$Y$8=TRUE,$D$24+INTERNAL_SYS_VAR!$C$20,$D$24-INTERNAL_SYS_VAR!$C$20))","v":50},{"$f":"E20","v":""},null,null,"",null,null,"",null,null,"","","",null,null,"","","","","",{"$error":"#N/A"},{"$error":"#N/A"},{"$error":"#N/A"},{"$error":"#N/A"},{"$error":"#N/A"},{"$error":"#N/A"},""]
[null,null,{"$f":"'HMA Core Data'!B25","v":""},{"$f":"IF($D$24=\"\",\"\",IF(INTERNAL_SYS_VAR!$Y$8=TRUE,$D$24+2*INTERNAL_SYS_VAR!$C$20,$D$24-2*INTERNAL_SYS_VAR!$C$20))","v":100},{"$f":"E21","v":""},null,null,"",null,null,"",null,null,"","","",null,null,"","","","","",{"$error":"#N/A"},{"$error":"#N/A"},{"$error":"#N/A"},{"$error":"#N/A"},{"$error":"#N/A"},{"$error":"#N/A"},""]
[null,"   Target Max Density = Gmm x 62.24                                                                                                                                                                                          Test Remarks"]

{"sheet":"QV-1 Density Worksheet","index":18,"n_rows":27,"n_cols":30,"rows_kept":27,"cut":false,"hidden":true,"merged":[[0,2,4,3],[4,14,4,16],[5,14,5,16],[6,1,6,2],[6,3,6,5],[6,7,6,8],[6,10,6,12],[6,14,6,16],[8,1,8,2],[8,3,8,5],[8,7,8,8],[8,10,8,12],[8,14,8,16],[7,1,7,2],[7,3,7,5],[7,7,7,8],[7,10,7,12],[7,14,7,16],[9,1,13,8],[9,14,9,16],[10,10,10,12],[10,14,10,16],[11,10,11,12],[11,14,11,16],[12,10,12,12],[12,14,12,16],[13,10,13,12],[13,14,13,16],[14,19,14,21],[14,22,14,25],[14,26,14,28],[14,29,15,29],[15,1,15,2],[15,15,15,16],[14,1,14,4],[14,5,14,7],[14,8,14,10],[14,11,14,13],[14,14,14,16],[14,18,15,18],[16,1,20,1],[16,15,16,16],[17,15,17,16],[18,15,18,16],[19,15,19,16],[20,15,20,16],[26,1,26,16],[27,1,34,16],[21,1,25,1],[21,15,21,16],[22,15,22,16],[23,15,23,16],[24,15,24,16],[25,15,25,16]]}
[null,null,{"$error":"#VALUE!"}]
[]
[null,null,null,null,"DENSITY TEST STRIP WORKSHEET QV-1"]
[null,null,null,null,"Wisconsin Department of Transportation"]
[null,null,null,null,null,null,null,null,null,null,null,null,null,"Density Standard:"]
[null,null,null,null,null,null,null,null,null,null,null,null,null,"Moisture Standard:"]
[null,"Project ID:",null,{"$f":"IF('Project Info & Instructions'!D8=\"\",\"\",'Project Info & Instructions'!D8)","v":""},null,null,"Road Name:",{"$f":"IF('Project Info & Instructions'!D10=\"\",\"\",'Project Info & Instructions'!D10)","v":""},null,"Contractor:",{"$f":"IF('Project Info & Instructions'!D11=\"\",\"\",'Project Info & Instructions'!D11)","v":""},null,null,"Gauge Serial #:"]
[null,"Project Leader:",null,{"$f":"IF('Project Info & Instructions'!D12=\"\",\"\",'Project Info & Instructions'!D12)","v":""},null,null,"County:",{"$f":"IF('Project Info & Instructions'!D9=\"\",\"\",'Project Info & Instructions'!D9)","v":""},null,"QC Technician:","N/A",null,null,"WisDOT Mix #:",{"$f":"IF('Project Info & Instructions'!D26=\"\",\"\",'Project Info & Instructions'!D26)","v":""}]
[null,"Test Strip:",null,{"$f":"IF(ISBLANK('Project Info & Instructions'!$D$14),\"\",'Project Info & Instructions'!$D$14)","v":""},null,null,"Layer:",{"$f":"IF('Project Info & Instructions'!$H$7=\"\",\"\",'Project Info & Instructions'!$H$7)","v":""},null,"QV Technician:",null,null,null,"Mix Type:",{"$f":"IF('Project Info & Instructions'!D31=\"\",\"\",'Project Info & Instructions'!D31)","v":"--"}]
[null,"• Offsets are predetermined according to the test strip layout in WisDOT's Manual of Test Procedures WTP H-002.\n• Gauge offset is set to ZERO since offsets will be determined from the test strip.\n• The Target Max Gmm is the average from the 3 split samples, except for a density only test strip, then it is the daily average Gmm from production.\n• Calculated per WisDOT's Manual of Test Procedures WTM T355.",null,null,null,null,null,null,null,"Start:",{"$f":"IF('Project Info & Instructions'!H12=\"\",\"\",'Project Info & Instructions'!H12)","v":""},"End:",{"$f":"IF('Project Info & Instructions'!$H$13=INTERNAL_SYS_MSGS!$B$4,\"\",'Project Info & Instructions'!$H$13)","v":""},"Target Gmm:",{"$f":"IF('Project Info & Instructions'!$D$35=INTERNAL_SYS_VAR!$B$8,'Project Info & Instructions'!$D$52,IF('Project Info & Instructions'!$D$27<>INTERNAL_SYS_VAR!$C$10,'HMA Air Voids Pay Factor'!$E$16,'SMA Air Voids Pay Factor'!$E$17))","v":""}]
[null,null,null,null,null,null,null,null,null,"Length (ft):",{"$f":"_xlfn.SWITCH('Project Info & Instructions'!$H$15,INTERNAL_SYS_VAR!$X$8,'Project Info & Instructions'!$H$16,INTERNAL_SYS_VAR!$X$9,'Project Info & Instructions'!$H$17,\"\")","v":""},null,null,"Target Max Density (PCF):",{"$f":"IF(O10=\"\",\"\",ROUND(O10*62.24,1))","v":""}]
[null,null,null,null,null,null,null,null,null,"Lane Width (ft):",{"$f":"IF('Project Info & Instructions'!H10=\"\",\"\",'Project Info & Instructions'!H10)","v":""},null,null,"Required Density %:",{"$f":"IF('Project Info & Instructions'!D47=\"\",\"\",'Project Info & Instructions'!D47)","v":"More Information Needed"}]
[null,null,null,null,null,null,null,null,null,"Thickness (in):",{"$f":"IF('Project Info & Instructions'!H11=\"\",\"\",'Project Info & Instructions'!H11)","v":""},null,null,"Date Placed:",{"$f":"IF('Project Info & Instructions'!D13=\"\",\"\",'Project Info & Instructions'!D13)","v":""}]
[null,null,null,null,null,null,null,null,null,"Gauge Offset:",0,null,null,"Date Tested:",{"$f":"IF('Project Info & Instructions'!D13=\"\",\"\",'Project Info & Instructions'!D13)","v":""}]
[null,"Testing Locations",null,null,null,"Reading 1",null,null,"Reading  2 (rotate 180)",null,null,"Reading  3 (if needed, original orientation)",null,null,"Final Density",null,null,null,"Lot/Sublot ID","Rounded Readings (0.1 pcf)",null,null,"Variation from Avg",null,null,null,"Filter Outlier",null,null,"Nuc Avg Excluding Outlier (pcf)"]
[null,"Lot / Sublot ID",null,"Station","Offset from CL","M Count / \nD Count","Wet Density 1             ","% Max Density 1","M Count / \nD Count","Wet Density 2            ","% Max Density 2","M Count / \nD Count","Wet Density 3             ","% Max Density 3","Average PCF","% Max Density",null,null,null,"Reading 1","Reading 2","Reading 3","Rounded Average of Readings (pcf)","Reading 1","Reading 2","Reading 3","Read 1","Read 2","Read 3"]
[null,"Zone 1",{"$f":"'HMA Core Data'!B14","v":""},{"$f":"IF($D$19=\"\",\"\",IF(INTERNAL_SYS_VAR!$Y$8=TRUE,$D$19-2*INTERNAL_SYS_VAR!$C$20,$D$19+2*INTERNAL_SYS_VAR!$C$20))","v":-100},{"$f":"IF('Project Info & Instructions'!H10=\"\",\"\",1.5)","v":""},null,null,{"$f":"IF(OR(G17=\"\",$O$11=\"\"),\"\",ROUND((T17/$O$11),3))","v":""},null,null,{"$f":"IF(OR(J17=\"\",$O$11=\"\"),\"\",ROUND((U17/$O$11),3))","v":""},null,null,{"$f":"IF(OR(M17=\"\",$O$11=\"\"),\"\",ROUND((V17/$O$11),3))","v":""},{"$f":"IF(H17=\"\",\"\",AD17)","v":""},{"$f":"IF(H17=\"\",\"\",ROUND((O17/$O$11),3))","v":""},null,null,{"$f":"C17","v":""},{"$f":"IF(G17=\"\",\"\",ROUND(G17,1))","v":""},{"$f":"IF(J17=\"\",\"\",ROUND(J17,1))","v":""},{"$f":"IF(M17=\"\",\"\",ROUND(M17,1))","v":""},{"$f":"IFERROR(IF(ROUND(ABS(T17-U17),1)>1,ROUND(AVERAGE(T17:V17),1),ROUND(AVERAGE(T17:U17),1)),\"\")","v":""},{"$f":"IFERROR(ABS(ROUND(W17-T17,1)),NA())","v":{"$error":"#N/A"}},{"$f":"IFERROR(ABS(ROUND(W17-U17,1)),NA())","v":{"$error":"#N/A"}},{"$f":"IFERROR(ABS(ROUND(W17-V17,1)),NA())","v":{"$error":"#N/A"}},{"$f":"IF(X17=_xlfn.AGGREGATE(4,6,X17:Z17),0,T17)","v":{"$error":"#N/A"}},{"$f":"IF(Y17=_xlfn.AGGREGATE(4,6,X17:Z17),0,U17)","v":{"$error":"#N/A"}},{"$f":"IF(Z17=_xlfn.AGGREGATE(4,6,X17:Z17),0,V17)","v":{"$error":"#N/A"}},{"$f":"IFERROR(IF(OR(COUNT(T17:V17)<3,ROUND(ABS(T17-U17),1)<=1),ROUND(W17,1),IF(AND(COUNT(T17:V17)=3,OR(T17=W17,U17=W17,V17=W17)),ROUND(W17,1),IF(COUNTIF(AA17:AC17,\"=0\")=2,ROUND(W17,1),ROUND(AVERAGEIF(AA17:AC17,\">0\"),1)))),\"\")","v":""}]
[null,null,{"$f":"'HMA Core Data'!B15","v":""},{"$f":"IF($D19=\"\",\"\",IF(INTERNAL_SYS_VAR!$Y$8=TRUE,$D$19-INTERNAL_SYS_VAR!$C$20,$D$19+INTERNAL_SYS_VAR!$C$20))","v":-50},{"$f":"IF('Project Info & Instructions'!H10=\"\",\"\",3.5)","v":""},null,null,"",null,null,"",null,null,"","",{"$f":"IF(H18=\"\",\"\",ROUND((O18/$O$11),3))","v":""},null,null,"","","","",{"$f":"IFERROR(IF(ROUND(ABS(T18-U18),1)>1,ROUND(AVERAGE(T18:V18),1),ROUND(AVERAGE(T18:U18),1)),\"\")","v":""},{"$f":"IFERROR(ABS(ROUND(W18-T18,1)),NA())","v":{"$error":"#N/A"}},{"$f":"IFERROR(ABS(ROUND(W18-U18,1)),NA())","v":{"$error":"#N/A"}},{"$f":"IFERROR(ABS(ROUND(W18-V18,1)),NA())","v":{"$error":"#N/A"}},{"$f":"IF(X18=_xlfn.AGGREGATE(4,6,X18:Z18),0,T18)","v":{"$error":"#N/A"}},{"$f":"IF(Y18=_xlfn.AGGREGATE(4,6,X18:Z18),0,U18)","v":{"$error":"#N/A"}},{"$f":"IF(Z18=_xlfn.AGGREGATE(4,6,X18:Z18),0,V18)","v":{"$error":"#N/A"}},{"$f":"IFERROR(IF(OR(COUNT(T18:V18)<3,ROUND(ABS(T18-U18),1)<=1),ROUND(W18,1),IF(AND(COUNT(T18:V18)=3,OR(T18=W18,U18=W18,V18=W18)),ROUND(W18,1),IF(COUNTIF(AA18:AC18,\"=0\")=2,ROUND(W18,1),ROUND(AVERAGEIF(AA18:AC18,\">0\"),1)))),\"\")","v":""}]
[null,null,{"$f":"'HMA Core Data'!B16","v":""},{"$f":"'Project Info & Instructions'!$D$49","v":0},{"$f":"IF('Project Info & Instructions'!H10=\"\",\"\",'Project Info & Instructions'!H10/2)","v":""},null,null,"",null,null,"",null,null,"","","",null,null,"","","","","",{"$error":"#N/A"},{"$error":"#N/A"},{"$error":"#N/A"},{"$error":"#N/A"},{"$error":"#N/A"},{"$error":"#N/A"},""]
[null,null,{"$f":"'HMA Core Data'!B17","v":""},{"$f":"IF($D$19=\"\",\"\",IF(INTERNAL_SYS_VAR!$Y$8=TRUE,$D$19+INTERNAL_SYS_VAR!$C$20,$D$19-INTERNAL_SYS_VAR!$C$20))","v":50},{"$f":"IF('Project Info & Instructions'!H10=\"\",\"\",'Project Info & Instructions'!H10-3.5)","v":""},null,null,"",null,null,"",null,null,"","","",null,null,"","","","","",{"$error":"#N/A"},{"$error":"#N/A"},{"$error":"#N/A"},{"$error":"#N/A"},{"$error":"#N/A"},{"$error":"#N/A"},""]
[null,null,{"$f":"'HMA Core Data'!B18","v":""},{"$f":"IF($D$19=\"\",\"\",IF(INTERNAL_SYS_VAR!$Y$8=TRUE,$D$19+2*INTERNAL_SYS_VAR!$C$20,$D$19-2*INTERNAL_SYS_VAR!$C$20))","v":100},{"$f":"IF('Project Info & Instructions'!H10=\"\",\"\",'Project Info & Instructions'!H10-1.5)","v":""},null,null,"",null,null,"",null,null,"","","",null,null,"","","","","",{"$error":"#N/A"},{"$error":"#N/A"},{"$error":"#N/A"},{"$error":"#N/A"},{"$error":"#N/A"},{"$error":"#N/A"},""]
[null,"Zone 2",{"$f":"'HMA Core Data'!B21","v":""},{"$f":"IF($D$24=\"\",\"\",IF(INTERNAL_SYS_VAR!$Y$8=TRUE,$D$24-2*INTERNAL_SYS_VAR!$C$20,$D$24+2*INTERNAL_SYS_VAR!$C$20))","v":-100},{"$f":"E17","v":""},null,null,"",null,null,"",null,null,"","","",null,null,"","","","","",{"$error":"#N/A"},{"$error":"#N/A"},{"$error":"#N/A"},{"$error":"#N/A"},{"$error":"#N/A"},{"$error":"#N/A"},""]
[null,null,{"$f":"'HMA Core Data'!B22","v":""},{"$f":"IF($D$24=\"\",\"\",IF(INTERNAL_SYS_VAR!$Y$8=TRUE,$D$24-INTERNAL_SYS_VAR!$C$20,$D$24+INTERNAL_SYS_VAR!$C$20))","v":-50},{"$f":"E18","v":""},null,null,"",null,null,"",null,null,"","","",null,null,"","","","","",{"$error":"#N/A"},{"$error":"#N/A"},{"$error":"#N/A"},{"$error":"#N/A"},{"$error":"#N/A"},{"$error":"#N/A"},""]
[null,null,{"$f":"'HMA Core Data'!B23","v":""},{"$f":"'Project Info & Instructions'!$D$50","v":0},{"$f":"E19","v":""},null,null,"",null,null,"",null,null,"","","",null,null,"","","","","",{"$error":"#N/A"},{"$error":"#N/A"},{"$error":"#N/A"},{"$error":"#N/A"},{"$error":"#N/A"},{"$error":"#N/A"},""]
[null,null,{"$f":"'HMA Core Data'!B24","v":""},{"$f":"IF($D$24=\"\",\"\",IF(INTERNAL_SYS_VAR!$Y$8=TRUE,$D$24+INTERNAL_SYS_VAR!$C$20,$D$24-INTERNAL_SYS_VAR!$C$20))","v":50},{"$f":"E20","v":""},null,null,"",null,null,"",null,null,"","","",null,null,"","","","","",{"$error":"#N/A"},{"$error":"#N/A"},{"$error":"#N/A"},{"$error":"#N/A"},{"$error":"#N/A"},{"$error":"#N/A"},""]
[null,null,{"$f":"'HMA Core Data'!B25","v":""},{"$f":"IF($D$24=\"\",\"\",IF(INTERNAL_SYS_VAR!$Y$8=TRUE,$D$24+2*INTERNAL_SYS_VAR!$C$20,$D$24-2*INTERNAL_SYS_VAR!$C$20))","v":100},{"$f":"E21","v":""},null,null,"",null,null,"",null,null,"","","",null,null,"","","","","",{"$error":"#N/A"},{"$error":"#N/A"},{"$error":"#N/A"},{"$error":"#N/A"},{"$error":"#N/A"},{"$error":"#N/A"},""]
[null,"   Target Max Density = Gmm x 62.24                                                                                                                                                                                          Test Remarks"]

{"sheet":"QV-2 Density Worksheet","index":19,"n_rows":27,"n_cols":30,"rows_kept":27,"cut":false,"hidden":true,"merged":[[0,2,4,3],[4,14,4,16],[5,14,5,16],[6,1,6,2],[6,3,6,5],[6,7,6,8],[6,10,6,12],[6,14,6,16],[8,1,8,2],[8,3,8,5],[8,7,8,8],[8,10,8,12],[8,14,8,16],[7,1,7,2],[7,3,7,5],[7,7,7,8],[7,10,7,12],[7,14,7,16],[9,1,13,8],[9,14,9,16],[10,10,10,12],[10,14,10,16],[11,10,11,12],[11,14,11,16],[12,10,12,12],[12,14,12,16],[13,10,13,12],[13,14,13,16],[14,19,14,21],[14,22,14,25],[14,26,14,28],[14,29,15,29],[15,1,15,2],[15,15,15,16],[14,1,14,4],[14,5,14,7],[14,8,14,10],[14,11,14,13],[14,14,14,16],[14,18,15,18],[16,1,20,1],[16,15,16,16],[17,15,17,16],[18,15,18,16],[19,15,19,16],[20,15,20,16],[26,1,26,16],[27,1,34,16],[21,1,25,1],[21,15,21,16],[22,15,22,16],[23,15,23,16],[24,15,24,16],[25,15,25,16]]}
[null,null,{"$error":"#VALUE!"}]
[]
[null,null,null,null,"DENSITY TEST STRIP WORKSHEET QV-2"]
[null,null,null,null,"Wisconsin Department of Transportation"]
[null,null,null,null,null,null,null,null,null,null,null,null,null,"Density Standard:"]
[null,null,null,null,null,null,null,null,null,null,null,null,null,"Moisture Standard:"]
[null,"Project ID:",null,{"$f":"IF('Project Info & Instructions'!D8=\"\",\"\",'Project Info & Instructions'!D8)","v":""},null,null,"Road Name:",{"$f":"IF('Project Info & Instructions'!D10=\"\",\"\",'Project Info & Instructions'!D10)","v":""},null,"Contractor:",{"$f":"IF('Project Info & Instructions'!D11=\"\",\"\",'Project Info & Instructions'!D11)","v":""},null,null,"Gauge Serial #:"]
[null,"Project Leader:",null,{"$f":"IF('Project Info & Instructions'!D12=\"\",\"\",'Project Info & Instructions'!D12)","v":""},null,null,"County:",{"$f":"IF('Project Info & Instructions'!D9=\"\",\"\",'Project Info & Instructions'!D9)","v":""},null,"QC Technician:","N/A",null,null,"WisDOT Mix #:",{"$f":"IF('Project Info & Instructions'!D26=\"\",\"\",'Project Info & Instructions'!D26)","v":""}]
[null,"Test Strip:",null,{"$f":"IF(ISBLANK('Project Info & Instructions'!$D$14),\"\",'Project Info & Instructions'!$D$14)","v":""},null,null,"Layer:",{"$f":"IF('Project Info & Instructions'!$H$7=\"\",\"\",'Project Info & Instructions'!$H$7)","v":""},null,"QV Technician:",null,null,null,"Mix Type:",{"$f":"IF('Project Info & Instructions'!D31=\"\",\"\",'Project Info & Instructions'!D31)","v":"--"}]
[null,"• Offsets are predetermined according to the test strip layout in WisDOT's Manual of Test Procedures WTP H-002.\n• Gauge offset is set to ZERO since offsets will be determined from the test strip.\n• The Target Max Gmm is the average from the 3 split samples, except for a density only test strip, then it is the daily average Gmm from production.\n• Calculated per WisDOT's Manual of Test Procedures WTM T355.",null,null,null,null,null,null,null,"Start:",{"$f":"IF('Project Info & Instructions'!H12=\"\",\"\",'Project Info & Instructions'!H12)","v":""},"End:",{"$f":"IF('Project Info & Instructions'!$H$13=INTERNAL_SYS_MSGS!$B$4,\"\",'Project Info & Instructions'!$H$13)","v":""},"Target Gmm:",{"$f":"IF('Project Info & Instructions'!$D$35=INTERNAL_SYS_VAR!$B$8,'Project Info & Instructions'!$D$52,IF('Project Info & Instructions'!$D$27<>INTERNAL_SYS_VAR!$C$10,'HMA Air Voids Pay Factor'!$E$16,'SMA Air Voids Pay Factor'!$E$17))","v":""}]
[null,null,null,null,null,null,null,null,null,"Length (ft):",{"$f":"_xlfn.SWITCH('Project Info & Instructions'!$H$15,INTERNAL_SYS_VAR!$X$8,'Project Info & Instructions'!$H$16,INTERNAL_SYS_VAR!$X$9,'Project Info & Instructions'!$H$17,\"\")","v":""},null,null,"Target Max Density (PCF):",{"$f":"IF(O10=\"\",\"\",ROUND(O10*62.24,1))","v":""}]
[null,null,null,null,null,null,null,null,null,"Lane Width (ft):",{"$f":"IF('Project Info & Instructions'!H10=\"\",\"\",'Project Info & Instructions'!H10)","v":""},null,null,"Required Density %:",{"$f":"IF('Project Info & Instructions'!D47=\"\",\"\",'Project Info & Instructions'!D47)","v":"More Information Needed"}]
[null,null,null,null,null,null,null,null,null,"Thickness (in):",{"$f":"IF('Project Info & Instructions'!H11=\"\",\"\",'Project Info & Instructions'!H11)","v":""},null,null,"Date Placed:",{"$f":"IF('Project Info & Instructions'!D13=\"\",\"\",'Project Info & Instructions'!D13)","v":""}]
[null,null,null,null,null,null,null,null,null,"Gauge Offset:",0,null,null,"Date Tested:",{"$f":"IF('Project Info & Instructions'!D13=\"\",\"\",'Project Info & Instructions'!D13)","v":""}]
[null,"Testing Locations",null,null,null,"Reading 1",null,null,"Reading  2 (rotate 180)",null,null,"Reading  3 (if needed, original orientation)",null,null,"Final Density",null,null,null,"Lot/Sublot ID","Rounded Readings (0.1 pcf)",null,null,"Variation from Avg",null,null,null,"Filter Outlier",null,null,"Nuc Avg Excluding Outlier (pcf)"]
[null,"Lot / Sublot ID",null,"Station","Offset from CL","M Count / \nD Count","Wet Density 1             ","% Max Density 1","M Count / \nD Count","Wet Density 2            ","% Max Density 2","M Count / \nD Count","Wet Density 3             ","% Max Density 3","Average PCF","% Max Density",null,null,null,"Reading 1","Reading 2","Reading 3","Rounded Average of Readings (pcf)","Reading 1","Reading 2","Reading 3","Read 1","Read 2","Read 3"]
[null,"Zone 1",{"$f":"'HMA Core Data'!B14","v":""},{"$f":"IF($D$19=\"\",\"\",IF(INTERNAL_SYS_VAR!$Y$8=TRUE,$D$19-2*INTERNAL_SYS_VAR!$C$20,$D$19+2*INTERNAL_SYS_VAR!$C$20))","v":-100},{"$f":"IF('Project Info & Instructions'!H10=\"\",\"\",1.5)","v":""},null,null,{"$f":"IF(OR(G17=\"\",$O$11=\"\"),\"\",ROUND((T17/$O$11),3))","v":""},null,null,{"$f":"IF(OR(J17=\"\",$O$11=\"\"),\"\",ROUND((U17/$O$11),3))","v":""},null,null,{"$f":"IF(OR(M17=\"\",$O$11=\"\"),\"\",ROUND((V17/$O$11),3))","v":""},{"$f":"IF(H17=\"\",\"\",AD17)","v":""},{"$f":"IF(H17=\"\",\"\",ROUND((O17/$O$11),3))","v":""},null,null,{"$f":"C17","v":""},{"$f":"IF(G17=\"\",\"\",ROUND(G17,1))","v":""},{"$f":"IF(J17=\"\",\"\",ROUND(J17,1))","v":""},{"$f":"IF(M17=\"\",\"\",ROUND(M17,1))","v":""},{"$f":"IFERROR(IF(ROUND(ABS(T17-U17),1)>1,ROUND(AVERAGE(T17:V17),1),ROUND(AVERAGE(T17:U17),1)),\"\")","v":""},{"$f":"IFERROR(ABS(ROUND(W17-T17,1)),NA())","v":{"$error":"#N/A"}},{"$f":"IFERROR(ABS(ROUND(W17-U17,1)),NA())","v":{"$error":"#N/A"}},{"$f":"IFERROR(ABS(ROUND(W17-V17,1)),NA())","v":{"$error":"#N/A"}},{"$f":"IF(X17=_xlfn.AGGREGATE(4,6,X17:Z17),0,T17)","v":{"$error":"#N/A"}},{"$f":"IF(Y17=_xlfn.AGGREGATE(4,6,X17:Z17),0,U17)","v":{"$error":"#N/A"}},{"$f":"IF(Z17=_xlfn.AGGREGATE(4,6,X17:Z17),0,V17)","v":{"$error":"#N/A"}},{"$f":"IFERROR(IF(OR(COUNT(T17:V17)<3,ROUND(ABS(T17-U17),1)<=1),ROUND(W17,1),IF(AND(COUNT(T17:V17)=3,OR(T17=W17,U17=W17,V17=W17)),ROUND(W17,1),IF(COUNTIF(AA17:AC17,\"=0\")=2,ROUND(W17,1),ROUND(AVERAGEIF(AA17:AC17,\">0\"),1)))),\"\")","v":""}]
[null,null,{"$f":"'HMA Core Data'!B15","v":""},{"$f":"IF($D19=\"\",\"\",IF(INTERNAL_SYS_VAR!$Y$8=TRUE,$D$19-INTERNAL_SYS_VAR!$C$20,$D$19+INTERNAL_SYS_VAR!$C$20))","v":-50},{"$f":"IF('Project Info & Instructions'!H10=\"\",\"\",3.5)","v":""},null,null,"",null,null,"",null,null,"","",{"$f":"IF(H18=\"\",\"\",ROUND((O18/$O$11),3))","v":""},null,null,"","","","",{"$f":"IFERROR(IF(ROUND(ABS(T18-U18),1)>1,ROUND(AVERAGE(T18:V18),1),ROUND(AVERAGE(T18:U18),1)),\"\")","v":""},{"$f":"IFERROR(ABS(ROUND(W18-T18,1)),NA())","v":{"$error":"#N/A"}},{"$f":"IFERROR(ABS(ROUND(W18-U18,1)),NA())","v":{"$error":"#N/A"}},{"$f":"IFERROR(ABS(ROUND(W18-V18,1)),NA())","v":{"$error":"#N/A"}},{"$f":"IF(X18=_xlfn.AGGREGATE(4,6,X18:Z18),0,T18)","v":{"$error":"#N/A"}},{"$f":"IF(Y18=_xlfn.AGGREGATE(4,6,X18:Z18),0,U18)","v":{"$error":"#N/A"}},{"$f":"IF(Z18=_xlfn.AGGREGATE(4,6,X18:Z18),0,V18)","v":{"$error":"#N/A"}},{"$f":"IFERROR(IF(OR(COUNT(T18:V18)<3,ROUND(ABS(T18-U18),1)<=1),ROUND(W18,1),IF(AND(COUNT(T18:V18)=3,OR(T18=W18,U18=W18,V18=W18)),ROUND(W18,1),IF(COUNTIF(AA18:AC18,\"=0\")=2,ROUND(W18,1),ROUND(AVERAGEIF(AA18:AC18,\">0\"),1)))),\"\")","v":""}]
[null,null,{"$f":"'HMA Core Data'!B16","v":""},{"$f":"'Project Info & Instructions'!$D$49","v":0},{"$f":"IF('Project Info & Instructions'!H10=\"\",\"\",'Project Info & Instructions'!H10/2)","v":""},null,null,"",null,null,"",null,null,"","","",null,null,"","","","","",{"$error":"#N/A"},{"$error":"#N/A"},{"$error":"#N/A"},{"$error":"#N/A"},{"$error":"#N/A"},{"$error":"#N/A"},""]
[null,null,{"$f":"'HMA Core Data'!B17","v":""},{"$f":"IF($D$19=\"\",\"\",IF(INTERNAL_SYS_VAR!$Y$8=TRUE,$D$19+INTERNAL_SYS_VAR!$C$20,$D$19-INTERNAL_SYS_VAR!$C$20))","v":50},{"$f":"IF('Project Info & Instructions'!H10=\"\",\"\",'Project Info & Instructions'!H10-3.5)","v":""},null,null,"",null,null,"",null,null,"","","",null,null,"","","","","",{"$error":"#N/A"},{"$error":"#N/A"},{"$error":"#N/A"},{"$error":"#N/A"},{"$error":"#N/A"},{"$error":"#N/A"},""]
[null,null,{"$f":"'HMA Core Data'!B18","v":""},{"$f":"IF($D$19=\"\",\"\",IF(INTERNAL_SYS_VAR!$Y$8=TRUE,$D$19+2*INTERNAL_SYS_VAR!$C$20,$D$19-2*INTERNAL_SYS_VAR!$C$20))","v":100},{"$f":"IF('Project Info & Instructions'!H10=\"\",\"\",'Project Info & Instructions'!H10-1.5)","v":""},null,null,"",null,null,"",null,null,"","","",null,null,"","","","","",{"$error":"#N/A"},{"$error":"#N/A"},{"$error":"#N/A"},{"$error":"#N/A"},{"$error":"#N/A"},{"$error":"#N/A"},""]
[null,"Zone 2",{"$f":"'HMA Core Data'!B21","v":""},{"$f":"IF($D$24=\"\",\"\",IF(INTERNAL_SYS_VAR!$Y$8=TRUE,$D$24-2*INTERNAL_SYS_VAR!$C$20,$D$24+2*INTERNAL_SYS_VAR!$C$20))","v":-100},{"$f":"E17","v":""},null,null,"",null,null,"",null,null,"","","",null,null,"","","","","",{"$error":"#N/A"},{"$error":"#N/A"},{"$error":"#N/A"},{"$error":"#N/A"},{"$error":"#N/A"},{"$error":"#N/A"},""]
[null,null,{"$f":"'HMA Core Data'!B22","v":""},{"$f":"IF($D$24=\"\",\"\",IF(INTERNAL_SYS_VAR!$Y$8=TRUE,$D$24-INTERNAL_SYS_VAR!$C$20,$D$24+INTERNAL_SYS_VAR!$C$20))","v":-50},{"$f":"E18","v":""},null,null,"",null,null,"",null,null,"","","",null,null,"","","","","",{"$error":"#N/A"},{"$error":"#N/A"},{"$error":"#N/A"},{"$error":"#N/A"},{"$error":"#N/A"},{"$error":"#N/A"},""]
[null,null,{"$f":"'HMA Core Data'!B23","v":""},{"$f":"'Project Info & Instructions'!$D$50","v":0},{"$f":"E19","v":""},null,null,"",null,null,"",null,null,"","","",null,null,"","","","","",{"$error":"#N/A"},{"$error":"#N/A"},{"$error":"#N/A"},{"$error":"#N/A"},{"$error":"#N/A"},{"$error":"#N/A"},""]
[null,null,{"$f":"'HMA Core Data'!B24","v":""},{"$f":"IF($D$24=\"\",\"\",IF(INTERNAL_SYS_VAR!$Y$8=TRUE,$D$24+INTERNAL_SYS_VAR!$C$20,$D$24-INTERNAL_SYS_VAR!$C$20))","v":50},{"$f":"E20","v":""},null,null,"",null,null,"",null,null,"","","",null,null,"","","","","",{"$error":"#N/A"},{"$error":"#N/A"},{"$error":"#N/A"},{"$error":"#N/A"},{"$error":"#N/A"},{"$error":"#N/A"},""]
[null,null,{"$f":"'HMA Core Data'!B25","v":""},{"$f":"IF($D$24=\"\",\"\",IF(INTERNAL_SYS_VAR!$Y$8=TRUE,$D$24+2*INTERNAL_SYS_VAR!$C$20,$D$24-2*INTERNAL_SYS_VAR!$C$20))","v":100},{"$f":"E21","v":""},null,null,"",null,null,"",null,null,"","","",null,null,"","","","","",{"$error":"#N/A"},{"$error":"#N/A"},{"$error":"#N/A"},{"$error":"#N/A"},{"$error":"#N/A"},{"$error":"#N/A"},""]
[null,"   Target Max Density = Gmm x 62.24                                                                                                                                                                                          Test Remarks"]

{"sheet":"QC-1 Correlation","index":20,"n_rows":27,"n_cols":34,"rows_kept":27,"cut":false,"hidden":true,"merged":[[1,28,1,33],[7,3,7,5],[8,3,8,5],[7,18,7,20],[6,18,6,20],[1,24,1,25],[1,26,1,27],[8,18,8,20],[7,14,7,15],[7,8,7,11],[8,8,8,11],[0,1,3,2],[5,3,5,5],[6,3,6,5],[5,8,5,11],[1,22,1,23],[5,18,5,20],[6,8,6,11],[5,14,5,15],[6,14,6,15],[26,2,26,4],[10,7,10,20],[13,7,17,7],[18,7,22,7],[11,7,12,8],[11,9,12,9],[11,15,11,16],[13,20,22,20],[11,10,11,14],[11,17,11,20],[25,2,25,4]]}
[null,{"$error":"#VALUE!"}]
[null,null,null,"Nuclear / Core Correlation: QC-1",null,null,null,null,null,null,null,null,null,null,null,null,null,null,null,null,null,null,"Worksheet Variables",null,"Graph Points",null,"R-Squared Calculation",null,"All Values including removed cores"]
[null,null,null,"Wisconsin Department of Transportation",null,null,null,null,null,null,null,null,null,null,null,null,null,null,null,null,null,null,"Core 1 Removed:",{"$f":"IF('Project Info & Instructions'!$D$27<>INTERNAL_SYS_VAR!$C$10,'HMA Core Data'!AE6,'SMA Core Data'!AG6)","v":false},"Nuclear","Core","Nuclear","Core","Core Gmb","Ave Nuclear","Core Density","Difference","Offset Wet Density (%)","Offset Gauge-Core Difference\n(%)"]
[null,null,null,null,null,null,null,null,null,null,null,null,null,null,null,null,null,null,null,null,null,null,"Core 2 Removed:",{"$f":"IF('Project Info & Instructions'!$D$27<>INTERNAL_SYS_VAR!$C$10,'HMA Core Data'!AE7,'SMA Core Data'!AG7)","v":false},{"$f":"IF(O14=\"\",NA(),O14)","v":{"$error":"#N/A"}},{"$f":"IF(Q14=\"\",NA(),Q14)","v":{"$error":"#N/A"}},{"$f":"IF(ISNUMBER(Y4),Y4,\"\")","v":""},{"$f":"IF(ISNUMBER(Z4),Z4,\"\")","v":""},{"$f":"IF('Project Info & Instructions'!$D$27<>INTERNAL_SYS_VAR!$C$10,IF('HMA Core Data'!$AE$5=1,'HMA Core Data'!H14,'HMA Core Data'!P14),IF('SMA Core Data'!$AG$5=1,'SMA Core Data'!I14,'SMA Core Data'!R14))","v":""},{"$f":"IFERROR('QC-1 Density Worksheet'!AD17/($S$9*62.24)*100,\"\")","v":""},{"$f":"IFERROR(AC4/$S$9*100,\"\")","v":""},{"$f":"IFERROR(AE4-AD4,\"\")","v":""},{"$f":"IFERROR(AD4+$F$27,\"\")","v":""},{"$f":"IFERROR(AE4-AG4,\"\")","v":""}]
[null,null,null,null,null,null,null,null,null,null,null,null,null,null,null,null,null,null,null,null,null,null,"Core 3 Removed:",{"$f":"IF('Project Info & Instructions'!$D$27<>INTERNAL_SYS_VAR!$C$10,'HMA Core Data'!AE8,'SMA Core Data'!AG8)","v":false},{"$f":"IF(O15=\"\",NA(),O15)","v":{"$error":"#N/A"}},{"$f":"IF(Q15=\"\",NA(),Q15)","v":{"$error":"#N/A"}},"","",{"$f":"IF('Project Info & Instructions'!$D$27<>INTERNAL_SYS_VAR!$C$10,IF('HMA Core Data'!$AE$5=1,'HMA Core Data'!H15,'HMA Core Data'!P15),IF('SMA Core Data'!$AG$5=1,'SMA Core Data'!I15,'SMA Core Data'!R15))","v":""},{"$f":"IFERROR('QC-1 Density Worksheet'!AD18/($S$9*62.24)*100,\"\")","v":""},{"$f":"IFERROR(AC5/$S$9*100,\"\")","v":""},{"$f":"IFERROR(AE5-AD5,\"\")","v":""},"",{"$f":"IFERROR(AE5-AG5,\"\")","v":""}]
[null,null,"Contract:",{"$f":"IF('Project Info & Instructions'!D7=\"\",\"\",'Project Info & Instructions'!D7)","v":""},null,null,null,"Test Strip #:",{"$f":"IF('Project Info & Instructions'!D14=\"\",\"\",'Project Info & Instructions'!D14)","v":""},null,null,null,null,"Paving Width (ft):",{"$f":"IF(ISBLANK('Project Info & Instructions'!$H$9),\"\",'Project Info & Instructions'!$H$9)","v":""},null,null,"Date:",{"$f":"IF('Project Info & Instructions'!D13=\"\",\"\",'Project Info & Instructions'!D13)","v":""},null,null,null,"Core 4 Removed:",{"$f":"IF('Project Info & Instructions'!$D$27<>INTERNAL_SYS_VAR!$C$10,'HMA Core Data'!AE9,'SMA Core Data'!AG9)","v":false},{"$error":"#N/A"},{"$error":"#N/A"},"","",{"$f":"IF('Project Info & Instructions'!$D$27<>INTERNAL_SYS_VAR!$C$10,IF('HMA Core Data'!$AE$5=1,'HMA Core Data'!H16,'HMA Core Data'!P16),IF('SMA Core Data'!$AG$5=1,'SMA Core Data'!I16,'SMA Core Data'!R16))","v":""},{"$f":"IFERROR('QC-1 Density Worksheet'!AD19/($S$9*62.24)*100,\"\")","v":""},"","","",""]
[null,null,"Project ID:",{"$f":"IF('Project Info & Instructions'!D8=\"\",\"\",'Project Info & Instructions'!D8)","v":""},null,null,null,"Route/Road:",{"$f":"IF('Project Info & Instructions'!D10=\"\",\"\",'Project Info & Instructions'!D10)","v":""},null,null,null,null,"Lane Width (ft):",{"$f":"IF(ISBLANK('Project Info & Instructions'!$H$10),\"\",'Project Info & Instructions'!$H$10)","v":""},null,null,"Technician:",{"$f":"IF('QC-1 Density Worksheet'!K8=\"\",\"\",'QC-1 Density Worksheet'!K8)","v":""},null,null,null,"Core 5 Removed:",{"$f":"IF('Project Info & Instructions'!$D$27<>INTERNAL_SYS_VAR!$C$10,'HMA Core Data'!AE10,'SMA Core Data'!AG10)","v":false},{"$error":"#N/A"},{"$error":"#N/A"},"","",{"$f":"IF('Project Info & Instructions'!$D$27<>INTERNAL_SYS_VAR!$C$10,IF('HMA Core Data'!$AE$5=1,'HMA Core Data'!H17,'HMA Core Data'!P17),IF('SMA Core Data'!$AG$5=1,'SMA Core Data'!I17,'SMA Core Data'!R17))","v":""},{"$f":"IFERROR('QC-1 Density Worksheet'!AD20/($S$9*62.24)*100,\"\")","v":""},"","","",""]
[null,null,"WisDOT Mix Design ID:",{"$f":"IF('Project Info & Instructions'!D26=\"\",\"\",'Project Info & Instructions'!D26)","v":""},null,null,null,"Pavement Layer:",{"$f":"IF('Project Info & Instructions'!H7=\"\",\"\",'Project Info & Instructions'!H7)","v":""},null,null,null,null,"Nominal Thickness (in):",{"$f":"IF(ISBLANK('Project Info & Instructions'!$H$11),\"\",'Project Info & Instructions'!$H$11)","v":""},null,null,"Gauge No.:",{"$f":"IF('QC-1 Density Worksheet'!O7=\"\",\"\",'QC-1 Density Worksheet'!O7)","v":""},null,null,null,"Core 6 Removed:",{"$f":"IF('Project Info & Instructions'!$D$27<>INTERNAL_SYS_VAR!$C$10,'HMA Core Data'!AE11,'SMA Core Data'!AG11)","v":false},{"$error":"#N/A"},{"$error":"#N/A"},"","",{"$f":"IF('Project Info & Instructions'!$D$27<>INTERNAL_SYS_VAR!$C$10,IF('HMA Core Data'!$AE$5=1,'HMA Core Data'!H18,'HMA Core Data'!P18),IF('SMA Core Data'!$AG$5=1,'SMA Core Data'!I18,'SMA Core Data'!R18))","v":""},{"$f":"IFERROR('QC-1 Density Worksheet'!AD21/($S$9*62.24)*100,\"\")","v":""},"","","",""]
[null,null,"Mix Type:",{"$f":"IF('Project Info & Instructions'!D31=\"\",\"\",'Project Info & Instructions'!D31)","v":"--"},null,null,null,"Underlying Layer:",{"$f":"IF('Project Info & Instructions'!H8=\"\",\"\",'Project Info & Instructions'!H8)","v":""},null,null,null,null,null,null,null,null,"Gmm:",{"$f":"IF('Project Info & Instructions'!$D$35=INTERNAL_SYS_VAR!$B$8,'Project Info & Instructions'!$D$52,IF('Project Info & Instructions'!$D$27<>INTERNAL_SYS_VAR!$C$10,'HMA Air Voids Pay Factor'!$E$16,'SMA Air Voids Pay Factor'!$E$17))","v":""},null,null,null,"Core 7 Removed:",{"$f":"IF('Project Info & Instructions'!$D$27<>INTERNAL_SYS_VAR!$C$10,'HMA Core Data'!AE12,'SMA Core Data'!AG12)","v":false},{"$error":"#N/A"},{"$error":"#N/A"},"","",{"$f":"IF('Project Info & Instructions'!$D$27<>INTERNAL_SYS_VAR!$C$10,IF('HMA Core Data'!$AE$5=1,'HMA Core Data'!H21,'HMA Core Data'!P21),IF('SMA Core Data'!$AG$5=1,'SMA Core Data'!I21,'SMA Core Data'!R21))","v":""},{"$f":"IFERROR('QC-1 Density Worksheet'!AD22/($S$9*62.24)*100,\"\")","v":""},"",{"$f":"IFERROR(AE9-AD9,\"\")","v":""},"",{"$f":"IFERROR(AE9-AG9,\"\")","v":""}]
[null,null,null,null,null,null,null,null,null,null,null,null,null,null,null,null,null,null,null,null,null,null,"Core 8 Removed:",{"$f":"IF('Project Info & Instructions'!$D$27<>INTERNAL_SYS_VAR!$C$10,'HMA Core Data'!AE13,'SMA Core Data'!AG13)","v":false},{"$error":"#N/A"},{"$error":"#N/A"},"","",{"$f":"IF('Project Info & Instructions'!$D$27<>INTERNAL_SYS_VAR!$C$10,IF('HMA Core Data'!$AE$5=1,'HMA Core Data'!H22,'HMA Core Data'!P22),IF('SMA Core Data'!$AG$5=1,'SMA Core Data'!I22,'SMA Core Data'!R22))","v":""},{"$f":"IFERROR('QC-1 Density Worksheet'!AD23/($S$9*62.24)*100,\"\")","v":""},"",{"$f":"IFERROR(AE10-AD10,\"\")","v":""},"",{"$f":"IFERROR(AE10-AG10,\"\")","v":""}]
[null,null,null,null,null,null,null,"Nuclear Gauge-Core Correlation",null,null,null,null,null,null,null,null,null,null,null,null,null,null,"Core 9 Removed:",{"$f":"IF('Project Info & Instructions'!$D$27<>INTERNAL_SYS_VAR!$C$10,'HMA Core Data'!AE14,'SMA Core Data'!AG14)","v":false},{"$error":"#N/A"},{"$error":"#N/A"},"","",{"$f":"IF('Project Info & Instructions'!$D$27<>INTERNAL_SYS_VAR!$C$10,IF('HMA Core Data'!$AE$5=1,'HMA Core Data'!H23,'HMA Core Data'!P23),IF('SMA Core Data'!$AG$5=1,'SMA Core Data'!I23,'SMA Core Data'!R23))","v":""},{"$f":"IFERROR('QC-1 Density Worksheet'!AD24/($S$9*62.24)*100,\"\")","v":""},"","","",""]
[null,null,null,null,null,null,null,"Lot / Sublot ID",null,"Station","Nuclear Gauge Measurements",null,null,null,null,"Core Measurements",null,"Correlation",null,null,null,null,"Core 10 Removed:",{"$f":"IF('Project Info & Instructions'!$D$27<>INTERNAL_SYS_VAR!$C$10,'HMA Core Data'!AE15,'SMA Core Data'!AG15)","v":false},{"$error":"#N/A"},{"$error":"#N/A"},"","",{"$f":"IF('Project Info & Instructions'!$D$27<>INTERNAL_SYS_VAR!$C$10,IF('HMA Core Data'!$AE$5=1,'HMA Core Data'!H24,'HMA Core Data'!P24),IF('SMA Core Data'!$AG$5=1,'SMA Core Data'!I24,'SMA Core Data'!R24))","v":""},{"$f":"IFERROR('QC-1 Density Worksheet'!AD25/($S$9*62.24)*100,\"\")","v":""},"","","",""]
[null,null,null,null,null,null,null,null,null,null,"Wet Density 1\n(pcf)","Wet Density 2\n(pcf)","Wet Density 3*\n(pcf)","Average Wet Density\n(pcf)","Average Wet Density\n(%)","Gmb","Density\n(%)","Gauge-Core\nDensity Difference\n(%)","Offset Wet Density\n(%)","Offset Gauge-Core Difference\n(%)","R-Squared",null,null,null,{"$error":"#N/A"},{"$error":"#N/A"},"","",{"$f":"IF('Project Info & Instructions'!$D$27<>INTERNAL_SYS_VAR!$C$10,IF('HMA Core Data'!$AE$5=1,'HMA Core Data'!H25,'HMA Core Data'!P25),IF('SMA Core Data'!$AG$5=1,'SMA Core Data'!I25,'SMA Core Data'!R25))","v":""},{"$f":"IFERROR('QC-1 Density Worksheet'!AD26/($S$9*62.24)*100,\"\")","v":""},"","","",""]
[null,null,null,null,null,null,null,"Zone 1",{"$f":"'HMA Core Data'!B14","v":""},{"$f":"'QC-1 Density Worksheet'!D17","v":-100},{"$f":"IF(X3=TRUE,\"\",'QC-1 Density Worksheet'!T17)","v":""},{"$f":"IF(X3=TRUE,\"\",'QC-1 Density Worksheet'!U17)","v":""},{"$f":"IF(X3=TRUE,\"\",'QC-1 Density Worksheet'!V17)","v":""},{"$f":"IF(X3=TRUE,\"\",IFERROR('QC-1 Density Worksheet'!AD17,\"\"))","v":""},{"$f":"IF(X3=TRUE,\"\",IFERROR(N14/($S$9*62.24)*100,\"\"))","v":""},{"$f":"IF(X3=TRUE,\"\",IF('Project Info & Instructions'!$D$27<>INTERNAL_SYS_VAR!$C$10,IF('HMA Core Data'!$AE$5=1,'HMA Core Data'!H14,'HMA Core Data'!P14),IF('SMA Core Data'!$AG$5=1,'SMA Core Data'!I14,'SMA Core Data'!R14)))","v":""},{"$f":"IF(X3=TRUE,\"\",IFERROR(P14/$S$9*100,\"\"))","v":""},{"$f":"IFERROR(Q14-O14,\"\")","v":""},{"$f":"IFERROR(O14+$F$26,\"\")","v":""},{"$f":"IFERROR(Q14-S14,\"\")","v":""},{"$f":"IFERROR(RSQ(AA4:AA13,AB4:AB13),\"\")","v":""}]
[null,null,null,null,null,null,null,null,{"$f":"'HMA Core Data'!B15","v":""},{"$f":"'QC-1 Density Worksheet'!D18","v":-50},{"$f":"IF(X4=TRUE,\"\",'QC-1 Density Worksheet'!T18)","v":""},{"$f":"IF(X4=TRUE,\"\",'QC-1 Density Worksheet'!U18)","v":""},{"$f":"IF(X4=TRUE,\"\",'QC-1 Density Worksheet'!V18)","v":""},{"$f":"IF(X4=TRUE,\"\",IFERROR('QC-1 Density Worksheet'!AD18,\"\"))","v":""},"",{"$f":"IF(X4=TRUE,\"\",IF('Project Info & Instructions'!$D$27<>INTERNAL_SYS_VAR!$C$10,IF('HMA Core Data'!$AE$5=1,'HMA Core Data'!H15,'HMA Core Data'!P15),IF('SMA Core Data'!$AG$5=1,'SMA Core Data'!I15,'SMA Core Data'!R15)))","v":""},"","","",""]
[null,null,null,null,null,null,null,null,{"$f":"'HMA Core Data'!B16","v":""},{"$f":"'QC-1 Density Worksheet'!D19","v":0},{"$f":"IF(X5=TRUE,\"\",'QC-1 Density Worksheet'!T19)","v":""},{"$f":"IF(X5=TRUE,\"\",'QC-1 Density Worksheet'!U19)","v":""},{"$f":"IF(X5=TRUE,\"\",'QC-1 Density Worksheet'!V19)","v":""},{"$f":"IF(X5=TRUE,\"\",IFERROR('QC-1 Density Worksheet'!AD19,\"\"))","v":""},"",{"$f":"IF(X5=TRUE,\"\",IF('Project Info & Instructions'!$D$27<>INTERNAL_SYS_VAR!$C$10,IF('HMA Core Data'!$AE$5=1,'HMA Core Data'!H16,'HMA Core Data'!P16),IF('SMA Core Data'!$AG$5=1,'SMA Core Data'!I16,'SMA Core Data'!R16)))","v":""},"","","",""]
[null,null,null,null,null,null,null,null,{"$f":"'HMA Core Data'!B17","v":""},{"$f":"'QC-1 Density Worksheet'!D20","v":50},{"$f":"IF(X6=TRUE,\"\",'QC-1 Density Worksheet'!T20)","v":""},{"$f":"IF(X6=TRUE,\"\",'QC-1 Density Worksheet'!U20)","v":""},{"$f":"IF(X6=TRUE,\"\",'QC-1 Density Worksheet'!V20)","v":""},{"$f":"IF(X6=TRUE,\"\",IFERROR('QC-1 Density Worksheet'!AD20,\"\"))","v":""},"",{"$f":"IF(X6=TRUE,\"\",IF('Project Info & Instructions'!$D$27<>INTERNAL_SYS_VAR!$C$10,IF('HMA Core Data'!$AE$5=1,'HMA Core Data'!H17,'HMA Core Data'!P17),IF('SMA Core Data'!$AG$5=1,'SMA Core Data'!I17,'SMA Core Data'!R17)))","v":""},"","","",""]
[null,null,null,null,null,null,null,null,{"$f":"'HMA Core Data'!B18","v":""},{"$f":"'QC-1 Density Worksheet'!D21","v":100},{"$f":"IF(X7=TRUE,\"\",'QC-1 Density Worksheet'!T21)","v":""},{"$f":"IF(X7=TRUE,\"\",'QC-1 Density Worksheet'!U21)","v":""},{"$f":"IF(X7=TRUE,\"\",'QC-1 Density Worksheet'!V21)","v":""},{"$f":"IF(X7=TRUE,\"\",IFERROR('QC-1 Density Worksheet'!AD21,\"\"))","v":""},"",{"$f":"IF(X7=TRUE,\"\",IF('Project Info & Instructions'!$D$27<>INTERNAL_SYS_VAR!$C$10,IF('HMA Core Data'!$AE$5=1,'HMA Core Data'!H18,'HMA Core Data'!P18),IF('SMA Core Data'!$AG$5=1,'SMA Core Data'!I18,'SMA Core Data'!R18)))","v":""},"","","",""]
[null,null,null,null,null,null,null,"Zone 2",{"$f":"'HMA Core Data'!B21","v":""},{"$f":"'QC-1 Density Worksheet'!D22","v":-100},{"$f":"IF(X8=TRUE,\"\",'QC-1 Density Worksheet'!T22)","v":""},{"$f":"IF(X8=TRUE,\"\",'QC-1 Density Worksheet'!U22)","v":""},{"$f":"IF(X8=TRUE,\"\",'QC-1 Density Worksheet'!V22)","v":""},{"$f":"IF(X8=TRUE,\"\",IFERROR('QC-1 Density Worksheet'!AD22,\"\"))","v":""},"",{"$f":"IF(X8=TRUE,\"\",IF('Project Info & Instructions'!$D$27<>INTERNAL_SYS_VAR!$C$10,IF('HMA Core Data'!$AE$5=1,'HMA Core Data'!H21,'HMA Core Data'!P21),IF('SMA Core Data'!$AG$5=1,'SMA Core Data'!I21,'SMA Core Data'!R21)))","v":""},"","","",""]
[null,null,null,null,null,null,null,null,{"$f":"'HMA Core Data'!B22","v":""},{"$f":"'QC-1 Density Worksheet'!D23","v":-50},{"$f":"IF(X9=TRUE,\"\",'QC-1 Density Worksheet'!T23)","v":""},{"$f":"IF(X9=TRUE,\"\",'QC-1 Density Worksheet'!U23)","v":""},{"$f":"IF(X9=TRUE,\"\",'QC-1 Density Worksheet'!V23)","v":""},{"$f":"IF(X9=TRUE,\"\",IFERROR('QC-1 Density Worksheet'!AD23,\"\"))","v":""},"",{"$f":"IF(X9=TRUE,\"\",IF('Project Info & Instructions'!$D$27<>INTERNAL_SYS_VAR!$C$10,IF('HMA Core Data'!$AE$5=1,'HMA Core Data'!H22,'HMA Core Data'!P22),IF('SMA Core Data'!$AG$5=1,'SMA Core Data'!I22,'SMA Core Data'!R22)))","v":""},"","","",""]
[null,null,null,null,null,null,null,null,{"$f":"'HMA Core Data'!B23","v":""},{"$f":"'QC-1 Density Worksheet'!D24","v":0},{"$f":"IF(X10=TRUE,\"\",'QC-1 Density Worksheet'!T24)","v":""},{"$f":"IF(X10=TRUE,\"\",'QC-1 Density Worksheet'!U24)","v":""},{"$f":"IF(X10=TRUE,\"\",'QC-1 Density Worksheet'!V24)","v":""},{"$f":"IF(X10=TRUE,\"\",IFERROR('QC-1 Density Worksheet'!AD24,\"\"))","v":""},"",{"$f":"IF(X10=TRUE,\"\",IF('Project Info & Instructions'!$D$27<>INTERNAL_SYS_VAR!$C$10,IF('HMA Core Data'!$AE$5=1,'HMA Core Data'!H23,'HMA Core Data'!P23),IF('SMA Core Data'!$AG$5=1,'SMA Core Data'!I23,'SMA Core Data'!R23)))","v":""},"","","",""]
[null,null,null,null,null,null,null,null,{"$f":"'HMA Core Data'!B24","v":""},{"$f":"'QC-1 Density Worksheet'!D25","v":50},{"$f":"IF(X11=TRUE,\"\",'QC-1 Density Worksheet'!T25)","v":""},{"$f":"IF(X11=TRUE,\"\",'QC-1 Density Worksheet'!U25)","v":""},{"$f":"IF(X11=TRUE,\"\",'QC-1 Density Worksheet'!V25)","v":""},{"$f":"IF(X11=TRUE,\"\",IFERROR('QC-1 Density Worksheet'!AD25,\"\"))","v":""},"",{"$f":"IF(X11=TRUE,\"\",IF('Project Info & Instructions'!$D$27<>INTERNAL_SYS_VAR!$C$10,IF('HMA Core Data'!$AE$5=1,'HMA Core Data'!H24,'HMA Core Data'!P24),IF('SMA Core Data'!$AG$5=1,'SMA Core Data'!I24,'SMA Core Data'!R24)))","v":""},"","","",""]
[null,null,null,null,null,null,null,null,{"$f":"'HMA Core Data'!B25","v":""},{"$f":"'QC-1 Density Worksheet'!D26","v":100},{"$f":"IF(X12=TRUE,\"\",'QC-1 Density Worksheet'!T26)","v":""},{"$f":"IF(X12=TRUE,\"\",'QC-1 Density Worksheet'!U26)","v":""},{"$f":"IF(X12=TRUE,\"\",'QC-1 Density Worksheet'!V26)","v":""},{"$f":"IF(X12=TRUE,\"\",IFERROR('QC-1 Density Worksheet'!AD26,\"\"))","v":""},"",{"$f":"IF(X12=TRUE,\"\",IF('Project Info & Instructions'!$D$27<>INTERNAL_SYS_VAR!$C$10,IF('HMA Core Data'!$AE$5=1,'HMA Core Data'!H25,'HMA Core Data'!P25),IF('SMA Core Data'!$AG$5=1,'SMA Core Data'!I25,'SMA Core Data'!R25)))","v":""},"","","",""]
[null,null,null,null,null,null,null,null,null,null,null,null,"Spread:",{"$f":"MAX(N14:N23)-MIN(N14:N23)","v":0},{"$f":"MAX(O14:O23)-MIN(O14:O23)","v":0},{"$f":"MAX(P14:P23)-MIN(P14:P23)","v":0},{"$f":"MAX(Q14:Q23)-MIN(Q14:Q23)","v":0}]
[]
[null,null,"Guage Offset:",null,null,{"$f":"IFERROR(ROUND(AVERAGE(R14:R23),1),\"\")","v":""}]
[null,null,"Gauge Offset:\n(including removed cores)",null,null,{"$f":"IFERROR(ROUND(AVERAGE(AF4:AF8,AF9:AF13),1),\"\")","v":""}]

{"sheet":"QC-2 Correlation","index":21,"n_rows":27,"n_cols":34,"rows_kept":27,"cut":false,"hidden":true,"merged":[[0,1,3,2],[1,22,1,23],[1,24,1,25],[1,26,1,27],[1,28,1,33],[6,3,6,5],[6,8,6,11],[6,14,6,15],[6,18,6,20],[5,3,5,5],[5,8,5,11],[5,14,5,15],[5,18,5,20],[7,3,7,5],[7,8,7,11],[7,14,7,15],[7,18,7,20],[8,3,8,5],[8,8,8,11],[8,18,8,20],[10,7,10,20],[11,7,12,8],[11,9,12,9],[11,10,11,14],[11,15,11,16],[11,17,11,20],[13,7,17,7],[13,20,22,20],[18,7,22,7],[25,2,25,4],[26,2,26,4]]}
[null,{"$error":"#VALUE!"}]
[null,null,null,"Nuclear / Core Correlation: QC-2",null,null,null,null,null,null,null,null,null,null,null,null,null,null,null,null,null,null,"Worksheet Variables",null,"Graph Points",null,"R-Squared Calculation",null,"All Values including removed cores"]
[null,null,null,"Wisconsin Department of Transportation",null,null,null,null,null,null,null,null,null,null,null,null,null,null,null,null,null,null,"Core 1 Removed:",{"$f":"IF('Project Info & Instructions'!$D$27<>INTERNAL_SYS_VAR!$C$10,'HMA Core Data'!AE6,'SMA Core Data'!AG6)","v":false},"Nuclear","Core","Nuclear","Core","Core Gmb","Ave Nuclear","Core Density","Difference","Offset Wet Density (%)","Offset Gauge-Core Difference\n(%)"]
[null,null,null,null,null,null,null,null,null,null,null,null,null,null,null,null,null,null,null,null,null,null,"Core 2 Removed:",{"$f":"IF('Project Info & Instructions'!$D$27<>INTERNAL_SYS_VAR!$C$10,'HMA Core Data'!AE7,'SMA Core Data'!AG7)","v":false},{"$f":"IF(O14=\"\",NA(),O14)","v":{"$error":"#N/A"}},{"$f":"IF(Q14=\"\",NA(),Q14)","v":{"$error":"#N/A"}},{"$f":"IF(ISNUMBER(Y4),Y4,\"\")","v":""},{"$f":"IF(ISNUMBER(Z4),Z4,\"\")","v":""},{"$f":"IF('Project Info & Instructions'!$D$27<>INTERNAL_SYS_VAR!$C$10,IF('HMA Core Data'!$AE$5=1,'HMA Core Data'!H14,'HMA Core Data'!P14),IF('SMA Core Data'!$AG$5=1,'SMA Core Data'!I14,'SMA Core Data'!R14))","v":""},{"$f":"IFERROR('QC-2 Density Worksheet'!AD17/($S$9*62.24)*100,\"\")","v":""},{"$f":"IFERROR(AC4/$S$9*100,\"\")","v":""},{"$f":"IFERROR(AE4-AD4,\"\")","v":""},{"$f":"IFERROR(AD4+$F$27,\"\")","v":""},{"$f":"IFERROR(AE4-AG4,\"\")","v":""}]
[null,null,null,null,null,null,null,null,null,null,null,null,null,null,null,null,null,null,null,null,null,null,"Core 3 Removed:",{"$f":"IF('Project Info & Instructions'!$D$27<>INTERNAL_SYS_VAR!$C$10,'HMA Core Data'!AE8,'SMA Core Data'!AG8)","v":false},{"$f":"IF(O15=\"\",NA(),O15)","v":{"$error":"#N/A"}},{"$f":"IF(Q15=\"\",NA(),Q15)","v":{"$error":"#N/A"}},"","",{"$f":"IF('Project Info & Instructions'!$D$27<>INTERNAL_SYS_VAR!$C$10,IF('HMA Core Data'!$AE$5=1,'HMA Core Data'!H15,'HMA Core Data'!P15),IF('SMA Core Data'!$AG$5=1,'SMA Core Data'!I15,'SMA Core Data'!R15))","v":""},{"$f":"IFERROR('QC-2 Density Worksheet'!AD18/($S$9*62.24)*100,\"\")","v":""},{"$f":"IFERROR(AC5/$S$9*100,\"\")","v":""},{"$f":"IFERROR(AE5-AD5,\"\")","v":""},"",{"$f":"IFERROR(AE5-AG5,\"\")","v":""}]
[null,null,"Contract:",{"$f":"IF('Project Info & Instructions'!D7=\"\",\"\",'Project Info & Instructions'!D7)","v":""},null,null,null,"Test Strip #:",{"$f":"IF('Project Info & Instructions'!D14=\"\",\"\",'Project Info & Instructions'!D14)","v":""},null,null,null,null,"Paving Width (ft):",{"$f":"IF(ISBLANK('Project Info & Instructions'!$H$9),\"\",'Project Info & Instructions'!$H$9)","v":""},null,null,"Date:",{"$f":"IF('Project Info & Instructions'!D13=\"\",\"\",'Project Info & Instructions'!D13)","v":""},null,null,null,"Core 4 Removed:",{"$f":"IF('Project Info & Instructions'!$D$27<>INTERNAL_SYS_VAR!$C$10,'HMA Core Data'!AE9,'SMA Core Data'!AG9)","v":false},{"$error":"#N/A"},{"$error":"#N/A"},"","",{"$f":"IF('Project Info & Instructions'!$D$27<>INTERNAL_SYS_VAR!$C$10,IF('HMA Core Data'!$AE$5=1,'HMA Core Data'!H16,'HMA Core Data'!P16),IF('SMA Core Data'!$AG$5=1,'SMA Core Data'!I16,'SMA Core Data'!R16))","v":""},{"$f":"IFERROR('QC-2 Density Worksheet'!AD19/($S$9*62.24)*100,\"\")","v":""},"","","",""]
[null,null,"Project ID:",{"$f":"IF('Project Info & Instructions'!D8=\"\",\"\",'Project Info & Instructions'!D8)","v":""},null,null,null,"Route/Road:",{"$f":"IF('Project Info & Instructions'!D10=\"\",\"\",'Project Info & Instructions'!D10)","v":""},null,null,null,null,"Lane Width (ft):",{"$f":"IF(ISBLANK('Project Info & Instructions'!$H$10),\"\",'Project Info & Instructions'!$H$10)","v":""},null,null,"Technician:",{"$f":"IF('QC-2 Density Worksheet'!K8=\"\",\"\",'QC-2 Density Worksheet'!K8)","v":""},null,null,null,"Core 5 Removed:",{"$f":"IF('Project Info & Instructions'!$D$27<>INTERNAL_SYS_VAR!$C$10,'HMA Core Data'!AE10,'SMA Core Data'!AG10)","v":false},{"$error":"#N/A"},{"$error":"#N/A"},"","",{"$f":"IF('Project Info & Instructions'!$D$27<>INTERNAL_SYS_VAR!$C$10,IF('HMA Core Data'!$AE$5=1,'HMA Core Data'!H17,'HMA Core Data'!P17),IF('SMA Core Data'!$AG$5=1,'SMA Core Data'!I17,'SMA Core Data'!R17))","v":""},{"$f":"IFERROR('QC-2 Density Worksheet'!AD20/($S$9*62.24)*100,\"\")","v":""},"","","",""]
[null,null,"WisDOT Mix Design ID:",{"$f":"IF('Project Info & Instructions'!D26=\"\",\"\",'Project Info & Instructions'!D26)","v":""},null,null,null,"Pavement Layer:",{"$f":"IF('Project Info & Instructions'!H7=\"\",\"\",'Project Info & Instructions'!H7)","v":""},null,null,null,null,"Nominal Thickness (in):",{"$f":"IF(ISBLANK('Project Info & Instructions'!$H$11),\"\",'Project Info & Instructions'!$H$11)","v":""},null,null,"Gauge No.:",{"$f":"IF('QC-2 Density Worksheet'!O7=\"\",\"\",'QC-2 Density Worksheet'!O7)","v":""},null,null,null,"Core 6 Removed:",{"$f":"IF('Project Info & Instructions'!$D$27<>INTERNAL_SYS_VAR!$C$10,'HMA Core Data'!AE11,'SMA Core Data'!AG11)","v":false},{"$error":"#N/A"},{"$error":"#N/A"},"","",{"$f":"IF('Project Info & Instructions'!$D$27<>INTERNAL_SYS_VAR!$C$10,IF('HMA Core Data'!$AE$5=1,'HMA Core Data'!H18,'HMA Core Data'!P18),IF('SMA Core Data'!$AG$5=1,'SMA Core Data'!I18,'SMA Core Data'!R18))","v":""},{"$f":"IFERROR('QC-2 Density Worksheet'!AD21/($S$9*62.24)*100,\"\")","v":""},"","","",""]
[null,null,"Mix Type:",{"$f":"IF('Project Info & Instructions'!D31=\"\",\"\",'Project Info & Instructions'!D31)","v":"--"},null,null,null,"Underlying Layer:",{"$f":"IF('Project Info & Instructions'!H8=\"\",\"\",'Project Info & Instructions'!H8)","v":""},null,null,null,null,null,null,null,null,"Gmm:",{"$f":"IF('Project Info & Instructions'!$D$35=INTERNAL_SYS_VAR!$B$8,'Project Info & Instructions'!$D$52,IF('Project Info & Instructions'!$D$27<>INTERNAL_SYS_VAR!$C$10,'HMA Air Voids Pay Factor'!$E$16,'SMA Air Voids Pay Factor'!$E$17))","v":""},null,null,null,"Core 7 Removed:",{"$f":"IF('Project Info & Instructions'!$D$27<>INTERNAL_SYS_VAR!$C$10,'HMA Core Data'!AE12,'SMA Core Data'!AG12)","v":false},{"$error":"#N/A"},{"$error":"#N/A"},"","",{"$f":"IF('Project Info & Instructions'!$D$27<>INTERNAL_SYS_VAR!$C$10,IF('HMA Core Data'!$AE$5=1,'HMA Core Data'!H21,'HMA Core Data'!P21),IF('SMA Core Data'!$AG$5=1,'SMA Core Data'!I21,'SMA Core Data'!R21))","v":""},{"$f":"IFERROR('QC-2 Density Worksheet'!AD22/($S$9*62.24)*100,\"\")","v":""},"",{"$f":"IFERROR(AE9-AD9,\"\")","v":""},"",{"$f":"IFERROR(AE9-AG9,\"\")","v":""}]
[null,null,null,null,null,null,null,null,null,null,null,null,null,null,null,null,null,null,null,null,null,null,"Core 8 Removed:",{"$f":"IF('Project Info & Instructions'!$D$27<>INTERNAL_SYS_VAR!$C$10,'HMA Core Data'!AE13,'SMA Core Data'!AG13)","v":false},{"$error":"#N/A"},{"$error":"#N/A"},"","",{"$f":"IF('Project Info & Instructions'!$D$27<>INTERNAL_SYS_VAR!$C$10,IF('HMA Core Data'!$AE$5=1,'HMA Core Data'!H22,'HMA Core Data'!P22),IF('SMA Core Data'!$AG$5=1,'SMA Core Data'!I22,'SMA Core Data'!R22))","v":""},{"$f":"IFERROR('QC-2 Density Worksheet'!AD23/($S$9*62.24)*100,\"\")","v":""},"",{"$f":"IFERROR(AE10-AD10,\"\")","v":""},"",{"$f":"IFERROR(AE10-AG10,\"\")","v":""}]
[null,null,null,null,null,null,null,"Nuclear Gauge-Core Correlation",null,null,null,null,null,null,null,null,null,null,null,null,null,null,"Core 9 Removed:",{"$f":"IF('Project Info & Instructions'!$D$27<>INTERNAL_SYS_VAR!$C$10,'HMA Core Data'!AE14,'SMA Core Data'!AG14)","v":false},{"$error":"#N/A"},{"$error":"#N/A"},"","",{"$f":"IF('Project Info & Instructions'!$D$27<>INTERNAL_SYS_VAR!$C$10,IF('HMA Core Data'!$AE$5=1,'HMA Core Data'!H23,'HMA Core Data'!P23),IF('SMA Core Data'!$AG$5=1,'SMA Core Data'!I23,'SMA Core Data'!R23))","v":""},{"$f":"IFERROR('QC-2 Density Worksheet'!AD24/($S$9*62.24)*100,\"\")","v":""},"","","",""]
[null,null,null,null,null,null,null,"Lot / Sublot ID",null,"Station","Nuclear Gauge Measurements",null,null,null,null,"Core Measurements",null,"Correlation",null,null,null,null,"Core 10 Removed:",{"$f":"IF('Project Info & Instructions'!$D$27<>INTERNAL_SYS_VAR!$C$10,'HMA Core Data'!AE15,'SMA Core Data'!AG15)","v":false},{"$error":"#N/A"},{"$error":"#N/A"},"","",{"$f":"IF('Project Info & Instructions'!$D$27<>INTERNAL_SYS_VAR!$C$10,IF('HMA Core Data'!$AE$5=1,'HMA Core Data'!H24,'HMA Core Data'!P24),IF('SMA Core Data'!$AG$5=1,'SMA Core Data'!I24,'SMA Core Data'!R24))","v":""},{"$f":"IFERROR('QC-2 Density Worksheet'!AD25/($S$9*62.24)*100,\"\")","v":""},"","","",""]
[null,null,null,null,null,null,null,null,null,null,"Wet Density 1\n(pcf)","Wet Density 2\n(pcf)","Wet Density 3*\n(pcf)","Average Wet Density\n(pcf)","Average Wet Density\n(%)","Gmb","Density\n(%)","Gauge-Core\nDensity Difference\n(%)","Offset Wet Density\n(%)","Offset Gauge-Core Difference\n(%)","R-Squared",null,null,null,{"$error":"#N/A"},{"$error":"#N/A"},"","",{"$f":"IF('Project Info & Instructions'!$D$27<>INTERNAL_SYS_VAR!$C$10,IF('HMA Core Data'!$AE$5=1,'HMA Core Data'!H25,'HMA Core Data'!P25),IF('SMA Core Data'!$AG$5=1,'SMA Core Data'!I25,'SMA Core Data'!R25))","v":""},{"$f":"IFERROR('QC-2 Density Worksheet'!AD26/($S$9*62.24)*100,\"\")","v":""},"","","",""]
[null,null,null,null,null,null,null,"Zone 1",{"$f":"'HMA Core Data'!B14","v":""},{"$f":"'QC-2 Density Worksheet'!D17","v":-100},{"$f":"IF(X3=TRUE,\"\",'QC-2 Density Worksheet'!T17)","v":""},{"$f":"IF(X3=TRUE,\"\",'QC-2 Density Worksheet'!U17)","v":""},{"$f":"IF(X3=TRUE,\"\",'QC-2 Density Worksheet'!V17)","v":""},{"$f":"IF(X3=TRUE,\"\",IFERROR('QC-2 Density Worksheet'!AD17,\"\"))","v":""},{"$f":"IF(X3=TRUE,\"\",IFERROR(N14/($S$9*62.24)*100,\"\"))","v":""},{"$f":"IF(X3=TRUE,\"\",IF('Project Info & Instructions'!$D$27<>INTERNAL_SYS_VAR!$C$10,IF('HMA Core Data'!$AE$5=1,'HMA Core Data'!H14,'HMA Core Data'!P14),IF('SMA Core Data'!$AG$5=1,'SMA Core Data'!I14,'SMA Core Data'!R14)))","v":""},{"$f":"IF(X3=TRUE,\"\",IFERROR(P14/$S$9*100,\"\"))","v":""},{"$f":"IFERROR(Q14-O14,\"\")","v":""},{"$f":"IFERROR(O14+$F$26,\"\")","v":""},{"$f":"IFERROR(Q14-S14,\"\")","v":""},{"$f":"IFERROR(RSQ(AA4:AA13,AB4:AB13),\"\")","v":""}]
[null,null,null,null,null,null,null,null,{"$f":"'HMA Core Data'!B15","v":""},{"$f":"'QC-2 Density Worksheet'!D18","v":-50},{"$f":"IF(X4=TRUE,\"\",'QC-2 Density Worksheet'!T18)","v":""},{"$f":"IF(X4=TRUE,\"\",'QC-2 Density Worksheet'!U18)","v":""},{"$f":"IF(X4=TRUE,\"\",'QC-2 Density Worksheet'!V18)","v":""},{"$f":"IF(X4=TRUE,\"\",IFERROR('QC-2 Density Worksheet'!AD18,\"\"))","v":""},"",{"$f":"IF(X4=TRUE,\"\",IF('Project Info & Instructions'!$D$27<>INTERNAL_SYS_VAR!$C$10,IF('HMA Core Data'!$AE$5=1,'HMA Core Data'!H15,'HMA Core Data'!P15),IF('SMA Core Data'!$AG$5=1,'SMA Core Data'!I15,'SMA Core Data'!R15)))","v":""},"","","",""]
[null,null,null,null,null,null,null,null,{"$f":"'HMA Core Data'!B16","v":""},{"$f":"'QC-2 Density Worksheet'!D19","v":0},{"$f":"IF(X5=TRUE,\"\",'QC-2 Density Worksheet'!T19)","v":""},{"$f":"IF(X5=TRUE,\"\",'QC-2 Density Worksheet'!U19)","v":""},{"$f":"IF(X5=TRUE,\"\",'QC-2 Density Worksheet'!V19)","v":""},{"$f":"IF(X5=TRUE,\"\",IFERROR('QC-2 Density Worksheet'!AD19,\"\"))","v":""},"",{"$f":"IF(X5=TRUE,\"\",IF('Project Info & Instructions'!$D$27<>INTERNAL_SYS_VAR!$C$10,IF('HMA Core Data'!$AE$5=1,'HMA Core Data'!H16,'HMA Core Data'!P16),IF('SMA Core Data'!$AG$5=1,'SMA Core Data'!I16,'SMA Core Data'!R16)))","v":""},"","","",""]
[null,null,null,null,null,null,null,null,{"$f":"'HMA Core Data'!B17","v":""},{"$f":"'QC-2 Density Worksheet'!D20","v":50},{"$f":"IF(X6=TRUE,\"\",'QC-2 Density Worksheet'!T20)","v":""},{"$f":"IF(X6=TRUE,\"\",'QC-2 Density Worksheet'!U20)","v":""},{"$f":"IF(X6=TRUE,\"\",'QC-2 Density Worksheet'!V20)","v":""},{"$f":"IF(X6=TRUE,\"\",IFERROR('QC-2 Density Worksheet'!AD20,\"\"))","v":""},"",{"$f":"IF(X6=TRUE,\"\",IF('Project Info & Instructions'!$D$27<>INTERNAL_SYS_VAR!$C$10,IF('HMA Core Data'!$AE$5=1,'HMA Core Data'!H17,'HMA Core Data'!P17),IF('SMA Core Data'!$AG$5=1,'SMA Core Data'!I17,'SMA Core Data'!R17)))","v":""},"","","",""]
[null,null,null,null,null,null,null,null,{"$f":"'HMA Core Data'!B18","v":""},{"$f":"'QC-2 Density Worksheet'!D21","v":100},{"$f":"IF(X7=TRUE,\"\",'QC-2 Density Worksheet'!T21)","v":""},{"$f":"IF(X7=TRUE,\"\",'QC-2 Density Worksheet'!U21)","v":""},{"$f":"IF(X7=TRUE,\"\",'QC-2 Density Worksheet'!V21)","v":""},{"$f":"IF(X7=TRUE,\"\",IFERROR('QC-2 Density Worksheet'!AD21,\"\"))","v":""},"",{"$f":"IF(X7=TRUE,\"\",IF('Project Info & Instructions'!$D$27<>INTERNAL_SYS_VAR!$C$10,IF('HMA Core Data'!$AE$5=1,'HMA Core Data'!H18,'HMA Core Data'!P18),IF('SMA Core Data'!$AG$5=1,'SMA Core Data'!I18,'SMA Core Data'!R18)))","v":""},"","","",""]
[null,null,null,null,null,null,null,"Zone 2",{"$f":"'HMA Core Data'!B21","v":""},{"$f":"'QC-2 Density Worksheet'!D22","v":-100},{"$f":"IF(X8=TRUE,\"\",'QC-2 Density Worksheet'!T22)","v":""},{"$f":"IF(X8=TRUE,\"\",'QC-2 Density Worksheet'!U22)","v":""},{"$f":"IF(X8=TRUE,\"\",'QC-2 Density Worksheet'!V22)","v":""},{"$f":"IF(X8=TRUE,\"\",IFERROR('QC-2 Density Worksheet'!AD22,\"\"))","v":""},"",{"$f":"IF(X8=TRUE,\"\",IF('Project Info & Instructions'!$D$27<>INTERNAL_SYS_VAR!$C$10,IF('HMA Core Data'!$AE$5=1,'HMA Core Data'!H21,'HMA Core Data'!P21),IF('SMA Core Data'!$AG$5=1,'SMA Core Data'!I21,'SMA Core Data'!R21)))","v":""},"","","",""]
[null,null,null,null,null,null,null,null,{"$f":"'HMA Core Data'!B22","v":""},{"$f":"'QC-2 Density Worksheet'!D23","v":-50},{"$f":"IF(X9=TRUE,\"\",'QC-2 Density Worksheet'!T23)","v":""},{"$f":"IF(X9=TRUE,\"\",'QC-2 Density Worksheet'!U23)","v":""},{"$f":"IF(X9=TRUE,\"\",'QC-2 Density Worksheet'!V23)","v":""},{"$f":"IF(X9=TRUE,\"\",IFERROR('QC-2 Density Worksheet'!AD23,\"\"))","v":""},"",{"$f":"IF(X9=TRUE,\"\",IF('Project Info & Instructions'!$D$27<>INTERNAL_SYS_VAR!$C$10,IF('HMA Core Data'!$AE$5=1,'HMA Core Data'!H22,'HMA Core Data'!P22),IF('SMA Core Data'!$AG$5=1,'SMA Core Data'!I22,'SMA Core Data'!R22)))","v":""},"","","",""]
[null,null,null,null,null,null,null,null,{"$f":"'HMA Core Data'!B23","v":""},{"$f":"'QC-2 Density Worksheet'!D24","v":0},{"$f":"IF(X10=TRUE,\"\",'QC-2 Density Worksheet'!T24)","v":""},{"$f":"IF(X10=TRUE,\"\",'QC-2 Density Worksheet'!U24)","v":""},{"$f":"IF(X10=TRUE,\"\",'QC-2 Density Worksheet'!V24)","v":""},{"$f":"IF(X10=TRUE,\"\",IFERROR('QC-2 Density Worksheet'!AD24,\"\"))","v":""},"",{"$f":"IF(X10=TRUE,\"\",IF('Project Info & Instructions'!$D$27<>INTERNAL_SYS_VAR!$C$10,IF('HMA Core Data'!$AE$5=1,'HMA Core Data'!H23,'HMA Core Data'!P23),IF('SMA Core Data'!$AG$5=1,'SMA Core Data'!I23,'SMA Core Data'!R23)))","v":""},"","","",""]
[null,null,null,null,null,null,null,null,{"$f":"'HMA Core Data'!B24","v":""},{"$f":"'QC-2 Density Worksheet'!D25","v":50},{"$f":"IF(X11=TRUE,\"\",'QC-2 Density Worksheet'!T25)","v":""},{"$f":"IF(X11=TRUE,\"\",'QC-2 Density Worksheet'!U25)","v":""},{"$f":"IF(X11=TRUE,\"\",'QC-2 Density Worksheet'!V25)","v":""},{"$f":"IF(X11=TRUE,\"\",IFERROR('QC-2 Density Worksheet'!AD25,\"\"))","v":""},"",{"$f":"IF(X11=TRUE,\"\",IF('Project Info & Instructions'!$D$27<>INTERNAL_SYS_VAR!$C$10,IF('HMA Core Data'!$AE$5=1,'HMA Core Data'!H24,'HMA Core Data'!P24),IF('SMA Core Data'!$AG$5=1,'SMA Core Data'!I24,'SMA Core Data'!R24)))","v":""},"","","",""]
[null,null,null,null,null,null,null,null,{"$f":"'HMA Core Data'!B25","v":""},{"$f":"'QC-2 Density Worksheet'!D26","v":100},{"$f":"IF(X12=TRUE,\"\",'QC-2 Density Worksheet'!T26)","v":""},{"$f":"IF(X12=TRUE,\"\",'QC-2 Density Worksheet'!U26)","v":""},{"$f":"IF(X12=TRUE,\"\",'QC-2 Density Worksheet'!V26)","v":""},{"$f":"IF(X12=TRUE,\"\",IFERROR('QC-2 Density Worksheet'!AD26,\"\"))","v":""},"",{"$f":"IF(X12=TRUE,\"\",IF('Project Info & Instructions'!$D$27<>INTERNAL_SYS_VAR!$C$10,IF('HMA Core Data'!$AE$5=1,'HMA Core Data'!H25,'HMA Core Data'!P25),IF('SMA Core Data'!$AG$5=1,'SMA Core Data'!I25,'SMA Core Data'!R25)))","v":""},"","","",""]
[null,null,null,null,null,null,null,null,null,null,null,null,"Spread:",{"$f":"MAX(N14:N23)-MIN(N14:N23)","v":0},{"$f":"MAX(O14:O23)-MIN(O14:O23)","v":0},{"$f":"MAX(P14:P23)-MIN(P14:P23)","v":0},{"$f":"MAX(Q14:Q23)-MIN(Q14:Q23)","v":0}]
[]
[null,null,"Guage Offset:",null,null,{"$f":"IFERROR(ROUND(AVERAGE(R14:R23),1),\"\")","v":""}]
[null,null,"Gauge Offset:\n(including removed cores)",null,null,{"$f":"IFERROR(ROUND(AVERAGE(AF4:AF8,AF9:AF13),1),\"\")","v":""}]

{"sheet":"QV-1 Correlation","index":22,"n_rows":27,"n_cols":34,"rows_kept":27,"cut":false,"hidden":true,"merged":[[0,1,3,2],[1,22,1,23],[1,24,1,25],[1,26,1,27],[1,28,1,33],[6,3,6,5],[6,8,6,11],[6,14,6,15],[6,18,6,20],[5,3,5,5],[5,8,5,11],[5,14,5,15],[5,18,5,20],[7,3,7,5],[7,8,7,11],[7,14,7,15],[7,18,7,20],[8,3,8,5],[8,8,8,11],[8,18,8,20],[10,7,10,20],[11,7,12,8],[11,9,12,9],[11,10,11,14],[11,15,11,16],[11,17,11,20],[13,7,17,7],[13,20,22,20],[18,7,22,7],[25,2,25,4],[26,2,26,4]]}
[null,{"$error":"#VALUE!"}]
[null,null,null,"Nuclear / Core Correlation: QV-1",null,null,null,null,null,null,null,null,null,null,null,null,null,null,null,null,null,null,"Worksheet Variables",null,"Graph Points",null,"R-Squared Calculation",null,"All Values including removed cores"]
[null,null,null,"Wisconsin Department of Transportation",null,null,null,null,null,null,null,null,null,null,null,null,null,null,null,null,null,null,"Core 1 Removed:",{"$f":"IF('Project Info & Instructions'!$D$27<>INTERNAL_SYS_VAR!$C$10,'HMA Core Data'!AE6,'SMA Core Data'!AG6)","v":false},"Nuclear","Core","Nuclear","Core","Core Gmb","Ave Nuclear","Core Density","Difference","Offset Wet Density (%)","Offset Gauge-Core Difference\n(%)"]
[null,null,null,null,null,null,null,null,null,null,null,null,null,null,null,null,null,null,null,null,null,null,"Core 2 Removed:",{"$f":"IF('Project Info & Instructions'!$D$27<>INTERNAL_SYS_VAR!$C$10,'HMA Core Data'!AE7,'SMA Core Data'!AG7)","v":false},{"$f":"IF(O14=\"\",NA(),O14)","v":{"$error":"#N/A"}},{"$f":"IF(Q14=\"\",NA(),Q14)","v":{"$error":"#N/A"}},{"$f":"IF(ISNUMBER(Y4),Y4,\"\")","v":""},{"$f":"IF(ISNUMBER(Z4),Z4,\"\")","v":""},{"$f":"IF('Project Info & Instructions'!$D$27<>INTERNAL_SYS_VAR!$C$10,IF('HMA Core Data'!$AE$5=1,'HMA Core Data'!H14,'HMA Core Data'!P14),IF('SMA Core Data'!$AG$5=1,'SMA Core Data'!I14,'SMA Core Data'!R14))","v":""},{"$f":"IFERROR('QV-1 Density Worksheet'!AD17/($S$9*62.24)*100,\"\")","v":""},{"$f":"IFERROR(AC4/$S$9*100,\"\")","v":""},{"$f":"IFERROR(AE4-AD4,\"\")","v":""},{"$f":"IFERROR(AD4+$F$27,\"\")","v":""},{"$f":"IFERROR(AE4-AG4,\"\")","v":""}]
[null,null,null,null,null,null,null,null,null,null,null,null,null,null,null,null,null,null,null,null,null,null,"Core 3 Removed:",{"$f":"IF('Project Info & Instructions'!$D$27<>INTERNAL_SYS_VAR!$C$10,'HMA Core Data'!AE8,'SMA Core Data'!AG8)","v":false},{"$f":"IF(O15=\"\",NA(),O15)","v":{"$error":"#N/A"}},{"$f":"IF(Q15=\"\",NA(),Q15)","v":{"$error":"#N/A"}},"","",{"$f":"IF('Project Info & Instructions'!$D$27<>INTERNAL_SYS_VAR!$C$10,IF('HMA Core Data'!$AE$5=1,'HMA Core Data'!H15,'HMA Core Data'!P15),IF('SMA Core Data'!$AG$5=1,'SMA Core Data'!I15,'SMA Core Data'!R15))","v":""},{"$f":"IFERROR('QV-1 Density Worksheet'!AD18/($S$9*62.24)*100,\"\")","v":""},{"$f":"IFERROR(AC5/$S$9*100,\"\")","v":""},{"$f":"IFERROR(AE5-AD5,\"\")","v":""},"",{"$f":"IFERROR(AE5-AG5,\"\")","v":""}]
[null,null,"Contract:",{"$f":"IF('Project Info & Instructions'!D7=\"\",\"\",'Project Info & Instructions'!D7)","v":""},null,null,null,"Test Strip #:",{"$f":"IF('Project Info & Instructions'!D14=\"\",\"\",'Project Info & Instructions'!D14)","v":""},null,null,null,null,"Paving Width (ft):",{"$f":"IF(ISBLANK('Project Info & Instructions'!$H$9),\"\",'Project Info & Instructions'!$H$9)","v":""},null,null,"Date:",{"$f":"IF('Project Info & Instructions'!D13=\"\",\"\",'Project Info & Instructions'!D13)","v":""},null,null,null,"Core 4 Removed:",{"$f":"IF('Project Info & Instructions'!$D$27<>INTERNAL_SYS_VAR!$C$10,'HMA Core Data'!AE9,'SMA Core Data'!AG9)","v":false},{"$error":"#N/A"},{"$error":"#N/A"},"","",{"$f":"IF('Project Info & Instructions'!$D$27<>INTERNAL_SYS_VAR!$C$10,IF('HMA Core Data'!$AE$5=1,'HMA Core Data'!H16,'HMA Core Data'!P16),IF('SMA Core Data'!$AG$5=1,'SMA Core Data'!I16,'SMA Core Data'!R16))","v":""},{"$f":"IFERROR('QV-1 Density Worksheet'!AD19/($S$9*62.24)*100,\"\")","v":""},"","","",""]
[null,null,"Project ID:",{"$f":"IF('Project Info & Instructions'!D8=\"\",\"\",'Project Info & Instructions'!D8)","v":""},null,null,null,"Route/Road:",{"$f":"IF('Project Info & Instructions'!D10=\"\",\"\",'Project Info & Instructions'!D10)","v":""},null,null,null,null,"Lane Width (ft):",{"$f":"IF(ISBLANK('Project Info & Instructions'!$H$10),\"\",'Project Info & Instructions'!$H$10)","v":""},null,null,"Technician:",{"$f":"IF('QV-1 Density Worksheet'!K9=\"\",\"\",'QV-1 Density Worksheet'!K9)","v":""},null,null,null,"Core 5 Removed:",{"$f":"IF('Project Info & Instructions'!$D$27<>INTERNAL_SYS_VAR!$C$10,'HMA Core Data'!AE10,'SMA Core Data'!AG10)","v":false},{"$error":"#N/A"},{"$error":"#N/A"},"","",{"$f":"IF('Project Info & Instructions'!$D$27<>INTERNAL_SYS_VAR!$C$10,IF('HMA Core Data'!$AE$5=1,'HMA Core Data'!H17,'HMA Core Data'!P17),IF('SMA Core Data'!$AG$5=1,'SMA Core Data'!I17,'SMA Core Data'!R17))","v":""},{"$f":"IFERROR('QV-1 Density Worksheet'!AD20/($S$9*62.24)*100,\"\")","v":""},"","","",""]
[null,null,"WisDOT Mix Design ID:",{"$f":"IF('Project Info & Instructions'!D26=\"\",\"\",'Project Info & Instructions'!D26)","v":""},null,null,null,"Pavement Layer:",{"$f":"IF('Project Info & Instructions'!H7=\"\",\"\",'Project Info & Instructions'!H7)","v":""},null,null,null,null,"Nominal Thickness (in):",{"$f":"IF(ISBLANK('Project Info & Instructions'!$H$11),\"\",'Project Info & Instructions'!$H$11)","v":""},null,null,"Gauge No.:",{"$f":"IF('QV-1 Density Worksheet'!O7=\"\",\"\",'QV-1 Density Worksheet'!O7)","v":""},null,null,null,"Core 6 Removed:",{"$f":"IF('Project Info & Instructions'!$D$27<>INTERNAL_SYS_VAR!$C$10,'HMA Core Data'!AE11,'SMA Core Data'!AG11)","v":false},{"$error":"#N/A"},{"$error":"#N/A"},"","",{"$f":"IF('Project Info & Instructions'!$D$27<>INTERNAL_SYS_VAR!$C$10,IF('HMA Core Data'!$AE$5=1,'HMA Core Data'!H18,'HMA Core Data'!P18),IF('SMA Core Data'!$AG$5=1,'SMA Core Data'!I18,'SMA Core Data'!R18))","v":""},{"$f":"IFERROR('QV-1 Density Worksheet'!AD21/($S$9*62.24)*100,\"\")","v":""},"","","",""]
[null,null,"Mix Type:",{"$f":"IF('Project Info & Instructions'!D31=\"\",\"\",'Project Info & Instructions'!D31)","v":"--"},null,null,null,"Underlying Layer:",{"$f":"IF('Project Info & Instructions'!H8=\"\",\"\",'Project Info & Instructions'!H8)","v":""},null,null,null,null,null,null,null,null,"Gmm:",{"$f":"IF('Project Info & Instructions'!$D$35=INTERNAL_SYS_VAR!$B$8,'Project Info & Instructions'!$D$52,IF('Project Info & Instructions'!$D$27<>INTERNAL_SYS_VAR!$C$10,'HMA Air Voids Pay Factor'!$E$16,'SMA Air Voids Pay Factor'!$E$17))","v":""},null,null,null,"Core 7 Removed:",{"$f":"IF('Project Info & Instructions'!$D$27<>INTERNAL_SYS_VAR!$C$10,'HMA Core Data'!AE12,'SMA Core Data'!AG12)","v":false},{"$error":"#N/A"},{"$error":"#N/A"},"","",{"$f":"IF('Project Info & Instructions'!$D$27<>INTERNAL_SYS_VAR!$C$10,IF('HMA Core Data'!$AE$5=1,'HMA Core Data'!H21,'HMA Core Data'!P21),IF('SMA Core Data'!$AG$5=1,'SMA Core Data'!I21,'SMA Core Data'!R21))","v":""},{"$f":"IFERROR('QV-1 Density Worksheet'!AD22/($S$9*62.24)*100,\"\")","v":""},"",{"$f":"IFERROR(AE9-AD9,\"\")","v":""},"",{"$f":"IFERROR(AE9-AG9,\"\")","v":""}]
[null,null,null,null,null,null,null,null,null,null,null,null,null,null,null,null,null,null,null,null,null,null,"Core 8 Removed:",{"$f":"IF('Project Info & Instructions'!$D$27<>INTERNAL_SYS_VAR!$C$10,'HMA Core Data'!AE13,'SMA Core Data'!AG13)","v":false},{"$error":"#N/A"},{"$error":"#N/A"},"","",{"$f":"IF('Project Info & Instructions'!$D$27<>INTERNAL_SYS_VAR!$C$10,IF('HMA Core Data'!$AE$5=1,'HMA Core Data'!H22,'HMA Core Data'!P22),IF('SMA Core Data'!$AG$5=1,'SMA Core Data'!I22,'SMA Core Data'!R22))","v":""},{"$f":"IFERROR('QV-1 Density Worksheet'!AD23/($S$9*62.24)*100,\"\")","v":""},"",{"$f":"IFERROR(AE10-AD10,\"\")","v":""},"",{"$f":"IFERROR(AE10-AG10,\"\")","v":""}]
[null,null,null,null,null,null,null,"Nuclear Gauge-Core Correlation",null,null,null,null,null,null,null,null,null,null,null,null,null,null,"Core 9 Removed:",{"$f":"IF('Project Info & Instructions'!$D$27<>INTERNAL_SYS_VAR!$C$10,'HMA Core Data'!AE14,'SMA Core Data'!AG14)","v":false},{"$error":"#N/A"},{"$error":"#N/A"},"","",{"$f":"IF('Project Info & Instructions'!$D$27<>INTERNAL_SYS_VAR!$C$10,IF('HMA Core Data'!$AE$5=1,'HMA Core Data'!H23,'HMA Core Data'!P23),IF('SMA Core Data'!$AG$5=1,'SMA Core Data'!I23,'SMA Core Data'!R23))","v":""},{"$f":"IFERROR('QV-1 Density Worksheet'!AD24/($S$9*62.24)*100,\"\")","v":""},"","","",""]
[null,null,null,null,null,null,null,"Lot / Sublot ID",null,"Station","Nuclear Gauge Measurements",null,null,null,null,"Core Measurements",null,"Correlation",null,null,null,null,"Core 10 Removed:",{"$f":"IF('Project Info & Instructions'!$D$27<>INTERNAL_SYS_VAR!$C$10,'HMA Core Data'!AE15,'SMA Core Data'!AG15)","v":false},{"$error":"#N/A"},{"$error":"#N/A"},"","",{"$f":"IF('Project Info & Instructions'!$D$27<>INTERNAL_SYS_VAR!$C$10,IF('HMA Core Data'!$AE$5=1,'HMA Core Data'!H24,'HMA Core Data'!P24),IF('SMA Core Data'!$AG$5=1,'SMA Core Data'!I24,'SMA Core Data'!R24))","v":""},{"$f":"IFERROR('QV-1 Density Worksheet'!AD25/($S$9*62.24)*100,\"\")","v":""},"","","",""]
[null,null,null,null,null,null,null,null,null,null,"Wet Density 1\n(pcf)","Wet Density 2\n(pcf)","Wet Density 3*\n(pcf)","Average Wet Density\n(pcf)","Average Wet Density\n(%)","Gmb","Density\n(%)","Gauge-Core\nDensity Difference\n(%)","Offset Wet Density\n(%)","Offset Gauge-Core Difference\n(%)","R-Squared",null,null,null,{"$error":"#N/A"},{"$error":"#N/A"},"","",{"$f":"IF('Project Info & Instructions'!$D$27<>INTERNAL_SYS_VAR!$C$10,IF('HMA Core Data'!$AE$5=1,'HMA Core Data'!H25,'HMA Core Data'!P25),IF('SMA Core Data'!$AG$5=1,'SMA Core Data'!I25,'SMA Core Data'!R25))","v":""},{"$f":"IFERROR('QV-1 Density Worksheet'!AD26/($S$9*62.24)*100,\"\")","v":""},"","","",""]
[null,null,null,null,null,null,null,"Zone 1",{"$f":"'HMA Core Data'!B14","v":""},{"$f":"'QV-1 Density Worksheet'!D17","v":-100},{"$f":"IF(X3=TRUE,\"\",'QV-1 Density Worksheet'!T17)","v":""},{"$f":"IF(X3=TRUE,\"\",'QV-1 Density Worksheet'!U17)","v":""},{"$f":"IF(X3=TRUE,\"\",'QV-1 Density Worksheet'!V17)","v":""},{"$f":"IF(X3=TRUE,\"\",IFERROR('QV-1 Density Worksheet'!AD17,\"\"))","v":""},{"$f":"IF(X3=TRUE,\"\",IFERROR(N14/($S$9*62.24)*100,\"\"))","v":""},{"$f":"IF(X3=TRUE,\"\",IF('Project Info & Instructions'!$D$27<>INTERNAL_SYS_VAR!$C$10,IF('HMA Core Data'!$AE$5=1,'HMA Core Data'!H14,'HMA Core Data'!P14),IF('SMA Core Data'!$AG$5=1,'SMA Core Data'!I14,'SMA Core Data'!R14)))","v":""},{"$f":"IF(X3=TRUE,\"\",IFERROR(P14/$S$9*100,\"\"))","v":""},{"$f":"IFERROR(Q14-O14,\"\")","v":""},{"$f":"IFERROR(O14+$F$26,\"\")","v":""},{"$f":"IFERROR(Q14-S14,\"\")","v":""},{"$f":"IFERROR(RSQ(AA4:AA13,AB4:AB13),\"\")","v":""}]
[null,null,null,null,null,null,null,null,{"$f":"'HMA Core Data'!B15","v":""},{"$f":"'QV-1 Density Worksheet'!D18","v":-50},{"$f":"IF(X4=TRUE,\"\",'QV-1 Density Worksheet'!T18)","v":""},{"$f":"IF(X4=TRUE,\"\",'QV-1 Density Worksheet'!U18)","v":""},{"$f":"IF(X4=TRUE,\"\",'QV-1 Density Worksheet'!V18)","v":""},{"$f":"IF(X4=TRUE,\"\",IFERROR('QV-1 Density Worksheet'!AD18,\"\"))","v":""},"",{"$f":"IF(X4=TRUE,\"\",IF('Project Info & Instructions'!$D$27<>INTERNAL_SYS_VAR!$C$10,IF('HMA Core Data'!$AE$5=1,'HMA Core Data'!H15,'HMA Core Data'!P15),IF('SMA Core Data'!$AG$5=1,'SMA Core Data'!I15,'SMA Core Data'!R15)))","v":""},"","","",""]
[null,null,null,null,null,null,null,null,{"$f":"'HMA Core Data'!B16","v":""},{"$f":"'QV-1 Density Worksheet'!D19","v":0},{"$f":"IF(X5=TRUE,\"\",'QV-1 Density Worksheet'!T19)","v":""},{"$f":"IF(X5=TRUE,\"\",'QV-1 Density Worksheet'!U19)","v":""},{"$f":"IF(X5=TRUE,\"\",'QV-1 Density Worksheet'!V19)","v":""},{"$f":"IF(X5=TRUE,\"\",IFERROR('QV-1 Density Worksheet'!AD19,\"\"))","v":""},"",{"$f":"IF(X5=TRUE,\"\",IF('Project Info & Instructions'!$D$27<>INTERNAL_SYS_VAR!$C$10,IF('HMA Core Data'!$AE$5=1,'HMA Core Data'!H16,'HMA Core Data'!P16),IF('SMA Core Data'!$AG$5=1,'SMA Core Data'!I16,'SMA Core Data'!R16)))","v":""},"","","",""]
[null,null,null,null,null,null,null,null,{"$f":"'HMA Core Data'!B17","v":""},{"$f":"'QV-1 Density Worksheet'!D20","v":50},{"$f":"IF(X6=TRUE,\"\",'QV-1 Density Worksheet'!T20)","v":""},{"$f":"IF(X6=TRUE,\"\",'QV-1 Density Worksheet'!U20)","v":""},{"$f":"IF(X6=TRUE,\"\",'QV-1 Density Worksheet'!V20)","v":""},{"$f":"IF(X6=TRUE,\"\",IFERROR('QV-1 Density Worksheet'!AD20,\"\"))","v":""},"",{"$f":"IF(X6=TRUE,\"\",IF('Project Info & Instructions'!$D$27<>INTERNAL_SYS_VAR!$C$10,IF('HMA Core Data'!$AE$5=1,'HMA Core Data'!H17,'HMA Core Data'!P17),IF('SMA Core Data'!$AG$5=1,'SMA Core Data'!I17,'SMA Core Data'!R17)))","v":""},"","","",""]
[null,null,null,null,null,null,null,null,{"$f":"'HMA Core Data'!B18","v":""},{"$f":"'QV-1 Density Worksheet'!D21","v":100},{"$f":"IF(X7=TRUE,\"\",'QV-1 Density Worksheet'!T21)","v":""},{"$f":"IF(X7=TRUE,\"\",'QV-1 Density Worksheet'!U21)","v":""},{"$f":"IF(X7=TRUE,\"\",'QV-1 Density Worksheet'!V21)","v":""},{"$f":"IF(X7=TRUE,\"\",IFERROR('QV-1 Density Worksheet'!AD21,\"\"))","v":""},"",{"$f":"IF(X7=TRUE,\"\",IF('Project Info & Instructions'!$D$27<>INTERNAL_SYS_VAR!$C$10,IF('HMA Core Data'!$AE$5=1,'HMA Core Data'!H18,'HMA Core Data'!P18),IF('SMA Core Data'!$AG$5=1,'SMA Core Data'!I18,'SMA Core Data'!R18)))","v":""},"","","",""]
[null,null,null,null,null,null,null,"Zone 2",{"$f":"'HMA Core Data'!B21","v":""},{"$f":"'QV-1 Density Worksheet'!D22","v":-100},{"$f":"IF(X8=TRUE,\"\",'QV-1 Density Worksheet'!T22)","v":""},{"$f":"IF(X8=TRUE,\"\",'QV-1 Density Worksheet'!U22)","v":""},{"$f":"IF(X8=TRUE,\"\",'QV-1 Density Worksheet'!V22)","v":""},{"$f":"IF(X8=TRUE,\"\",IFERROR('QV-1 Density Worksheet'!AD22,\"\"))","v":""},"",{"$f":"IF(X8=TRUE,\"\",IF('Project Info & Instructions'!$D$27<>INTERNAL_SYS_VAR!$C$10,IF('HMA Core Data'!$AE$5=1,'HMA Core Data'!H21,'HMA Core Data'!P21),IF('SMA Core Data'!$AG$5=1,'SMA Core Data'!I21,'SMA Core Data'!R21)))","v":""},"","","",""]
[null,null,null,null,null,null,null,null,{"$f":"'HMA Core Data'!B22","v":""},{"$f":"'QV-1 Density Worksheet'!D23","v":-50},{"$f":"IF(X9=TRUE,\"\",'QV-1 Density Worksheet'!T23)","v":""},{"$f":"IF(X9=TRUE,\"\",'QV-1 Density Worksheet'!U23)","v":""},{"$f":"IF(X9=TRUE,\"\",'QV-1 Density Worksheet'!V23)","v":""},{"$f":"IF(X9=TRUE,\"\",IFERROR('QV-1 Density Worksheet'!AD23,\"\"))","v":""},"",{"$f":"IF(X9=TRUE,\"\",IF('Project Info & Instructions'!$D$27<>INTERNAL_SYS_VAR!$C$10,IF('HMA Core Data'!$AE$5=1,'HMA Core Data'!H22,'HMA Core Data'!P22),IF('SMA Core Data'!$AG$5=1,'SMA Core Data'!I22,'SMA Core Data'!R22)))","v":""},"","","",""]
[null,null,null,null,null,null,null,null,{"$f":"'HMA Core Data'!B23","v":""},{"$f":"'QV-1 Density Worksheet'!D24","v":0},{"$f":"IF(X10=TRUE,\"\",'QV-1 Density Worksheet'!T24)","v":""},{"$f":"IF(X10=TRUE,\"\",'QV-1 Density Worksheet'!U24)","v":""},{"$f":"IF(X10=TRUE,\"\",'QV-1 Density Worksheet'!V24)","v":""},{"$f":"IF(X10=TRUE,\"\",IFERROR('QV-1 Density Worksheet'!AD24,\"\"))","v":""},"",{"$f":"IF(X10=TRUE,\"\",IF('Project Info & Instructions'!$D$27<>INTERNAL_SYS_VAR!$C$10,IF('HMA Core Data'!$AE$5=1,'HMA Core Data'!H23,'HMA Core Data'!P23),IF('SMA Core Data'!$AG$5=1,'SMA Core Data'!I23,'SMA Core Data'!R23)))","v":""},"","","",""]
[null,null,null,null,null,null,null,null,{"$f":"'HMA Core Data'!B24","v":""},{"$f":"'QV-1 Density Worksheet'!D25","v":50},{"$f":"IF(X11=TRUE,\"\",'QV-1 Density Worksheet'!T25)","v":""},{"$f":"IF(X11=TRUE,\"\",'QV-1 Density Worksheet'!U25)","v":""},{"$f":"IF(X11=TRUE,\"\",'QV-1 Density Worksheet'!V25)","v":""},{"$f":"IF(X11=TRUE,\"\",IFERROR('QV-1 Density Worksheet'!AD25,\"\"))","v":""},"",{"$f":"IF(X11=TRUE,\"\",IF('Project Info & Instructions'!$D$27<>INTERNAL_SYS_VAR!$C$10,IF('HMA Core Data'!$AE$5=1,'HMA Core Data'!H24,'HMA Core Data'!P24),IF('SMA Core Data'!$AG$5=1,'SMA Core Data'!I24,'SMA Core Data'!R24)))","v":""},"","","",""]
[null,null,null,null,null,null,null,null,{"$f":"'HMA Core Data'!B25","v":""},{"$f":"'QV-1 Density Worksheet'!D26","v":100},{"$f":"IF(X12=TRUE,\"\",'QV-1 Density Worksheet'!T26)","v":""},{"$f":"IF(X12=TRUE,\"\",'QV-1 Density Worksheet'!U26)","v":""},{"$f":"IF(X12=TRUE,\"\",'QV-1 Density Worksheet'!V26)","v":""},{"$f":"IF(X12=TRUE,\"\",IFERROR('QV-1 Density Worksheet'!AD26,\"\"))","v":""},"",{"$f":"IF(X12=TRUE,\"\",IF('Project Info & Instructions'!$D$27<>INTERNAL_SYS_VAR!$C$10,IF('HMA Core Data'!$AE$5=1,'HMA Core Data'!H25,'HMA Core Data'!P25),IF('SMA Core Data'!$AG$5=1,'SMA Core Data'!I25,'SMA Core Data'!R25)))","v":""},"","","",""]
[null,null,null,null,null,null,null,null,null,null,null,null,"Spread:",{"$f":"MAX(N14:N23)-MIN(N14:N23)","v":0},{"$f":"MAX(O14:O23)-MIN(O14:O23)","v":0},{"$f":"MAX(P14:P23)-MIN(P14:P23)","v":0},{"$f":"MAX(Q14:Q23)-MIN(Q14:Q23)","v":0}]
[]
[null,null,"Guage Offset:",null,null,{"$f":"IFERROR(ROUND(AVERAGE(R14:R23),1),\"\")","v":""}]
[null,null,"Gauge Offset:\n(including removed cores)",null,null,{"$f":"IFERROR(ROUND(AVERAGE(AF4:AF8,AF9:AF13),1),\"\")","v":""}]

{"sheet":"QV-2 Correlation","index":23,"n_rows":27,"n_cols":34,"rows_kept":27,"cut":false,"hidden":true,"merged":[[0,1,3,2],[1,22,1,23],[1,24,1,25],[1,26,1,27],[1,28,1,33],[6,3,6,5],[6,8,6,11],[6,14,6,15],[6,18,6,20],[5,3,5,5],[5,8,5,11],[5,14,5,15],[5,18,5,20],[7,3,7,5],[7,8,7,11],[7,14,7,15],[7,18,7,20],[8,3,8,5],[8,8,8,11],[8,18,8,20],[10,7,10,20],[11,7,12,8],[11,9,12,9],[11,10,11,14],[11,15,11,16],[11,17,11,20],[13,7,17,7],[13,20,22,20],[18,7,22,7],[25,2,25,4],[26,2,26,4]]}
[null,{"$error":"#VALUE!"}]
[null,null,null,"Nuclear / Core Correlation: QV-2",null,null,null,null,null,null,null,null,null,null,null,null,null,null,null,null,null,null,"Worksheet Variables",null,"Graph Points",null,"R-Squared Calculation",null,"All Values including removed cores"]
[null,null,null,"Wisconsin Department of Transportation",null,null,null,null,null,null,null,null,null,null,null,null,null,null,null,null,null,null,"Core 1 Removed:",{"$f":"IF('Project Info & Instructions'!$D$27<>INTERNAL_SYS_VAR!$C$10,'HMA Core Data'!AE6,'SMA Core Data'!AG6)","v":false},"Nuclear","Core","Nuclear","Core","Core Gmb","Ave Nuclear","Core Density","Difference","Offset Wet Density (%)","Offset Gauge-Core Difference\n(%)"]
[null,null,null,null,null,null,null,null,null,null,null,null,null,null,null,null,null,null,null,null,null,null,"Core 2 Removed:",{"$f":"IF('Project Info & Instructions'!$D$27<>INTERNAL_SYS_VAR!$C$10,'HMA Core Data'!AE7,'SMA Core Data'!AG7)","v":false},{"$f":"IF(O14=\"\",NA(),O14)","v":{"$error":"#N/A"}},{"$f":"IF(Q14=\"\",NA(),Q14)","v":{"$error":"#N/A"}},{"$f":"IF(ISNUMBER(Y4),Y4,\"\")","v":""},{"$f":"IF(ISNUMBER(Z4),Z4,\"\")","v":""},{"$f":"IF('Project Info & Instructions'!$D$27<>INTERNAL_SYS_VAR!$C$10,IF('HMA Core Data'!$AE$5=1,'HMA Core Data'!H14,'HMA Core Data'!P14),IF('SMA Core Data'!$AG$5=1,'SMA Core Data'!I14,'SMA Core Data'!R14))","v":""},{"$f":"IFERROR('QV-2 Density Worksheet'!AD17/($S$9*62.24)*100,\"\")","v":""},{"$f":"IFERROR(AC4/$S$9*100,\"\")","v":""},{"$f":"IFERROR(AE4-AD4,\"\")","v":""},{"$f":"IFERROR(AD4+$F$27,\"\")","v":""},{"$f":"IFERROR(AE4-AG4,\"\")","v":""}]
[null,null,null,null,null,null,null,null,null,null,null,null,null,null,null,null,null,null,null,null,null,null,"Core 3 Removed:",{"$f":"IF('Project Info & Instructions'!$D$27<>INTERNAL_SYS_VAR!$C$10,'HMA Core Data'!AE8,'SMA Core Data'!AG8)","v":false},{"$f":"IF(O15=\"\",NA(),O15)","v":{"$error":"#N/A"}},{"$f":"IF(Q15=\"\",NA(),Q15)","v":{"$error":"#N/A"}},"","",{"$f":"IF('Project Info & Instructions'!$D$27<>INTERNAL_SYS_VAR!$C$10,IF('HMA Core Data'!$AE$5=1,'HMA Core Data'!H15,'HMA Core Data'!P15),IF('SMA Core Data'!$AG$5=1,'SMA Core Data'!I15,'SMA Core Data'!R15))","v":""},{"$f":"IFERROR('QV-2 Density Worksheet'!AD18/($S$9*62.24)*100,\"\")","v":""},{"$f":"IFERROR(AC5/$S$9*100,\"\")","v":""},{"$f":"IFERROR(AE5-AD5,\"\")","v":""},"",{"$f":"IFERROR(AE5-AG5,\"\")","v":""}]
[null,null,"Contract:",{"$f":"IF('Project Info & Instructions'!D7=\"\",\"\",'Project Info & Instructions'!D7)","v":""},null,null,null,"Test Strip #:",{"$f":"IF('Project Info & Instructions'!D14=\"\",\"\",'Project Info & Instructions'!D14)","v":""},null,null,null,null,"Paving Width (ft):",{"$f":"IF(ISBLANK('Project Info & Instructions'!$H$9),\"\",'Project Info & Instructions'!$H$9)","v":""},null,null,"Date:",{"$f":"IF('Project Info & Instructions'!D13=\"\",\"\",'Project Info & Instructions'!D13)","v":""},null,null,null,"Core 4 Removed:",{"$f":"IF('Project Info & Instructions'!$D$27<>INTERNAL_SYS_VAR!$C$10,'HMA Core Data'!AE9,'SMA Core Data'!AG9)","v":false},{"$error":"#N/A"},{"$error":"#N/A"},"","",{"$f":"IF('Project Info & Instructions'!$D$27<>INTERNAL_SYS_VAR!$C$10,IF('HMA Core Data'!$AE$5=1,'HMA Core Data'!H16,'HMA Core Data'!P16),IF('SMA Core Data'!$AG$5=1,'SMA Core Data'!I16,'SMA Core Data'!R16))","v":""},{"$f":"IFERROR('QV-2 Density Worksheet'!AD19/($S$9*62.24)*100,\"\")","v":""},"","","",""]
[null,null,"Project ID:",{"$f":"IF('Project Info & Instructions'!D8=\"\",\"\",'Project Info & Instructions'!D8)","v":""},null,null,null,"Route/Road:",{"$f":"IF('Project Info & Instructions'!D10=\"\",\"\",'Project Info & Instructions'!D10)","v":""},null,null,null,null,"Lane Width (ft):",{"$f":"IF(ISBLANK('Project Info & Instructions'!$H$10),\"\",'Project Info & Instructions'!$H$10)","v":""},null,null,"Technician:",{"$f":"IF('QV-2 Density Worksheet'!K9=\"\",\"\",'QV-2 Density Worksheet'!K9)","v":""},null,null,null,"Core 5 Removed:",{"$f":"IF('Project Info & Instructions'!$D$27<>INTERNAL_SYS_VAR!$C$10,'HMA Core Data'!AE10,'SMA Core Data'!AG10)","v":false},{"$error":"#N/A"},{"$error":"#N/A"},"","",{"$f":"IF('Project Info & Instructions'!$D$27<>INTERNAL_SYS_VAR!$C$10,IF('HMA Core Data'!$AE$5=1,'HMA Core Data'!H17,'HMA Core Data'!P17),IF('SMA Core Data'!$AG$5=1,'SMA Core Data'!I17,'SMA Core Data'!R17))","v":""},{"$f":"IFERROR('QV-2 Density Worksheet'!AD20/($S$9*62.24)*100,\"\")","v":""},"","","",""]
[null,null,"WisDOT Mix Design ID:",{"$f":"IF('Project Info & Instructions'!D26=\"\",\"\",'Project Info & Instructions'!D26)","v":""},null,null,null,"Pavement Layer:",{"$f":"IF('Project Info & Instructions'!H7=\"\",\"\",'Project Info & Instructions'!H7)","v":""},null,null,null,null,"Nominal Thickness (in):",{"$f":"IF(ISBLANK('Project Info & Instructions'!$H$11),\"\",'Project Info & Instructions'!$H$11)","v":""},null,null,"Gauge No.:",{"$f":"IF('QV-2 Density Worksheet'!O7=\"\",\"\",'QV-2 Density Worksheet'!O7)","v":""},null,null,null,"Core 6 Removed:",{"$f":"IF('Project Info & Instructions'!$D$27<>INTERNAL_SYS_VAR!$C$10,'HMA Core Data'!AE11,'SMA Core Data'!AG11)","v":false},{"$error":"#N/A"},{"$error":"#N/A"},"","",{"$f":"IF('Project Info & Instructions'!$D$27<>INTERNAL_SYS_VAR!$C$10,IF('HMA Core Data'!$AE$5=1,'HMA Core Data'!H18,'HMA Core Data'!P18),IF('SMA Core Data'!$AG$5=1,'SMA Core Data'!I18,'SMA Core Data'!R18))","v":""},{"$f":"IFERROR('QV-2 Density Worksheet'!AD21/($S$9*62.24)*100,\"\")","v":""},"","","",""]
[null,null,"Mix Type:",{"$f":"IF('Project Info & Instructions'!D31=\"\",\"\",'Project Info & Instructions'!D31)","v":"--"},null,null,null,"Underlying Layer:",{"$f":"IF('Project Info & Instructions'!H8=\"\",\"\",'Project Info & Instructions'!H8)","v":""},null,null,null,null,null,null,null,null,"Gmm:",{"$f":"IF('Project Info & Instructions'!$D$35=INTERNAL_SYS_VAR!$B$8,'Project Info & Instructions'!$D$52,IF('Project Info & Instructions'!$D$27<>INTERNAL_SYS_VAR!$C$10,'HMA Air Voids Pay Factor'!$E$16,'SMA Air Voids Pay Factor'!$E$17))","v":""},null,null,null,"Core 7 Removed:",{"$f":"IF('Project Info & Instructions'!$D$27<>INTERNAL_SYS_VAR!$C$10,'HMA Core Data'!AE12,'SMA Core Data'!AG12)","v":false},{"$error":"#N/A"},{"$error":"#N/A"},"","",{"$f":"IF('Project Info & Instructions'!$D$27<>INTERNAL_SYS_VAR!$C$10,IF('HMA Core Data'!$AE$5=1,'HMA Core Data'!H21,'HMA Core Data'!P21),IF('SMA Core Data'!$AG$5=1,'SMA Core Data'!I21,'SMA Core Data'!R21))","v":""},{"$f":"IFERROR('QV-2 Density Worksheet'!AD22/($S$9*62.24)*100,\"\")","v":""},"",{"$f":"IFERROR(AE9-AD9,\"\")","v":""},"",{"$f":"IFERROR(AE9-AG9,\"\")","v":""}]
[null,null,null,null,null,null,null,null,null,null,null,null,null,null,null,null,null,null,null,null,null,null,"Core 8 Removed:",{"$f":"IF('Project Info & Instructions'!$D$27<>INTERNAL_SYS_VAR!$C$10,'HMA Core Data'!AE13,'SMA Core Data'!AG13)","v":false},{"$error":"#N/A"},{"$error":"#N/A"},"","",{"$f":"IF('Project Info & Instructions'!$D$27<>INTERNAL_SYS_VAR!$C$10,IF('HMA Core Data'!$AE$5=1,'HMA Core Data'!H22,'HMA Core Data'!P22),IF('SMA Core Data'!$AG$5=1,'SMA Core Data'!I22,'SMA Core Data'!R22))","v":""},{"$f":"IFERROR('QV-2 Density Worksheet'!AD23/($S$9*62.24)*100,\"\")","v":""},"",{"$f":"IFERROR(AE10-AD10,\"\")","v":""},"",{"$f":"IFERROR(AE10-AG10,\"\")","v":""}]
[null,null,null,null,null,null,null,"Nuclear Gauge-Core Correlation",null,null,null,null,null,null,null,null,null,null,null,null,null,null,"Core 9 Removed:",{"$f":"IF('Project Info & Instructions'!$D$27<>INTERNAL_SYS_VAR!$C$10,'HMA Core Data'!AE14,'SMA Core Data'!AG14)","v":false},{"$error":"#N/A"},{"$error":"#N/A"},"","",{"$f":"IF('Project Info & Instructions'!$D$27<>INTERNAL_SYS_VAR!$C$10,IF('HMA Core Data'!$AE$5=1,'HMA Core Data'!H23,'HMA Core Data'!P23),IF('SMA Core Data'!$AG$5=1,'SMA Core Data'!I23,'SMA Core Data'!R23))","v":""},{"$f":"IFERROR('QV-2 Density Worksheet'!AD24/($S$9*62.24)*100,\"\")","v":""},"","","",""]
[null,null,null,null,null,null,null,"Lot / Sublot ID",null,"Station","Nuclear Gauge Measurements",null,null,null,null,"Core Measurements",null,"Correlation",null,null,null,null,"Core 10 Removed:",{"$f":"IF('Project Info & Instructions'!$D$27<>INTERNAL_SYS_VAR!$C$10,'HMA Core Data'!AE15,'SMA Core Data'!AG15)","v":false},{"$error":"#N/A"},{"$error":"#N/A"},"","",{"$f":"IF('Project Info & Instructions'!$D$27<>INTERNAL_SYS_VAR!$C$10,IF('HMA Core Data'!$AE$5=1,'HMA Core Data'!H24,'HMA Core Data'!P24),IF('SMA Core Data'!$AG$5=1,'SMA Core Data'!I24,'SMA Core Data'!R24))","v":""},{"$f":"IFERROR('QV-2 Density Worksheet'!AD25/($S$9*62.24)*100,\"\")","v":""},"","","",""]
[null,null,null,null,null,null,null,null,null,null,"Wet Density 1\n(pcf)","Wet Density 2\n(pcf)","Wet Density 3*\n(pcf)","Average Wet Density\n(pcf)","Average Wet Density\n(%)","Gmb","Density\n(%)","Gauge-Core\nDensity Difference\n(%)","Offset Wet Density\n(%)","Offset Gauge-Core Difference\n(%)","R-Squared",null,null,null,{"$error":"#N/A"},{"$error":"#N/A"},"","",{"$f":"IF('Project Info & Instructions'!$D$27<>INTERNAL_SYS_VAR!$C$10,IF('HMA Core Data'!$AE$5=1,'HMA Core Data'!H25,'HMA Core Data'!P25),IF('SMA Core Data'!$AG$5=1,'SMA Core Data'!I25,'SMA Core Data'!R25))","v":""},{"$f":"IFERROR('QV-2 Density Worksheet'!AD26/($S$9*62.24)*100,\"\")","v":""},"","","",""]
[null,null,null,null,null,null,null,"Zone 1",{"$f":"'HMA Core Data'!B14","v":""},{"$f":"'QV-2 Density Worksheet'!D17","v":-100},{"$f":"IF(X3=TRUE,\"\",'QV-2 Density Worksheet'!T17)","v":""},{"$f":"IF(X3=TRUE,\"\",'QV-2 Density Worksheet'!U17)","v":""},{"$f":"IF(X3=TRUE,\"\",'QV-2 Density Worksheet'!V17)","v":""},{"$f":"IF(X3=TRUE,\"\",IFERROR('QV-2 Density Worksheet'!AD17,\"\"))","v":""},{"$f":"IF(X3=TRUE,\"\",IFERROR(N14/($S$9*62.24)*100,\"\"))","v":""},{"$f":"IF(X3=TRUE,\"\",IF('Project Info & Instructions'!$D$27<>INTERNAL_SYS_VAR!$C$10,IF('HMA Core Data'!$AE$5=1,'HMA Core Data'!H14,'HMA Core Data'!P14),IF('SMA Core Data'!$AG$5=1,'SMA Core Data'!I14,'SMA Core Data'!R14)))","v":""},{"$f":"IF(X3=TRUE,\"\",IFERROR(P14/$S$9*100,\"\"))","v":""},{"$f":"IFERROR(Q14-O14,\"\")","v":""},{"$f":"IFERROR(O14+$F$26,\"\")","v":""},{"$f":"IFERROR(Q14-S14,\"\")","v":""},{"$f":"IFERROR(RSQ(AA4:AA13,AB4:AB13),\"\")","v":""}]
[null,null,null,null,null,null,null,null,{"$f":"'HMA Core Data'!B15","v":""},{"$f":"'QV-2 Density Worksheet'!D18","v":-50},{"$f":"IF(X4=TRUE,\"\",'QV-2 Density Worksheet'!T18)","v":""},{"$f":"IF(X4=TRUE,\"\",'QV-2 Density Worksheet'!U18)","v":""},{"$f":"IF(X4=TRUE,\"\",'QV-2 Density Worksheet'!V18)","v":""},{"$f":"IF(X4=TRUE,\"\",IFERROR('QV-2 Density Worksheet'!AD18,\"\"))","v":""},"",{"$f":"IF(X4=TRUE,\"\",IF('Project Info & Instructions'!$D$27<>INTERNAL_SYS_VAR!$C$10,IF('HMA Core Data'!$AE$5=1,'HMA Core Data'!H15,'HMA Core Data'!P15),IF('SMA Core Data'!$AG$5=1,'SMA Core Data'!I15,'SMA Core Data'!R15)))","v":""},"","","",""]
[null,null,null,null,null,null,null,null,{"$f":"'HMA Core Data'!B16","v":""},{"$f":"'QV-2 Density Worksheet'!D19","v":0},{"$f":"IF(X5=TRUE,\"\",'QV-2 Density Worksheet'!T19)","v":""},{"$f":"IF(X5=TRUE,\"\",'QV-2 Density Worksheet'!U19)","v":""},{"$f":"IF(X5=TRUE,\"\",'QV-2 Density Worksheet'!V19)","v":""},{"$f":"IF(X5=TRUE,\"\",IFERROR('QV-2 Density Worksheet'!AD19,\"\"))","v":""},"",{"$f":"IF(X5=TRUE,\"\",IF('Project Info & Instructions'!$D$27<>INTERNAL_SYS_VAR!$C$10,IF('HMA Core Data'!$AE$5=1,'HMA Core Data'!H16,'HMA Core Data'!P16),IF('SMA Core Data'!$AG$5=1,'SMA Core Data'!I16,'SMA Core Data'!R16)))","v":""},"","","",""]
[null,null,null,null,null,null,null,null,{"$f":"'HMA Core Data'!B17","v":""},{"$f":"'QV-2 Density Worksheet'!D20","v":50},{"$f":"IF(X6=TRUE,\"\",'QV-2 Density Worksheet'!T20)","v":""},{"$f":"IF(X6=TRUE,\"\",'QV-2 Density Worksheet'!U20)","v":""},{"$f":"IF(X6=TRUE,\"\",'QV-2 Density Worksheet'!V20)","v":""},{"$f":"IF(X6=TRUE,\"\",IFERROR('QV-2 Density Worksheet'!AD20,\"\"))","v":""},"",{"$f":"IF(X6=TRUE,\"\",IF('Project Info & Instructions'!$D$27<>INTERNAL_SYS_VAR!$C$10,IF('HMA Core Data'!$AE$5=1,'HMA Core Data'!H17,'HMA Core Data'!P17),IF('SMA Core Data'!$AG$5=1,'SMA Core Data'!I17,'SMA Core Data'!R17)))","v":""},"","","",""]
[null,null,null,null,null,null,null,null,{"$f":"'HMA Core Data'!B18","v":""},{"$f":"'QV-2 Density Worksheet'!D21","v":100},{"$f":"IF(X7=TRUE,\"\",'QV-2 Density Worksheet'!T21)","v":""},{"$f":"IF(X7=TRUE,\"\",'QV-2 Density Worksheet'!U21)","v":""},{"$f":"IF(X7=TRUE,\"\",'QV-2 Density Worksheet'!V21)","v":""},{"$f":"IF(X7=TRUE,\"\",IFERROR('QV-2 Density Worksheet'!AD21,\"\"))","v":""},"",{"$f":"IF(X7=TRUE,\"\",IF('Project Info & Instructions'!$D$27<>INTERNAL_SYS_VAR!$C$10,IF('HMA Core Data'!$AE$5=1,'HMA Core Data'!H18,'HMA Core Data'!P18),IF('SMA Core Data'!$AG$5=1,'SMA Core Data'!I18,'SMA Core Data'!R18)))","v":""},"","","",""]
[null,null,null,null,null,null,null,"Zone 2",{"$f":"'HMA Core Data'!B21","v":""},{"$f":"'QV-2 Density Worksheet'!D22","v":-100},{"$f":"IF(X8=TRUE,\"\",'QV-2 Density Worksheet'!T22)","v":""},{"$f":"IF(X8=TRUE,\"\",'QV-2 Density Worksheet'!U22)","v":""},{"$f":"IF(X8=TRUE,\"\",'QV-2 Density Worksheet'!V22)","v":""},{"$f":"IF(X8=TRUE,\"\",IFERROR('QV-2 Density Worksheet'!AD22,\"\"))","v":""},"",{"$f":"IF(X8=TRUE,\"\",IF('Project Info & Instructions'!$D$27<>INTERNAL_SYS_VAR!$C$10,IF('HMA Core Data'!$AE$5=1,'HMA Core Data'!H21,'HMA Core Data'!P21),IF('SMA Core Data'!$AG$5=1,'SMA Core Data'!I21,'SMA Core Data'!R21)))","v":""},"","","",""]
[null,null,null,null,null,null,null,null,{"$f":"'HMA Core Data'!B22","v":""},{"$f":"'QV-2 Density Worksheet'!D23","v":-50},{"$f":"IF(X9=TRUE,\"\",'QV-2 Density Worksheet'!T23)","v":""},{"$f":"IF(X9=TRUE,\"\",'QV-2 Density Worksheet'!U23)","v":""},{"$f":"IF(X9=TRUE,\"\",'QV-2 Density Worksheet'!V23)","v":""},{"$f":"IF(X9=TRUE,\"\",IFERROR('QV-2 Density Worksheet'!AD23,\"\"))","v":""},"",{"$f":"IF(X9=TRUE,\"\",IF('Project Info & Instructions'!$D$27<>INTERNAL_SYS_VAR!$C$10,IF('HMA Core Data'!$AE$5=1,'HMA Core Data'!H22,'HMA Core Data'!P22),IF('SMA Core Data'!$AG$5=1,'SMA Core Data'!I22,'SMA Core Data'!R22)))","v":""},"","","",""]
[null,null,null,null,null,null,null,null,{"$f":"'HMA Core Data'!B23","v":""},{"$f":"'QV-2 Density Worksheet'!D24","v":0},{"$f":"IF(X10=TRUE,\"\",'QV-2 Density Worksheet'!T24)","v":""},{"$f":"IF(X10=TRUE,\"\",'QV-2 Density Worksheet'!U24)","v":""},{"$f":"IF(X10=TRUE,\"\",'QV-2 Density Worksheet'!V24)","v":""},{"$f":"IF(X10=TRUE,\"\",IFERROR('QV-2 Density Worksheet'!AD24,\"\"))","v":""},"",{"$f":"IF(X10=TRUE,\"\",IF('Project Info & Instructions'!$D$27<>INTERNAL_SYS_VAR!$C$10,IF('HMA Core Data'!$AE$5=1,'HMA Core Data'!H23,'HMA Core Data'!P23),IF('SMA Core Data'!$AG$5=1,'SMA Core Data'!I23,'SMA Core Data'!R23)))","v":""},"","","",""]
[null,null,null,null,null,null,null,null,{"$f":"'HMA Core Data'!B24","v":""},{"$f":"'QV-2 Density Worksheet'!D25","v":50},{"$f":"IF(X11=TRUE,\"\",'QV-2 Density Worksheet'!T25)","v":""},{"$f":"IF(X11=TRUE,\"\",'QV-2 Density Worksheet'!U25)","v":""},{"$f":"IF(X11=TRUE,\"\",'QV-2 Density Worksheet'!V25)","v":""},{"$f":"IF(X11=TRUE,\"\",IFERROR('QV-2 Density Worksheet'!AD25,\"\"))","v":""},"",{"$f":"IF(X11=TRUE,\"\",IF('Project Info & Instructions'!$D$27<>INTERNAL_SYS_VAR!$C$10,IF('HMA Core Data'!$AE$5=1,'HMA Core Data'!H24,'HMA Core Data'!P24),IF('SMA Core Data'!$AG$5=1,'SMA Core Data'!I24,'SMA Core Data'!R24)))","v":""},"","","",""]
[null,null,null,null,null,null,null,null,{"$f":"'HMA Core Data'!B25","v":""},{"$f":"'QV-2 Density Worksheet'!D26","v":100},{"$f":"IF(X12=TRUE,\"\",'QV-2 Density Worksheet'!T26)","v":""},{"$f":"IF(X12=TRUE,\"\",'QV-2 Density Worksheet'!U26)","v":""},{"$f":"IF(X12=TRUE,\"\",'QV-2 Density Worksheet'!V26)","v":""},{"$f":"IF(X12=TRUE,\"\",IFERROR('QV-2 Density Worksheet'!AD26,\"\"))","v":""},"",{"$f":"IF(X12=TRUE,\"\",IF('Project Info & Instructions'!$D$27<>INTERNAL_SYS_VAR!$C$10,IF('HMA Core Data'!$AE$5=1,'HMA Core Data'!H25,'HMA Core Data'!P25),IF('SMA Core Data'!$AG$5=1,'SMA Core Data'!I25,'SMA Core Data'!R25)))","v":""},"","","",""]
[null,null,null,null,null,null,null,null,null,null,null,null,"Spread:",{"$f":"MAX(N14:N23)-MIN(N14:N23)","v":0},{"$f":"MAX(O14:O23)-MIN(O14:O23)","v":0},{"$f":"MAX(P14:P23)-MIN(P14:P23)","v":0},{"$f":"MAX(Q14:Q23)-MIN(Q14:Q23)","v":0}]
[]
[null,null,"Guage Offset:",null,null,{"$f":"IFERROR(ROUND(AVERAGE(R14:R23),1),\"\")","v":""}]
[null,null,"Gauge Offset:\n(including removed cores)",null,null,{"$f":"IFERROR(ROUND(AVERAGE(AF4:AF8,AF9:AF13),1),\"\")","v":""}]

{"sheet":"INTERNAL_SYS_MSGS","index":24,"n_rows":79,"n_cols":2,"rows_kept":79,"cut":false,"hidden":true,"merged":[]}
[]
[null,"Project Info. & Instructions - Pavement Layers Dropdown Menu"]
[null,"Select Length / Tonnage Known Above"]
[null,"More Information Needed"]
[null,"Split Sample Comparison"]
[null,"Enter JMF Gmm."]
[null,"Xd Mean within tolerance."]
[null,"Xd Mean exceeds tolerance."]
[null,"Do NOT Compare."]
[null,"Compare."]
[null,"One or more Gmm exceeds the JMF Acceptance Limit. Consult Regional PWL Rep. & BTS."]
[null,"Gmms are within JMF Acceptance Limit."]
[null,"Pass"]
[null,"Failed T-test Only - No Referee Testing Needed - "]
[null,"Split Samples Do Not Compare; Contact Regional PWL Representative and BTS."]
[null,"BTS Referee Testing is required. However, while waiting for BTS results, QC and QV Gmm and Gmb values can be entered into the BTS Referee cells to get an idea of differnet scenarios."]
[null,"Gmms are Within tolerance."]
[null,"One or more Gmm exceeds the tolerance."]
[null,"Gmbs are Within tolerance."]
[null,"One or more Gmb exceeds the tolerance."]
[null,"Core Data"]
[null,"Enter Daily Average Gmm."]
[null,"Enter JMF Gmm."]
[null,"Enter Gmm"]
[null,"Enter Production / Non-Random Gmm on Project Info. & Instructions."]
[null,"Gmm During Test Strip Exceeds Acceptance Limits."]
[null,"Gmm During Test Strip Within Acceptance Limits."]
[null,"AC % Data"]
[null,"Enter the JMF Gse and AC Sp. Gr. on Project Info & Instructions Tab."]
[null,"Enter JMF Binder AC%."]
[null,"One or more asphalt content differences is more than 0.2% apart."]
[null,"Conforming."]
[null,"Unacceptable."]
[null,"Conforming, but consult BTS for QC-QV differences more than 0.2%."]
[null,"Enter BTS Referee Results."]
[null,"Mix Acceptance"]
[null,"One or more gradation parameter is outside of the acceptance limit."]
[null,"One or more QC or QV split sample VMA is outside of the acceptance limit. Referee Testing Required."]
[null,"One or more BTS split sample VMA is outside of the acceptance limit."]
[null,"Conforming."]
[null,"Air Voids Pay Factor"]
[null,"BTS Result"]
[null,"Final Tonnage Needed."]
[null,"Unacceptable."]
[null,"Nonconforming."]
[null,"Conforming."]
[null,"Approved with Nonconforming Air Voids. Propose solution prior to proceeding with production."]
[null,"Not Approved. Nonconforming Air Voids. Stop production, submit cause and solution. Construct an additional volumetric test strip."]
[null,"Not Approved. Unacceptable Air Voids. Stop production, submit cause and solution. Construct an additional test strip and perform a new core to gauge correlation."]
[]
[null,"Density Pay Factor"]
[null,"Final Length Needed."]
[null,"Enter Daily Average Gmm on HMA Core Data Tab."]
[null,"Unacceptable."]
[null,"Nonconforming."]
[null,"Conforming."]
[null,"The Production or Non-random Gmm During Test Strip Exceeds Acceptance Limits."]
[null," Too many cores have been removed from the analysis."]
[null," There is an individual unacceptable core density."]
[null," The PWL is between 50 and 75."]
[null," The PWL is less than 50."]
[null," Consult Regional PWL Representative & BTS to determine need for an additional test strip."]
[null," A new test strip is required."]
[null,"Enter Daily Average Gmm on SMA Core Data Tab."]
[null,"Individual density result is greater than 97.0%, lot is ineligible for incentive."]
[null,"Test Strip Summary"]
[null,"Approved, proceed with production."]
[null,"Approved; However, consult Regional PWL Rep. & BTS prior to proceeding with production."]
[null,"Not Approved. Consult Regional PWL Representative & BTS to determine need for an additional test strip."]
[null,"Not Approved. Construct an additional Volumetric and/or Density Test Strip"]
[null,"Conforming."]
[null,"Nonconforming."]
[null,"Unacceptable."]
[null,"Save with Suggested File Name and send a copy of the completed Test Strip Excel file to the Regional PWL Rep. and BTS"]
[null,"Daniel.Kopacz@dot.wi.gov"]
[null,"Gauge-Core Variability"]
[null,"Location Comparison Averages (shown in cells G12 - G21) ≥ 1.0 or ≤ -1.0 indicate a core that may be damaged.  In such cases the individual core can be removed from the analysis by checking the \"Remove Core X\" box on the Core Data tab of this spreadsheet."]
[null,"A Gauge Comparison Average (shown in cells B36, C36, D36, and E36) ≥ 1.0 indicates a gauge that has erratic readings.  In such cases the gauge in question should be removed from the project and further diagnostics should be performed in coordination with the WisDOT Radiation Safety Officer (RSO). \n WisDOT RSO Contact:"]
[null,"Brian Jandrin\nBrian.Jandrin@dot.wi.gov\n(608) 516-6359, Primary"]

{"sheet":"INTERNAL_SYS_VAR","index":25,"n_rows":20,"n_cols":56,"rows_kept":20,"cut":false,"hidden":true,"merged":[[6,53,6,54],[6,55,7,55],[5,53,5,55],[4,48,4,55],[5,48,5,49],[5,46,5,47],[4,46,4,47],[5,41,6,41],[5,50,5,52],[6,50,6,51],[6,52,7,52],[4,42,4,45],[5,42,5,45],[5,32,5,40],[4,26,4,40],[4,1,5,1],[5,13,5,21],[5,22,5,25],[4,2,4,25],[5,26,5,31]]}
[]
[null,"Worksheet Revision Date:","2026-06-18",null,"PWL Default Unit Price:",65]
[null,"Worksheet Version:","3.0"]
[]
[null,"Worksheet Type","Project Info & Instructions",null,null,null,null,null,null,null,null,null,null,null,null,null,null,null,null,null,null,null,null,null,null,null,"Split Sample Comparison",null,null,null,null,null,null,null,null,null,null,null,null,null,null,"AC % Data","Mix Acceptance",null,null,null,"Air Voids Pay Factor",null,"Density Pay Factor"]
[null,null,"WisDOT Traffic Volumes","WisDOT Mix Gradations","DYNAMIC  - WisDOT Mix Gradations","Mixture PGs","Binder Designation","DYNAMIC - Binder Designation","Pavement Layers","Underlying Layers - Recycled/Granular","Underlying Layers - Paved Layers","DYNAMIC - Underlying Layers","Longitudinal Joint Construction","Minimum Required Densities",null,null,null,null,null,null,null,null,"Stations",null,null,null,"HMA",null,null,null,null,null,"SMA",null,null,null,null,null,null,null,null,"Lower Spec Limit (%)","VMA",null,null,null,"HMA",null,"Unacceptable Upper Density Limit",null,"SMA Pay Factors",null,null,"SMA Pay Adjustments"]
[null,"Volumetrics and Density","LT",1,{"$f":"_xlfn.SWITCH('Project Info & Instructions'!$D$27,0,\"Select a Mix Traffic Vol.\",$C$7,$D$7:$D$12,$C$8,$D$7:$D$12,$C$9,$D$7:$D$12,$D$10:$D$11)","v":"Select a Mix Traffic Vol."},"58-28","S",{"$f":"_xlfn.SWITCH('Project Info & Instructions'!$D$27,0,\"Select a Mix Traffic Vol.\",$C$7,$G$7:$G$10,$C$8,$G$7:$G$10,$C$9,$G$7:$G$10,$G$8:$G$10)","v":"Select a Mix Traffic Vol."},"Lower","Aggregate Base - Dense-Graded","HMA - New",{"$f":"_xlfn.VSTACK($K$7:$K$12,$J$7:$J$14)","v":"HMA - New"},"Notched Wedge (left in place)","Minimum Mainline Density","Minimum Unconfined Density","Minimum Confined Density","Is SMA?","LT or MT Lower Layer Over CIR / Crushed Aggregate / Recycled Base?","HT Lower Layer Over CIR / Crushed Aggregate / Recycled Base?","Is Layer 1.25\" No. 5 Lower-Layer Over Paved/Milled Surface?","Distressed Pavement SPV Applies Checked?","Distressed Pavement SPV Applies?","Stations Increasing / Decreasing Dropdown","Length / Tonnage Known Dropdown","Stations Increasing?","Calculate Tonnage Based on Known Length","Gmm Xd Mean Tolerance","Gmb Xd Mean Tolerance","Gmm Tolerance to JMF","Air Voids Lower Lower Acceptance Limit","Air Voids Target","Air Voids Upper Acceptance Limit","Gmm Xd Mean Tolerance","Gmb Xd Mean Tolerance","Air Voids Lower Acceptance Limit","Air Voids Lower Action Limit 2","Air Voids Lower Action Limit","Air Voids Target","Air Voids Upper Action Limit","Air Voids Upper Action Limit 2","Air Voids Upper Acceptance Limit",null,"Is SMA?","Is No. 4 or No. 5 LT or MT","Minimum VMA","Max VMA\n(No. 6 Mix Only)","Lower Specification Limit","Upper Specification Limit","HMA","SMA","Percent Lot Density Below Minimum",null,"Pay Factor","Percent Lot Density Above Minimum",null,"Pay Adjustment / Ton"]
[null,"Density-Only","MT",2,null,"58-34","H",null,"Middle","Aggregate Base - Open-Graded","HMA - Existing","HMA - Existing","Notched Wedge (milled out)",{"$f":"93-IF($V$8=TRUE,1,0)-IF($Q$8=TRUE,0,0)-IF($T$8=TRUE,1,0)-IF($S$8=TRUE,1,0)-IF($R$8=TRUE,2,0)","v":93},{"$f":"90-IF($V$8=TRUE,1,0)-IF($T$8=TRUE,1,0)-IF($S$8=TRUE,1,0)-IF($R$8=TRUE,2,0)","v":90},{"$f":"91.5-IF($V$8=TRUE,1,0)-IF($T$8=TRUE,1,0)-IF($S$8=TRUE,1,0)-IF($R$8=TRUE,2,0)","v":91.5},{"$f":"IF('Project Info & Instructions'!$D$27=$C$10,TRUE,FALSE)","v":false},{"$f":"IF(AND(OR('Project Info & Instructions'!$D$27=$C$7,'Project Info & Instructions'!$D$27=$C$8),OR('Project Info & Instructions'!$H$7=$I$7,'Project Info & Instructions'!$H$7=$I$8),IF(ISNUMBER(MATCH('Project Info & Instructions'!$H$8,$J$7:$J$14,0)),TRUE,FALSE)),TRUE,FALSE)","v":false},{"$f":"IF(AND('Project Info & Instructions'!$D$27=$C$9,OR('Project Info & Instructions'!$D$27=$I$7,'Project Info & Instructions'!$D$27=$I$8),IF(ISNUMBER(MATCH('Project Info & Instructions'!$H$8,$J$7:$J$14,0)),TRUE,FALSE)),TRUE,FALSE)","v":false},{"$f":"IF(AND('Project Info & Instructions'!$D$27<>$C$10,'Project Info & Instructions'!$D$26=$D$11,'Project Info & Instructions'!$H$11=1.25,OR('Project Info & Instructions'!$H$7=$I$7,'Project Info & Instructions'!$H$7=$I$8),IF(ISNUMBER(MATCH('Project Info & Instructions'!$H$8,$K$7:$K$12,0)),TRUE,FALSE)),TRUE,FALSE)","v":false},false,{"$f":"IF(AND(U8=TRUE,IF(ISNUMBER(MATCH('Project Info & Instructions'!$H$8,$K$7:$K$12,0)),TRUE,FALSE)),TRUE,FALSE)","v":false},"Increasing","Length",{"$f":"_xlfn.SWITCH('Project Info & Instructions'!$H$14,$W$8,TRUE,$W$9,FALSE,TRUE)","v":true},{"$f":"_xlfn.SWITCH('Project Info & Instructions'!$H$15,$X$8,TRUE,$X$9,FALSE,FALSE)","v":false},1.2E-2,1.2E-2,2.4E-2,{"$f":"AE8-1.5","v":1.5},3,{"$f":"AE8+2","v":5},1.4999999999999999E-2,1.4999999999999999E-2,{"$f":"AL8-2","v":2.5},2.8,{"$f":"AL8-1.3","v":3.2},4.5,{"$f":"AL8+1.3","v":5.8},6.2,{"$f":"AL8+2","v":6.5},{"$f":"IF(ISBLANK('Project Info & Instructions'!$H$26),NA(),ROUND('Project Info & Instructions'!$H$26-0.5,1))","v":{"$error":"#N/A"}},{"$f":"$Q$8","v":false},{"$f":"IF(AND(OR('Project Info & Instructions'!$D$27=$C$7,'Project Info & Instructions'!$D$27=$C$8),OR('Project Info & Instructions'!$D$28=$D$10,'Project Info & Instructions'!$D$28=$D$11)),TRUE,FALSE)","v":false},{"$f":"IF($AQ$8,12,10)+'Project Info & Instructions'!$D$28+IF($AR$8,0.5,0)","v":10},{"$f":"IF('Project Info & Instructions'!$D$28=$D$12,17.5,\"\")","v":""},2,4.3,"N/A",97,"Low Range","High Range",null,"Low Range","High Range"]
[null,"Volumetrics-Only","HT",3,null,null,"V",null,"Upper","Recycled Base - Blended Material","HMA - Milled","HMA - Milled","Vertical",null,null,null,null,null,null,null,null,null,"Decreasing","Tonnage",null,null,null,null,null,null,null,null,null,null,null,null,null,null,null,null,null,null,null,null,null,null,null,null,null,null,0.5,1,98,-0.4,1,0]
[null,null,"SMA",4,null,null,"E",null,null,"Recycled Base - Reclaimed Asphalt","HMA - Hot In-Place Recycle (HIR)","HMA - Hot In-Place Recycle (HIR)","Over-pave/Mill excess",null,null,null,null,null,null,null,null,null,null,null,null,null,null,null,null,null,null,null,null,null,null,null,null,null,null,null,null,null,null,null,null,null,null,null,null,null,{"$f":"AZ9","v":1},1.5,95,{"$f":"BC9","v":1},1.8,0.4]
[null,null,null,5,null,null,null,null,null,"Recycled Base - Crushed Concrete","PCC - Existing","PCC - Existing","Mill and Inlay (one lane at a time)",null,null,null,null,null,null,null,null,null,null,null,null,null,null,null,null,null,null,null,null,null,null,null,null,null,null,null,null,null,null,null,null,null,null,null,null,null,{"$f":"AZ10","v":1.5},2,91,1.8,null,0.8]
[null,null,null,6,null,null,null,null,null,"Recycled Base - Reprocessed Material","PCC - Milled","PCC - Milled","Echelon",null,null,null,null,null,null,null,null,null,null,null,null,null,null,null,null,null,null,null,null,null,null,null,null,null,null,null,null,null,null,null,null,null,null,null,null,null,2,2.5,85]
[null,null,null,null,null,null,null,null,null,"Recycled Base - Cold In-Place Recycle (CIR)",null,"Aggregate Base - Dense-Graded","Other (explain in Comments)",null,null,null,null,null,null,null,null,null,null,null,null,null,null,null,null,null,null,null,null,null,null,null,null,null,null,null,null,null,null,null,null,null,null,null,null,null,2.5,3,70]
[null,null,null,null,null,null,null,null,null,"Recycled Base - Full Depth Reclamation (FDR)",null,"Aggregate Base - Open-Graded",null,null,null,null,null,null,null,null,null,null,null,null,null,null,null,null,null,null,null,null,null,null,null,null,null,null,null,null,null,null,null,null,null,null,null,null,null,null,3,null,50]
[null,null,null,null,null,null,null,null,null,null,null,"Recycled Base - Blended Material"]
[null,null,null,null,null,null,null,null,null,null,null,"Recycled Base - Reclaimed Asphalt"]
[null,null,null,null,null,null,null,null,null,null,null,"Recycled Base - Crushed Concrete"]
[null,null,null,null,null,null,null,null,null,null,null,"Recycled Base - Reprocessed Material"]
[null,null,null,null,null,null,null,null,null,null,null,"Recycled Base - Cold In-Place Recycle (CIR)"]
[null,"Gauge/Core Spacing (ft):",50,null,null,null,null,null,null,null,null,"Recycled Base - Full Depth Reclamation (FDR)"]

{"sheet":"INTERNAL_SYS_RECORD","index":26,"n_rows":4,"n_cols":10,"rows_kept":4,"cut":false,"hidden":true,"merged":[[1,1,1,4],[1,6,1,9]]}
[]
[null,"Volumetric Split Sample Random Generation History",null,null,null,null,"Density Zone Random Generation History"]
[null,"Date","Time","Sample Number","Tonnage",null,"Date","Time","Zone Number","Station"]
[null,"Date","Time","Sample Number","Tonnage",null,"Date","Time","Zone Number","Station"]

{"sheet":"County-Region Database","index":27,"n_rows":74,"n_cols":7,"rows_kept":74,"cut":false,"hidden":true,"merged":[]}
[]
[null,"County List","North Central Region Counties","Northeast Region Counties","Northwest Region Counties","Southeast Region Counties","Southwest Region Counties"]
[null,"Adams","Adams","Brown","Ashland","Kenosha","Columbia"]
[null,"Ashland","Florence","Calumet","Barron","Milwaukee","Crawford"]
[null,"Barron","Forest","Door","Bayfield","Ozaukee","Dane"]
[null,"Bayfield","Green Lake","Fond Du Lac","Buffalo","Racine","Dodge"]
[null,"Brown","Iron","Kewaunee","Burnett","Walworth","Grant"]
[null,"Buffalo","Langlade","Manitowoc","Chippewa","Washington","Green"]
[null,"Burnett","Lincoln","Marinette","Clark","Waukesha","Iowa"]
[null,"Calumet","Marathon","Oconto","Douglas",null,"Jefferson"]
[null,"Chippewa","Marquette","Outagamie","Dunn",null,"Juneau"]
[null,"Clark","Menominee","Sheboygan","Eau Claire",null,"La Crosse"]
[null,"Columbia","Oneida","Winnebago","Jackson",null,"Lafayette"]
[null,"Crawford","Portage",null,"Pepin",null,"Monroe"]
[null,"Dane","Price",null,"Pierce",null,"Richland"]
[null,"Dodge","Shawano",null,"Polk",null,"Rock"]
[null,"Door","Vilas",null,"Rusk",null,"Sauk"]
[null,"Douglas","Waupaca",null,"Sawyer",null,"Vernon"]
[null,"Dunn","Waushara",null,"St. Croix"]
[null,"Eau Claire","Wood",null,"Taylor"]
[null,"Florence",null,null,"Trempealeau"]
[null,"Fond Du Lac",null,null,"Washburn"]
[null,"Forest"]
[null,"Grant"]
[null,"Green"]
[null,"Green Lake"]
[null,"Iowa"]
[null,"Iron"]
[null,"Jackson"]
[null,"Jefferson"]
[null,"Juneau"]
[null,"Kenosha"]
[null,"Kewaunee"]
[null,"La Crosse"]
[null,"Lafayette"]
[null,"Langlade"]
[null,"Lincoln"]
[null,"Manitowoc"]
[null,"Marathon"]
[null,"Marinette"]
[null,"Marquette"]
[null,"Menominee"]
[null,"Milwaukee"]
[null,"Monroe"]
[null,"Oconto"]
[null,"Oneida"]
[null,"Outagamie"]
[null,"Ozaukee"]
[null,"Pepin"]
[null,"Pierce"]
[null,"Polk"]
[null,"Portage"]
[null,"Price"]
[null,"Racine"]
[null,"Richland"]
[null,"Rock"]
[null,"Rusk"]
[null,"Sauk"]
[null,"Sawyer"]
[null,"Shawano"]
[null,"Sheboygan"]
[null,"St. Croix"]
[null,"Taylor"]
[null,"Trempealeau"]
[null,"Vernon"]
[null,"Vilas"]
[null,"Walworth"]
[null,"Washburn"]
[null,"Washington"]
[null,"Waukesha"]
[null,"Waupaca"]
[null,"Waushara"]
[null,"Winnebago"]
[null,"Wood"]

{"sheet":"Data Summary","index":28,"n_rows":14,"n_cols":49,"rows_kept":14,"cut":false,"hidden":true,"merged":[[5,45,5,48],[11,8,11,17],[11,21,11,26],[10,21,10,41],[11,18,11,20],[11,37,11,41],[11,32,11,36],[1,1,2,1],[5,38,5,44],[5,11,5,13],[5,23,5,25],[5,35,5,37],[5,26,5,28],[5,29,5,31],[5,32,5,34],[5,5,5,7],[5,8,5,10],[5,14,5,16],[5,17,5,19],[5,20,5,22],[5,1,7,1],[5,2,5,4],[10,1,13,1],[11,5,11,7],[10,2,10,20],[11,2,11,4],[11,27,11,31]]}
[]
[null,"Project Information","Date","Test Strip #","Test Strip Type","Contract","Project ID","Route-Road","County","WisDOT Mix Design ID","Mix Gradation","Mix Traffic Vol","Asphalt Binder","Binder Designation","Mix Type","Contract Unit Price","Final Tonnage","Final Length","Paving Width\n(ft)","Lane Width\n(ft)","Nominal Thickness\n(in)","Start Station","End Station","Test Strip Pavement Layer","Underlying Layer","Density Lower Spec Limit\n(%)","Project Leader","Contractor","JMF Gmm","JMF Gse"," JMF AC  % ","JMF AC Specific Gravity","JMF Gsb"]
[null,null,{"$f":"IF('Project Info & Instructions'!$D$13=\"\",\"\",'Project Info & Instructions'!$D$13)","v":""},{"$f":"IF('Project Info & Instructions'!$D$14=\"\",\"\",'Project Info & Instructions'!$D$14)","v":""},{"$f":"'Project Info & Instructions'!$D$35","v":0},{"$f":"IF('Project Info & Instructions'!$D$7=\"\",\"\",'Project Info & Instructions'!$D$7)","v":""},{"$f":"IF('Project Info & Instructions'!$D$8=\"\",\"\",'Project Info & Instructions'!$D$8)","v":""},{"$f":"IF('Project Info & Instructions'!$D$10=\"\",\"\",'Project Info & Instructions'!$D$10)","v":""},{"$f":"IF('Project Info & Instructions'!$D$9=\"\",\"\",'Project Info & Instructions'!$D$9)","v":""},{"$f":"IF('Project Info & Instructions'!$D$26=\"\",\"\",'Project Info & Instructions'!$D$26)","v":""},{"$f":"IF('Project Info & Instructions'!$D$28=\"\",\"\",'Project Info & Instructions'!$D$28)","v":""},{"$f":"IF('Project Info & Instructions'!$D$27=\"\",\"\",'Project Info & Instructions'!$D$27)","v":""},{"$f":"IF('Project Info & Instructions'!$D$29=\"\",\"\",'Project Info & Instructions'!$D$29)","v":""},{"$f":"IF('Project Info & Instructions'!$D$30=\"\",\"\",'Project Info & Instructions'!$D$30)","v":""},{"$f":"IF('Project Info & Instructions'!$D$31=\"--\",\"\",'Project Info & Instructions'!$D$31)","v":""},{"$f":"IF('Project Info & Instructions'!$H$31=\"\",\"\",'Project Info & Instructions'!$H$31)","v":""},{"$f":"IF('Project Info & Instructions'!$D$43=\"\",\"\",'Project Info & Instructions'!$D$43)","v":""},{"$f":"IF('Project Info & Instructions'!$D$55=\"\",\"\",'Project Info & Instructions'!$D$55)","v":""},{"$f":"IF('Project Info & Instructions'!$H$9=\"\",\"\",'Project Info & Instructions'!$H$9)","v":""},{"$f":"IF('Project Info & Instructions'!$H$10=\"\",\"\",'Project Info & Instructions'!$H$10)","v":""},{"$f":"IF('Project Info & Instructions'!$H$11=\"\",\"\",'Project Info & Instructions'!$H$11)","v":""},{"$f":"IF('Project Info & Instructions'!$H$12=\"\",\"\",'Project Info & Instructions'!$H$12)","v":""},{"$f":"IF('Project Info & Instructions'!$H$13=\"\",\"\",'Project Info & Instructions'!$H$13)","v":"More Information Needed"},{"$f":"IF('Project Info & Instructions'!$H$7=\"\",\"\",'Project Info & Instructions'!$H$7)","v":""},{"$f":"IF('Project Info & Instructions'!$H$8=\"\",\"\",'Project Info & Instructions'!$H$8)","v":""},{"$f":"IF('Project Info & Instructions'!$D$47=\"Enter Mix and Layer Info\",\"\",'Project Info & Instructions'!$D$47)","v":"More Information Needed"},{"$f":"IF('Project Info & Instructions'!$D$12=\"\",\"\",'Project Info & Instructions'!$D$12)","v":""},{"$f":"IF('Project Info & Instructions'!$D$11=\"\",\"\",'Project Info & Instructions'!$D$11)","v":""},{"$f":"IF('Project Info & Instructions'!$H$28=\"\",\"\",'Project Info & Instructions'!$H$28)","v":""},{"$f":"IF('Project Info & Instructions'!$H$29=\"\",\"\",'Project Info & Instructions'!$H$29)","v":""},{"$f":"IF('Project Info & Instructions'!$H$26=\"\",\"\",'Project Info & Instructions'!$H$26)","v":""},{"$f":"IF('Project Info & Instructions'!$H$27=\"\",\"\",'Project Info & Instructions'!$H$27)","v":""},{"$f":"IF('Project Info & Instructions'!$H$30=\"\",\"\",'Project Info & Instructions'!$H$30)","v":""}]
[]
[]
[null,"Volumetrics","QC Gmm",null,null,"QC Gmb",null,null,"QC Va",null,null,"QC AC%",null,null,"QV Gmm",null,null,"QV Gmb",null,null,"QV Va",null,null,"QV AC%",null,null,"BTS Gmm",null,null,"BTS Gmb",null,null,"BTS Va",null,null,"BTS AC%",null,null,"PWL Air Voids Pay Factor",null,null,null,null,null,null,"SMA Air Voids Pay Factor"]
[null,null,"AVG ","STEDEV","COV","AVG ","STEDEV","COV","AVG ","STEDEV","COV","AVG ","STEDEV","COV","AVG ","STEDEV","COV","AVG ","STEDEV","COV","AVG ","STEDEV","COV","AVG ","STEDEV","COV","AVG ","STEDEV","COV","AVG ","STEDEV","COV","AVG ","STEDEV","COV","AVG ","STEDEV","COV","Data Set used for Pay","AVG","STDEV","PWLAV","PFAV","Lot Size (Ton)","Air Voids Pay Adjustment","Data Set used for Pay","Test Strip Tonnage","Nonconforming / Unacceptable Tonnage","Air Voids Pay Adjustment"]
[null,null,{"$f":"IFERROR(IF('Project Info & Instructions'!$D$27=INTERNAL_SYS_VAR!$C$10,AVERAGE('SMA Split Sample Comparison'!D12:D13),AVERAGE('HMA Split Sample Comparison'!D12:D14)),\"\")","v":""},{"$f":"IFERROR(IF('Project Info & Instructions'!$D$27=INTERNAL_SYS_VAR!$C$10,_xlfn.STDEV.S('SMA Split Sample Comparison'!D12:D13),_xlfn.STDEV.S('HMA Split Sample Comparison'!D12:D14)),\"\")","v":""},{"$f":"IFERROR(D8/C8,\"\")","v":""},{"$f":"IFERROR(IF('Project Info & Instructions'!$D$27=INTERNAL_SYS_VAR!$C$10,AVERAGE('SMA Split Sample Comparison'!D19:D20),AVERAGE('HMA Split Sample Comparison'!D22:D24)),\"\")","v":""},{"$f":"IFERROR(IF('Project Info & Instructions'!$D$27=INTERNAL_SYS_VAR!$C$10,_xlfn.STDEV.S('SMA Split Sample Comparison'!D19:D20),_xlfn.STDEV.S('HMA Split Sample Comparison'!D22:D24)),\"\")","v":""},{"$f":"IFERROR(G8/F8,\"\")","v":""},{"$f":"IFERROR(IF('Project Info & Instructions'!$D$27=INTERNAL_SYS_VAR!$C$10,AVERAGE('SMA Split Sample Comparison'!H24:H25),AVERAGE('HMA Split Sample Comparison'!O29:O31)),\"\")","v":""},{"$f":"IFERROR(IF('Project Info & Instructions'!$D$27=INTERNAL_SYS_VAR!$C$10,_xlfn.STDEV.S('SMA Split Sample Comparison'!H24:H25),_xlfn.STDEV.S('HMA Split Sample Comparison'!O29:O31)),\"\")","v":""},{"$f":"IFERROR(J8/I8,\"\")","v":""},{"$f":"IFERROR(IF('Project Info & Instructions'!$D$27=INTERNAL_SYS_VAR!$C$10,AVERAGE('SMA AC % Data'!D12:D13),AVERAGE('HMA AC % Data'!D12:D14)),\"\")","v":""},{"$f":"IFERROR(IF('Project Info & Instructions'!$D$27=INTERNAL_SYS_VAR!$C$10,_xlfn.STDEV.S('SMA AC % Data'!D12:D13),_xlfn.STDEV.S('HMA AC % Data'!D12:D14)),\"\")","v":""},{"$f":"IFERROR(M8/L8,\"\")","v":""},{"$f":"IFERROR(IF('Project Info & Instructions'!$D$27=INTERNAL_SYS_VAR!$C$10,AVERAGE('SMA Split Sample Comparison'!E12:E13),AVERAGE('HMA Split Sample Comparison'!E12:E14)),\"\")","v":""},{"$f":"IFERROR(IF('Project Info & Instructions'!$D$27=INTERNAL_SYS_VAR!$C$10,_xlfn.STDEV.S('SMA Split Sample Comparison'!E12:E13),_xlfn.STDEV.S('HMA Split Sample Comparison'!E12:E14)),\"\")","v":""},{"$f":"IFERROR(P8/O8,\"\")","v":""},{"$f":"IFERROR(IF('Project Info & Instructions'!$D$27=INTERNAL_SYS_VAR!$C$10,AVERAGE('SMA Split Sample Comparison'!E19:E20),AVERAGE('HMA Split Sample Comparison'!E22:E24)),\"\")","v":""},{"$f":"IFERROR(IF('Project Info & Instructions'!$D$27=INTERNAL_SYS_VAR!$C$10,_xlfn.STDEV.S('SMA Split Sample Comparison'!E19:E20),_xlfn.STDEV.S('HMA Split Sample Comparison'!E22:E24)),\"\")","v":""},{"$f":"IFERROR(S8/R8,\"\")","v":""},{"$f":"IFERROR(IF('Project Info & Instructions'!$D$27=INTERNAL_SYS_VAR!$C$10,AVERAGE('SMA Split Sample Comparison'!I24:I25),AVERAGE('HMA Split Sample Comparison'!P29:P31)),\"\")","v":""},{"$f":"IFERROR(IF('Project Info & Instructions'!$D$27=INTERNAL_SYS_VAR!$C$10,_xlfn.STDEV.S('SMA Split Sample Comparison'!I24:I25),_xlfn.STDEV.S('HMA Split Sample Comparison'!P29:P31)),\"\")","v":""},{"$f":"IFERROR(V8/U8,\"\")","v":""},{"$f":"IFERROR(IF('Project Info & Instructions'!$D$27=INTERNAL_SYS_VAR!$C$10,AVERAGE('SMA AC % Data'!E12:E13),AVERAGE('HMA AC % Data'!E12:E14)),\"\")","v":""},{"$f":"IFERROR(IF('Project Info & Instructions'!$D$27=INTERNAL_SYS_VAR!$C$10,_xlfn.STDEV.S('SMA AC % Data'!E12:E13),_xlfn.STDEV.S('HMA AC % Data'!E12:E14)),\"\")","v":""},{"$f":"IFERROR(Y8/X8,\"\")","v":""},{"$f":"IFERROR(IF('Project Info & Instructions'!$D$27=INTERNAL_SYS_VAR!$C$10,AVERAGE('SMA Split Sample Comparison'!G12:G13),AVERAGE('HMA Split Sample Comparison'!K12:K14)),\"\")","v":""},{"$f":"IFERROR(IF('Project Info & Instructions'!$D$27=INTERNAL_SYS_VAR!$C$10,_xlfn.STDEV.S('SMA Split Sample Comparison'!G12:G13),_xlfn.STDEV.S('HMA Split Sample Comparison'!K12:K14)),\"\")","v":""},{"$f":"IFERROR(AB8/AA8,\"\")","v":""},{"$f":"IFERROR(IF('Project Info & Instructions'!$D$27=INTERNAL_SYS_VAR!$C$10,AVERAGE('SMA Split Sample Comparison'!G19:G20),AVERAGE('HMA Split Sample Comparison'!K22:K24)),\"\")","v":""},{"$f":"IFERROR(IF('Project Info & Instructions'!$D$27=INTERNAL_SYS_VAR!$C$10,_xlfn.STDEV.S('SMA Split Sample Comparison'!G19:G20),_xlfn.STDEV.S('HMA Split Sample Comparison'!K22:K24)),\"\")","v":""},{"$f":"IFERROR(AE8/AD8,\"\")","v":""},{"$f":"IFERROR(IF('Project Info & Instructions'!$D$27=INTERNAL_SYS_VAR!$C$10,AVERAGE('SMA Split Sample Comparison'!J24:J25),AVERAGE('HMA Split Sample Comparison'!Q29:Q31)),\"\")","v":""},{"$f":"IFERROR(IF('Project Info & Instructions'!$D$27=INTERNAL_SYS_VAR!$C$10,_xlfn.STDEV.S('SMA Split Sample Comparison'!J24:J25),_xlfn.STDEV.S('HMA Split Sample Comparison'!Q29:Q31)),\"\")","v":""},{"$f":"IFERROR(AH8/AG8,\"\")","v":""},{"$f":"IFERROR(IF('Project Info & Instructions'!$D$27=INTERNAL_SYS_VAR!$C$10,AVERAGE('SMA AC % Data'!G12:G13),AVERAGE('HMA AC % Data'!G12:G14)),\"\")","v":""},{"$f":"IFERROR(IF('Project Info & Instructions'!$D$27=INTERNAL_SYS_VAR!$C$10,_xlfn.STDEV.S('SMA AC % Data'!G12:G13),_xlfn.STDEV.S('HMA AC % Data'!G12:G14)),\"\")","v":""},{"$f":"IFERROR(AK8/AJ8,\"\")","v":""},{"$f":"IF('Project Info & Instructions'!$D$27=INTERNAL_SYS_VAR!$C$10,NA(),'HMA Air Voids Pay Factor'!$E$17)","v":"QC"},{"$f":"IF('Project Info & Instructions'!$D$27=INTERNAL_SYS_VAR!$C$10,NA(),'HMA Air Voids Pay Factor'!$I$12)","v":""},{"$f":"IF('Project Info & Instructions'!$D$27=INTERNAL_SYS_VAR!$C$10,NA(),'HMA Air Voids Pay Factor'!$H$12)","v":""},{"$f":"IF('Project Info & Instructions'!$D$27=INTERNAL_SYS_VAR!$C$10,NA(),'HMA Air Voids Pay Factor'!$S$12)","v":""},{"$f":"IF('Project Info & Instructions'!$D$27=INTERNAL_SYS_VAR!$C$10,NA(),'HMA Air Voids Pay Factor'!$T$12)","v":""},{"$f":"IF('Project Info & Instructions'!$D$27=INTERNAL_SYS_VAR!$C$10,NA(),'HMA Air Voids Pay Factor'!$U$12)","v":""},{"$f":"IF('Project Info & Instructions'!$D$27=INTERNAL_SYS_VAR!$C$10,NA(),'HMA Air Voids Pay Factor'!$V$12)","v":""},{"$f":"IF('Project Info & Instructions'!$D$27=INTERNAL_SYS_VAR!$C$10,'SMA Air Voids Pay Factor'!$E$18,NA())","v":{"$error":"#N/A"}},{"$f":"IF('Project Info & Instructions'!$D$27=INTERNAL_SYS_VAR!$C$10,'Project Info & Instructions'!$D$43,NA())","v":{"$error":"#N/A"}},{"$f":"IF('Project Info & Instructions'!$D$27=INTERNAL_SYS_VAR!$C$10,'SMA Test Strip Summary'!$E$22,NA())","v":{"$error":"#N/A"}},{"$f":"IF('Project Info & Instructions'!$D$27=INTERNAL_SYS_VAR!$C$10,'SMA Air Voids Pay Factor'!$N$12,NA())","v":{"$error":"#N/A"}}]
[]
[]
[null,"Mainline Nuclear Density","Density",null,null,null,null,null,null,null,null,null,null,null,null,null,null,null,null,null,null,"Density Gauge Correlation"]
[null,null,"QC Cores",null,null,"QV Cores",null,null,"PWL Density Pay Factor",null,null,null,null,null,null,null,null,null,"SMA Density Pay Factor",null,null,"QC-1",null,null,null,null,null,"QC-2",null,null,null,null,"QV-1",null,null,null,null,"QV-2"]
[null,null,"AVG ","STEDEV","COV","AVG ","STEDEV","COV","Average Gmm Used for Core Density","Gmm Source","Core Data Used","Standard Deviation","Mean","Number of Tests in Lot","PWLD","PFD","Lot Size (Ton)","Density Pay Adjustment","Lot Size (Ton)","Density Pay Adjustment","Average Core Density","Gauge Serial #","Core Spread (%)","Gauge Spread (%)","Gauge Comp. Avg.","Gauge Recommendation","Gauge Offset","Gauge Serial #","Gauge Spread (%)","Gauge Comp. Avg.","Gauge Recommendation","Gauge Offset","Gauge Serial #","Gauge Spread (%)","Gauge Comp. Avg.","Gauge Recommendation","Gauge Offset","Gauge Serial #","Gauge Spread (%)","Gauge Comp. Avg.","Gauge Recommendation","Gauge Offset"]
[null,null,{"$f":"IFERROR(IF('Project Info & Instructions'!$D$27=INTERNAL_SYS_VAR!$C$10,AVERAGE('SMA Core Data'!J14:J18,'SMA Core Data'!J21:J25),AVERAGE('HMA Core Data'!I14:I18,'HMA Core Data'!I21:I25)),\"\")","v":""},{"$f":"IFERROR(IF('Project Info & Instructions'!$D$27=INTERNAL_SYS_VAR!$C$10,_xlfn.STDEV.S('SMA Core Data'!J14:J18,'SMA Core Data'!J21:J25),_xlfn.STDEV.S('HMA Core Data'!I14:I18,'HMA Core Data'!I21:I25)),\"\")","v":""},{"$f":"IFERROR(D14/C14,\"\")","v":""},{"$f":"IFERROR(IF('Project Info & Instructions'!$D$27=INTERNAL_SYS_VAR!$C$10,AVERAGE('SMA Core Data'!S14:S18,'SMA Core Data'!S21:S25),AVERAGE('HMA Core Data'!Q14:Q18,'HMA Core Data'!Q21:Q25)),\"\")","v":""},{"$f":"IFERROR(IF('Project Info & Instructions'!$D$27=INTERNAL_SYS_VAR!$C$10,_xlfn.STDEV.S('SMA Core Data'!S14:S18,'SMA Core Data'!S21:S25),_xlfn.STDEV.S('HMA Core Data'!Q14:Q18,'HMA Core Data'!Q21:Q25)),\"\")","v":""},{"$f":"IFERROR(G14/F14,\"\")","v":""},{"$f":"IF('Project Info & Instructions'!$D$27=INTERNAL_SYS_VAR!$C$10,NA(),'HMA Density Pay Factor'!$E$23)","v":""},{"$f":"IF('Project Info & Instructions'!$D$27=INTERNAL_SYS_VAR!$C$10,NA(),'HMA Density Pay Factor'!$E$24)","v":"QC"},{"$f":"IF('Project Info & Instructions'!$D$27=INTERNAL_SYS_VAR!$C$10,NA(),'HMA Density Pay Factor'!$E$25)","v":"QC"},{"$f":"IF('Project Info & Instructions'!$D$27=INTERNAL_SYS_VAR!$C$10,NA(),'HMA Density Pay Factor'!$F$12)","v":""},{"$f":"IF('Project Info & Instructions'!$D$27=INTERNAL_SYS_VAR!$C$10,NA(),'HMA Density Pay Factor'!$G$12)","v":""},{"$f":"IF('Project Info & Instructions'!$D$27=INTERNAL_SYS_VAR!$C$10,NA(),'HMA Density Pay Factor'!$H$12)","v":0},{"$f":"IF('Project Info & Instructions'!$D$27=INTERNAL_SYS_VAR!$C$10,NA(),'HMA Density Pay Factor'!$L$12)","v":""},{"$f":"IF('Project Info & Instructions'!$D$27=INTERNAL_SYS_VAR!$C$10,NA(),'HMA Density Pay Factor'!$M$12)","v":""},{"$f":"IF('Project Info & Instructions'!$D$27=INTERNAL_SYS_VAR!$C$10,NA(),'HMA Density Pay Factor'!$N$12)","v":""},{"$f":"IF('Project Info & Instructions'!$D$27=INTERNAL_SYS_VAR!$C$10,NA(),'HMA Density Pay Factor'!$O$12)","v":""},{"$f":"IF('Project Info & Instructions'!$D$27=INTERNAL_SYS_VAR!$C$10,'SMA Density Pay Factor'!$I$12,NA())","v":{"$error":"#N/A"}},{"$f":"IF('Project Info & Instructions'!$D$27=INTERNAL_SYS_VAR!$C$10,'SMA Density Pay Factor'!$J$12,NA())","v":{"$error":"#N/A"}},{"$f":"IF('Project Info & Instructions'!$D$27=INTERNAL_SYS_VAR!$C$10,'SMA Density Pay Factor'!$F$12,NA())","v":{"$error":"#N/A"}},{"$f":"IF('Project Info & Instructions'!$D$27=INTERNAL_SYS_VAR!$C$10,'SMA Test Strip Summary'!$D$37,'HMA Test Strip Summary'!$D$43)","v":"Enter Serial #"},{"$f":"IF('Project Info & Instructions'!$D$27=INTERNAL_SYS_VAR!$C$10,'SMA Test Strip Summary'!$E$37,'HMA Test Strip Summary'!$E$43)","v":0},{"$f":"IF('Project Info & Instructions'!$D$27=INTERNAL_SYS_VAR!$C$10,'SMA Test Strip Summary'!$F$37,'HMA Test Strip Summary'!$F$43)","v":0},{"$f":"IF('Project Info & Instructions'!$D$27=INTERNAL_SYS_VAR!$C$10,'SMA Test Strip Summary'!$G$37,'HMA Test Strip Summary'!$G$43)","v":""},{"$f":"IF('Project Info & Instructions'!$D$27=INTERNAL_SYS_VAR!$C$10,'SMA Test Strip Summary'!$I$37,'HMA Test Strip Summary'!$I$43)","v":""},{"$f":"IF('Project Info & Instructions'!$D$27=INTERNAL_SYS_VAR!$C$10,'SMA Test Strip Summary'!$J$37,'HMA Test Strip Summary'!$J$43)","v":""},{"$f":"IF('Project Info & Instructions'!$D$27=INTERNAL_SYS_VAR!$C$10,'SMA Test Strip Summary'!$D$38,'HMA Test Strip Summary'!$D$44)","v":"Enter Serial #"},{"$f":"IF('Project Info & Instructions'!$D$27=INTERNAL_SYS_VAR!$C$10,'SMA Test Strip Summary'!$F$38,'HMA Test Strip Summary'!$F$44)","v":0},{"$f":"IF('Project Info & Instructions'!$D$27=INTERNAL_SYS_VAR!$C$10,'SMA Test Strip Summary'!$G$38,'HMA Test Strip Summary'!$G$44)","v":""},{"$f":"IF('Project Info & Instructions'!$D$27=INTERNAL_SYS_VAR!$C$10,'SMA Test Strip Summary'!$I$38,'HMA Test Strip Summary'!$I$44)","v":""},{"$f":"IF('Project Info & Instructions'!$D$27=INTERNAL_SYS_VAR!$C$10,'SMA Test Strip Summary'!$J$38,'HMA Test Strip Summary'!$J$44)","v":""},{"$f":"IF('Project Info & Instructions'!$D$27=INTERNAL_SYS_VAR!$C$10,'SMA Test Strip Summary'!$D$39,'HMA Test Strip Summary'!$D$45)","v":"Enter Serial #"},{"$f":"IF('Project Info & Instructions'!$D$27=INTERNAL_SYS_VAR!$C$10,'SMA Test Strip Summary'!$F$39,'HMA Test Strip Summary'!$F$45)","v":0},{"$f":"IF('Project Info & Instructions'!$D$27=INTERNAL_SYS_VAR!$C$10,'SMA Test Strip Summary'!$G$39,'HMA Test Strip Summary'!$G$45)","v":""},{"$f":"IF('Project Info & Instructions'!$D$27=INTERNAL_SYS_VAR!$C$10,'SMA Test Strip Summary'!$I$39,'HMA Test Strip Summary'!$I$45)","v":""},{"$f":"IF('Project Info & Instructions'!$D$27=INTERNAL_SYS_VAR!$C$10,'SMA Test Strip Summary'!$J$39,'HMA Test Strip Summary'!$J$45)","v":""},{"$f":"IF('Project Info & Instructions'!$D$27=INTERNAL_SYS_VAR!$C$10,'SMA Test Strip Summary'!$D$40,'HMA Test Strip Summary'!$D$46)","v":"Enter Serial #"},{"$f":"IF('Project Info & Instructions'!$D$27=INTERNAL_SYS_VAR!$C$10,'SMA Test Strip Summary'!$F$40,'HMA Test Strip Summary'!$F$46)","v":0},{"$f":"IF('Project Info & Instructions'!$D$27=INTERNAL_SYS_VAR!$C$10,'SMA Test Strip Summary'!$G$40,'HMA Test Strip Summary'!$G$46)","v":""},{"$f":"IF('Project Info & Instructions'!$D$27=INTERNAL_SYS_VAR!$C$10,'SMA Test Strip Summary'!$I$40,'HMA Test Strip Summary'!$I$46)","v":""},{"$f":"IF('Project Info & Instructions'!$D$27=INTERNAL_SYS_VAR!$C$10,'SMA Test Strip Summary'!$J$40,'HMA Test Strip Summary'!$J$46)","v":""}]